Workbook

Sheet Change log
B1: Changes made to model
A3: Item | B3: Sheet | C3: Location | D3: Comment
A5: 1 | B5: RFM input; RAB roll forward; Total RAB roll forward;TAB roll forward; PTRM input summary | D5: Label update
A7: 2 | B7: All Sheets | C7: Various | D7: Asset classes increased from 30 to 50
A9: 3 | B9: RFM input | C9: RFM input'!E394:H397 | D9: Added option for forecast or actual real SL depreciation
C10: RFM input'!A399:Q451 | D10: Added section for forecast SL depreciation data inputs
A12: 4 | B12: RAB roll forward | C12: RAB roll forward'!H128:Q128 | D12: Formula update to accommodate choice of forecast or actual real SL depreciation
C13: RAB roll forward'!H141:Q141 | D13: Formula update to accommodate choice of forecast or actual real SL depreciation
C14: etc to ...'RAB roll forward'!H765:Q765 | D14: Formula update to accommodate choice of forecast or actual real SL depreciation
C15: RAB roll forward'!N292:Q292 | D15: Corrected anomalous formula
A17: 5 | B17: RAB roll forward | C17: RAB roll forward'!C115 | D17: Formula update in the label to reflect choice of forecast or actual depreciation
C18: RAB roll forward'!C873 | D18: Formula update in the label to reflect choice of forecast or actual depreciation
C19: RAB roll forward'!C1083 | D19: Formula update in the label to reflect choice of forecast or actual depreciation
C20: RAB roll forward'!C1293 | D20: Formula update in the label to reflect choice of forecast or actual depreciation
C21: RAB roll forward'!C1503 | D21: Formula update in the label to reflect choice of forecast or actual depreciation
A23: 6 | B23: Total RAB roll forward | C23: Total RAB roll forward'!C111 | D23: Formula update in the label to reflect choice of forecast or actual depreciation
C24: Total RAB roll forward'!C687 | D24: Formula update in the label to reflect choice of forecast or actual depreciation
A26: 7 | B26: RFM input | C26: RFM input'!H390:Q390 | D26: Formula update to enable different WACC each year
C27: RFM input'!I391:Q391 | D27: Formula update to enable different WACC each year
A29: 8 | B29: RFM input | C29: RFM input'F384:F385 | D29: Moved CPI input for t-2 of previous period to RFM input sheet from Adjustment for previous period sheet
B30: Adjustment for previous period | C30: Adjustment for previous period'F6 | D30: Formula update to reflect input moved to RFM input sheet
A32: 9 | B32: RFM input | C32: RFM input'K7:K56 and X7:X56 | D32: Formula update for data validation so that a value greater than zero may be entered
A34: 10 | B34: RFM input | C34: RFM input'W57 | D34: Formula to sum values for opening TAB
A36: 11 | B36: RFM input | C36: RFM input'E5; G60; I60:G60 | D36: Formula update to allow for correct display of chosen base year (start of period)
B37: Adjustment for previous period | C37: Adjustment for previous period'F4 | D37: Formula update to allow for correct display of regulatory year
B38: RAB roll forward | C38: RAB roll forward'R4 | D38: Formula update to allow for correct display of regulatory year
B39: TAB roll forward | C39: TAB roll forward'R4 | D39: Formula update to allow for correct display of regulatory year
A41: 12 | B41: RFM input | C41: RFM input'J6:J57 | D41: Added input column for as commissioned RAB from final year of previous period
C42: RFM input'N6:N57 | D42: Added input column for as commissioned RAB from final year of previous period
C43: RFM input'P6:P57 | D43: Added input column for as commissioned RAB from final year of previous period
C44: RFM input'R6:R57 | D44: Added input column for as commissioned RAB from final year of previous period
C45: RFM input'T6:T57 | D45: Added input column for as commissioned RAB from final year of previous period
A47: 13 | B47: RFM input | C47: RFM input'M6 | D47: Label update for as incurred RAB inputs from final year of previous period
C48: RFM input'Q6 | D48: Label update for as incurred RAB inputs from final year of previous period
C49: RFM input'S6 | D49: Label update for as incurred RAB inputs from final year of previous period
C50: RFM input'U6 | D50: Label update for as incurred RAB inputs from final year of previous period
C51: RFM input'V6 | D51: Label update for as commissioned RAB inputs from final year of previous period
C52: RFM input'Z6 | D52: Label update
A54: 14 | B54: Adjustment for previous period | C54: Adjustment for previous period'B7:Q7 | D54: Added actual inflation index from RFM input
C55: Adjustment for previous period'B9:Q9 | D55: Added real vanilla WACC from RFM input
A57: 15 | B57: Adjustment for previous period | C57: Adjustment for previous period'B11; B272; | D57: Label update to reflect changes to RFM input at 12
C58: B274; B326; B378; B430; B432 and B434 | D58: Label update to reflect changes to RFM input at 12
C59: etc to…B530 and B531 | D59: Label update to reflect changes to RFM input at 12
A61: 16 | B61: Adjustment for previous period | C61: Adjustment for previous period'G275:G324; | D61: Formula update/addition to reflect changes to RFM input at 12
C62: G327:G376; G326:G376; G379:G428; | D62: Formula update/addition to reflect changes to RFM input at 12
C63: H378:Q328; and H431:Q531 | D63: Formula update/addition to reflect changes to RFM input at 12
A65: 17 | B65: RAB roll forward | C65: RAB roll forward'!H116:Q116 | D65: Formula update to to reflect changes to RFM input at 12
C66: RAB roll forward'!H129:Q129 | D66: Formula update to to reflect changes to RFM input at 13
C67: etc to ...'RAB roll forward'!H765:Q765 | D67: Formula update to to reflect changes to RFM input at 14
A69: 18 | B69: RAB roll forward | C69: RAB roll forward'C925; C977; C1029; | D69: Label update to reflect changes to RFM input at 12
C70: C1345 and C1397 | D70: Label update to reflect changes to RFM input at 12
A72: 19 | B72: RAB roll forward | C72: RAB roll forward'G822:G871; G874:G923 | D72: Formula update/addition to reflect changes to RFM input at 12
C73: G926:G975; G978:G1027; G1030:G1079; | D73: Formula update/addition to reflect changes to RFM input at 12
C74: G1190:G1239; G1242:G1291; G1294:G1343; | D74: Formula update/addition to reflect changes to RFM input at 12
C75: G1346:G1395; G1398:G1447; C1449; | D75: Formula update/addition to reflect changes to RFM input at 12
C76: D1450:D1499 and G1449:G1499 | D76: Formula update/addition to reflect changes to RFM input at 12
A78: 20 | B78: Total RAB roll forward | C78: Total RAB roll forward'C163; C215; C267; | D78: Label update to reflect changes to RFM input at 12
C79: C739 and C791 | D79: Label update to reflect changes to RFM input at 12
A81: 21 | B81: Total RAB roll forward | C81: Total RAB roll forward'C843; D844:D893 and | D81: Formula update/addition to reflect changes to RFM input at 12
C82: G843:G893 | D82: Formula update/addition to reflect changes to RFM input at 12
A84: 22 | B84: Total RAB roll forward | C84: Total RAB roll forward'H584:H633; G898:G947 | D84: Formula update/addition to reflect changes to Total RAB roll forward at 21
A86: 23 | B86: Total RAB roll forward | C86: Total RAB roll forward'J950:Q999 and | D86: Formula update/addition to reflect changes to Adjustment for previous period at 16
C87: J1002:Q1051
A89: 24 | B89: Total RAB roll forward | C89: Total RAB roll forward'C491:G553 | D89: Removed sections for assets under construction true-up from final year of previous period (no longer required)
C90: of version 2 RFM
A92: 25 | B92: RFM input | C92: RFM input'!W7:W56 | D92: Removed defined names for opening tax values
B93: TAB roll forward | C93: TAB roll forward'!H8:H57 | D93: Added defined names to ensure correct tax depreciation calculation on opening tax values
B94: TAB roll forward | C94: TAB roll forward'H8:H57 | D94: Formula update to reflect changes to RFM input at 12, and changes to remove half WACC from forecast capex
A96: 26 | B96: Adjustment for previous period | C96: Adjustment for previous period'B533:R725 | D96: Removed section that takes the opening inputs from final year of previous period and rolls forward for one year (replicated in other sheets)
D97: (Adjustment for previous period B331:R523 of version 2 RFM)
A99: 27 | B99: RAB roll forward | C99: RAB roll forward'H1190:H1239 | D99: Added defined names to replace removal in Adjustment for previous period at 26
A101: 28 | B101: RAB roll forward | C101: RAB roll forward'K770:M819; J1136:L1185; | D101: Formula update to allow display for regulatory control period of 2-10 years
C102: K1190:M1239; J1556:L1605 | D102: Formula update to allow display for regulatory control period of 2-10 years
B103: Total RAB roll forward | C103: Total RAB roll forward'J8:L57; J322:L371; | D103: Formula update to allow display for regulatory control period of 2-10 years
C104: J373:L423; J425:L475; J529:L529; J584:L633; | D104: Formula update to allow display for regulatory control period of 2-10 years
C105: J898:L947 J949:L949; J1001:L1001 and | D105: Formula update to allow display for regulatory control period of 2-10 years
C106: J1105:L1105 | D106: Formula update to allow display for regulatory control period of 2-10 years
B107: RFM input | C107: RFM input'!M392:Q392 | D107: Formula update to allow display for regulatory control period of 2-10 years
B108: Adjustment for previous period | C108: Adjustment for previous period'I171:I270 | D108: Formula update to allow display for regulatory control period of 2-10 years
C109: J170:J270, H430:Q531 | D109: Formula update to allow display for regulatory control period of 2-10 years
A111: 29 | B111: RFM input | C111: RFM input'A453:H505 | D111: Added section for forecast final year asset adjustments
B112: Total RAB roll forward | C112: Total RAB roll forward'C477:Q527 | D112: Added section to reflect this change to RFM input
C113: Total RAB roll forward'J530:Q579 | D113: Formula update to reflect this change to Total RAB roll forward
C114: Total RAB roll forward'C1053:Q1103 | D114: Added section to reflect this change to RFM input
C115: Total RAB roll forward'J1106:Q1155 | D115: Formula update to reflect this change to Total RAB roll forward
C116: TAB roll forward'K8:R57 | D116: Formula update to reflect this change to RFM input and allow display for regulatory control period of 3 years or more
A118: 30 | B118: Adjustment for previous period | C118: Adjustment for previous period'!G118:G167 | D118: Formula update to remove CPI adjustment
A120: 31 | B120: TAB roll forward | C120: TAB roll forward'D112; D125 etc to…D749 | D120: Label update
A122: 32 | B122: RAB remaining lives | C122: RAB remaining lives | D122: Added sheet for calculating remaining asset lives based on individually tracking capex over 20 years
A124: 33 | B124: TAB remaining lives | C124: TAB remaining lives | D124: Added sheet for calculating remaining tax asset lives based on individually tracking capex over 20 years
A126: 34 | B126: PTRM input summary | C126: PTRM input summary'J7:K56 and N7:N56 | D126: Formula update to record outputs
C127: PTRM input summary'L7:L56 and O6:O56 | D127: Formula update to use new RAB/TAB remaining life calculations, and filter anomalous remaining lives
A129: 35 | B129: DMIS input | C129: DMS input | D129: Added sheet for business information
C130: Total RAB roll forward | D130: Added defined names for selected ranges
C131: TAB roll forward | D131: Added defined names for selected ranges
C132: PTRM input summary | D132: Added defined names for selected ranges
A134: 36 | B134: RFM input | C134: RFM input'E2 | D134: Label update
B135: Adjustment for previous period | C135: Adjustment for previous period'B2 | D135: Label update
B136: RAB roll forward | C136: RAB roll forward'C2 | D136: Label update
B137: Total RAB roll forward | C137: Total RAB roll forward'C2 | D137: Label update
B138: TAB roll forward | C138: TAB roll forward'B2 | D138: Label update
B139: PTRM input summary | C139: PTRM input summary'E2 | D139: Label update
C140: PTRM input summary'N6 | D140: Label update
C141: PTRM input summary'Q6 | D141: Label update

Sheet Intro
G2: Electricity Transmission Network Service Provider
I3: Roll Forward Model
L4: Version: | M4: 3
L5: Date: | M5: July 2015
B8: Introduction | J8: Electricity Transmission Module
C14: This model is used by the AER to determine the opening regulatory and tax asset bases for a transmission network service provider. It also calculates the weighted average remaining asset lives for regulatory and tax purposes using the asset values as weights.
C15: The roll forward of the asset base is undertaken in nominal terms.
C17: INSTRUCTIONS FOR USE
C18: The RFM handbook is available on the AER website at http://www.aer.gov.au
C20: a. Fill out input cells on the 'DMS Input' sheet. These input cells are highlighted blue.
C21: This provides information on the service provider submitting the RFM and the context for the RFM preparation.
C22: This information also controls the automatic import of the RFM into the AER's Data Management System (DMS).
C24: b. Fill out input cells on the 'RFM Input' sheet. These input cells are highlighted blue.
C25: This provides the data for the RFM calculations.
C26: In general, input expenditure data should be valued in nominal dollar terms of the year indicated, as at the end of that year.
C27: Units and basis for entry are specified where required for each data table.
C29: c. The values in the 'PTRM input summary' sheet
C30: This sheet summarises the key outputs of the RFM. These include the opening regulatory and tax asset values, and remaining asset lives. They become the inputs to the PTRM.
C33: VERSION RECORD
C35: Version | D35: Date | F35: Description
C36: 1 | D36: September 2007 | F36: Initial model
C38: 2 | D38: December 2010 | F38: Modified calculations to allow for establising a closing RAB based on as commissioned capex
F39: Adjusted depreciation calculation formula in the RAB roll forward
F40: Added the weighted average approach to roll forward the remaining asset lives at the end of the regulatory control period and summary tables
C42: 3 | D42: July 2015 | F42: Added new input sections for as commissioned RAB and end of period adjustments, and removed redundant inputs
F43: Built-in option to select actual or forecast depreciation approach for the RAB roll forward
F44: Updated inputs to handle different annual WACCs due to time-varying return on debt
F45: Modified calculations of weighted average remaining lives for RAB and TAB to individually track capex over multiple periods
F46: Enabled automatic import into AER DMS

Sheet AER only (hidden)
A1: HIDE THIS COLUMN | C1: =(LOOKUP(dms_Model,dms_Model_List,dms_Worksheet_List)) -> ROLL FORWARD MODEL | L1: Data in these columns used for data validation and database purposes.
C2: =dms_TradingName -> AusNet (T) | L2: Date last modified:
C3: =CONCATENATE(FRCP_y1," to ",FRCP_y5) -> 2019-20 to 2023-24 | L3: 14 April 2015 | M3: merged cell C46/47
C4: BUSINESS & OTHER DETAILS | L4: 17 April 2015 | M4: adjusted dms_RYE to automate based on dms_Model (NB: EB & CA refer to CRCP_y5)
L5: 14 May 2015 | M5: adapted this cover for use in CA & EB RINs
C7: Instructions
C8: Complete the following business details regulatory template before entering data or values in any other regulatory template. This regulatory template is linked to other cells within the spreadsheet and automatically generates column headings.
C9: THIS WORKBOOK TO BE LOCKED, PROTECTED AND HIDDEN FROM VIEW
C10: SUBMISSION PARTICULARS INPUT SHEETS
C12: Entity details
C14: Trading name | D14: AusNet (T)
C15: ACN / ABN | D15: =INDEX(dms_ABN_List,MATCH(dms_TradingName,dms_TradingName_List)) -> 48116124362
L17: dms_Model_List | M17: dms_Worksheet_List | O17: dms_RYE_List1 | P17: dms_RYE_List2
C18: Business address | D18: Address 1 | F18: ='DMS input'!E18:E18 -> Level 31, 2 Southbank Boulevard | L18: CA | M18: CATEGORY ANALYSIS | O18: dms_RYE | P18: =CONCATENATE(LEFT(CRY, 2) &IF(CRY>"2009-10",,"") &RIGHT(CRY,2)) -> 2015
E19: Address 2 | F19: =IF(ISBLANK('DMS input'!E19),"",'DMS input'!E19) ->  | L19: CAM/Service change Backcast | M19: REGULATORY REPORTING STATEMENT | O19: dms_RYE | P19: =CONCATENATE(LEFT(CRCP_y5, 2) &IF(CRCP_y5>"2009-10",,"") &RIGHT(CRCP_y5,2)) -> 2019
D20: Suburb | F20: ='DMS input'!E20 -> Southbank | L20: CPI | M20: CPI | O20: dms_RYE | P20: =CONCATENATE(LEFT(CRCP_y5, 2) &IF(CRCP_y5>"2009-10",,"") &RIGHT(CRCP_y5,2)) -> 2019
E21: State | F21: =INDEX(dms_State_List,MATCH(dms_TradingName,dms_TradingName_List)) -> Vic | G21: p/code | H21: ='DMS input'!G21 -> 3006 | L21: EB | M21: ECONOMIC BENCHMARKING | O21: dms_RYE | P21: =CONCATENATE(LEFT(CRY, 2) &IF(CRY>"2009-10",,"") &RIGHT(CRY,2)) -> 2015
L22: PTRM | M22: POST TAX REVENUE MODEL | O22: FRCP | P22: =CONCATENATE(LEFT(FRCP_y5, 2) &IF(FRCP_y1>"2009-10",,"") &RIGHT(FRCP_y5,2)) -> 2024
C23: Postal address | D23: Address 1 | F23: ='DMS input'!E23 -> Locked Bag 14051 | L23: Reset | M23: REGULATORY REPORTING STATEMENT | O23: FRCP | P23: =CONCATENATE(LEFT(FRCP_y5, 2) &IF(FRCP_y1>"2009-10",,"") &RIGHT(FRCP_y5,2)) -> 2024
E24: Address 2 | F24: =IF(ISBLANK('DMS input'!E24),"",'DMS input'!E24) ->  | L24: RFM | M24: ROLL FORWARD MODEL | O24: CRCP | P24: =CONCATENATE(LEFT(CRCP_y5, 2) &IF(CRCP_y1>"2009-10",,"") &RIGHT(CRCP_y5,2)) -> 2019
D25: Suburb | F25: ='DMS input'!E25:H25 -> 0 | L25: WACC | M25: WEIGHTED AVERAGE COST OF CAPITAL | O25: dms_RYE | P25: =CONCATENATE(LEFT(CRCP_y5, 2) &IF(CRCP_y5>"2009-10",,"") &RIGHT(CRCP_y5,2)) -> 2019
E26: State | F26: ='DMS input'!E26 -> Vic | G26: p/code | H26: ='DMS input'!G26 -> 8001
L28: dms_TradingName_List | M28: dms_ABN_List | N28: dms_State_List | O28: dms_Sector_List | P28: dms_Segment_List | Q28: dms_FormControl_List | R28: dms_CRCPlength_List | S28: dms_FRCPlength_List | T28: dms_JurisdictionList
C29: Contact name/s | D29: ='DMS input'!C29:D29 -> 0 | G29: ='DMS input'!F29:G29 -> 0 | L29: ActewAGL Distribution | M29: 76670568688 | N29: ACT | O29: Electricity | P29: Distribution | Q29: Revenue cap | R29: 5 | S29: 6 | T29: ACT
C30: Contact phone/s | D30: ='DMS input'!C30:D30 -> 0 | G30: ='DMS input'!F30:G30 -> 0 | L30: ActewAGL Distribution (Tx Assets) | M30: 76670568688 | N30: ACT | O30: Electricity | P30: Distribution | Q30: Revenue cap | R30: 5 | S30: 5 | T30: ACT
C31: Contact email address/s | D31: ='DMS input'!C31:D31 -> 0 | G31: ='DMS input'!F31:G31 -> 0 | L31: AGN | M31: 78551685 | N31: SA | O31: Gas | P31: Distribution | Q31: Revenue cap | R31: 5 | S31: 5 | T31: SA
L32: Ausgrid | M32: 67505337385 | N32: NSW | O32: Electricity | P32: Distribution | Q32: Revenue cap | R32: 5 | S32: 5 | T32: NSW
A33: KEEP VISIBLE FOR RESET | C33: Regulatory control period details | L33: Ausgrid (Tx Assets) | M33: 67505337385 | N33: NSW | O33: Electricity | P33: Distribution | Q33: Revenue cap | R33: 5 | S33: 5 | T33: NSW
L34: AusNet (D) | M34: 91064651118 | N34: Vic | O34: Electricity | P34: Distribution | Q34: Revenue cap | R34: 5 | S34: 5 | T34: Vic
C35: Forthcoming regulatory control period | D35: =CONCATENATE(IF(dms_RPT="Calendar",CRCP_y5+1,(LEFT(CRCP_y5,4)+1&"-"&IF(MID(CRCP_y5,6,2)<"09","0"&RIGHT(CRCP_y5,1)+1,RIGHT(CRCP_y5,2)+1)))) -> 2019-20 | E35: =CONCATENATE(IF(dms_RPT="Calendar",FRCP_y1+1,(LEFT(FRCP_y1,4)+1&"-"&IF(MID(FRCP_y1,6,2)<"09","0"&RIGHT(FRCP_y1,1)+1,RIGHT(FRCP_y1,2)+1)))) -> 2020-21 | F35: =CONCATENATE(IF(dms_RPT="Calendar",FRCP_y2+1,(LEFT(FRCP_y2,4)+1&"-"&IF(MID(FRCP_y2,6,2)<"09","0"&RIGHT(FRCP_y2,1)+1,RIGHT(FRCP_y2,2)+1)))) -> 2021-22 | G35: =CONCATENATE(IF(dms_RPT="Calendar",FRCP_y3+1,(LEFT(FRCP_y3,4)+1&"-"&IF(MID(FRCP_y3,6,2)<"09","0"&RIGHT(FRCP_y3,1)+1,RIGHT(FRCP_y3,2)+1)))) -> 2022-23 | H35: =CONCATENATE(IF(dms_RPT="Calendar",FRCP_y4+1,(LEFT(FRCP_y4,4)+1&"-"&IF(MID(FRCP_y4,6,2)<"09","0"&RIGHT(FRCP_y4,1)+1,RIGHT(FRCP_y4,2)+1)))) -> 2023-24 | L35: AusNet (T) | M35: 48116124362 | N35: Vic | O35: Electricity | P35: Transmission | Q35: Revenue cap | R35: 5 | S35: 5 | T35: Vic
L36: Australian Distribution Co. | M36: 11222333444 | N36: - | O36: Electricity | P36: Distribution | Q36: Revenue cap | R36: 5 | S36: 5 | T36: -
L37: Australian Transmission Co. | M37: 11222333444 | N37: - | O37: Electricity | P37: Transmission | Q37: Revenue cap | R37: 5 | S37: 5 | T37: -
C38: Current regulatory control period | D38: =CRY -> 2014-15 | E38: =CONCATENATE(IF(dms_RPT="Calendar",CRCP_y1+1,(LEFT(CRCP_y1,4)+1&"-"&IF(MID(CRCP_y1,6,2)<"09","0"&RIGHT(CRCP_y1,1)+1,RIGHT(CRCP_y1,2)+1)))) -> 2015-16 | F38: =CONCATENATE(IF(dms_RPT="Calendar",CRCP_y2+1,(LEFT(CRCP_y2,4)+1&"-"&IF(MID(CRCP_y2,6,2)<"09","0"&RIGHT(CRCP_y2,1)+1,RIGHT(CRCP_y2,2)+1)))) -> 2016-17 | G38: =CONCATENATE(IF(dms_RPT="Calendar",CRCP_y3+1,(LEFT(CRCP_y3,4)+1&"-"&IF(MID(CRCP_y3,6,2)<"09","0"&RIGHT(CRCP_y3,1)+1,RIGHT(CRCP_y3,2)+1)))) -> 2017-18 | H38: =CONCATENATE(IF(dms_RPT="Calendar",CRCP_y4+1,(LEFT(CRCP_y4,4)+1&"-"&IF(MID(CRCP_y4,6,2)<"09","0"&RIGHT(CRCP_y4,1)+1,RIGHT(CRCP_y4,2)+1)))) -> 2018-19 | L38: CitiPower | M38: 76064651056 | N38: Vic | O38: Electricity | P38: Distribution | Q38: Revenue cap | R38: 5 | S38: 5 | T38: Vic
L39: Directlink | M39: 16779340889 | N39: NSW | O39: Electricity | P39: Transmission | Q39: Revenue cap | R39: 10 | S39: 5 | T39: Qld
L40: ElectraNet | M40: 41094482416 | N40: SA | O40: Electricity | P40: Transmission | Q40: Revenue cap | R40: 5 | S40: 5 | T40: SA
C41: Previous regulatory control period | D41: =CONCATENATE(IF(dms_RPT="Calendar",PRCP_y2-1,(LEFT(PRCP_y2,4)-1&"-"&IF(MID(PRCP_y2,3,1)="0","0"&RIGHT(PRCP_y2,2)-1,RIGHT(PRCP_y2,2)-1)))) -> 2009-10 | E41: =CONCATENATE(IF(dms_RPT="Calendar",PRCP_y3-1,(LEFT(PRCP_y3,4)-1&"-"&IF(MID(PRCP_y3,3,1)="0","0"&RIGHT(PRCP_y3,2)-1,RIGHT(PRCP_y3,2)-1)))) -> 2010-11 | F41: =CONCATENATE(IF(dms_RPT="Calendar",PRCP_y4-1,(LEFT(PRCP_y4,4)-1&"-"&IF(MID(PRCP_y4,3,1)="0","0"&RIGHT(PRCP_y4,2)-1,RIGHT(PRCP_y4,2)-1)))) -> 2011-12 | G41: =CONCATENATE(IF(dms_RPT="Calendar",PRCP_y5-1,(LEFT(PRCP_y5,4)-1&"-"&IF(MID(PRCP_y5,3,1)="0","0"&RIGHT(PRCP_y5,2)-1,RIGHT(PRCP_y5,2)-1)))) -> 2012-13 | H41: =CONCATENATE(IF(dms_RPT="Calendar",CRCP_y1-1,(LEFT(CRCP_y1,4)-1&"-"&IF(MID(CRCP_y1,3,1)="0","0"&RIGHT(CRCP_y1,2)-1,RIGHT(CRCP_y1,2)-1)))) -> 2013-14 | L41: Endeavour Energy | M41: 59253130878 | N41: NSW | O41: Electricity | P41: Distribution | Q41: Revenue cap | R41: 5 | S41: 5 | T41: NSW
L42: Energex | M42: 40078849055 | N42: Qld | O42: Electricity | P42: Distribution | Q42: Revenue cap | R42: 5 | S42: 5 | T42: Qld
L43: Ergon Energy | M43: 50087646062 | N43: Qld | O43: Electricity | P43: Distribution | Q43: Revenue cap | R43: 5 | S43: 5 | T43: Qld
A44: KEEP VISIBLE FOR CA & EB ONLY | L44: Essential Energy | M44: 37428185226 | N44: NSW | O44: Electricity | P44: Distribution | Q44: Revenue cap | R44: 5 | S44: 5 | T44: NSW
C45: Current regulatory year | D45: ='RFM input'!AB7 -> 2014-15 | L45: Jemena Electricity | M45: 82064651083 | N45: Vic | O45: Electricity | P45: Distribution | Q45: Revenue cap | R45: 5 | S45: 5 | T45: Vic
L46: Murraylink | M46: 79181207909 | N46: NSW | O46: Electricity | P46: Transmission | Q46: Revenue cap | R46: 5 | S46: 5 | T46: SA
L47: Powercor Australia | M47: 89064651109 | N47: Vic | O47: Electricity | P47: Distribution | Q47: Revenue cap | R47: 5 | S47: 5 | T47: Vic
L48: Powerlink | M48: 82078849233 | N48: Qld | O48: Electricity | P48: Transmission | Q48: Revenue cap | R48: 5 | S48: 5 | T48: Qld
L49: Qld,SA &ACT Gas Reset | M49: 22222222222 | N49: - | O49: Gas | P49: Distribution | Q49: ? | R49: 5 | S49: 5 | T49: -
C50: Sector | D50: =INDEX(dms_Sector_List,MATCH(dms_TradingName,dms_TradingName_List)) -> Electricity | L50: SA Power Networks | M50: 13332330749 | N50: SA | O50: Electricity | P50: Distribution | Q50: Revenue cap | R50: 5 | S50: 5 | T50: SA
C51: Segment | D51: =INDEX(dms_Segment_List,MATCH(dms_TradingName,dms_TradingName_List)) -> Transmission | L51: TasNetworks (D) | M51: 24167357299 | N51: Tas | O51: Electricity | P51: Distribution | Q51: Revenue cap | R51: 5 | S51: 5 | T51: Tas
C52: Source | D52: Regulatory proposal | L52: TasNetworks (T) | M52: 24167357299 | N52: Tas | O52: Electricity | P52: Transmission | Q52: Revenue cap | R52: 5 | S52: 5 | T52: Tas
C53: Regulatory Year Ending | D53: =(LOOKUP(dms_Model,dms_Model_List,dms_RYE_List2)) -> 2019 | L53: TransGrid | M53: 19622755774 | N53: NSW | O53: Electricity | P53: Transmission | Q53: Revenue cap | R53: 5 | S53: 5 | T53: NSW
C54: Reporting Period Type | D54: =IF(LEN(CRCP_y1)>4,"Financial","Calendar") -> Financial | L54: United Energy | M54: 70064651029 | N54: Vic | O54: Electricity | P54: Distribution | Q54: Revenue cap | R54: 5 | S54: 5 | T54: Vic
C55: Model or RIN Type | D55: RFM
C56: Security Classification | D56: Public
C57: Data quality (actual, estimate, public, consolidated) | D57: Consolidated
C58: EBSS - First application of scheme in forthcoming period? | D58: No
C59: Amended RIN submission - amendment reason
A60: HIDE THESE ROWS | C60: Template - version no. | D60: 1
C61: Dollar $ real (the last month before the FRCP_y1) | D61: =CONCATENATE(IF(dms_RPT="Financial","June ","December "),(CRCP_y5)) -> June 2018-19 | L61: dms_SourceList | M61: dms_FormControl_Choices
C62: Form of control | L62: After appeal | M62: Revenue cap
C63: Length of current reg control period | D63: =INDEX(dms_CRCPlength_List,MATCH(dms_TradingName,dms_TradingName_List)) -> 5 | L63: Draft decision | M63: Revenue yield
C64: Length of forthcoming reg control period | D64: =INDEX(dms_FRCPlength_List,MATCH(dms_TradingName,dms_TradingName_List)) -> 5 | L64: Final decision | M64: Weighted average price cap
C65: RIN response - version no. | D65: 1 | L65: Regulatory proposal
C66: Jurisdiction | D66: =INDEX(dms_JurisdictionList,MATCH(dms_TradingName,dms_TradingName_List)) -> Vic | L66: Revised regulatory proposal
L67: RFM annual update
L79: Notes
L80: RFM - Base year is usually CRCP_y1 | M80: EG. Victorian 2016-20 - base year = 2011
L81: RFM - Form of Control Field is not relevant
L82: PTRM - capture base year input by NSP | M82: ='[Published version - PTRM - TNSP - version 3 - January 2015 - Appendix A.xlsm]PTRM input'!Q7

Sheet DMS input
B2: =$C$16&" - DMS Input"&" - TNSP RFM - version "&Intro!$M$4 -> - DMS Input - TNSP RFM - version 3 | G2: Input cells are in blue
B6: This sheet requests information that allows the AER to automatically import the RFM into our data management system (DMS).
B7: This sheet's metadata relates to the business and context for the RFM (rather than the RFM itself).
B8: Some of this data is automatically populated based on data entered on the RFM input sheet. Only change blue input cells.
B9: Some rows are hidden. To facilitate the automatic import, please do not delete or add rows on this sheet.
B10: Throughout the rest of the workbook, defined name ranges are used to identify data that is imported into the DMS.
B12: Entity details
B14: Trading name | C14: AusNet (T)
B15: ACN / ABN | C15: 48116124362
B16: Business short name
B18: Business address | C18: Address 1 | E18: Level 31, 2 Southbank Boulevard
D19: Address 2
C20: Suburb | E20: Southbank
D21: State | E21: Vic | F21: Postcode | G21: 3006
B23: Postal address | C23: Address 1 | E23: Locked Bag 14051
D24: Address 2
C25: Suburb | E25: Melbourne City Mail Centre
D26: State | E26: Vic | F26: Postcode | G26: 8001
B29: Contact name/s | C29: Charlotte Coster | F29: Anh Mai
B30: Contact phone/s | C30: 396956309 | F30: 396956627
B31: Contact email address/s | C31: charlotte.coster@ausnetservices.com.au | F31: anh.mai@ausnetservices.com.au
B33: Regulatory process details
B36: Source | C36: Regulatory proposal
B37: Amended model submission - reason

Sheet RFM input
E2: ='DMS input'!$C$16&" - RFM Input"&" - TNSP RFM - version "&Intro!$M$4 -> - RFM Input - TNSP RFM - version 3 | G2: Input cells are in blue
K3: New insert/change | M3: Labelling change | U3: AST insert | V3: AST insert | AE3: Source: AER final decision – SP AusNet post tax revenue model (PTRM) - January 2014
AG4: As incurred / | AH4: As incurred /
E5: ="Opening Regulatory Asset Base for "&IF(LEN($AB$7)>4,CONCATENATE(LEFT($AB$7,4)-1&"-"&IF($AB$7>"2009-10",,"0")&RIGHT($AB$7,2)-1),$AB$7-1)&" and Opening Tax Asset Base for "&$AB$7&" ($m Nominal)" -> Opening Regulatory Asset Base for 2013-14 and Opening Tax Asset Base for 2014-15 ($m Nominal) | AE5: As incurred | AF5: As incurred | AG5: As commissioned | AH5: As commissioned
F6: Asset Class Name | I6: Opening Asset Value (Partially As Incurred) | J6: Opening Asset Value (As Commissioned) | K6: Average Remaining Life (Year) | L6: Standard Life (Year) | M6: Forecast Net Capex (As Incurred) | N6: Forecast Net Capex (As Commissioned) | O6: Forecast Regulatory Depreciation (Partially As Incurred) | P6: Forecast Regulatory Depreciation (As Commissioned) | Q6: Difference in Final Year Capex (As Incurred) | R6: Difference in Final Year Capex (As Commissioned) | S6: Return on Difference in Final Year Capex ( As Incurred) | T6: Return on Difference in Final Year Capex (As Commissioned) | U6: Forecast Group 3 Asset Roll in | V6: Prudent Group 3 Asset Roll in | W6: Other Final Year Adjustments (As Incurred) | X6: Other Final Year Adjustments (As Commissioned) | Y6: Opening Tax Asset Value | Z6: Average Tax Remaining Life (Year) | AA6: Tax Standard Life (Year) | AB6: Base Regulatory Year | AC6: Length of Regulatory Control Period (Year) | AE6: Difference Between Actual and Forecast Assets Under Construction | AF6: Return on Difference - Assets Under Construction | AG6: Nominal Difference Between Actual and Forecast Assets Group 3 assets | AH6: Compounded Return on Difference - Group 3 Assets
E7: Asset Class 1 | F7: Secondary | I7: 148.1718906 | J7: 107.0792796 | L7: 15 | M7: 18.60017269 | N7: 20.35595021 | O7: 7.33495081 | P7: 8.462983266 | Q7: -7.051944397 | R7: -7.051944397 | S7: -5.396563346 | T7: -5.396563346 | U7: 25.77145565 | V7: ='AST actual depreciation'!D169/1000 -> 25.80191793 | W7: =SUM(AE7:AH7) -> -3.005837074 | X7: =AG7+AH7 -> 0.146234654 | Y7: 163.9276337 | Z7: 15.23333435 | AA7: 12.5 | AB7: 2014-15 | AC7: 3 | AE7: -1.78561439 | AF7: -1.366457338 | AG7: 0.08284034281 | AH7: 0.06339431119
E8: Asset Class 2 | F8: Switchgear | I8: 479.8625882 | J8: 450.6048965 | L8: 45 | M8: 39.28114637 | N8: 44.5783507 | O8: 11.30106477 | P8: 12.1042171 | Q8: 11.75496426 | R8: 11.75496426 | S8: 8.995591239 | T8: 8.995591239 | U8: 64.3756252 | V8: ='AST actual depreciation'!D170/1000 -> 64.45503504 | W8: =SUM(AE8:AH8) -> -3.645003578 | X8: =AG8+AH8 -> 0.6485855217 | Y8: 482.3584773 | Z8: 28.82962237 | AA8: 40 | AE8: -2.43227158 | AF8: -1.86131752 | AG8: 0.3674166518 | AH8: 0.2811688698
E9: Asset Class 3 | F9: Transformers | I9: 216.4831418 | J9: 184.374331 | L9: 45 | M9: 31.75115962 | N9: 35.20652825 | O9: 10.43568656 | P9: 11.3171049 | Q9: 1.799782515 | R9: 1.799782515 | S9: 1.377299622 | T9: 1.377299622 | U9: 45.30347231 | V9: ='AST actual depreciation'!D171/1000 -> 45.35441782 | W9: 1.180574262 | X9: 0.1277878236 | Y9: 236.2197361 | Z9: 26.76525998 | AA9: 40 | AE9: 0.59639208 | AF9: 0.4563943585 | AG9: 0.07239041379 | AH9: 0.0553974098
E10: Asset Class 4 | F10: Reactive | I10: 86.16228999 | J10: 82.71928743 | L10: 40 | M10: 0.8841679219 | N10: 0.8838986332 | O10: 2.900820565 | P10: 2.99533436 | Q10: 0.04614296216 | R10: 0.04614296216 | S10: 0.03531131334 | T10: 0.03531131334 | U10: 0.100727108 | V10: ='AST actual depreciation'!D172/1000 -> 0.1008253487 | W10: 0.1970360385 | X10: 0.1970360385 | Y10: 62.88234761 | Z10: 18.7020538 | AA10: 40 | AE10: 0 | AF10: 0 | AG10: 0.1116187752 | AH10: 0.08541726326
E11: Asset Class 5 | F11: Towers and Conductor | I11: 1112.177177 | J11: 1101.979747 | L11: 60 | M11: 4.905473915 | N11: 5.053311485 | O11: 14.12201052 | P11: 14.40193998 | Q11: -4.082338632 | R11: -4.082338632 | S11: -3.124046048 | T11: -3.124046048 | U11: 3.97282449 | V11: ='AST actual depreciation'!D173/1000 -> 3.977780426 | W11: -3.612244269 | X11: 0.007170896195 | Y11: 811.5543587 | Z11: 26.38983285 | AA11: 47.5 | AE11: -2.05035937 | AF11: -1.569055795 | AG11: 0.00406223479 | AH11: 0.003108661405
E12: Asset Class 6 | F12: Establishment | I12: 144.0488218 | J12: 152.191831 | L12: 45 | M12: 8.725705111 | N12: 9.626400814 | O12: 1.971529134 | P12: 1.747995547 | Q12: 5.072334804 | R12: 5.072334804 | S12: 3.881649449 | T12: 3.881649449 | U12: 4.261026155 | V12: ='AST actual depreciation'!D174/1000 -> 4.266584375 | W12: 24.72556891 | X12: 0.0402961495 | Y12: 145.6513602 | Z12: 33.04168599 | AA12: 40 | AE12: 13.98393884 | AF12: 10.70133392 | AG12: 0.02282733092 | AH12: 0.01746881858
E13: Asset Class 7 | F13: Communications | I13: 42.63042543 | J13: 23.97963212 | L13: 15 | M13: 5.593520676 | N13: 5.640553533 | O13: 2.302026317 | P13: 2.814008879 | Q13: -0.6937519536 | R13: -0.6937519536 | S13: -0.5308998701 | T13: -0.5308998701 | U13: 0.6223702402 | V13: ='AST actual depreciation'!D175/1000 -> 0.6231324909 | W13: -1.517403048 | X13: 0.008095898037 | Y13: 31.37538721 | Z13: 9.846660153 | AA13: 12.5 | AE13: -0.86417858 | AF13: -0.661320366 | AG13: 0.004586238285 | AH13: 0.003509659752
E14: Asset Class 8 | F14: Inventory | I14: 8.405941389 | J14: 8.405941389 | L14: n/a | M14: 0 | N14: 0 | O14: -0.2307513322 | P14: -0.2307513322 | Q14: 0 | R14: 0 | S14: 0 | T14: 0 | U14: 0 | V14: ='AST actual depreciation'!D176/1000 -> 0 | W14: 0 | X14: 0 | Y14: 5.984124314 | Z14: n/a | AA14: n/a | AE14: 0 | AF14: 0
E15: Asset Class 9 | F15: IT | I15: 59.40546471 | J15: 46.5855531 | L15: 5 | M15: 18.47244798 | N15: 18.46682188 | O15: 9.948343597 | P15: 10.30026274 | Q15: -1.570365912 | R15: -1.570365912 | S15: -1.20173652 | T15: -1.20173652 | U15: 0 | V15: ='AST actual depreciation'!D177/1000 -> 0 | W15: 6.006189751 | X15: 0 | Y15: 33.33928611 | Z15: 2.666488512 | AA15: 3.5 | AE15: 3.402441243 | AF15: 2.603748508
E16: Asset Class 10 | F16: Vehicles | I16: 3.306539537 | J16: 2.643790285 | L16: 7 | M16: 1.638180605 | N16: 1.637681669 | O16: 0.4361680066 | P16: 0.4543611233 | Q16: 0.2130314793 | R16: 0.2130314793 | S16: 0.1630242396 | T16: 0.1630242396 | U16: 0 | V16: ='AST actual depreciation'!D178/1000 -> 0 | W16: 1.394822865 | X16: 0 | Y16: 3.193569569 | Z16: 6.507797407 | AA16: 8 | AE16: 0.790152 | AF16: 0.6046708654
E17: Asset Class 11 | F17: other | I17: 19.19500732 | J17: 18.82180175 | L17: 10 | M17: 1.656282584 | N17: 1.655778135 | O17: 2.141723403 | P17: 2.151968262 | Q17: -0.36980461 | R17: -0.36980461 | S17: -0.2829962761 | T17: -0.2829962761 | U17: 0 | V17: ='AST actual depreciation'!D179/1000 -> 0 | W17: 18.12467628 | X17: 0 | Y17: 12.91206219 | Z17: 7.280572789 | AA17: 10 | AE17: 10.26743221 | AF17: 7.857244074
E18: Asset Class 12 | F18: premises | I18: 3.878880071 | J18: 3.381951559 | L18: 10 | M18: 0.2184240807 | N18: 0.2183575559 | O18: 0.9759874363 | P18: 0.9896286112 | Q18: -0.02115015188 | R18: -0.02115015188 | S18: -0.01618534236 | T18: -0.01618534236 | U18: 0 | V18: ='AST actual depreciation'!D180/1000 -> 0 | W18: 0.5434842619 | X18: 0 | Y18: 1.288379702 | Z18: 10.11912977 | AA18: 20 | AE18: 0.30787793 | AF18: 0.2356063319
E19: Asset Class 13 | F19: Land | I19: 105.8962315 | J19: 106.11297 | L19: n/a | M19: 0 | N19: 0 | O19: -2.906955374 | P19: -2.912905058 | Q19: 0 | R19: 0 | S19: 0 | T19: 0 | U19: 0 | V19: ='AST actual depreciation'!D181/1000 -> 0 | W19: 0 | X19: 0 | Y19: 80.11838029 | Z19: n/a | AA19: n/a | AE19: 0 | AF19: 0
E20: Asset Class 14 | F20: Easements | I20: 124.8023463 | J20: 124.8023463 | L20: n/a | M20: 0 | N20: 0 | O20: -3.425946761 | P20: -3.425946761 | Q20: 0 | R20: 0 | S20: 0 | T20: 0 | U20: 0 | V20: ='AST actual depreciation'!D182/1000 -> 0 | W20: 0 | X20: 0 | Y20: 94.584699 | Z20: n/a | AA20: n/a | AE20: 0 | AF20: 0
E21: Asset Class 15 | F21: Equity raising costs (2003-08) | L21: 27.57070758 | M21: 0 | N21: 0 | O21: 0 | P21: 0 | Q21: 0 | R21: 0 | S21: 0 | T21: 0 | V21: ='AST actual depreciation'!D183/1000 -> 0 | W21: 53.4 | X21: 53.4 | Y21: 53.4 | Z21: 5 | AA21: 5 | AE21: 0 | AF21: 0
E22: Asset Class 16
E23: Asset Class 17
E24: Asset Class 18
E25: Asset Class 19
E26: Asset Class 20
E27: Asset Class 21
E28: Asset Class 22
E29: Asset Class 23
E30: Asset Class 24
E31: Asset Class 25
E32: Asset Class 26
E33: Asset Class 27
E34: Asset Class 28
E35: Asset Class 29
E36: Asset Class 30
E37: Asset Class 31
E38: Asset Class 32
E39: Asset Class 33
E40: Asset Class 34
E41: Asset Class 35
E42: Asset Class 36
E43: Asset Class 37
E44: Asset Class 38
E45: Asset Class 39
E46: Asset Class 40
E47: Asset Class 41
E48: Asset Class 42
E49: Asset Class 43
E50: Asset Class 44
E51: Asset Class 45
E52: Asset Class 46
E53: Asset Class 47
E54: Asset Class 48
E55: Asset Class 49
E56: Asset Class 50 | F56: Equity raising costs
E57: Total | I57: =SUM(I7:I56) -> 2554.426746 | J57: =SUM(J7:J56) -> 2413.683359 | M57: =SUM(M7:M56) -> 131.7266816 | N57: 143.3236329 | O57: 57.30665766 | P57: 61.17020161 | Q57: 5.09690036 | R57: 5.09690036 | S57: 3.90044846 | T57: 3.90044846 | U57: 144.4075012 | V57: 144.5796934 | W57: 93.7918644 | X57: 54.57520698 | Y57: 2218.789802 | AE57: =SUM(AE7:AE56) -> 22.21581038 | AF57: =SUM(AF7:AF56) -> 17.00084704 | AG57: =SUM(AG7:AG56) -> 0.6657419876 | AH57: =SUM(AH7:AH56) -> 0.5094649938
E59: Actual Capital Expenditure – As Incurred ($m Nominal)
E60: Year | G60: =IF(LEN(H60)>4,CONCATENATE(LEFT(H60,4)-1&"-"&IF(H60>"2009-10",,"0")&RIGHT(H60,2)-1),H60-1) -> 2013-14 | H60: =AB7 -> 2014-15 | I60: =IF(LEN(H60)>4,CONCATENATE(LEFT(H60,4)+1&"-"&IF(H60>"2007-08",,"0")&RIGHT(H60,2)+1),H60+1) -> 2015-16 | J60: =IF(LEN(I60)>4,CONCATENATE(LEFT(I60,4)+1&"-"&IF(I60>"2007-08",,"0")&RIGHT(I60,2)+1),I60+1) -> 2016-17 | K60: 2017-18 | L60: 2018-19 | M60: 2019-20 | N60: 2020-21 | O60: 2021-22 | P60: 2022-23 | Q60: 2023-24
E61: =Asset1 -> Secondary | G61: 22.83210468 | H61: 19.45257785 | I61: 29.8767682 | J61: 23.81528991
E62: =Asset2 -> Switchgear | G62: 35.87772823 | H62: 42.66113475 | I62: 36.10332176 | J62: 50.23177225
E63: =Asset3 -> Transformers | G63: 27.70800506 | H63: 30.40480316 | I63: 24.41378519 | J63: 26.86095815
E64: =Asset4 -> Reactive | G64: 2.370654189 | H64: 4.777492099 | I64: 3.159894805 | J64: 10.70241647
E65: =Asset5 -> Towers and Conductor | G65: 16.50882764 | H65: 11.66554897 | I65: 22.60159995 | J65: 9.746021314
E66: =Asset6 -> Establishment | G66: 9.482041384 | H66: 10.71369863 | I66: 7.262571188 | J66: 16.49312384
E67: =Asset7 -> Communications | G67: 7.40074831 | H67: 9.238688254 | I67: 7.628225082 | J67: 15.48596356
E68: =Asset8 -> Inventory | G68: 0 | H68: 0 | I68: 0 | J68: 0
E69: =Asset9 -> IT | G69: 17.82988555 | H69: 19.23957745 | I69: 7.891820118 | J69: 19.65072778
E70: =Asset10 -> Vehicles | G70: 1.082195621 | H70: 0.7733980771 | I70: 1.374769087 | J70: 0.8992421324
E71: =Asset11 -> other | G71: 2.716751861 | H71: 2.163715468 | I71: 2.02433701 | J71: 2.604311232
E72: =Asset12 -> premises | G72: 0.5153851645 | H72: 0.1281352589 | I72: 2.719962281 | J72: 0.5334664865
E73: =Asset13 -> Land | I73: 0 | J73: 0
E74: =Asset14 -> Easements | I74: 0 | J74: 0
E75: =Asset15 -> Equity raising costs (2003-08)
E76: =Asset16 -> 0
E77: =Asset17 -> 0
E78: =Asset18 -> 0
E79: =Asset19 -> 0
E80: =Asset20 -> 0
E81: =Asset21 -> 0
E82: =Asset22 -> 0
E83: =Asset23 -> 0
E84: =Asset24 -> 0
E85: =Asset25 -> 0
E86: =Asset26 -> 0
E87: =Asset27 -> 0
E88: =Asset28 -> 0
E89: =Asset29 -> 0
E90: =Asset30 -> 0
E91: =Asset31 -> 0
E92: =Asset32 -> 0
E93: =Asset33 -> 0
E94: =Asset34 -> 0
E95: =Asset35 -> 0
E96: =Asset36 -> 0
E97: =Asset37 -> 0
E98: =Asset38 -> 0
E99: =Asset39 -> 0
E100: =Asset40 -> 0
E101: =Asset41 -> 0
E102: =Asset42 -> 0
E103: =Asset43 -> 0
E104: =Asset44 -> 0
E105: =Asset45 -> 0
E106: =Asset46 -> 0
E107: =Asset47 -> 0
E108: =Asset48 -> 0
E109: =Asset49 -> 0
E110: =Asset50 -> Equity raising costs
E111: Total | G111: =SUM(G61:G110) -> 144.3243277 | H111: =SUM(H61:H110) -> 151.21877 | I111: 145.0570547 | J111: 177.0232931 | K111: 0 | L111: 0 | M111: 0 | N111: 0 | O111: 0 | P111: 0 | Q111: 0
R112: =SUM(G111:Q111) -> 617.6234454
E113: Actual Asset Disposal – As Incurred ($m Nominal)
E114: Year | G114: =G$60 -> 2013-14 | H114: =H$60 -> 2014-15 | I114: 2015-16 | J114: 2016-17 | K114: 2017-18 | L114: 2018-19 | M114: 2019-20 | N114: 2020-21 | O114: 2021-22 | P114: 2022-23 | Q114: 2023-24
E115: =Asset1 -> Secondary | G115: 0 | H115: 0 | I115: 0 | J115: 0
E116: =Asset2 -> Switchgear | G116: 0 | H116: 0 | I116: 0 | J116: 0
E117: =Asset3 -> Transformers | G117: 0 | H117: 0 | I117: 0 | J117: 0
E118: =Asset4 -> Reactive | G118: 0 | H118: 0 | I118: 0 | J118: 0
E119: =Asset5 -> Towers and Conductor | G119: 0 | H119: 0 | I119: 0 | J119: 0
E120: =Asset6 -> Establishment | G120: 0 | H120: 0 | I120: 0 | J120: 0
E121: =Asset7 -> Communications | G121: 0 | H121: 0 | I121: 0 | J121: 0
E122: =Asset8 -> Inventory | G122: 0 | H122: 0 | I122: 0 | J122: 0
E123: =Asset9 -> IT | G123: 0 | H123: 0 | I123: 0 | J123: 0
E124: =Asset10 -> Vehicles | G124: 0 | H124: 0 | I124: 0 | J124: 0
E125: =Asset11 -> other | G125: 0 | H125: 0 | I125: 0 | J125: 0
E126: =Asset12 -> premises | G126: 0 | H126: 0 | I126: 0 | J126: 0
E127: =Asset13 -> Land | G127: 0 | H127: 0 | I127: 0 | J127: 0
E128: =Asset14 -> Easements | G128: 0 | H128: 0 | I128: 0 | J128: 0
E129: =Asset15 -> Equity raising costs (2003-08) | G129: 0 | H129: 0 | I129: 0 | J129: 0
E130: =Asset16 -> 0
E131: =Asset17 -> 0
E132: =Asset18 -> 0
E133: =Asset19 -> 0
E134: =Asset20 -> 0
E135: =Asset21 -> 0
E136: =Asset22 -> 0
E137: =Asset23 -> 0
E138: =Asset24 -> 0
E139: =Asset25 -> 0
E140: =Asset26 -> 0
E141: =Asset27 -> 0
E142: =Asset28 -> 0
E143: =Asset29 -> 0
E144: =Asset30 -> 0
E145: =Asset31 -> 0
E146: =Asset32 -> 0
E147: =Asset33 -> 0
E148: =Asset34 -> 0
E149: =Asset35 -> 0
E150: =Asset36 -> 0
E151: =Asset37 -> 0
E152: =Asset38 -> 0
E153: =Asset39 -> 0
E154: =Asset40 -> 0
E155: =Asset41 -> 0
E156: =Asset42 -> 0
E157: =Asset43 -> 0
E158: =Asset44 -> 0
E159: =Asset45 -> 0
E160: =Asset46 -> 0
E161: =Asset47 -> 0
E162: =Asset48 -> 0
E163: =Asset49 -> 0
E164: =Asset50 -> Equity raising costs
E165: Total | G165: =SUM(G115:G164) -> 0 | H165: =SUM(H115:H164) -> 0 | I165: 0 | J165: 0 | K165: 0 | L165: 0 | M165: 0 | N165: 0 | O165: 0 | P165: 0 | Q165: 0
R166: =SUM(G165:Q165) -> 0
E167: ="Actual Net Capital Expenditure – As Incurred ($m Real "&IF(LEN($AB$7)>4,CONCATENATE(LEFT($AB$7, 4)-1 &"-" &IF($AB$7>"2009-10",,"0") &RIGHT($AB$7,2)-1),$AB$7-1)&")" -> Actual Net Capital Expenditure – As Incurred ($m Real 2013-14)
E168: Year | G168: =G$60 -> 2013-14 | H168: =H$60 -> 2014-15 | I168: 2015-16 | J168: 2016-17 | K168: 2017-18 | L168: 2018-19 | M168: 2019-20 | N168: 2020-21 | O168: 2021-22 | P168: 2022-23 | Q168: 2023-24
E169: =Asset1 -> Secondary | G169: =(G61-G115)/G$386 -> 22.83210468 | H169: 18.93285249 | I169: 28.4634111 | J169: 22.17690376 | K169: 0 | L169: 0 | M169: 0 | N169: 0 | O169: 0 | P169: 0 | Q169: 0
E170: =Asset2 -> Switchgear | G170: =(G62-G116)/G$386 -> 35.87772823 | H170: 41.52133344 | I170: 34.39540992 | J170: 46.77604947 | K170: 0 | L170: 0 | M170: 0 | N170: 0 | O170: 0 | P170: 0 | Q170: 0
E171: =Asset3 -> Transformers | G171: =(G63-G117)/G$386 -> 27.70800506 | H171: 29.59246109 | I171: 23.25886119 | J171: 25.01304356 | K171: 0 | L171: 0 | M171: 0 | N171: 0 | O171: 0 | P171: 0 | Q171: 0
E172: =Asset4 -> Reactive | G172: =(G64-G118)/G$386 -> 2.370654189 | H172: 4.64984918 | I172: 3.010412112 | J172: 9.966137758 | K172: 0 | L172: 0 | M172: 0 | N172: 0 | O172: 0 | P172: 0 | Q172: 0
E173: =Asset5 -> Towers and Conductor | G173: =(G65-G119)/G$386 -> 16.50882764 | H173: 11.353874 | I173: 21.53240359 | J173: 9.075538343 | K173: 0 | L173: 0 | M173: 0 | N173: 0 | O173: 0 | P173: 0 | Q173: 0
E174: =Asset6 -> Establishment | G174: =(G66-G120)/G$386 -> 9.482041384 | H174: 10.42745477 | I174: 6.919006366 | J174: 15.35847019 | K174: 0 | L174: 0 | M174: 0 | N174: 0 | O174: 0 | P174: 0 | Q174: 0
E175: =Asset7 -> Communications | G175: =(G67-G121)/G$386 -> 7.40074831 | H175: 8.991853072 | I175: 7.267362555 | J175: 14.42059806 | K175: 0 | L175: 0 | M175: 0 | N175: 0 | O175: 0 | P175: 0 | Q175: 0
E176: =Asset8 -> Inventory | G176: =(G68-G122)/G$386 -> 0 | H176: 0 | I176: 0 | J176: 0 | K176: 0 | L176: 0 | M176: 0 | N176: 0 | O176: 0 | P176: 0 | Q176: 0
E177: =Asset9 -> IT | G177: =(G69-G123)/G$386 -> 17.82988555 | H177: 18.72554294 | I177: 7.518487906 | J177: 18.298845 | K177: 0 | L177: 0 | M177: 0 | N177: 0 | O177: 0 | P177: 0 | Q177: 0
E178: =Asset10 -> Vehicles | G178: =(G70-G124)/G$386 -> 1.082195621 | H178: 0.7527347697 | I178: 1.309733952 | J178: 0.8373782685 | K178: 0 | L178: 0 | M178: 0 | N178: 0 | O178: 0 | P178: 0 | Q178: 0
E179: =Asset11 -> other | G179: =(G71-G125)/G$386 -> 2.716751861 | H179: 2.105906276 | I179: 1.928573269 | J179: 2.425146189 | K179: 0 | L179: 0 | M179: 0 | N179: 0 | O179: 0 | P179: 0 | Q179: 0
E180: =Asset12 -> premises | G180: =(G72-G126)/G$386 -> 0.5153851645 | H180: 0.1247117978 | I180: 2.591291135 | J180: 0.4967663621 | K180: 0 | L180: 0 | M180: 0 | N180: 0 | O180: 0 | P180: 0 | Q180: 0
E181: =Asset13 -> Land | G181: =(G73-G127)/G$386 -> 0 | H181: 0 | I181: 0 | J181: 0 | K181: 0 | L181: 0 | M181: 0 | N181: 0 | O181: 0 | P181: 0 | Q181: 0
E182: =Asset14 -> Easements | G182: =(G74-G128)/G$386 -> 0 | H182: 0 | I182: 0 | J182: 0 | K182: 0 | L182: 0 | M182: 0 | N182: 0 | O182: 0 | P182: 0 | Q182: 0
E183: =Asset15 -> Equity raising costs (2003-08) | G183: =(G75-G129)/G$386 -> 0 | H183: 0 | I183: 0 | J183: 0 | K183: 0 | L183: 0 | M183: 0 | N183: 0 | O183: 0 | P183: 0 | Q183: 0
E184: =Asset16 -> 0 | G184: =(G76-G130)/G$386 -> 0 | H184: 0 | I184: 0 | J184: 0 | K184: 0 | L184: 0 | M184: 0 | N184: 0 | O184: 0 | P184: 0 | Q184: 0
E185: =Asset17 -> 0 | G185: =(G77-G131)/G$386 -> 0 | H185: 0 | I185: 0 | J185: 0 | K185: 0 | L185: 0 | M185: 0 | N185: 0 | O185: 0 | P185: 0 | Q185: 0
E186: =Asset18 -> 0 | G186: =(G78-G132)/G$386 -> 0 | H186: 0 | I186: 0 | J186: 0 | K186: 0 | L186: 0 | M186: 0 | N186: 0 | O186: 0 | P186: 0 | Q186: 0
E187: =Asset19 -> 0 | G187: =(G79-G133)/G$386 -> 0 | H187: 0 | I187: 0 | J187: 0 | K187: 0 | L187: 0 | M187: 0 | N187: 0 | O187: 0 | P187: 0 | Q187: 0
E188: =Asset20 -> 0 | G188: =(G80-G134)/G$386 -> 0 | H188: 0 | I188: 0 | J188: 0 | K188: 0 | L188: 0 | M188: 0 | N188: 0 | O188: 0 | P188: 0 | Q188: 0
E189: =Asset21 -> 0 | G189: =(G81-G135)/G$386 -> 0 | H189: 0 | I189: 0 | J189: 0 | K189: 0 | L189: 0 | M189: 0 | N189: 0 | O189: 0 | P189: 0 | Q189: 0
E190: =Asset22 -> 0 | G190: =(G82-G136)/G$386 -> 0 | H190: 0 | I190: 0 | J190: 0 | K190: 0 | L190: 0 | M190: 0 | N190: 0 | O190: 0 | P190: 0 | Q190: 0
E191: =Asset23 -> 0 | G191: =(G83-G137)/G$386 -> 0 | H191: 0 | I191: 0 | J191: 0 | K191: 0 | L191: 0 | M191: 0 | N191: 0 | O191: 0 | P191: 0 | Q191: 0
E192: =Asset24 -> 0 | G192: =(G84-G138)/G$386 -> 0 | H192: 0 | I192: 0 | J192: 0 | K192: 0 | L192: 0 | M192: 0 | N192: 0 | O192: 0 | P192: 0 | Q192: 0
E193: =Asset25 -> 0 | G193: =(G85-G139)/G$386 -> 0 | H193: 0 | I193: 0 | J193: 0 | K193: 0 | L193: 0 | M193: 0 | N193: 0 | O193: 0 | P193: 0 | Q193: 0
E194: =Asset26 -> 0 | G194: =(G86-G140)/G$386 -> 0 | H194: 0 | I194: 0 | J194: 0 | K194: 0 | L194: 0 | M194: 0 | N194: 0 | O194: 0 | P194: 0 | Q194: 0
E195: =Asset27 -> 0 | G195: =(G87-G141)/G$386 -> 0 | H195: 0 | I195: 0 | J195: 0 | K195: 0 | L195: 0 | M195: 0 | N195: 0 | O195: 0 | P195: 0 | Q195: 0
E196: =Asset28 -> 0 | G196: =(G88-G142)/G$386 -> 0 | H196: 0 | I196: 0 | J196: 0 | K196: 0 | L196: 0 | M196: 0 | N196: 0 | O196: 0 | P196: 0 | Q196: 0
E197: =Asset29 -> 0 | G197: =(G89-G143)/G$386 -> 0 | H197: 0 | I197: 0 | J197: 0 | K197: 0 | L197: 0 | M197: 0 | N197: 0 | O197: 0 | P197: 0 | Q197: 0
E198: =Asset30 -> 0 | G198: =(G90-G144)/G$386 -> 0 | H198: =(H90-H144)/H$386 -> 0 | I198: 0 | J198: 0 | K198: 0 | L198: 0 | M198: 0 | N198: 0 | O198: 0 | P198: =(P90-P144)/P$386 -> 0 | Q198: =(Q90-Q144)/Q$386 -> 0
E199: =Asset31 -> 0 | G199: =(G91-G145)/G$386 -> 0 | H199: 0 | I199: 0 | J199: 0 | K199: 0 | L199: 0 | M199: 0 | N199: 0 | O199: 0 | P199: 0 | Q199: 0
E200: =Asset32 -> 0 | G200: =(G92-G146)/G$386 -> 0 | H200: 0 | I200: 0 | J200: 0 | K200: 0 | L200: 0 | M200: 0 | N200: 0 | O200: 0 | P200: 0 | Q200: 0
E201: =Asset33 -> 0 | G201: =(G93-G147)/G$386 -> 0 | H201: 0 | I201: 0 | J201: 0 | K201: 0 | L201: 0 | M201: 0 | N201: 0 | O201: 0 | P201: 0 | Q201: 0
E202: =Asset34 -> 0 | G202: =(G94-G148)/G$386 -> 0 | H202: 0 | I202: 0 | J202: 0 | K202: 0 | L202: 0 | M202: 0 | N202: 0 | O202: 0 | P202: 0 | Q202: 0
... 299 more rows

Sheet Adjustment for previous period
B2: ='DMS input'!$C$16&" - Adjustment For Previous Period"&" - TNSP RFM - version "&Intro!$M$4 -> - Adjustment For Previous Period - TNSP RFM - version 3
B4: Year | F4: ='RFM input'!$F$384 -> 2012-13 | G4: ='RFM input'!G60 -> 2013-14 | H4: ='RFM input'!H60 -> 2014-15 | I4: ='RFM input'!I60 -> 2015-16 | J4: ='RFM input'!J60 -> 2016-17 | K4: ='RFM input'!K60 -> 2017-18 | L4: ='RFM input'!L60 -> 2018-19 | M4: ='RFM input'!M60 -> 2019-20 | N4: ='RFM input'!N60 -> 2020-21 | O4: ='RFM input'!O60 -> 2021-22 | P4: ='RFM input'!P60 -> 2022-23 | Q4: ='RFM input'!Q60 -> 2023-24
B6: Actual CPI Inflation Rate | F6: ='RFM input'!F$385 -> 0.02204408818 | G6: ='RFM input'!G$385 -> 0.02745098039 | H6: ='RFM input'!H$385 -> 0.02161100196 | I6: ='RFM input'!I$385 -> 0.02307692308 | J6: ='RFM input'!J$385 -> 0.0235 | K6: ='RFM input'!K$385 -> 0.0235 | L6: ='RFM input'!L$385 -> 0.0235 | M6: ='RFM input'!M$385 -> 0.0235 | N6: ='RFM input'!N$385 -> 0.0235 | O6: ='RFM input'!O$385 -> 0.0235 | P6: ='RFM input'!P$385 -> 0.0235 | Q6: ='RFM input'!Q$385 -> 0.0235
B7: Actual CPI (one year lagged) | G7: ='RFM input'!G$386 -> 1 | H7: ='RFM input'!H$386 -> 1.02745098 | I7: ='RFM input'!I$386 -> 1.049655226 | J7: ='RFM input'!J$386 -> 1.073878038 | K7: ='RFM input'!K$386 -> 1.099114172 | L7: ='RFM input'!L$386 -> 1.124943355 | M7: ='RFM input'!M$386 -> 1.151379524 | N7: ='RFM input'!N$386 -> 1.178436943 | O7: ='RFM input'!O$386 -> 1.206130211 | P7: ='RFM input'!P$386 -> 1.234474271 | Q7: ='RFM input'!Q$386 -> 1.263484417
B8: Nominal Vanilla WACC (fixed real time varying) | H8: =vanilla1 -> 0.07569667058 | I8: =vanilla2 -> 0.07724019982 | J8: =vanilla3 -> 0.0776856751 | K8: =vanilla4 -> 0.09393118594 | L8: =vanilla5 -> 0.09393118594 | M8: =vanilla6 -> 0.09393118594 | N8: =vanilla7 -> 0.09393118594 | O8: =vanilla8 -> 0.09393118594 | P8: =vanilla9 -> 0.09393118594 | Q8: =vanilla10 -> 0.09393118594
B9: Real Vanilla WACC | H9: ='RFM input'!H$391 -> 0.0529415487 | I9: ='RFM input'!I$391 -> 0.0529415487 | J9: ='RFM input'!J$391 -> 0.0529415487 | K9: ='RFM input'!K$391 -> 0.06881405564 | L9: ='RFM input'!L$391 -> 0.06881405564 | M9: ='RFM input'!M$391 -> 0.06881405564 | N9: ='RFM input'!N$391 -> 0.06881405564 | O9: ='RFM input'!O$391 -> 0.06881405564 | P9: ='RFM input'!P$391 -> 0.06881405564 | Q9: ='RFM input'!Q$391 -> 0.06881405564
B11: Nominal Adjustments for Difference Between Forecast and Actual Net Capex - As Incurred | S11: label changed
B13: Nominal Forecast Net Capex (previous regulatory control period) | G13: =SUM(G14:G63) -> 131.7266816
C14: =Asset1 -> Secondary | G14: ='RFM input'!M7 -> 18.60017269
C15: =Asset2 -> Switchgear | G15: ='RFM input'!M8 -> 39.28114637
C16: =Asset3 -> Transformers | G16: ='RFM input'!M9 -> 31.75115962
C17: =Asset4 -> Reactive | G17: ='RFM input'!M10 -> 0.8841679219
C18: =Asset5 -> Towers and Conductor | G18: ='RFM input'!M11 -> 4.905473915
C19: =Asset6 -> Establishment | G19: ='RFM input'!M12 -> 8.725705111
C20: =Asset7 -> Communications | G20: ='RFM input'!M13 -> 5.593520676
C21: =Asset8 -> Inventory | G21: ='RFM input'!M14 -> 0
C22: =Asset9 -> IT | G22: ='RFM input'!M15 -> 18.47244798
C23: =Asset10 -> Vehicles | G23: ='RFM input'!M16 -> 1.638180605
C24: =Asset11 -> other | G24: ='RFM input'!M17 -> 1.656282584
C25: =Asset12 -> premises | G25: ='RFM input'!M18 -> 0.2184240807
C26: =Asset13 -> Land | G26: ='RFM input'!M19 -> 0
C27: =Asset14 -> Easements | G27: ='RFM input'!M20 -> 0
C28: =Asset15 -> Equity raising costs (2003-08) | G28: ='RFM input'!M21 -> 0
C29: =Asset16 -> 0 | G29: ='RFM input'!M22 -> 0
C30: =Asset17 -> 0 | G30: ='RFM input'!M23 -> 0
C31: =Asset18 -> 0 | G31: ='RFM input'!M24 -> 0
C32: =Asset19 -> 0 | G32: ='RFM input'!M25 -> 0
C33: =Asset20 -> 0 | G33: ='RFM input'!M26 -> 0
C34: =Asset21 -> 0 | G34: ='RFM input'!M27 -> 0
C35: =Asset22 -> 0 | G35: ='RFM input'!M28 -> 0
C36: =Asset23 -> 0 | G36: ='RFM input'!M29 -> 0
C37: =Asset24 -> 0 | G37: ='RFM input'!M30 -> 0
C38: =Asset25 -> 0 | G38: ='RFM input'!M31 -> 0
C39: =Asset26 -> 0 | G39: ='RFM input'!M32 -> 0
C40: =Asset27 -> 0 | G40: ='RFM input'!M33 -> 0
C41: =Asset28 -> 0 | G41: ='RFM input'!M34 -> 0
C42: =Asset29 -> 0 | G42: ='RFM input'!M35 -> 0
C43: =Asset30 -> 0 | G43: ='RFM input'!M36 -> 0
C44: =Asset31 -> 0 | G44: ='RFM input'!M37 -> 0
C45: =Asset32 -> 0 | G45: ='RFM input'!M38 -> 0
C46: =Asset33 -> 0 | G46: ='RFM input'!M39 -> 0
C47: =Asset34 -> 0 | G47: ='RFM input'!M40 -> 0
C48: =Asset35 -> 0 | G48: ='RFM input'!M41 -> 0
C49: =Asset36 -> 0 | G49: ='RFM input'!M42 -> 0
C50: =Asset37 -> 0 | G50: ='RFM input'!M43 -> 0
C51: =Asset38 -> 0 | G51: ='RFM input'!M44 -> 0
C52: =Asset39 -> 0 | G52: ='RFM input'!M45 -> 0
C53: =Asset40 -> 0 | G53: ='RFM input'!M46 -> 0
C54: =Asset41 -> 0 | G54: ='RFM input'!M47 -> 0
C55: =Asset42 -> 0 | G55: ='RFM input'!M48 -> 0
C56: =Asset43 -> 0 | G56: ='RFM input'!M49 -> 0
C57: =Asset44 -> 0 | G57: ='RFM input'!M50 -> 0
C58: =Asset45 -> 0 | G58: ='RFM input'!M51 -> 0
C59: =Asset46 -> 0 | G59: ='RFM input'!M52 -> 0
C60: =Asset47 -> 0 | G60: ='RFM input'!M53 -> 0
C61: =Asset48 -> 0 | G61: ='RFM input'!M54 -> 0
C62: =Asset49 -> 0 | G62: ='RFM input'!M55 -> 0
C63: =Asset50 -> Equity raising costs | G63: ='RFM input'!M56 -> 0
B65: Nominal Actual Net Capex | G65: =SUM(G66:G115) -> 151.3176656
C66: =Asset1 -> Secondary | G66: ='RFM input'!G169*(1+previous_vanilla)^0.5 -> 23.93845055
C67: =Asset2 -> Switchgear | G67: ='RFM input'!G170*(1+previous_vanilla)^0.5 -> 37.61620906
C68: =Asset3 -> Transformers | G68: ='RFM input'!G171*(1+previous_vanilla)^0.5 -> 29.05061615
C69: =Asset4 -> Reactive | G69: ='RFM input'!G172*(1+previous_vanilla)^0.5 -> 2.485525923
C70: =Asset5 -> Towers and Conductor | G70: ='RFM input'!G173*(1+previous_vanilla)^0.5 -> 17.30877462
C71: =Asset6 -> Establishment | G71: ='RFM input'!G174*(1+previous_vanilla)^0.5 -> 9.941500443
C72: =Asset7 -> Communications | G72: ='RFM input'!G175*(1+previous_vanilla)^0.5 -> 7.759356832
C73: =Asset8 -> Inventory | G73: ='RFM input'!G176*(1+previous_vanilla)^0.5 -> 0
C74: =Asset9 -> IT | G74: ='RFM input'!G177*(1+previous_vanilla)^0.5 -> 18.69384533
C75: =Asset10 -> Vehicles | G75: ='RFM input'!G178*(1+previous_vanilla)^0.5 -> 1.134634179
C76: =Asset11 -> other | G76: ='RFM input'!G179*(1+previous_vanilla)^0.5 -> 2.848394004
C77: =Asset12 -> premises | G77: ='RFM input'!G180*(1+previous_vanilla)^0.5 -> 0.5403585191
C78: =Asset13 -> Land | G78: ='RFM input'!G181*(1+previous_vanilla)^0.5 -> 0
C79: =Asset14 -> Easements | G79: ='RFM input'!G182*(1+previous_vanilla)^0.5 -> 0
C80: =Asset15 -> Equity raising costs (2003-08) | G80: ='RFM input'!G183*(1+previous_vanilla)^0.5 -> 0
C81: =Asset16 -> 0 | G81: ='RFM input'!G184*(1+previous_vanilla)^0.5 -> 0
C82: =Asset17 -> 0 | G82: ='RFM input'!G185*(1+previous_vanilla)^0.5 -> 0
C83: =Asset18 -> 0 | G83: ='RFM input'!G186*(1+previous_vanilla)^0.5 -> 0
C84: =Asset19 -> 0 | G84: ='RFM input'!G187*(1+previous_vanilla)^0.5 -> 0
C85: =Asset20 -> 0 | G85: ='RFM input'!G188*(1+previous_vanilla)^0.5 -> 0
C86: =Asset21 -> 0 | G86: ='RFM input'!G189*(1+previous_vanilla)^0.5 -> 0
C87: =Asset22 -> 0 | G87: ='RFM input'!G190*(1+previous_vanilla)^0.5 -> 0
C88: =Asset23 -> 0 | G88: ='RFM input'!G191*(1+previous_vanilla)^0.5 -> 0
C89: =Asset24 -> 0 | G89: ='RFM input'!G192*(1+previous_vanilla)^0.5 -> 0
C90: =Asset25 -> 0 | G90: ='RFM input'!G193*(1+previous_vanilla)^0.5 -> 0
C91: =Asset26 -> 0 | G91: ='RFM input'!G194*(1+previous_vanilla)^0.5 -> 0
C92: =Asset27 -> 0 | G92: ='RFM input'!G195*(1+previous_vanilla)^0.5 -> 0
C93: =Asset28 -> 0 | G93: ='RFM input'!G196*(1+previous_vanilla)^0.5 -> 0
C94: =Asset29 -> 0 | G94: ='RFM input'!G197*(1+previous_vanilla)^0.5 -> 0
C95: =Asset30 -> 0 | G95: ='RFM input'!G198*(1+previous_vanilla)^0.5 -> 0
C96: =Asset31 -> 0 | G96: ='RFM input'!G199*(1+previous_vanilla)^0.5 -> 0
C97: =Asset32 -> 0 | G97: ='RFM input'!G200*(1+previous_vanilla)^0.5 -> 0
C98: =Asset33 -> 0 | G98: ='RFM input'!G201*(1+previous_vanilla)^0.5 -> 0
C99: =Asset34 -> 0 | G99: ='RFM input'!G202*(1+previous_vanilla)^0.5 -> 0
C100: =Asset35 -> 0 | G100: ='RFM input'!G203*(1+previous_vanilla)^0.5 -> 0
C101: =Asset36 -> 0 | G101: ='RFM input'!G204*(1+previous_vanilla)^0.5 -> 0
C102: =Asset37 -> 0 | G102: ='RFM input'!G205*(1+previous_vanilla)^0.5 -> 0
C103: =Asset38 -> 0 | G103: ='RFM input'!G206*(1+previous_vanilla)^0.5 -> 0
C104: =Asset39 -> 0 | G104: ='RFM input'!G207*(1+previous_vanilla)^0.5 -> 0
C105: =Asset40 -> 0 | G105: ='RFM input'!G208*(1+previous_vanilla)^0.5 -> 0
C106: =Asset41 -> 0 | G106: ='RFM input'!G209*(1+previous_vanilla)^0.5 -> 0
C107: =Asset42 -> 0 | G107: ='RFM input'!G210*(1+previous_vanilla)^0.5 -> 0
C108: =Asset43 -> 0 | G108: ='RFM input'!G211*(1+previous_vanilla)^0.5 -> 0
C109: =Asset44 -> 0 | G109: ='RFM input'!G212*(1+previous_vanilla)^0.5 -> 0
C110: =Asset45 -> 0 | G110: ='RFM input'!G213*(1+previous_vanilla)^0.5 -> 0
C111: =Asset46 -> 0 | G111: ='RFM input'!G214*(1+previous_vanilla)^0.5 -> 0
C112: =Asset47 -> 0 | G112: ='RFM input'!G215*(1+previous_vanilla)^0.5 -> 0
C113: =Asset48 -> 0 | G113: ='RFM input'!G216*(1+previous_vanilla)^0.5 -> 0
C114: =Asset49 -> 0 | G114: ='RFM input'!G217*(1+previous_vanilla)^0.5 -> 0
C115: =Asset50 -> Equity raising costs | G115: ='RFM input'!G218*(1+previous_vanilla)^0.5 -> 0
B117: Nominal Difference Between Actual and Forecast Net Capex | G117: =SUM(G118:G167) -> 19.59098406
C118: =Asset1 -> Secondary | G118: =G66-G14 -> 5.338277859
C119: =Asset2 -> Switchgear | G119: =G67-G15 -> -1.664937308
C120: =Asset3 -> Transformers | G120: -2.700543476
C121: =Asset4 -> Reactive | G121: 1.601358001
C122: =Asset5 -> Towers and Conductor | G122: 12.40330071
C123: =Asset6 -> Establishment | G123: 1.215795332
C124: =Asset7 -> Communications | G124: 2.165836156
C125: =Asset8 -> Inventory | G125: 0
C126: =Asset9 -> IT | G126: 0.2213973489
C127: =Asset10 -> Vehicles | G127: -0.5035464261
C128: =Asset11 -> other | G128: 1.19211142
C129: =Asset12 -> premises | G129: 0.3219344384
C130: =Asset13 -> Land | G130: 0
C131: =Asset14 -> Easements | G131: 0
C132: =Asset15 -> Equity raising costs (2003-08) | G132: 0
C133: =Asset16 -> 0 | G133: 0
C134: =Asset17 -> 0 | G134: 0
C135: =Asset18 -> 0 | G135: 0
C136: =Asset19 -> 0 | G136: 0
C137: =Asset20 -> 0 | G137: 0
C138: =Asset21 -> 0 | G138: 0
C139: =Asset22 -> 0 | G139: 0
C140: =Asset23 -> 0 | G140: 0
C141: =Asset24 -> 0 | G141: 0
C142: =Asset25 -> 0 | G142: 0
C143: =Asset26 -> 0 | G143: 0
C144: =Asset27 -> 0 | G144: 0
C145: =Asset28 -> 0 | G145: 0
C146: =Asset29 -> 0 | G146: 0
C147: =Asset30 -> 0 | G147: 0
C148: =Asset31 -> 0 | G148: 0
C149: =Asset32 -> 0 | G149: 0
C150: =Asset33 -> 0 | G150: 0
C151: =Asset34 -> 0 | G151: 0
C152: =Asset35 -> 0 | G152: 0
C153: =Asset36 -> 0 | G153: 0
C154: =Asset37 -> 0 | G154: 0
C155: =Asset38 -> 0 | G155: 0
C156: =Asset39 -> 0 | G156: 0
C157: =Asset40 -> 0 | G157: 0
C158: =Asset41 -> 0 | G158: 0
C159: =Asset42 -> 0 | G159: 0
C160: =Asset43 -> 0 | G160: 0
C161: =Asset44 -> 0 | G161: 0
C162: =Asset45 -> 0 | G162: 0
C163: =Asset46 -> 0 | G163: 0
C164: =Asset47 -> 0 | G164: 0
C165: =Asset48 -> 0 | G165: 0
C166: =Asset49 -> 0 | G166: 0
C167: =Asset50 -> Equity raising costs | G167: 0
B169: Compounded Nominal Return on Difference - Net Capex | H169: =SUM(H170,H172,H174,H176,H178,H180,H182,H184,H186,H188,H190,H192,H194,H196,H198,H200,H202,H204,H206,H208,H210,H212,H214,H216,H218,H220,H222,H224,H226,H228,H230,H232,H234,H236,H238,H240,H242,H244,H246,H248,H250,H252,H254,H256,H258,H260,H262,H264,H266,H268) -> 1.482972266 | I169: =SUM(I170,I172,I174,I176,I178,I180,I182,I184,I186,I188,I190,I192,I194,I196,I198,I200,I202,I204,I206,I208,I210,I212,I214,I216,I218,I220,I222,I224,I226,I228,I230,I232,I234,I236,I238,I240,I242,I244,I246,I248,I250,I252,I254,I256,I258,I260,I262,I264,I266,I268) -> 1.627756597 | J169: 1.763597894 | K169: 0 | L169: 0 | M169: 0 | N169: 0 | O169: 0 | P169: 0 | Q169: 0
C170: =Asset1 -> Secondary | H170: =($G118+(SUM($G170:G170)))*H$8 -> 0.4040898606 | I170: =($G118+(SUM($G170:H170)))*I$8 -> 0.4435416301 | J170: =IF(COUNT($H170:I170)>='RFM input'!$AC$7,0,($G118+(SUM($G170:I170)))*J$8) -> 0.4805565439 | K170: =IF(COUNT($H170:J170)>='RFM input'!$AC$7,0,($G118+(SUM($G170:J170)))*K$8) -> 0 | L170: =IF(COUNT($H170:K170)>='RFM input'!$AC$7,0,($G118+(SUM($G170:K170)))*L$8) -> 0 | M170: =IF(COUNT($H170:L170)>='RFM input'!$AC$7,0,($G118+(SUM($G170:L170)))*M$8) -> 0 | N170: =IF(COUNT($H170:M170)>='RFM input'!$AC$7,0,($G118+(SUM($G170:M170)))*N$8) -> 0 | O170: =IF(COUNT($H170:N170)>='RFM input'!$AC$7,0,($G118+(SUM($G170:N170)))*O$8) -> 0 | P170: =IF(COUNT($H170:O170)>='RFM input'!$AC$7,0,($G118+(SUM($G170:O170)))*P$8) -> 0 | Q170: =IF(COUNT($H170:P170)>='RFM input'!$AC$7,0,($G118+(SUM($G170:P170)))*Q$8) -> 0
C171: Sub-total | I171: =IF(COUNT($H170:I170)='RFM input'!$AC$7,SUM($G170:I170),0) -> 0 | J171: =IF(COUNT($H170:J170)='RFM input'!$AC$7,SUM($G170:J170),0) -> 1.328188035 | K171: =IF(COUNT($H170:K170)='RFM input'!$AC$7,SUM($G170:K170),0) -> 0 | L171: =IF(COUNT($H170:L170)='RFM input'!$AC$7,SUM($G170:L170),0) -> 0 | M171: =IF(COUNT($H170:M170)='RFM input'!$AC$7,SUM($G170:M170),0) -> 0 | N171: =IF(COUNT($H170:N170)='RFM input'!$AC$7,SUM($G170:N170),0) -> 0 | O171: =IF(COUNT($H170:O170)='RFM input'!$AC$7,SUM($G170:O170),0) -> 0 | P171: =IF(COUNT($H170:P170)='RFM input'!$AC$7,SUM($G170:P170),0) -> 0 | Q171: =IF(COUNT($H170:Q170)='RFM input'!$AC$7,SUM($G170:Q170),0) -> 0
C172: =Asset2 -> Switchgear | H172: =($G119+(SUM($G172:G172)))*H$8 -> -0.126030211 | I172: =($G119+(SUM($G172:H172)))*I$8 -> -0.1383346891 | J172: =IF(COUNT($H172:I172)>='RFM input'!$AC$7,0,($G119+(SUM($G172:I172)))*J$8) -> -0.1498791445 | K172: =IF(COUNT($H172:J172)>='RFM input'!$AC$7,0,($G119+(SUM($G172:J172)))*K$8) -> 0 | L172: =IF(COUNT($H172:K172)>='RFM input'!$AC$7,0,($G119+(SUM($G172:K172)))*L$8) -> 0 | M172: =IF(COUNT($H172:L172)>='RFM input'!$AC$7,0,($G119+(SUM($G172:L172)))*M$8) -> 0 | N172: =IF(COUNT($H172:M172)>='RFM input'!$AC$7,0,($G119+(SUM($G172:M172)))*N$8) -> 0 | O172: =IF(COUNT($H172:N172)>='RFM input'!$AC$7,0,($G119+(SUM($G172:N172)))*O$8) -> 0 | P172: =IF(COUNT($H172:O172)>='RFM input'!$AC$7,0,($G119+(SUM($G172:O172)))*P$8) -> 0 | Q172: =IF(COUNT($H172:P172)>='RFM input'!$AC$7,0,($G119+(SUM($G172:P172)))*Q$8) -> 0
C173: Sub-total | I173: =IF(COUNT($H172:I172)='RFM input'!$AC$7,SUM($G172:I172),0) -> 0 | J173: =IF(COUNT($H172:J172)='RFM input'!$AC$7,SUM($G172:J172),0) -> -0.4142440445 | K173: =IF(COUNT($H172:K172)='RFM input'!$AC$7,SUM($G172:K172),0) -> 0 | L173: =IF(COUNT($H172:L172)='RFM input'!$AC$7,SUM($G172:L172),0) -> 0 | M173: =IF(COUNT($H172:M172)='RFM input'!$AC$7,SUM($G172:M172),0) -> 0 | N173: =IF(COUNT($H172:N172)='RFM input'!$AC$7,SUM($G172:N172),0) -> 0 | O173: =IF(COUNT($H172:O172)='RFM input'!$AC$7,SUM($G172:O172),0) -> 0 | P173: =IF(COUNT($H172:P172)='RFM input'!$AC$7,SUM($G172:P172),0) -> 0 | Q173: =IF(COUNT($H172:Q172)='RFM input'!$AC$7,SUM($G172:Q172),0) -> 0
C174: =Asset3 -> Transformers | H174: =($G120+(SUM($G174:G174)))*H$8 -> -0.2044221499 | I174: =($G120+(SUM($G174:H174)))*I$8 -> -0.2243801254 | J174: =IF(COUNT($H174:I174)>='RFM input'!$AC$7,0,($G120+(SUM($G174:I174)))*J$8) -> -0.2431053373 | K174: =IF(COUNT($H174:J174)>='RFM input'!$AC$7,0,($G120+(SUM($G174:J174)))*K$8) -> 0 | L174: =IF(COUNT($H174:K174)>='RFM input'!$AC$7,0,($G120+(SUM($G174:K174)))*L$8) -> 0 | M174: =IF(COUNT($H174:L174)>='RFM input'!$AC$7,0,($G120+(SUM($G174:L174)))*M$8) -> 0 | N174: =IF(COUNT($H174:M174)>='RFM input'!$AC$7,0,($G120+(SUM($G174:M174)))*N$8) -> 0 | O174: =IF(COUNT($H174:N174)>='RFM input'!$AC$7,0,($G120+(SUM($G174:N174)))*O$8) -> 0 | P174: =IF(COUNT($H174:O174)>='RFM input'!$AC$7,0,($G120+(SUM($G174:O174)))*P$8) -> 0 | Q174: =IF(COUNT($H174:P174)>='RFM input'!$AC$7,0,($G120+(SUM($G174:P174)))*Q$8) -> 0
C175: Sub-total | I175: =IF(COUNT($H174:I174)='RFM input'!$AC$7,SUM($G174:I174),0) -> 0 | J175: =IF(COUNT($H174:J174)='RFM input'!$AC$7,SUM($G174:J174),0) -> -0.6719076126 | K175: =IF(COUNT($H174:K174)='RFM input'!$AC$7,SUM($G174:K174),0) -> 0 | L175: =IF(COUNT($H174:L174)='RFM input'!$AC$7,SUM($G174:L174),0) -> 0 | M175: =IF(COUNT($H174:M174)='RFM input'!$AC$7,SUM($G174:M174),0) -> 0 | N175: =IF(COUNT($H174:N174)='RFM input'!$AC$7,SUM($G174:N174),0) -> 0 | O175: =IF(COUNT($H174:O174)='RFM input'!$AC$7,SUM($G174:O174),0) -> 0 | P175: =IF(COUNT($H174:P174)='RFM input'!$AC$7,SUM($G174:P174),0) -> 0 | Q175: =IF(COUNT($H174:Q174)='RFM input'!$AC$7,SUM($G174:Q174),0) -> 0
C176: =Asset4 -> Reactive | H176: =($G121+(SUM($G176:G176)))*H$8 -> 0.1212174691 | I176: =($G121+(SUM($G176:H176)))*I$8 -> 0.1330520736 | J176: =IF(COUNT($H176:I176)>='RFM input'!$AC$7,0,($G121+(SUM($G176:I176)))*J$8) -> 0.1441556785 | K176: =IF(COUNT($H176:J176)>='RFM input'!$AC$7,0,($G121+(SUM($G176:J176)))*K$8) -> 0 | L176: =IF(COUNT($H176:K176)>='RFM input'!$AC$7,0,($G121+(SUM($G176:K176)))*L$8) -> 0 | M176: =IF(COUNT($H176:L176)>='RFM input'!$AC$7,0,($G121+(SUM($G176:L176)))*M$8) -> 0 | N176: =IF(COUNT($H176:M176)>='RFM input'!$AC$7,0,($G121+(SUM($G176:M176)))*N$8) -> 0 | O176: =IF(COUNT($H176:N176)>='RFM input'!$AC$7,0,($G121+(SUM($G176:N176)))*O$8) -> 0 | P176: =IF(COUNT($H176:O176)>='RFM input'!$AC$7,0,($G121+(SUM($G176:O176)))*P$8) -> 0 | Q176: =IF(COUNT($H176:P176)>='RFM input'!$AC$7,0,($G121+(SUM($G176:P176)))*Q$8) -> 0
C177: Sub-total | I177: =IF(COUNT($H176:I176)='RFM input'!$AC$7,SUM($G176:I176),0) -> 0 | J177: =IF(COUNT($H176:J176)='RFM input'!$AC$7,SUM($G176:J176),0) -> 0.3984252212 | K177: =IF(COUNT($H176:K176)='RFM input'!$AC$7,SUM($G176:K176),0) -> 0 | L177: =IF(COUNT($H176:L176)='RFM input'!$AC$7,SUM($G176:L176),0) -> 0 | M177: =IF(COUNT($H176:M176)='RFM input'!$AC$7,SUM($G176:M176),0) -> 0 | N177: =IF(COUNT($H176:N176)='RFM input'!$AC$7,SUM($G176:N176),0) -> 0 | O177: =IF(COUNT($H176:O176)='RFM input'!$AC$7,SUM($G176:O176),0) -> 0 | P177: =IF(COUNT($H176:P176)='RFM input'!$AC$7,SUM($G176:P176),0) -> 0 | Q177: =IF(COUNT($H176:Q176)='RFM input'!$AC$7,SUM($G176:Q176),0) -> 0
C178: =Asset5 -> Towers and Conductor | H178: =($G122+(SUM($G178:G178)))*H$8 -> 0.9388885678 | I178: =($G122+(SUM($G178:H178)))*I$8 -> 1.030553366 | J178: =IF(COUNT($H178:I178)>='RFM input'!$AC$7,0,($G122+(SUM($G178:I178)))*J$8) -> 1.116556215 | K178: =IF(COUNT($H178:J178)>='RFM input'!$AC$7,0,($G122+(SUM($G178:J178)))*K$8) -> 0 | L178: =IF(COUNT($H178:K178)>='RFM input'!$AC$7,0,($G122+(SUM($G178:K178)))*L$8) -> 0 | M178: =IF(COUNT($H178:L178)>='RFM input'!$AC$7,0,($G122+(SUM($G178:L178)))*M$8) -> 0 | N178: =IF(COUNT($H178:M178)>='RFM input'!$AC$7,0,($G122+(SUM($G178:M178)))*N$8) -> 0 | O178: =IF(COUNT($H178:N178)>='RFM input'!$AC$7,0,($G122+(SUM($G178:N178)))*O$8) -> 0 | P178: =IF(COUNT($H178:O178)>='RFM input'!$AC$7,0,($G122+(SUM($G178:O178)))*P$8) -> 0 | Q178: =IF(COUNT($H178:P178)>='RFM input'!$AC$7,0,($G122+(SUM($G178:P178)))*Q$8) -> 0
C179: Sub-total | I179: =IF(COUNT($H178:I178)='RFM input'!$AC$7,SUM($G178:I178),0) -> 0 | J179: =IF(COUNT($H178:J178)='RFM input'!$AC$7,SUM($G178:J178),0) -> 3.085998149 | K179: =IF(COUNT($H178:K178)='RFM input'!$AC$7,SUM($G178:K178),0) -> 0 | L179: =IF(COUNT($H178:L178)='RFM input'!$AC$7,SUM($G178:L178),0) -> 0 | M179: =IF(COUNT($H178:M178)='RFM input'!$AC$7,SUM($G178:M178),0) -> 0 | N179: =IF(COUNT($H178:N178)='RFM input'!$AC$7,SUM($G178:N178),0) -> 0 | O179: =IF(COUNT($H178:O178)='RFM input'!$AC$7,SUM($G178:O178),0) -> 0 | P179: =IF(COUNT($H178:P178)='RFM input'!$AC$7,SUM($G178:P178),0) -> 0 | Q179: =IF(COUNT($H178:Q178)='RFM input'!$AC$7,SUM($G178:Q178),0) -> 0
C180: =Asset6 -> Establishment | H180: =($G123+(SUM($G180:G180)))*H$8 -> 0.09203165872 | I180: =($G123+(SUM($G180:H180)))*I$8 -> 0.1010168181 | J180: =IF(COUNT($H180:I180)>='RFM input'!$AC$7,0,($G123+(SUM($G180:I180)))*J$8) -> 0.1094469824 | K180: =IF(COUNT($H180:J180)>='RFM input'!$AC$7,0,($G123+(SUM($G180:J180)))*K$8) -> 0 | L180: =IF(COUNT($H180:K180)>='RFM input'!$AC$7,0,($G123+(SUM($G180:K180)))*L$8) -> 0 | M180: =IF(COUNT($H180:L180)>='RFM input'!$AC$7,0,($G123+(SUM($G180:L180)))*M$8) -> 0 | N180: =IF(COUNT($H180:M180)>='RFM input'!$AC$7,0,($G123+(SUM($G180:M180)))*N$8) -> 0 | O180: =IF(COUNT($H180:N180)>='RFM input'!$AC$7,0,($G123+(SUM($G180:N180)))*O$8) -> 0 | P180: =IF(COUNT($H180:O180)>='RFM input'!$AC$7,0,($G123+(SUM($G180:O180)))*P$8) -> 0 | Q180: =IF(COUNT($H180:P180)>='RFM input'!$AC$7,0,($G123+(SUM($G180:P180)))*Q$8) -> 0
C181: Sub-total | I181: =IF(COUNT($H180:I180)='RFM input'!$AC$7,SUM($G180:I180),0) -> 0 | J181: =IF(COUNT($H180:J180)='RFM input'!$AC$7,SUM($G180:J180),0) -> 0.3024954592 | K181: =IF(COUNT($H180:K180)='RFM input'!$AC$7,SUM($G180:K180),0) -> 0 | L181: =IF(COUNT($H180:L180)='RFM input'!$AC$7,SUM($G180:L180),0) -> 0 | M181: =IF(COUNT($H180:M180)='RFM input'!$AC$7,SUM($G180:M180),0) -> 0 | N181: =IF(COUNT($H180:N180)='RFM input'!$AC$7,SUM($G180:N180),0) -> 0 | O181: =IF(COUNT($H180:O180)='RFM input'!$AC$7,SUM($G180:O180),0) -> 0 | P181: =IF(COUNT($H180:P180)='RFM input'!$AC$7,SUM($G180:P180),0) -> 0 | Q181: =IF(COUNT($H180:Q180)='RFM input'!$AC$7,SUM($G180:Q180),0) -> 0
C182: =Asset7 -> Communications | H182: =($G124+(SUM($G182:G182)))*H$8 -> 0.163946586 | I182: =($G124+(SUM($G182:H182)))*I$8 -> 0.1799528846 | J182: =IF(COUNT($H182:I182)>='RFM input'!$AC$7,0,($G124+(SUM($G182:I182)))*J$8) -> 0.1949705065 | K182: =IF(COUNT($H182:J182)>='RFM input'!$AC$7,0,($G124+(SUM($G182:J182)))*K$8) -> 0 | L182: =IF(COUNT($H182:K182)>='RFM input'!$AC$7,0,($G124+(SUM($G182:K182)))*L$8) -> 0 | M182: =IF(COUNT($H182:L182)>='RFM input'!$AC$7,0,($G124+(SUM($G182:L182)))*M$8) -> 0 | N182: =IF(COUNT($H182:M182)>='RFM input'!$AC$7,0,($G124+(SUM($G182:M182)))*N$8) -> 0 | O182: =IF(COUNT($H182:N182)>='RFM input'!$AC$7,0,($G124+(SUM($G182:N182)))*O$8) -> 0 | P182: =IF(COUNT($H182:O182)>='RFM input'!$AC$7,0,($G124+(SUM($G182:O182)))*P$8) -> 0 | Q182: =IF(COUNT($H182:P182)>='RFM input'!$AC$7,0,($G124+(SUM($G182:P182)))*Q$8) -> 0
C183: Sub-total | I183: =IF(COUNT($H182:I182)='RFM input'!$AC$7,SUM($G182:I182),0) -> 0 | J183: =IF(COUNT($H182:J182)='RFM input'!$AC$7,SUM($G182:J182),0) -> 0.5388699771 | K183: =IF(COUNT($H182:K182)='RFM input'!$AC$7,SUM($G182:K182),0) -> 0 | L183: =IF(COUNT($H182:L182)='RFM input'!$AC$7,SUM($G182:L182),0) -> 0 | M183: =IF(COUNT($H182:M182)='RFM input'!$AC$7,SUM($G182:M182),0) -> 0 | N183: =IF(COUNT($H182:N182)='RFM input'!$AC$7,SUM($G182:N182),0) -> 0 | O183: =IF(COUNT($H182:O182)='RFM input'!$AC$7,SUM($G182:O182),0) -> 0 | P183: =IF(COUNT($H182:P182)='RFM input'!$AC$7,SUM($G182:P182),0) -> 0 | Q183: =IF(COUNT($H182:Q182)='RFM input'!$AC$7,SUM($G182:Q182),0) -> 0
C184: =Asset8 -> Inventory | H184: =($G125+(SUM($G184:G184)))*H$8 -> 0 | I184: =($G125+(SUM($G184:H184)))*I$8 -> 0 | J184: =IF(COUNT($H184:I184)>='RFM input'!$AC$7,0,($G125+(SUM($G184:I184)))*J$8) -> 0 | K184: =IF(COUNT($H184:J184)>='RFM input'!$AC$7,0,($G125+(SUM($G184:J184)))*K$8) -> 0 | L184: =IF(COUNT($H184:K184)>='RFM input'!$AC$7,0,($G125+(SUM($G184:K184)))*L$8) -> 0 | M184: =IF(COUNT($H184:L184)>='RFM input'!$AC$7,0,($G125+(SUM($G184:L184)))*M$8) -> 0 | N184: =IF(COUNT($H184:M184)>='RFM input'!$AC$7,0,($G125+(SUM($G184:M184)))*N$8) -> 0 | O184: =IF(COUNT($H184:N184)>='RFM input'!$AC$7,0,($G125+(SUM($G184:N184)))*O$8) -> 0 | P184: =IF(COUNT($H184:O184)>='RFM input'!$AC$7,0,($G125+(SUM($G184:O184)))*P$8) -> 0 | Q184: =IF(COUNT($H184:P184)>='RFM input'!$AC$7,0,($G125+(SUM($G184:P184)))*Q$8) -> 0
C185: Sub-total | I185: =IF(COUNT($H184:I184)='RFM input'!$AC$7,SUM($G184:I184),0) -> 0 | J185: =IF(COUNT($H184:J184)='RFM input'!$AC$7,SUM($G184:J184),0) -> 0 | K185: =IF(COUNT($H184:K184)='RFM input'!$AC$7,SUM($G184:K184),0) -> 0 | L185: =IF(COUNT($H184:L184)='RFM input'!$AC$7,SUM($G184:L184),0) -> 0 | M185: =IF(COUNT($H184:M184)='RFM input'!$AC$7,SUM($G184:M184),0) -> 0 | N185: =IF(COUNT($H184:N184)='RFM input'!$AC$7,SUM($G184:N184),0) -> 0 | O185: =IF(COUNT($H184:O184)='RFM input'!$AC$7,SUM($G184:O184),0) -> 0 | P185: =IF(COUNT($H184:P184)='RFM input'!$AC$7,SUM($G184:P184),0) -> 0 | Q185: =IF(COUNT($H184:Q184)='RFM input'!$AC$7,SUM($G184:Q184),0) -> 0
C186: =Asset9 -> IT | H186: =($G126+(SUM($G186:G186)))*H$8 -> 0.01675904219 | I186: =($G126+(SUM($G186:H186)))*I$8 -> 0.01839524724 | J186: =IF(COUNT($H186:I186)>='RFM input'!$AC$7,0,($G126+(SUM($G186:I186)))*J$8) -> 0.01993038722 | K186: =IF(COUNT($H186:J186)>='RFM input'!$AC$7,0,($G126+(SUM($G186:J186)))*K$8) -> 0 | L186: =IF(COUNT($H186:K186)>='RFM input'!$AC$7,0,($G126+(SUM($G186:K186)))*L$8) -> 0 | M186: =IF(COUNT($H186:L186)>='RFM input'!$AC$7,0,($G126+(SUM($G186:L186)))*M$8) -> 0 | N186: =IF(COUNT($H186:M186)>='RFM input'!$AC$7,0,($G126+(SUM($G186:M186)))*N$8) -> 0 | O186: =IF(COUNT($H186:N186)>='RFM input'!$AC$7,0,($G126+(SUM($G186:N186)))*O$8) -> 0 | P186: =IF(COUNT($H186:O186)>='RFM input'!$AC$7,0,($G126+(SUM($G186:O186)))*P$8) -> 0 | Q186: =IF(COUNT($H186:P186)>='RFM input'!$AC$7,0,($G126+(SUM($G186:P186)))*Q$8) -> 0
C187: Sub-total | I187: =IF(COUNT($H186:I186)='RFM input'!$AC$7,SUM($G186:I186),0) -> 0 | J187: =IF(COUNT($H186:J186)='RFM input'!$AC$7,SUM($G186:J186),0) -> 0.05508467665 | K187: =IF(COUNT($H186:K186)='RFM input'!$AC$7,SUM($G186:K186),0) -> 0 | L187: =IF(COUNT($H186:L186)='RFM input'!$AC$7,SUM($G186:L186),0) -> 0 | M187: =IF(COUNT($H186:M186)='RFM input'!$AC$7,SUM($G186:M186),0) -> 0 | N187: =IF(COUNT($H186:N186)='RFM input'!$AC$7,SUM($G186:N186),0) -> 0 | O187: =IF(COUNT($H186:O186)='RFM input'!$AC$7,SUM($G186:O186),0) -> 0 | P187: =IF(COUNT($H186:P186)='RFM input'!$AC$7,SUM($G186:P186),0) -> 0 | Q187: =IF(COUNT($H186:Q186)='RFM input'!$AC$7,SUM($G186:Q186),0) -> 0
C188: =Asset10 -> Vehicles | H188: =($G127+(SUM($G188:G188)))*H$8 -> -0.03811678794 | I188: =($G127+(SUM($G188:H188)))*I$8 -> -0.04183817489 | J188: =IF(COUNT($H188:I188)>='RFM input'!$AC$7,0,($G127+(SUM($G188:I188)))*J$8) -> -0.04532969932 | K188: =IF(COUNT($H188:J188)>='RFM input'!$AC$7,0,($G127+(SUM($G188:J188)))*K$8) -> 0 | L188: =IF(COUNT($H188:K188)>='RFM input'!$AC$7,0,($G127+(SUM($G188:K188)))*L$8) -> 0 | M188: =IF(COUNT($H188:L188)>='RFM input'!$AC$7,0,($G127+(SUM($G188:L188)))*M$8) -> 0 | N188: =IF(COUNT($H188:M188)>='RFM input'!$AC$7,0,($G127+(SUM($G188:M188)))*N$8) -> 0 | O188: =IF(COUNT($H188:N188)>='RFM input'!$AC$7,0,($G127+(SUM($G188:N188)))*O$8) -> 0 | P188: =IF(COUNT($H188:O188)>='RFM input'!$AC$7,0,($G127+(SUM($G188:O188)))*P$8) -> 0 | Q188: =IF(COUNT($H188:P188)>='RFM input'!$AC$7,0,($G127+(SUM($G188:P188)))*Q$8) -> 0
C189: Sub-total | I189: =IF(COUNT($H188:I188)='RFM input'!$AC$7,SUM($G188:I188),0) -> 0 | J189: =IF(COUNT($H188:J188)='RFM input'!$AC$7,SUM($G188:J188),0) -> -0.1252846622 | K189: =IF(COUNT($H188:K188)='RFM input'!$AC$7,SUM($G188:K188),0) -> 0 | L189: =IF(COUNT($H188:L188)='RFM input'!$AC$7,SUM($G188:L188),0) -> 0 | M189: =IF(COUNT($H188:M188)='RFM input'!$AC$7,SUM($G188:M188),0) -> 0 | N189: =IF(COUNT($H188:N188)='RFM input'!$AC$7,SUM($G188:N188),0) -> 0 | O189: =IF(COUNT($H188:O188)='RFM input'!$AC$7,SUM($G188:O188),0) -> 0 | P189: =IF(COUNT($H188:P188)='RFM input'!$AC$7,SUM($G188:P188),0) -> 0 | Q189: =IF(COUNT($H188:Q188)='RFM input'!$AC$7,SUM($G188:Q188),0) -> 0
C190: =Asset11 -> other | H190: =($G128+(SUM($G190:G190)))*H$8 -> 0.09023886547 | I190: =($G128+(SUM($G190:H190)))*I$8 -> 0.09904899231 | J190: =IF(COUNT($H190:I190)>='RFM input'!$AC$7,0,($G128+(SUM($G190:I190)))*J$8) -> 0.1073149355 | K190: =IF(COUNT($H190:J190)>='RFM input'!$AC$7,0,($G128+(SUM($G190:J190)))*K$8) -> 0 | L190: =IF(COUNT($H190:K190)>='RFM input'!$AC$7,0,($G128+(SUM($G190:K190)))*L$8) -> 0 | M190: =IF(COUNT($H190:L190)>='RFM input'!$AC$7,0,($G128+(SUM($G190:L190)))*M$8) -> 0 | N190: =IF(COUNT($H190:M190)>='RFM input'!$AC$7,0,($G128+(SUM($G190:M190)))*N$8) -> 0 | O190: =IF(COUNT($H190:N190)>='RFM input'!$AC$7,0,($G128+(SUM($G190:N190)))*O$8) -> 0 | P190: =IF(COUNT($H190:O190)>='RFM input'!$AC$7,0,($G128+(SUM($G190:O190)))*P$8) -> 0 | Q190: =IF(COUNT($H190:P190)>='RFM input'!$AC$7,0,($G128+(SUM($G190:P190)))*Q$8) -> 0
C191: Sub-total | I191: =IF(COUNT($H190:I190)='RFM input'!$AC$7,SUM($G190:I190),0) -> 0 | J191: =IF(COUNT($H190:J190)='RFM input'!$AC$7,SUM($G190:J190),0) -> 0.2966027933 | K191: =IF(COUNT($H190:K190)='RFM input'!$AC$7,SUM($G190:K190),0) -> 0 | L191: =IF(COUNT($H190:L190)='RFM input'!$AC$7,SUM($G190:L190),0) -> 0 | M191: =IF(COUNT($H190:M190)='RFM input'!$AC$7,SUM($G190:M190),0) -> 0 | N191: =IF(COUNT($H190:N190)='RFM input'!$AC$7,SUM($G190:N190),0) -> 0 | O191: =IF(COUNT($H190:O190)='RFM input'!$AC$7,SUM($G190:O190),0) -> 0 | P191: =IF(COUNT($H190:P190)='RFM input'!$AC$7,SUM($G190:P190),0) -> 0 | Q191: =IF(COUNT($H190:Q190)='RFM input'!$AC$7,SUM($G190:Q190),0) -> 0
C192: =Asset12 -> premises | H192: =($G129+(SUM($G192:G192)))*H$8 -> 0.02436936513 | I192: =($G129+(SUM($G192:H192)))*I$8 -> 0.02674857498 | J192: =IF(COUNT($H192:I192)>='RFM input'!$AC$7,0,($G129+(SUM($G192:I192)))*J$8) -> 0.02898082587 | K192: =IF(COUNT($H192:J192)>='RFM input'!$AC$7,0,($G129+(SUM($G192:J192)))*K$8) -> 0 | L192: =IF(COUNT($H192:K192)>='RFM input'!$AC$7,0,($G129+(SUM($G192:K192)))*L$8) -> 0 | M192: =IF(COUNT($H192:L192)>='RFM input'!$AC$7,0,($G129+(SUM($G192:L192)))*M$8) -> 0 | N192: =IF(COUNT($H192:M192)>='RFM input'!$AC$7,0,($G129+(SUM($G192:M192)))*N$8) -> 0 | O192: =IF(COUNT($H192:N192)>='RFM input'!$AC$7,0,($G129+(SUM($G192:N192)))*O$8) -> 0 | P192: =IF(COUNT($H192:O192)>='RFM input'!$AC$7,0,($G129+(SUM($G192:O192)))*P$8) -> 0 | Q192: =IF(COUNT($H192:P192)>='RFM input'!$AC$7,0,($G129+(SUM($G192:P192)))*Q$8) -> 0
C193: Sub-total | I193: =IF(COUNT($H192:I192)='RFM input'!$AC$7,SUM($G192:I192),0) -> 0 | J193: =IF(COUNT($H192:J192)='RFM input'!$AC$7,SUM($G192:J192),0) -> 0.08009876599 | K193: =IF(COUNT($H192:K192)='RFM input'!$AC$7,SUM($G192:K192),0) -> 0 | L193: =IF(COUNT($H192:L192)='RFM input'!$AC$7,SUM($G192:L192),0) -> 0 | M193: =IF(COUNT($H192:M192)='RFM input'!$AC$7,SUM($G192:M192),0) -> 0 | N193: =IF(COUNT($H192:N192)='RFM input'!$AC$7,SUM($G192:N192),0) -> 0 | O193: =IF(COUNT($H192:O192)='RFM input'!$AC$7,SUM($G192:O192),0) -> 0 | P193: =IF(COUNT($H192:P192)='RFM input'!$AC$7,SUM($G192:P192),0) -> 0 | Q193: =IF(COUNT($H192:Q192)='RFM input'!$AC$7,SUM($G192:Q192),0) -> 0
C194: =Asset13 -> Land | H194: =($G130+(SUM($G194:G194)))*H$8 -> 0 | I194: =($G130+(SUM($G194:H194)))*I$8 -> 0 | J194: =IF(COUNT($H194:I194)>='RFM input'!$AC$7,0,($G130+(SUM($G194:I194)))*J$8) -> 0 | K194: =IF(COUNT($H194:J194)>='RFM input'!$AC$7,0,($G130+(SUM($G194:J194)))*K$8) -> 0 | L194: =IF(COUNT($H194:K194)>='RFM input'!$AC$7,0,($G130+(SUM($G194:K194)))*L$8) -> 0 | M194: =IF(COUNT($H194:L194)>='RFM input'!$AC$7,0,($G130+(SUM($G194:L194)))*M$8) -> 0 | N194: =IF(COUNT($H194:M194)>='RFM input'!$AC$7,0,($G130+(SUM($G194:M194)))*N$8) -> 0 | O194: =IF(COUNT($H194:N194)>='RFM input'!$AC$7,0,($G130+(SUM($G194:N194)))*O$8) -> 0 | P194: =IF(COUNT($H194:O194)>='RFM input'!$AC$7,0,($G130+(SUM($G194:O194)))*P$8) -> 0 | Q194: =IF(COUNT($H194:P194)>='RFM input'!$AC$7,0,($G130+(SUM($G194:P194)))*Q$8) -> 0
C195: Sub-total | I195: =IF(COUNT($H194:I194)='RFM input'!$AC$7,SUM($G194:I194),0) -> 0 | J195: =IF(COUNT($H194:J194)='RFM input'!$AC$7,SUM($G194:J194),0) -> 0 | K195: =IF(COUNT($H194:K194)='RFM input'!$AC$7,SUM($G194:K194),0) -> 0 | L195: =IF(COUNT($H194:L194)='RFM input'!$AC$7,SUM($G194:L194),0) -> 0 | M195: =IF(COUNT($H194:M194)='RFM input'!$AC$7,SUM($G194:M194),0) -> 0 | N195: =IF(COUNT($H194:N194)='RFM input'!$AC$7,SUM($G194:N194),0) -> 0 | O195: =IF(COUNT($H194:O194)='RFM input'!$AC$7,SUM($G194:O194),0) -> 0 | P195: =IF(COUNT($H194:P194)='RFM input'!$AC$7,SUM($G194:P194),0) -> 0 | Q195: =IF(COUNT($H194:Q194)='RFM input'!$AC$7,SUM($G194:Q194),0) -> 0
C196: =Asset14 -> Easements | H196: =($G131+(SUM($G196:G196)))*H$8 -> 0 | I196: =($G131+(SUM($G196:H196)))*I$8 -> 0 | J196: =IF(COUNT($H196:I196)>='RFM input'!$AC$7,0,($G131+(SUM($G196:I196)))*J$8) -> 0 | K196: =IF(COUNT($H196:J196)>='RFM input'!$AC$7,0,($G131+(SUM($G196:J196)))*K$8) -> 0 | L196: =IF(COUNT($H196:K196)>='RFM input'!$AC$7,0,($G131+(SUM($G196:K196)))*L$8) -> 0 | M196: =IF(COUNT($H196:L196)>='RFM input'!$AC$7,0,($G131+(SUM($G196:L196)))*M$8) -> 0 | N196: =IF(COUNT($H196:M196)>='RFM input'!$AC$7,0,($G131+(SUM($G196:M196)))*N$8) -> 0 | O196: =IF(COUNT($H196:N196)>='RFM input'!$AC$7,0,($G131+(SUM($G196:N196)))*O$8) -> 0 | P196: =IF(COUNT($H196:O196)>='RFM input'!$AC$7,0,($G131+(SUM($G196:O196)))*P$8) -> 0 | Q196: =IF(COUNT($H196:P196)>='RFM input'!$AC$7,0,($G131+(SUM($G196:P196)))*Q$8) -> 0
C197: Sub-total | I197: =IF(COUNT($H196:I196)='RFM input'!$AC$7,SUM($G196:I196),0) -> 0 | J197: =IF(COUNT($H196:J196)='RFM input'!$AC$7,SUM($G196:J196),0) -> 0 | K197: =IF(COUNT($H196:K196)='RFM input'!$AC$7,SUM($G196:K196),0) -> 0 | L197: =IF(COUNT($H196:L196)='RFM input'!$AC$7,SUM($G196:L196),0) -> 0 | M197: =IF(COUNT($H196:M196)='RFM input'!$AC$7,SUM($G196:M196),0) -> 0 | N197: =IF(COUNT($H196:N196)='RFM input'!$AC$7,SUM($G196:N196),0) -> 0 | O197: =IF(COUNT($H196:O196)='RFM input'!$AC$7,SUM($G196:O196),0) -> 0 | P197: =IF(COUNT($H196:P196)='RFM input'!$AC$7,SUM($G196:P196),0) -> 0 | Q197: =IF(COUNT($H196:Q196)='RFM input'!$AC$7,SUM($G196:Q196),0) -> 0
C198: =Asset15 -> Equity raising costs (2003-08) | H198: =($G132+(SUM($G198:G198)))*H$8 -> 0 | I198: =($G132+(SUM($G198:H198)))*I$8 -> 0 | J198: =IF(COUNT($H198:I198)>='RFM input'!$AC$7,0,($G132+(SUM($G198:I198)))*J$8) -> 0 | K198: =IF(COUNT($H198:J198)>='RFM input'!$AC$7,0,($G132+(SUM($G198:J198)))*K$8) -> 0 | L198: =IF(COUNT($H198:K198)>='RFM input'!$AC$7,0,($G132+(SUM($G198:K198)))*L$8) -> 0 | M198: =IF(COUNT($H198:L198)>='RFM input'!$AC$7,0,($G132+(SUM($G198:L198)))*M$8) -> 0 | N198: =IF(COUNT($H198:M198)>='RFM input'!$AC$7,0,($G132+(SUM($G198:M198)))*N$8) -> 0 | O198: =IF(COUNT($H198:N198)>='RFM input'!$AC$7,0,($G132+(SUM($G198:N198)))*O$8) -> 0 | P198: =IF(COUNT($H198:O198)>='RFM input'!$AC$7,0,($G132+(SUM($G198:O198)))*P$8) -> 0 | Q198: =IF(COUNT($H198:P198)>='RFM input'!$AC$7,0,($G132+(SUM($G198:P198)))*Q$8) -> 0
C199: Sub-total | I199: =IF(COUNT($H198:I198)='RFM input'!$AC$7,SUM($G198:I198),0) -> 0 | J199: =IF(COUNT($H198:J198)='RFM input'!$AC$7,SUM($G198:J198),0) -> 0 | K199: =IF(COUNT($H198:K198)='RFM input'!$AC$7,SUM($G198:K198),0) -> 0 | L199: =IF(COUNT($H198:L198)='RFM input'!$AC$7,SUM($G198:L198),0) -> 0 | M199: =IF(COUNT($H198:M198)='RFM input'!$AC$7,SUM($G198:M198),0) -> 0 | N199: =IF(COUNT($H198:N198)='RFM input'!$AC$7,SUM($G198:N198),0) -> 0 | O199: =IF(COUNT($H198:O198)='RFM input'!$AC$7,SUM($G198:O198),0) -> 0 | P199: =IF(COUNT($H198:P198)='RFM input'!$AC$7,SUM($G198:P198),0) -> 0 | Q199: =IF(COUNT($H198:Q198)='RFM input'!$AC$7,SUM($G198:Q198),0) -> 0
C200: =Asset16 -> 0 | H200: =($G133+(SUM($G200:G200)))*H$8 -> 0 | I200: =($G133+(SUM($G200:H200)))*I$8 -> 0 | J200: =IF(COUNT($H200:I200)>='RFM input'!$AC$7,0,($G133+(SUM($G200:I200)))*J$8) -> 0 | K200: =IF(COUNT($H200:J200)>='RFM input'!$AC$7,0,($G133+(SUM($G200:J200)))*K$8) -> 0 | L200: =IF(COUNT($H200:K200)>='RFM input'!$AC$7,0,($G133+(SUM($G200:K200)))*L$8) -> 0 | M200: =IF(COUNT($H200:L200)>='RFM input'!$AC$7,0,($G133+(SUM($G200:L200)))*M$8) -> 0 | N200: =IF(COUNT($H200:M200)>='RFM input'!$AC$7,0,($G133+(SUM($G200:M200)))*N$8) -> 0 | O200: =IF(COUNT($H200:N200)>='RFM input'!$AC$7,0,($G133+(SUM($G200:N200)))*O$8) -> 0 | P200: =IF(COUNT($H200:O200)>='RFM input'!$AC$7,0,($G133+(SUM($G200:O200)))*P$8) -> 0 | Q200: =IF(COUNT($H200:P200)>='RFM input'!$AC$7,0,($G133+(SUM($G200:P200)))*Q$8) -> 0
C201: Sub-total | I201: =IF(COUNT($H200:I200)='RFM input'!$AC$7,SUM($G200:I200),0) -> 0 | J201: =IF(COUNT($H200:J200)='RFM input'!$AC$7,SUM($G200:J200),0) -> 0 | K201: =IF(COUNT($H200:K200)='RFM input'!$AC$7,SUM($G200:K200),0) -> 0 | L201: =IF(COUNT($H200:L200)='RFM input'!$AC$7,SUM($G200:L200),0) -> 0 | M201: =IF(COUNT($H200:M200)='RFM input'!$AC$7,SUM($G200:M200),0) -> 0 | N201: =IF(COUNT($H200:N200)='RFM input'!$AC$7,SUM($G200:N200),0) -> 0 | O201: =IF(COUNT($H200:O200)='RFM input'!$AC$7,SUM($G200:O200),0) -> 0 | P201: =IF(COUNT($H200:P200)='RFM input'!$AC$7,SUM($G200:P200),0) -> 0 | Q201: =IF(COUNT($H200:Q200)='RFM input'!$AC$7,SUM($G200:Q200),0) -> 0
C202: =Asset17 -> 0 | H202: =($G134+(SUM($G202:G202)))*H$8 -> 0 | I202: =($G134+(SUM($G202:H202)))*I$8 -> 0 | J202: =IF(COUNT($H202:I202)>='RFM input'!$AC$7,0,($G134+(SUM($G202:I202)))*J$8) -> 0 | K202: =IF(COUNT($H202:J202)>='RFM input'!$AC$7,0,($G134+(SUM($G202:J202)))*K$8) -> 0 | L202: =IF(COUNT($H202:K202)>='RFM input'!$AC$7,0,($G134+(SUM($G202:K202)))*L$8) -> 0 | M202: =IF(COUNT($H202:L202)>='RFM input'!$AC$7,0,($G134+(SUM($G202:L202)))*M$8) -> 0 | N202: =IF(COUNT($H202:M202)>='RFM input'!$AC$7,0,($G134+(SUM($G202:M202)))*N$8) -> 0 | O202: =IF(COUNT($H202:N202)>='RFM input'!$AC$7,0,($G134+(SUM($G202:N202)))*O$8) -> 0 | P202: =IF(COUNT($H202:O202)>='RFM input'!$AC$7,0,($G134+(SUM($G202:O202)))*P$8) -> 0 | Q202: =IF(COUNT($H202:P202)>='RFM input'!$AC$7,0,($G134+(SUM($G202:P202)))*Q$8) -> 0
C203: Sub-total | I203: =IF(COUNT($H202:I202)='RFM input'!$AC$7,SUM($G202:I202),0) -> 0 | J203: =IF(COUNT($H202:J202)='RFM input'!$AC$7,SUM($G202:J202),0) -> 0 | K203: =IF(COUNT($H202:K202)='RFM input'!$AC$7,SUM($G202:K202),0) -> 0 | L203: =IF(COUNT($H202:L202)='RFM input'!$AC$7,SUM($G202:L202),0) -> 0 | M203: =IF(COUNT($H202:M202)='RFM input'!$AC$7,SUM($G202:M202),0) -> 0 | N203: =IF(COUNT($H202:N202)='RFM input'!$AC$7,SUM($G202:N202),0) -> 0 | O203: =IF(COUNT($H202:O202)='RFM input'!$AC$7,SUM($G202:O202),0) -> 0 | P203: =IF(COUNT($H202:P202)='RFM input'!$AC$7,SUM($G202:P202),0) -> 0 | Q203: =IF(COUNT($H202:Q202)='RFM input'!$AC$7,SUM($G202:Q202),0) -> 0
C204: =Asset18 -> 0 | H204: =($G135+(SUM($G204:G204)))*H$8 -> 0 | I204: =($G135+(SUM($G204:H204)))*I$8 -> 0 | J204: =IF(COUNT($H204:I204)>='RFM input'!$AC$7,0,($G135+(SUM($G204:I204)))*J$8) -> 0 | K204: =IF(COUNT($H204:J204)>='RFM input'!$AC$7,0,($G135+(SUM($G204:J204)))*K$8) -> 0 | L204: =IF(COUNT($H204:K204)>='RFM input'!$AC$7,0,($G135+(SUM($G204:K204)))*L$8) -> 0 | M204: =IF(COUNT($H204:L204)>='RFM input'!$AC$7,0,($G135+(SUM($G204:L204)))*M$8) -> 0 | N204: =IF(COUNT($H204:M204)>='RFM input'!$AC$7,0,($G135+(SUM($G204:M204)))*N$8) -> 0 | O204: =IF(COUNT($H204:N204)>='RFM input'!$AC$7,0,($G135+(SUM($G204:N204)))*O$8) -> 0 | P204: =IF(COUNT($H204:O204)>='RFM input'!$AC$7,0,($G135+(SUM($G204:O204)))*P$8) -> 0 | Q204: =IF(COUNT($H204:P204)>='RFM input'!$AC$7,0,($G135+(SUM($G204:P204)))*Q$8) -> 0
C205: Sub-total | I205: =IF(COUNT($H204:I204)='RFM input'!$AC$7,SUM($G204:I204),0) -> 0 | J205: =IF(COUNT($H204:J204)='RFM input'!$AC$7,SUM($G204:J204),0) -> 0 | K205: =IF(COUNT($H204:K204)='RFM input'!$AC$7,SUM($G204:K204),0) -> 0 | L205: =IF(COUNT($H204:L204)='RFM input'!$AC$7,SUM($G204:L204),0) -> 0 | M205: =IF(COUNT($H204:M204)='RFM input'!$AC$7,SUM($G204:M204),0) -> 0 | N205: =IF(COUNT($H204:N204)='RFM input'!$AC$7,SUM($G204:N204),0) -> 0 | O205: =IF(COUNT($H204:O204)='RFM input'!$AC$7,SUM($G204:O204),0) -> 0 | P205: =IF(COUNT($H204:P204)='RFM input'!$AC$7,SUM($G204:P204),0) -> 0 | Q205: =IF(COUNT($H204:Q204)='RFM input'!$AC$7,SUM($G204:Q204),0) -> 0
C206: =Asset19 -> 0 | H206: =($G136+(SUM($G206:G206)))*H$8 -> 0 | I206: =($G136+(SUM($G206:H206)))*I$8 -> 0 | J206: =IF(COUNT($H206:I206)>='RFM input'!$AC$7,0,($G136+(SUM($G206:I206)))*J$8) -> 0 | K206: =IF(COUNT($H206:J206)>='RFM input'!$AC$7,0,($G136+(SUM($G206:J206)))*K$8) -> 0 | L206: =IF(COUNT($H206:K206)>='RFM input'!$AC$7,0,($G136+(SUM($G206:K206)))*L$8) -> 0 | M206: =IF(COUNT($H206:L206)>='RFM input'!$AC$7,0,($G136+(SUM($G206:L206)))*M$8) -> 0 | N206: =IF(COUNT($H206:M206)>='RFM input'!$AC$7,0,($G136+(SUM($G206:M206)))*N$8) -> 0 | O206: =IF(COUNT($H206:N206)>='RFM input'!$AC$7,0,($G136+(SUM($G206:N206)))*O$8) -> 0 | P206: =IF(COUNT($H206:O206)>='RFM input'!$AC$7,0,($G136+(SUM($G206:O206)))*P$8) -> 0 | Q206: =IF(COUNT($H206:P206)>='RFM input'!$AC$7,0,($G136+(SUM($G206:P206)))*Q$8) -> 0
C207: Sub-total | I207: =IF(COUNT($H206:I206)='RFM input'!$AC$7,SUM($G206:I206),0) -> 0 | J207: =IF(COUNT($H206:J206)='RFM input'!$AC$7,SUM($G206:J206),0) -> 0 | K207: =IF(COUNT($H206:K206)='RFM input'!$AC$7,SUM($G206:K206),0) -> 0 | L207: =IF(COUNT($H206:L206)='RFM input'!$AC$7,SUM($G206:L206),0) -> 0 | M207: =IF(COUNT($H206:M206)='RFM input'!$AC$7,SUM($G206:M206),0) -> 0 | N207: =IF(COUNT($H206:N206)='RFM input'!$AC$7,SUM($G206:N206),0) -> 0 | O207: =IF(COUNT($H206:O206)='RFM input'!$AC$7,SUM($G206:O206),0) -> 0 | P207: =IF(COUNT($H206:P206)='RFM input'!$AC$7,SUM($G206:P206),0) -> 0 | Q207: =IF(COUNT($H206:Q206)='RFM input'!$AC$7,SUM($G206:Q206),0) -> 0
C208: =Asset20 -> 0 | H208: =($G137+(SUM($G208:G208)))*H$8 -> 0 | I208: =($G137+(SUM($G208:H208)))*I$8 -> 0 | J208: =IF(COUNT($H208:I208)>='RFM input'!$AC$7,0,($G137+(SUM($G208:I208)))*J$8) -> 0 | K208: =IF(COUNT($H208:J208)>='RFM input'!$AC$7,0,($G137+(SUM($G208:J208)))*K$8) -> 0 | L208: =IF(COUNT($H208:K208)>='RFM input'!$AC$7,0,($G137+(SUM($G208:K208)))*L$8) -> 0 | M208: =IF(COUNT($H208:L208)>='RFM input'!$AC$7,0,($G137+(SUM($G208:L208)))*M$8) -> 0 | N208: =IF(COUNT($H208:M208)>='RFM input'!$AC$7,0,($G137+(SUM($G208:M208)))*N$8) -> 0 | O208: =IF(COUNT($H208:N208)>='RFM input'!$AC$7,0,($G137+(SUM($G208:N208)))*O$8) -> 0 | P208: =IF(COUNT($H208:O208)>='RFM input'!$AC$7,0,($G137+(SUM($G208:O208)))*P$8) -> 0 | Q208: =IF(COUNT($H208:P208)>='RFM input'!$AC$7,0,($G137+(SUM($G208:P208)))*Q$8) -> 0
... 574 more rows

Sheet AST actual depreciation
B2: AST Distribution Depreciation Schedule ($real 2013-14) | F2: 2002-03 | G2: 2003-04 | H2: 2004-05 | I2: 2005-06 | J2: 2006-07 | K2: 2007-08 | L2: 2008-09 | M2: 2009-10 | N2: 2010-11 | O2: 2011-12 | P2: 2012-13 | Q2: 2013-14 | R2: 2014-15 | S2: 2015-16 | T2: 2016-17 | U2: 2017-18 | V2: 2018-19 | W2: 2019-20 | X2: 2020-21 | Y2: 2021-22 | Z2: 2022-23 | AA2: 2023-24 | AB2: 2024-25 | AC2: 2025-26 | AD2: 2026-27 | AE2: 2027-28 | AF2: 2028-29 | AG2: 2029-30 | AH2: 2030-31 | AI2: 2031-32 | AJ2: 2032-33 | AK2: 2033-34 | AL2: 2034-35 | AM2: 2035-36 | AN2: 2036-37 | AO2: 2037-38 | AP2: 2038-39 | AQ2: 2039-40 | AR2: 2040-41 | AS2: 2041-42 | AT2: 2042-43 | AU2: 2043-44 | AV2: 2044-45 | AW2: 2045-46 | AX2: 2046-47 | AY2: 2047-48 | AZ2: 2048-49 | BA2: 2049-50 | BB2: 2080-51 | BC2: 2051-52 | BD2: 2052-53 | BE2: 2053-54 | BF2: 2054-55 | BG2: 2055-56 | BH2: 2056-57 | BI2: 2057-58 | BJ2: 2058-59 | BK2: 2059-60 | BL2: 2060-61 | BM2: 2061-62 | BN2: 2062-63 | BO2: 2063-64 | BP2: 2064-65 | BQ2: 2065-66 | BR2: 2066-67 | BS2: 2067-68 | BT2: 2068-69 | BU2: 2069-70 | BV2: 2070-71 | BW2: 2071-72 | BX2: 2072-73 | BY2: 2073-74 | BZ2: 2074-75
F3: 1 | G3: =F3+1 -> 2 | H3: =G3+1 -> 3 | I3: 4 | J3: 5 | K3: 6 | L3: 7 | M3: 8 | N3: 9 | O3: 10 | P3: 11 | Q3: 12 | R3: 13 | S3: 14 | T3: 15 | U3: 16 | V3: 17 | W3: 18 | X3: 19 | Y3: 20 | Z3: 21 | AA3: 22 | AB3: 23 | AC3: 24 | AD3: 25 | AE3: 26 | AF3: 27 | AG3: 28 | AH3: 29 | AI3: 30 | AJ3: 31 | AK3: 32 | AL3: 33 | AM3: 34 | AN3: 35 | AO3: 36 | AP3: 37 | AQ3: 38 | AR3: 39 | AS3: 40 | AT3: 41 | AU3: 42 | AV3: 43 | AW3: 44 | AX3: 45 | AY3: 46 | AZ3: 47 | BA3: 48 | BB3: 49 | BC3: 50 | BD3: 51 | BE3: 52 | BF3: 53 | BG3: 54 | BH3: 55 | BI3: 56 | BJ3: 57 | BK3: 58 | BL3: 59 | BM3: 60 | BN3: 61 | BO3: 62 | BP3: 63 | BQ3: 64 | BR3: 65 | BS3: 66 | BT3: =BS3+1 -> 67 | BU3: 68 | BV3: 69 | BW3: 70 | BX3: 71 | BY3: 72 | BZ3: 73
A5: CPI
C6: 2001-09-01 | D6: 2001-12-01 | E6: 2002-09-01 | F6: 2002-12-01 | G6: 2003-12-01 | H6: 2004-12-01 | I6: 2005-12-01 | J6: 2006-12-01 | K6: 2007-12-01 | L6: 2008-12-01 | M6: 2009-12-01 | N6: 2010-12-01 | O6: 2011-12-01 | P6: 2012-12-01 | Q6: 2013-12-01 | R6: 2014-12-01 | S6: 2015-12-01 | T6: 2016-12-01 | U6: 2017-12-01 | V6: 2018-12-01 | W6: 2019-12-01
A7: ABS Index December | C7: 134.2 | D7: 135.4 | E7: 138.5 | F7: 139.5 | G7: 142.8 | H7: 146.5 | I7: 150.6 | J7: 155.5 | K7: 160.1 | L7: 166 | M7: 169.5 | N7: 174 | O7: 179.4 | P7: =O7*(102/99.8) -> 183.3547094 | Q7: =P7*(104.8/102) -> 188.387976 | R7: =Q7*(106.6/104.8) -> 191.6236473 | S7: =R7*(1+'RFM input'!J385) -> 196.126803 | T7: =S7*(1+'RFM input'!K385) -> 200.7357829 | U7: =T7*(1+'RFM input'!L385) -> 205.4530738 | V7: =U7*(1+'RFM input'!M385) -> 210.281221 | W7: =V7*(1+'RFM input'!N385) -> 215.2228297
P8: 2012-09-01 | Q8: 2013-09-01 | R8: 2014-09-01 | S8: 2015-09-01 | T8: 2016-09-01 | U8: 2017-09-01 | V8: 2018-09-01 | W8: 2019-09-01
A9: ABS Index Sept | P9: 101.8 | Q9: 104 | R9: 106.4 | S9: =R9*(1+'RFM input'!J385) -> 108.9004 | T9: =S9*(1+'RFM input'!K385) -> 111.4595594 | U9: =T9*(1+'RFM input'!L385) -> 114.078859 | V9: =U9*(1+'RFM input'!M385) -> 116.7597122 | W9: =V9*(1+'RFM input'!N385) -> 119.5035655
D13: TRR 2003-04 to 2007-08 | K13: TRR 2008-09 to 2013-14 | Q13: TRR 2014-15 to 2006-17
A14: Actual Inflation | D14: 2002-03 | E14: 1st Qtr 2003 | F14: 2003-04 | G14: 2004-05 | H14: 2005-06 | I14: 2006-07 | J14: 2007-08 | K14: 2008-09 | L14: 2009-10 | M14: 2010-11 | N14: 2011-12 | O14: 2012-13 | P14: 2013-14 | Q14: 2014-15 | R14: 2015-16 | S14: 2016-17 | T14: 2017-18 | U14: 2018-19 | V14: 2019-20
A15: Actual Inflation Rate | D15: =E7/D7-1 -> 0.02289512555 | E15: 0.007220216606 | F15: =G7/F7-1 -> 0.02365591398 | G15: 0.02591036415 | H15: 0.02798634812 | I15: =J7/I7-1 -> 0.03253652058 | J15: 0.02958199357 | K15: 0.03685196752 | L15: 0.02108433735 | M15: 0.02654867257 | N15: 0.03103448276 | O15: 0.02204408818 | P15: =Q7/P7-1 -> 0.02745098039 | Q15: =Q9/P9-1 -> 0.02161100196 | R15: =R9/Q9-1 -> 0.02307692308 | S15: =S9/R9-1 -> 0.0235 | T15: 0.0235 | U15: 0.0235 | V15: 0.0235
A16: Actual Accumulated Index (Real stub value) | D16: =E16/(1+E15)^3 -> 0.9786484157 | E16: =F7/$F$7 -> 1 | F16: =E16*(1+E15)^4 -> 1.029195164 | G16: =F16*(1+F15) -> 1.053541716 | H16: 1.080839366 | I16: 1.111088112 | J16: =I16*(1+I15) -> 1.147239054 | K16: =J16*(1+J15) -> 1.181176672 | L16: =K16*(1+K15) -> 1.224705356 | M16: 1.250527457 | N16: 1.283727301 | O16: 1.323567114 | P16: 1.352743944
A17: Actual Accumulated Index (Real 2007-08 value) | D17: =$J$7/C7 -> 1.158718331 | E17: =$J$7/D7 -> 1.14844904 | F17: =$K$7/F7 -> 1.147670251 | G17: =$J$7/G7 -> 1.088935574 | H17: 1.061433447 | I17: 1.032536521 | J17: 1 | K17: 0.9712679575 | L17: 0.936746988 | M17: 0.9174041298 | N17: 0.8936781609 | O17: 0.8667781494 | P17: 0.8480829344
A18: Actual Accumulated Index (Real 2013-14 value) | D18: =$P$7/C7 -> 1.366279504 | E18: =$P$7/D7 -> 1.354170675 | F18: =$P$7/F7 -> 1.314370677 | G18: =$P$7/G7 -> 1.283996565 | H18: 1.251567982 | I18: 1.21749475 | J18: =$P$7/J7 -> 1.179129964 | K18: =$P$7/K7 -> 1.145251152 | L18: 1.104546442 | M18: 1.081738699 | N18: 1.053762698 | O18: 1.022044088 | P18: =$P$7/P7 -> 1 | Q18: =$P$9/Q9 -> 0.9788461538 | R18: =$P$9/R9 -> 0.9567669173 | S18: 0.9347991376
A20: Decision Inflation
A21: Initial forecast inflation rate (2002 - 2007) | E21: 0.00565 | F21: 0.020417 | G21: =$F$21 -> 0.020417 | H21: =$F$21 -> 0.020417 | I21: =$F$21 -> 0.020417 | J21: =$F$21 -> 0.020417
A22: Initial forecast inflation cumulative index (2002-2007) | E22: =E21/E21 -> 1 | F22: =E22*(1+E21)^4 -> 1.022792257 | G22: =F22*(1+F21) -> 1.043674607 | H22: =G22*(1+G21) -> 1.064983311 | I22: =H22*(1+H21) -> 1.086727076 | J22: =I22*(1+I21) -> 1.108914782
A23: Initial forecast inflation rate (08/09 - 13/14) | J23: 0.026 | K23: 0.02585906331 | L23: 0.02585906331 | M23: 0.02585906331 | N23: 0.02585906331 | O23: 0.02585906331 | P23: 0.02585906331
A24: Initial forecast inflation cumulative index (08/09 - 13/14) | J24: =J23/J23 -> 1 | K24: =J24*(1+J23) -> 1.026 | L24: =K24*(1+K23) -> 1.052531399 | M24: 1.079748875 | N24: 1.10767017 | O24: 1.136313483 | P24: 1.165697485
A25: Initial forecast inflation (14/15-16/17) | Q25: 0.0245 | R25: 0.0245 | S25: 0.0245
A27: Rate of Return
A28: Initial forecast nominal vanilla WACC | E28: 0.0823 | F28: =E28 -> 0.0823 | G28: =F28 -> 0.0823 | H28: =G28 -> 0.0823 | I28: =H28 -> 0.0823 | J28: =I28 -> 0.0823 | K28: 0.09760344327 | L28: =K28 -> 0.09760344327 | M28: =L28 -> 0.09760344327 | N28: =M28 -> 0.09760344327 | O28: =N28 -> 0.09760344327 | P28: =O28 -> 0.09760344327 | Q28: 0.07873861664 | R28: =$Q28 -> 0.07873861664 | S28: =$Q28 -> 0.07873861664
A29: Constant real vanilla WACC ($2003-04) | E29: =F29 -> 0.06064481482 | F29: =(1+F28)/(1+F21)-1 -> 0.06064481482 | G29: =(1+G28)/(1+G21)-1 -> 0.06064481482 | H29: =(1+H28)/(1+H21)-1 -> 0.06064481482 | I29: =(1+I28)/(1+I21)-1 -> 0.06064481482 | J29: =(1+J28)/(1+J21)-1 -> 0.06064481482 | K29: =(1+K28)/(1+K23)-1 -> 0.06993590302 | L29: =(1+L28)/(1+L23)-1 -> 0.06993590302 | M29: 0.06993590302 | N29: 0.06993590302 | O29: 0.06993590302 | P29: 0.06993590302 | Q29: =(1+Q28)/(1+Q25)-1 -> 0.0529415487 | R29: =(1+R28)/(1+R25)-1 -> 0.0529415487 | S29: 0.0529415487
A30: Constant real vanilla WACC ($2007-08)
A31: Nominal vanilla WACC (fixed real time varying) | E31: =(1+E29)*(1+E21)^4-1 -> 0.08481930452 | F31: =(1+F29)*(1+E15)^4-1 -> 0.09161051404 | G31: =(1+G29)*(1+F15)-1 -> 0.08573533732 | H31: 0.0881265082 | I31: 0.09032838984 | J31: =(1+J29)*(1+J15)-1 -> 0.09202080291 | K31: =(1+K29)*(1+K15)-1 -> 0.1093651462 | L31: 0.09249479254 | M31: 0.09834128098 | N31: 0.1031408104 | O31: =(1+O29)*(1+O15)-1 -> 0.09352166441 | P31: 0.09930669252 | Q31: 0.07569667058 | R31: 0.07724019982 | S31: 0.0776856751
A34: Half Nominal WACC factor | E34: =(1+E31)^0.125 -> 1.010228638 | F34: =(1+F31)^0.5 -> 1.044801663 | G34: 1.041986246 | H34: =(1+H31)^0.5 -> 1.043133025 | I34: 1.044187909 | J34: =(1+J31)^0.5 -> 1.044997992 | K34: =(1+K31)^0.5 -> 1.053264044 | L34: =(1+L31)^0.5 -> 1.045224757 | M34: 1.048017787 | N34: 1.050305103 | O34: =(1+O31)^0.5 -> 1.045715862 | P34: 1.048478275 | Q34: 1.037157978 | R34: 1.037901826 | S34: 1.038116407
A38: Opening RAB as at 01/01/03 ('000) and Decision Depreciation
A39: Opening RAB as at 01/01/03 ('000) | C39: Decision RAB Nominal | D39: Underspend Nominal | E39: Actual Nominal | F39: Actual Real (2013-14 value) | G39: Actual Real (2007-08 value) | J39: Decision Depreciation (Decision Nominal) | M39: 1st Qtr 2003 | N39: 2003-04 | O39: 2004-05 | P39: 2005-06 | Q39: 2006-07 | R39: 2007-08 | S39: 2008-09 | T39: 2009-10 | U39: 2010-11 | V39: 2011-12 | W39: 2012-13 | X39: 2013-14
A40: Secondary | C40: 81973.372 | D40: 7979 | E40: =C40-D40 -> 73994.372 | F40: =E40*$D$18 -> 101096.9939 | G40: =E40*$D$17 -> 85738.63522 | J40: =A40 -> Secondary | M40: -1108.871072 | N40: -5202.691799 | O40: -5932.676081 | P40: -6779.747159 | Q40: -7584.133542 | R40: -8361.059208 | S40: -19269.84132 | T40: -21728.87893 | U40: -23452.78247 | V40: -26238.69487 | W40: -25457.84557 | X40: -17589.03585
A41: Switchgear | C41: 216279.039 | D41: 2798 | E41: =C41-D41 -> 213481.039 | F41: =E41*$D$18 -> 291674.768 | G41: =E41*$D$17 -> 247364.3932 | J41: =A41 -> Switchgear | M41: -3026.091345 | N41: -12690.30685 | O41: -13134.82202 | P41: -13621.9008 | Q41: -14706.2957 | R41: -15962.84037 | S41: -18003.95259 | T41: -19161.5498 | U41: -20355.71967 | V41: -21873.72835 | W41: -23478.91128 | X41: -24979.53426
A42: Transformers | C42: 158248.741 | D42: 7722 | E42: =C42-D42 -> 150526.741 | F42: 205661.601 | G42: 174418.0941 | J42: Transformers | M42: -2665.46428 | N42: -10955.00114 | O42: -11523.15552 | P42: -11917.06001 | Q42: -12337.94889 | R42: -12768.61145 | S42: -12899.05082 | T42: -13250.83952 | U42: -13882.05276 | V42: -14764.63207 | W42: -15349.79268 | X42: -16559.04893
A43: Reactive | C43: 79792.2 | D43: 47 | E43: 79745.2 | F43: 108954.2323 | G43: 92402.22504 | J43: Reactive | M43: -836.09741 | N43: -3553.294942 | O43: -3673.162547 | P43: -3762.160373 | Q43: -3888.568746 | R43: -3984.650509 | S43: -4377.610039 | T43: -4677.277753 | U43: -4808.647535 | V43: -5009.043261 | W43: -5417.847934 | X43: -5569.613622
A44: Towers and Conductor | C44: 1000229.27 | D44: 4611 | E44: 995618.27 | F44: 1360292.836 | G44: 1153641.14 | J44: Towers and Conductor | M44: -7622.661792 | N44: -31163.5329 | O44: -31825.87936 | P44: -32555.98492 | Q44: -33242.29442 | R44: -33952.34031 | S44: -36896.9313 | T44: -37963.55383 | U44: -39167.99787 | V44: -40372.97058 | W44: -41651.06845 | X44: -42997.87625
A45: Establishment | C45: 38874.605 | D45: 4869 | E45: 34005.605 | F45: 46461.16113 | G45: 39402.91787 | J45: Establishment | M45: -552.3773562 | N45: -2566.404824 | O45: -2987.849406 | P45: -3291.328852 | Q45: -3601.954786 | R45: -3993.696734 | S45: -3813.820963 | T45: -4296.499797 | U45: -4940.151833 | V45: -5536.239858 | W45: -6302.005924 | X45: -6854.621313
A46: Communications | C46: 46961.999 | D46: 15888 | E46: 31073.999 | F46: 42455.76794 | G46: 36006.01225 | J46: Communications | M46: -1226.532617 | N46: -5569.720936 | O46: -6219.763168 | P46: -6521.318645 | Q46: -7022.726692 | R46: -7414.588212 | S46: -1662.515205 | T46: -2749.944774 | U46: -2990.715697 | V46: -4303.784972 | W46: -5365.596228 | X46: -5105.146415
A47: Inventory | C47: 2326.517917 | D47: -123.2895163 | E47: 2449.807434 | F47: 3347.121685 | G47: 2838.63678 | J47: Inventory | M47: 0 | N47: 0 | O47: 0 | P47: 0 | Q47: 0 | R47: 0 | S47: 0 | T47: 0 | U47: 0 | V47: 0 | W47: 0 | X47: 0
A48: IT | C48: 18459.64816 | D48: 2735.521632 | E48: 15724.12653 | F48: 21483.55179 | G48: 18219.83364 | J48: IT | M48: -707.2004745 | N48: -3610.08884 | O48: -3799.470698 | P48: -4276.221373 | Q48: -4054.626636 | R48: -4245.01209 | S48: -7638.694256 | T48: -9512.009378 | U48: -11320.62984 | V48: -11460.97376 | W48: -13336.32775 | X48: -12493.78686
A49: Vehicles | C49: 2508.207696 | D49: 216.8280032 | E49: 2291.379692 | F49: 3130.665109 | G49: 2655.063652 | J49: Vehicles | M49: -41.19886366 | N49: -145.3213745 | O49: -168.3375842 | P49: -190.3353297 | Q49: -228.2244011 | R49: -244.2565653 | S49: -1011.307074 | T49: -1129.306143 | U49: -1085.136614 | V49: -694.069786 | W49: -811.1765174 | X49: -933.8756712
A50: Other | C50: 4487.887671 | D50: 270.9014991 | E50: 4216.986172 | F50: 5761.581775 | G50: 4886.299179 | J50: Other | M50: -151.6422956 | N50: -672.8123106 | O50: -912.3468011 | P50: -1210.150806 | Q50: -1497.877563 | R50: -1590.909656 | S50: -1869.9198 | T50: -2013.11473 | U50: -1967.827319 | V50: -1618.482758 | W50: -1711.958994 | X50: -1731.739448
A51: Premises | C51: 5085.329557 | D51: 329.4568622 | E51: 4755.872695 | F51: 6497.851386 | G51: 5510.716871 | J51: Premises | M51: -171.0205876 | N51: -761.7346339 | O51: -817.0795064 | P51: -888.9846834 | Q51: -1543.403186 | R51: -1837.413819 | S51: -1360.625236 | T51: -1409.937625 | U51: -1342.931081 | V51: -1029.496751 | W51: -1071.371055 | X51: -1023.935696
A52: Land | C52: 85847.96 | D52: 0 | E52: 85847.96 | F52: 117292.3082 | G52: 99473.60492 | J52: Land
A53: Easements | C53: 94527.699 | D53: 0 | E53: 94527.699 | F53: 129151.2577 | G53: 109530.9776 | J53: Easements
A54: Equity Raising costs (2003-08) | C54: 0 | D54: 0 | E54: 0 | F54: 0 | G54: 0 | J54: Equity Raising costs (2003-08)
A55: 0 | C55: 0 | D55: 0 | E55: 0 | F55: 0 | G55: 0 | J55: 0
A56: Sub-total | C56: =SUM(C40:C55) -> 1835602.476 | D56: =SUM(D40:D55) -> 47343.41848 | E56: 1788259.058 | F56: 2443261.698 | G56: =SUM(G40:G55) -> 2072088.55 | J56: Sub-total | M56: =SUM(M40:M55) -> -18109.15809 | N56: -76890.91056 | O56: -80994.54269 | P56: -85015.19296 | Q56: -89708.05457 | R56: -94355.37893 | S56: -108804.2686 | T56: -117892.9123 | U56: -125314.5927 | V56: -132902.117 | W56: -139953.9024 | X56: -135838.2143
A59: Depreciation (Straight Line) of 2002-03 Opening RAB | F59: =E59+1 -> 1 | G59: 2 | H59: 3 | I59: 4 | J59: 5 | K59: 6 | L59: 7 | M59: 8 | N59: 9 | O59: 10 | P59: 11 | Q59: 12 | R59: 13 | S59: 14 | T59: 15 | U59: 16 | V59: 17 | W59: 18 | X59: 19 | Y59: 20 | Z59: 21 | AA59: 22 | AB59: 23 | AC59: 24 | AD59: 25 | AE59: 26 | AF59: 27 | AG59: 28 | AH59: 29 | AI59: 30 | AJ59: 31 | AK59: 32 | AL59: 33 | AM59: 34 | AN59: 35 | AO59: 36 | AP59: 37 | AQ59: 38 | AR59: 39 | AS59: 40 | AT59: 41 | AU59: 42 | AV59: 43 | AW59: 44 | AX59: 45 | AY59: 46 | AZ59: 47 | BA59: 48 | BB59: 49 | BC59: 50 | BD59: 51 | BE59: 52 | BF59: 53 | BG59: 54 | BH59: 55 | BI59: 56 | BJ59: 57 | BK59: 58 | BL59: 59 | BM59: 60 | BN59: 61 | BO59: 62 | BP59: 63 | BQ59: 64 | BR59: =BQ59+1 -> 65 | BS59: 66 | BT59: 67 | BU59: 68 | BV59: 69 | BW59: 70 | BX59: 71 | BY59: 72 | BZ59: 73
B60: Depreciation (Straight Line) of 2002-03 Opening RAB | F60: Depreciation of 2003 Opening RAB as per TRR 2003-04 to 2007-08 | L60: Depreciation of 2003 Opening RAB as per TRR 2008-09 to 2013-14 | R60: Depreciation of 2003 Opening RAB as per TRR 2013-14 to 2017-18 | V60: (Real 2013-14)
C61: Adjusted OAV at 01/04/2008 | D61: Opening RAB RL as at 01/01/2003 | E61: Opening RAB RL as at 01/04/2008 | F61: =F2 -> 2002-03 | G61: =G2 -> 2003-04 | H61: 2004-05 | I61: 2005-06 | J61: 2006-07 | K61: 2007-08 | L61: 2008-09 | M61: 2009-10 | N61: 2010-11 | O61: 2011-12 | P61: 2012-13 | Q61: 2013-14 | R61: 2014-15 | S61: 2015-16 | T61: 2016-17 | U61: 2017-18 | V61: 2018-19 | W61: 2019-20 | X61: 2020-21 | Y61: 2021-22 | Z61: 2022-23 | AA61: 2023-24 | AB61: 2024-25 | AC61: 2025-26 | AD61: 2026-27 | AE61: 2027-28 | AF61: 2028-29 | AG61: 2029-30 | AH61: 2030-31 | AI61: 2031-32 | AJ61: 2032-33 | AK61: 2033-34 | AL61: 2034-35 | AM61: 2035-36 | AN61: 2036-37 | AO61: 2037-38 | AP61: 2038-39 | AQ61: 2039-40 | AR61: 2040-41 | AS61: 2041-42 | AT61: 2042-43 | AU61: 2043-44 | AV61: 2044-45 | AW61: 2045-46 | AX61: 2046-47 | AY61: 2047-48 | AZ61: 2048-49 | BA61: 2049-50 | BB61: 2080-51 | BC61: 2051-52 | BD61: 2052-53 | BE61: 2053-54 | BF61: 2054-55 | BG61: 2055-56 | BH61: 2056-57 | BI61: 2057-58 | BJ61: 2058-59 | BK61: 2059-60 | BL61: 2060-61 | BM61: 2061-62 | BN61: 2062-63 | BO61: 2063-64 | BP61: 2064-65 | BQ61: 2065-66 | BR61: 2066-67 | BS61: =BS2 -> 2067-68 | BT61: 2068-69 | BU61: 2069-70 | BV61: 2070-71 | BW61: 2071-72 | BX61: 2072-73 | BY61: 2073-74 | BZ61: 2074-75
A62: =A40 -> Secondary | C62: =F40-SUM(F62:K62) -> 63216.88532 | D62: 10 | E62: =IF(OR(D62="n/a",C62<0),"n/a",D62-5.25) -> 4.75 | F62: =-(M40*E$16/E$22*E$18)-SUMIF($B$199:$B$655,$A62,F$199:F$655) -> 1501.600689 | G62: 6805.833391 | H62: 7087.184065 | I62: 7539.200874 | J62: 7565.969578 | K62: 7380.31995 | L62: =IF($E62="n/a","n/a",$C62/$E62) -> 13308.81796 | M62: =IF($E62="n/a","n/a",IF(M$3>$D62,$C62-SUM(L62:$L62),$C62/$E62)) -> 13308.81796 | N62: =IF($E62="n/a","n/a",IF(N$3>$D62,$C62-SUM($L62:M62),$C62/$E62)) -> 13308.81796 | O62: =IF($E62="n/a","n/a",IF(O$3>$D62,$C62-SUM($L62:N62),$C62/$E62)) -> 13308.81796 | P62: =IF($E62="n/a","n/a",IF(P$3>$D62,$C62-SUM($L62:O62),$C62/$E62)) -> 9981.613471 | Q62: =IF($E62="n/a","n/a",IF(Q$3>$D62,$C62-SUM($L62:P62),$C62/$E62)) -> 0 | R62: =IF($E62="n/a","n/a",IF(R$3>$D62,$C62-SUM($L62:Q62),$C62/$E62)) -> 0 | S62: =IF($E62="n/a","n/a",IF(S$3>$D62,$C62-SUM($L62:R62),$C62/$E62)) -> 0 | T62: =IF($E62="n/a","n/a",IF(T$3>$D62,$C62-SUM($L62:S62),$C62/$E62)) -> 0 | U62: =IF($E62="n/a","n/a",IF(U$3>$D62,$C62-SUM($L62:T62),$C62/$E62)) -> 0 | V62: =IF($E62="n/a","n/a",IF(V$3>$D62,$C62-SUM($L62:U62),$C62/$E62)) -> 0 | W62: =IF($E62="n/a","n/a",IF(W$3>$D62,$C62-SUM($L62:V62),$C62/$E62)) -> 0 | X62: =IF($E62="n/a","n/a",IF(X$3>$D62,$C62-SUM($L62:W62),$C62/$E62)) -> 0 | Y62: =IF($E62="n/a","n/a",IF(Y$3>$D62,$C62-SUM($L62:X62),$C62/$E62)) -> 0 | Z62: =IF($E62="n/a","n/a",IF(Z$3>$D62,$C62-SUM($L62:Y62),$C62/$E62)) -> 0 | AA62: =IF($E62="n/a","n/a",IF(AA$3>$D62,$C62-SUM($L62:Z62),$C62/$E62)) -> 0 | AB62: =IF($E62="n/a","n/a",IF(AB$3>$D62,$C62-SUM($L62:AA62),$C62/$E62)) -> 0 | AC62: =IF($E62="n/a","n/a",IF(AC$3>$D62,$C62-SUM($L62:AB62),$C62/$E62)) -> 0 | AD62: =IF($E62="n/a","n/a",IF(AD$3>$D62,$C62-SUM($L62:AC62),$C62/$E62)) -> 0 | AE62: =IF($E62="n/a","n/a",IF(AE$3>$D62,$C62-SUM($L62:AD62),$C62/$E62)) -> 0 | AF62: =IF($E62="n/a","n/a",IF(AF$3>$D62,$C62-SUM($L62:AE62),$C62/$E62)) -> 0 | AG62: =IF($E62="n/a","n/a",IF(AG$3>$D62,$C62-SUM($L62:AF62),$C62/$E62)) -> 0 | AH62: =IF($E62="n/a","n/a",IF(AH$3>$D62,$C62-SUM($L62:AG62),$C62/$E62)) -> 0 | AI62: =IF($E62="n/a","n/a",IF(AI$3>$D62,$C62-SUM($L62:AH62),$C62/$E62)) -> 0 | AJ62: =IF($E62="n/a","n/a",IF(AJ$3>$D62,$C62-SUM($L62:AI62),$C62/$E62)) -> 0 | AK62: =IF($E62="n/a","n/a",IF(AK$3>$D62,$C62-SUM($L62:AJ62),$C62/$E62)) -> 0 | AL62: =IF($E62="n/a","n/a",IF(AL$3>$D62,$C62-SUM($L62:AK62),$C62/$E62)) -> 0 | AM62: =IF($E62="n/a","n/a",IF(AM$3>$D62,$C62-SUM($L62:AL62),$C62/$E62)) -> 0 | AN62: =IF($E62="n/a","n/a",IF(AN$3>$D62,$C62-SUM($L62:AM62),$C62/$E62)) -> 0 | AO62: =IF($E62="n/a","n/a",IF(AO$3>$D62,$C62-SUM($L62:AN62),$C62/$E62)) -> 0 | AP62: =IF($E62="n/a","n/a",IF(AP$3>$D62,$C62-SUM($L62:AO62),$C62/$E62)) -> 0 | AQ62: =IF($E62="n/a","n/a",IF(AQ$3>$D62,$C62-SUM($L62:AP62),$C62/$E62)) -> 0 | AR62: =IF($E62="n/a","n/a",IF(AR$3>$D62,$C62-SUM($L62:AQ62),$C62/$E62)) -> 0
A63: =A41 -> Switchgear | C63: =F41-SUM(F63:K63) -> 202756.4763 | D63: 18 | E63: =IF(OR(D63="n/a",C63<0),"n/a",D63-5.25) -> 12.75 | F63: 4097.844159 | G63: 16736.21428 | H63: 16921.48242 | I63: 16644.6189 | J63: 17330.9465 | K63: 17187.1855 | L63: =IF($E63="n/a","n/a",$C63/$E63) -> 15902.46873 | M63: =IF($E63="n/a","n/a",IF(M$3>$D63,$C63-SUM(L63:$L63),$C63/$E63)) -> 15902.46873 | N63: =IF($E63="n/a","n/a",IF(N$3>$D63,$C63-SUM($L63:M63),$C63/$E63)) -> 15902.46873 | O63: =IF($E63="n/a","n/a",IF(O$3>$D63,$C63-SUM($L63:N63),$C63/$E63)) -> 15902.46873 | P63: =IF($E63="n/a","n/a",IF(P$3>$D63,$C63-SUM($L63:O63),$C63/$E63)) -> 15902.46873 | Q63: =IF($E63="n/a","n/a",IF(Q$3>$D63,$C63-SUM($L63:P63),$C63/$E63)) -> 15902.46873 | R63: =IF($E63="n/a","n/a",IF(R$3>$D63,$C63-SUM($L63:Q63),$C63/$E63)) -> 15902.46873 | S63: =IF($E63="n/a","n/a",IF(S$3>$D63,$C63-SUM($L63:R63),$C63/$E63)) -> 15902.46873 | T63: =IF($E63="n/a","n/a",IF(T$3>$D63,$C63-SUM($L63:S63),$C63/$E63)) -> 15902.46873 | U63: =IF($E63="n/a","n/a",IF(U$3>$D63,$C63-SUM($L63:T63),$C63/$E63)) -> 15902.46873 | V63: =IF($E63="n/a","n/a",IF(V$3>$D63,$C63-SUM($L63:U63),$C63/$E63)) -> 15902.46873 | W63: =IF($E63="n/a","n/a",IF(W$3>$D63,$C63-SUM($L63:V63),$C63/$E63)) -> 15902.46873 | X63: =IF($E63="n/a","n/a",IF(X$3>$D63,$C63-SUM($L63:W63),$C63/$E63)) -> 11926.85155 | Y63: =IF($E63="n/a","n/a",IF(Y$3>$D63,$C63-SUM($L63:X63),$C63/$E63)) -> 0 | Z63: =IF($E63="n/a","n/a",IF(Z$3>$D63,$C63-SUM($L63:Y63),$C63/$E63)) -> 0 | AA63: =IF($E63="n/a","n/a",IF(AA$3>$D63,$C63-SUM($L63:Z63),$C63/$E63)) -> 0 | AB63: =IF($E63="n/a","n/a",IF(AB$3>$D63,$C63-SUM($L63:AA63),$C63/$E63)) -> 0 | AC63: =IF($E63="n/a","n/a",IF(AC$3>$D63,$C63-SUM($L63:AB63),$C63/$E63)) -> 0 | AD63: =IF($E63="n/a","n/a",IF(AD$3>$D63,$C63-SUM($L63:AC63),$C63/$E63)) -> 0 | AE63: =IF($E63="n/a","n/a",IF(AE$3>$D63,$C63-SUM($L63:AD63),$C63/$E63)) -> 0 | AF63: =IF($E63="n/a","n/a",IF(AF$3>$D63,$C63-SUM($L63:AE63),$C63/$E63)) -> 0 | AG63: =IF($E63="n/a","n/a",IF(AG$3>$D63,$C63-SUM($L63:AF63),$C63/$E63)) -> 0 | AH63: =IF($E63="n/a","n/a",IF(AH$3>$D63,$C63-SUM($L63:AG63),$C63/$E63)) -> 0 | AI63: =IF($E63="n/a","n/a",IF(AI$3>$D63,$C63-SUM($L63:AH63),$C63/$E63)) -> 0 | AJ63: =IF($E63="n/a","n/a",IF(AJ$3>$D63,$C63-SUM($L63:AI63),$C63/$E63)) -> 0 | AK63: =IF($E63="n/a","n/a",IF(AK$3>$D63,$C63-SUM($L63:AJ63),$C63/$E63)) -> 0 | AL63: =IF($E63="n/a","n/a",IF(AL$3>$D63,$C63-SUM($L63:AK63),$C63/$E63)) -> 0 | AM63: =IF($E63="n/a","n/a",IF(AM$3>$D63,$C63-SUM($L63:AL63),$C63/$E63)) -> 0 | AN63: =IF($E63="n/a","n/a",IF(AN$3>$D63,$C63-SUM($L63:AM63),$C63/$E63)) -> 0 | AO63: =IF($E63="n/a","n/a",IF(AO$3>$D63,$C63-SUM($L63:AN63),$C63/$E63)) -> 0 | AP63: =IF($E63="n/a","n/a",IF(AP$3>$D63,$C63-SUM($L63:AO63),$C63/$E63)) -> 0 | AQ63: =IF($E63="n/a","n/a",IF(AQ$3>$D63,$C63-SUM($L63:AP63),$C63/$E63)) -> 0 | AR63: =IF($E63="n/a","n/a",IF(AR$3>$D63,$C63-SUM($L63:AQ63),$C63/$E63)) -> 0
A64: =A42 -> Transformers | C64: =F42-SUM(F64:K64) -> 128929.6442 | D64: 15 | E64: 9.75 | F64: 3609.493563 | G64: 14298.15771 | H64: 14676.62893 | I64: 14855.83015 | J64: 14719.41008 | K64: 14572.43639 | L64: 13223.55325 | M64: =IF($E64="n/a","n/a",IF(M$3>$D64,$C64-SUM(L64:$L64),$C64/$E64)) -> 13223.55325 | N64: =IF($E64="n/a","n/a",IF(N$3>$D64,$C64-SUM($L64:M64),$C64/$E64)) -> 13223.55325 | O64: =IF($E64="n/a","n/a",IF(O$3>$D64,$C64-SUM($L64:N64),$C64/$E64)) -> 13223.55325 | P64: =IF($E64="n/a","n/a",IF(P$3>$D64,$C64-SUM($L64:O64),$C64/$E64)) -> 13223.55325 | Q64: =IF($E64="n/a","n/a",IF(Q$3>$D64,$C64-SUM($L64:P64),$C64/$E64)) -> 13223.55325 | R64: =IF($E64="n/a","n/a",IF(R$3>$D64,$C64-SUM($L64:Q64),$C64/$E64)) -> 13223.55325 | S64: =IF($E64="n/a","n/a",IF(S$3>$D64,$C64-SUM($L64:R64),$C64/$E64)) -> 13223.55325 | T64: =IF($E64="n/a","n/a",IF(T$3>$D64,$C64-SUM($L64:S64),$C64/$E64)) -> 13223.55325 | U64: =IF($E64="n/a","n/a",IF(U$3>$D64,$C64-SUM($L64:T64),$C64/$E64)) -> 9917.664938 | V64: =IF($E64="n/a","n/a",IF(V$3>$D64,$C64-SUM($L64:U64),$C64/$E64)) -> 0 | W64: =IF($E64="n/a","n/a",IF(W$3>$D64,$C64-SUM($L64:V64),$C64/$E64)) -> 0 | X64: =IF($E64="n/a","n/a",IF(X$3>$D64,$C64-SUM($L64:W64),$C64/$E64)) -> 0 | Y64: =IF($E64="n/a","n/a",IF(Y$3>$D64,$C64-SUM($L64:X64),$C64/$E64)) -> 0 | Z64: =IF($E64="n/a","n/a",IF(Z$3>$D64,$C64-SUM($L64:Y64),$C64/$E64)) -> 0 | AA64: =IF($E64="n/a","n/a",IF(AA$3>$D64,$C64-SUM($L64:Z64),$C64/$E64)) -> 0 | AB64: =IF($E64="n/a","n/a",IF(AB$3>$D64,$C64-SUM($L64:AA64),$C64/$E64)) -> 0 | AC64: =IF($E64="n/a","n/a",IF(AC$3>$D64,$C64-SUM($L64:AB64),$C64/$E64)) -> 0 | AD64: =IF($E64="n/a","n/a",IF(AD$3>$D64,$C64-SUM($L64:AC64),$C64/$E64)) -> 0 | AE64: =IF($E64="n/a","n/a",IF(AE$3>$D64,$C64-SUM($L64:AD64),$C64/$E64)) -> 0 | AF64: =IF($E64="n/a","n/a",IF(AF$3>$D64,$C64-SUM($L64:AE64),$C64/$E64)) -> 0 | AG64: =IF($E64="n/a","n/a",IF(AG$3>$D64,$C64-SUM($L64:AF64),$C64/$E64)) -> 0 | AH64: =IF($E64="n/a","n/a",IF(AH$3>$D64,$C64-SUM($L64:AG64),$C64/$E64)) -> 0 | AI64: =IF($E64="n/a","n/a",IF(AI$3>$D64,$C64-SUM($L64:AH64),$C64/$E64)) -> 0 | AJ64: =IF($E64="n/a","n/a",IF(AJ$3>$D64,$C64-SUM($L64:AI64),$C64/$E64)) -> 0 | AK64: =IF($E64="n/a","n/a",IF(AK$3>$D64,$C64-SUM($L64:AJ64),$C64/$E64)) -> 0 | AL64: =IF($E64="n/a","n/a",IF(AL$3>$D64,$C64-SUM($L64:AK64),$C64/$E64)) -> 0 | AM64: =IF($E64="n/a","n/a",IF(AM$3>$D64,$C64-SUM($L64:AL64),$C64/$E64)) -> 0 | AN64: =IF($E64="n/a","n/a",IF(AN$3>$D64,$C64-SUM($L64:AM64),$C64/$E64)) -> 0 | AO64: =IF($E64="n/a","n/a",IF(AO$3>$D64,$C64-SUM($L64:AN64),$C64/$E64)) -> 0 | AP64: =IF($E64="n/a","n/a",IF(AP$3>$D64,$C64-SUM($L64:AO64),$C64/$E64)) -> 0 | AQ64: =IF($E64="n/a","n/a",IF(AQ$3>$D64,$C64-SUM($L64:AP64),$C64/$E64)) -> 0 | AR64: =IF($E64="n/a","n/a",IF(AR$3>$D64,$C64-SUM($L64:AQ64),$C64/$E64)) -> 0
A65: Reactive | C65: 84417.22754 | D65: 24 | E65: 18.75 | F65: 1132.218594 | G65: 4699.584085 | H65: 4735.020124 | I65: 4650.407961 | J65: 4622.136975 | K65: 4697.637012 | L65: 4502.252136 | M65: =IF($E65="n/a","n/a",IF(M$3>$D65,$C65-SUM(L65:$L65),$C65/$E65)) -> 4502.252136 | N65: =IF($E65="n/a","n/a",IF(N$3>$D65,$C65-SUM($L65:M65),$C65/$E65)) -> 4502.252136 | O65: =IF($E65="n/a","n/a",IF(O$3>$D65,$C65-SUM($L65:N65),$C65/$E65)) -> 4502.252136 | P65: =IF($E65="n/a","n/a",IF(P$3>$D65,$C65-SUM($L65:O65),$C65/$E65)) -> 4502.252136 | Q65: =IF($E65="n/a","n/a",IF(Q$3>$D65,$C65-SUM($L65:P65),$C65/$E65)) -> 4502.252136 | R65: =IF($E65="n/a","n/a",IF(R$3>$D65,$C65-SUM($L65:Q65),$C65/$E65)) -> 4502.252136 | S65: =IF($E65="n/a","n/a",IF(S$3>$D65,$C65-SUM($L65:R65),$C65/$E65)) -> 4502.252136 | T65: =IF($E65="n/a","n/a",IF(T$3>$D65,$C65-SUM($L65:S65),$C65/$E65)) -> 4502.252136 | U65: =IF($E65="n/a","n/a",IF(U$3>$D65,$C65-SUM($L65:T65),$C65/$E65)) -> 4502.252136 | V65: =IF($E65="n/a","n/a",IF(V$3>$D65,$C65-SUM($L65:U65),$C65/$E65)) -> 4502.252136 | W65: =IF($E65="n/a","n/a",IF(W$3>$D65,$C65-SUM($L65:V65),$C65/$E65)) -> 4502.252136 | X65: =IF($E65="n/a","n/a",IF(X$3>$D65,$C65-SUM($L65:W65),$C65/$E65)) -> 4502.252136 | Y65: =IF($E65="n/a","n/a",IF(Y$3>$D65,$C65-SUM($L65:X65),$C65/$E65)) -> 4502.252136 | Z65: =IF($E65="n/a","n/a",IF(Z$3>$D65,$C65-SUM($L65:Y65),$C65/$E65)) -> 4502.252136 | AA65: =IF($E65="n/a","n/a",IF(AA$3>$D65,$C65-SUM($L65:Z65),$C65/$E65)) -> 4502.252136 | AB65: =IF($E65="n/a","n/a",IF(AB$3>$D65,$C65-SUM($L65:AA65),$C65/$E65)) -> 4502.252136 | AC65: =IF($E65="n/a","n/a",IF(AC$3>$D65,$C65-SUM($L65:AB65),$C65/$E65)) -> 4502.252136 | AD65: =IF($E65="n/a","n/a",IF(AD$3>$D65,$C65-SUM($L65:AC65),$C65/$E65)) -> 3376.689102 | AE65: =IF($E65="n/a","n/a",IF(AE$3>$D65,$C65-SUM($L65:AD65),$C65/$E65)) -> 0 | AF65: =IF($E65="n/a","n/a",IF(AF$3>$D65,$C65-SUM($L65:AE65),$C65/$E65)) -> 0 | AG65: =IF($E65="n/a","n/a",IF(AG$3>$D65,$C65-SUM($L65:AF65),$C65/$E65)) -> 0 | AH65: =IF($E65="n/a","n/a",IF(AH$3>$D65,$C65-SUM($L65:AG65),$C65/$E65)) -> 0 | AI65: =IF($E65="n/a","n/a",IF(AI$3>$D65,$C65-SUM($L65:AH65),$C65/$E65)) -> 0 | AJ65: =IF($E65="n/a","n/a",IF(AJ$3>$D65,$C65-SUM($L65:AI65),$C65/$E65)) -> 0 | AK65: =IF($E65="n/a","n/a",IF(AK$3>$D65,$C65-SUM($L65:AJ65),$C65/$E65)) -> 0 | AL65: =IF($E65="n/a","n/a",IF(AL$3>$D65,$C65-SUM($L65:AK65),$C65/$E65)) -> 0 | AM65: =IF($E65="n/a","n/a",IF(AM$3>$D65,$C65-SUM($L65:AL65),$C65/$E65)) -> 0 | AN65: =IF($E65="n/a","n/a",IF(AN$3>$D65,$C65-SUM($L65:AM65),$C65/$E65)) -> 0 | AO65: =IF($E65="n/a","n/a",IF(AO$3>$D65,$C65-SUM($L65:AN65),$C65/$E65)) -> 0 | AP65: =IF($E65="n/a","n/a",IF(AP$3>$D65,$C65-SUM($L65:AO65),$C65/$E65)) -> 0 | AQ65: =IF($E65="n/a","n/a",IF(AQ$3>$D65,$C65-SUM($L65:AP65),$C65/$E65)) -> 0 | AR65: =IF($E65="n/a","n/a",IF(AR$3>$D65,$C65-SUM($L65:AQ65),$C65/$E65)) -> 0
A66: Towers and Conductor | C66: =F44-SUM(F66:K66) -> 1147367.228 | D66: 33 | E66: 27.75 | F66: 10322.38506 | G66: 40910.0535 | H66: 40639.71961 | I66: 40413.88338 | J66: 40306.50987 | K66: 40333.05622 | L66: 41346.56679 | M66: =IF($E66="n/a","n/a",IF(M$3>$D66,$C66-SUM(L66:$L66),$C66/$E66)) -> 41346.56679 | N66: =IF($E66="n/a","n/a",IF(N$3>$D66,$C66-SUM($L66:M66),$C66/$E66)) -> 41346.56679 | O66: =IF($E66="n/a","n/a",IF(O$3>$D66,$C66-SUM($L66:N66),$C66/$E66)) -> 41346.56679 | P66: =IF($E66="n/a","n/a",IF(P$3>$D66,$C66-SUM($L66:O66),$C66/$E66)) -> 41346.56679 | Q66: =IF($E66="n/a","n/a",IF(Q$3>$D66,$C66-SUM($L66:P66),$C66/$E66)) -> 41346.56679 | R66: =IF($E66="n/a","n/a",IF(R$3>$D66,$C66-SUM($L66:Q66),$C66/$E66)) -> 41346.56679 | S66: =IF($E66="n/a","n/a",IF(S$3>$D66,$C66-SUM($L66:R66),$C66/$E66)) -> 41346.56679 | T66: =IF($E66="n/a","n/a",IF(T$3>$D66,$C66-SUM($L66:S66),$C66/$E66)) -> 41346.56679 | U66: =IF($E66="n/a","n/a",IF(U$3>$D66,$C66-SUM($L66:T66),$C66/$E66)) -> 41346.56679 | V66: =IF($E66="n/a","n/a",IF(V$3>$D66,$C66-SUM($L66:U66),$C66/$E66)) -> 41346.56679 | W66: =IF($E66="n/a","n/a",IF(W$3>$D66,$C66-SUM($L66:V66),$C66/$E66)) -> 41346.56679 | X66: =IF($E66="n/a","n/a",IF(X$3>$D66,$C66-SUM($L66:W66),$C66/$E66)) -> 41346.56679 | Y66: =IF($E66="n/a","n/a",IF(Y$3>$D66,$C66-SUM($L66:X66),$C66/$E66)) -> 41346.56679 | Z66: =IF($E66="n/a","n/a",IF(Z$3>$D66,$C66-SUM($L66:Y66),$C66/$E66)) -> 41346.56679 | AA66: =IF($E66="n/a","n/a",IF(AA$3>$D66,$C66-SUM($L66:Z66),$C66/$E66)) -> 41346.56679 | AB66: =IF($E66="n/a","n/a",IF(AB$3>$D66,$C66-SUM($L66:AA66),$C66/$E66)) -> 41346.56679 | AC66: =IF($E66="n/a","n/a",IF(AC$3>$D66,$C66-SUM($L66:AB66),$C66/$E66)) -> 41346.56679 | AD66: =IF($E66="n/a","n/a",IF(AD$3>$D66,$C66-SUM($L66:AC66),$C66/$E66)) -> 41346.56679 | AE66: =IF($E66="n/a","n/a",IF(AE$3>$D66,$C66-SUM($L66:AD66),$C66/$E66)) -> 41346.56679 | AF66: =IF($E66="n/a","n/a",IF(AF$3>$D66,$C66-SUM($L66:AE66),$C66/$E66)) -> 41346.56679 | AG66: =IF($E66="n/a","n/a",IF(AG$3>$D66,$C66-SUM($L66:AF66),$C66/$E66)) -> 41346.56679 | AH66: =IF($E66="n/a","n/a",IF(AH$3>$D66,$C66-SUM($L66:AG66),$C66/$E66)) -> 41346.56679 | AI66: =IF($E66="n/a","n/a",IF(AI$3>$D66,$C66-SUM($L66:AH66),$C66/$E66)) -> 41346.56679 | AJ66: =IF($E66="n/a","n/a",IF(AJ$3>$D66,$C66-SUM($L66:AI66),$C66/$E66)) -> 41346.56679 | AK66: =IF($E66="n/a","n/a",IF(AK$3>$D66,$C66-SUM($L66:AJ66),$C66/$E66)) -> 41346.56679 | AL66: =IF($E66="n/a","n/a",IF(AL$3>$D66,$C66-SUM($L66:AK66),$C66/$E66)) -> 41346.56679 | AM66: =IF($E66="n/a","n/a",IF(AM$3>$D66,$C66-SUM($L66:AL66),$C66/$E66)) -> 31009.92509 | AN66: =IF($E66="n/a","n/a",IF(AN$3>$D66,$C66-SUM($L66:AM66),$C66/$E66)) -> 0 | AO66: =IF($E66="n/a","n/a",IF(AO$3>$D66,$C66-SUM($L66:AN66),$C66/$E66)) -> 0 | AP66: =IF($E66="n/a","n/a",IF(AP$3>$D66,$C66-SUM($L66:AO66),$C66/$E66)) -> 0 | AQ66: =IF($E66="n/a","n/a",IF(AQ$3>$D66,$C66-SUM($L66:AP66),$C66/$E66)) -> 0 | AR66: =IF($E66="n/a","n/a",IF(AR$3>$D66,$C66-SUM($L66:AQ66),$C66/$E66)) -> 0
A67: Establishment | C67: 28694.35572 | D67: 18 | E67: 12.75 | F67: 748.0132174 | G67: 3372.52712 | H67: 3597.313228 | I67: 3709.308809 | J67: 3253.384008 | K67: 3086.259025 | L67: 2250.537704 | M67: =IF($E67="n/a","n/a",IF(M$3>$D67,$C67-SUM(L67:$L67),$C67/$E67)) -> 2250.537704 | N67: =IF($E67="n/a","n/a",IF(N$3>$D67,$C67-SUM($L67:M67),$C67/$E67)) -> 2250.537704 | O67: =IF($E67="n/a","n/a",IF(O$3>$D67,$C67-SUM($L67:N67),$C67/$E67)) -> 2250.537704 | P67: =IF($E67="n/a","n/a",IF(P$3>$D67,$C67-SUM($L67:O67),$C67/$E67)) -> 2250.537704 | Q67: =IF($E67="n/a","n/a",IF(Q$3>$D67,$C67-SUM($L67:P67),$C67/$E67)) -> 2250.537704 | R67: =IF($E67="n/a","n/a",IF(R$3>$D67,$C67-SUM($L67:Q67),$C67/$E67)) -> 2250.537704 | S67: =IF($E67="n/a","n/a",IF(S$3>$D67,$C67-SUM($L67:R67),$C67/$E67)) -> 2250.537704 | T67: =IF($E67="n/a","n/a",IF(T$3>$D67,$C67-SUM($L67:S67),$C67/$E67)) -> 2250.537704 | U67: =IF($E67="n/a","n/a",IF(U$3>$D67,$C67-SUM($L67:T67),$C67/$E67)) -> 2250.537704 | V67: =IF($E67="n/a","n/a",IF(V$3>$D67,$C67-SUM($L67:U67),$C67/$E67)) -> 2250.537704 | W67: =IF($E67="n/a","n/a",IF(W$3>$D67,$C67-SUM($L67:V67),$C67/$E67)) -> 2250.537704 | X67: =IF($E67="n/a","n/a",IF(X$3>$D67,$C67-SUM($L67:W67),$C67/$E67)) -> 1687.903278 | Y67: =IF($E67="n/a","n/a",IF(Y$3>$D67,$C67-SUM($L67:X67),$C67/$E67)) -> 0 | Z67: =IF($E67="n/a","n/a",IF(Z$3>$D67,$C67-SUM($L67:Y67),$C67/$E67)) -> 0 | AA67: =IF($E67="n/a","n/a",IF(AA$3>$D67,$C67-SUM($L67:Z67),$C67/$E67)) -> 0 | AB67: =IF($E67="n/a","n/a",IF(AB$3>$D67,$C67-SUM($L67:AA67),$C67/$E67)) -> 0 | AC67: =IF($E67="n/a","n/a",IF(AC$3>$D67,$C67-SUM($L67:AB67),$C67/$E67)) -> 0 | AD67: =IF($E67="n/a","n/a",IF(AD$3>$D67,$C67-SUM($L67:AC67),$C67/$E67)) -> 0 | AE67: =IF($E67="n/a","n/a",IF(AE$3>$D67,$C67-SUM($L67:AD67),$C67/$E67)) -> 0 | AF67: =IF($E67="n/a","n/a",IF(AF$3>$D67,$C67-SUM($L67:AE67),$C67/$E67)) -> 0 | AG67: =IF($E67="n/a","n/a",IF(AG$3>$D67,$C67-SUM($L67:AF67),$C67/$E67)) -> 0 | AH67: =IF($E67="n/a","n/a",IF(AH$3>$D67,$C67-SUM($L67:AG67),$C67/$E67)) -> 0 | AI67: =IF($E67="n/a","n/a",IF(AI$3>$D67,$C67-SUM($L67:AH67),$C67/$E67)) -> 0 | AJ67: =IF($E67="n/a","n/a",IF(AJ$3>$D67,$C67-SUM($L67:AI67),$C67/$E67)) -> 0 | AK67: =IF($E67="n/a","n/a",IF(AK$3>$D67,$C67-SUM($L67:AJ67),$C67/$E67)) -> 0 | AL67: =IF($E67="n/a","n/a",IF(AL$3>$D67,$C67-SUM($L67:AK67),$C67/$E67)) -> 0 | AM67: =IF($E67="n/a","n/a",IF(AM$3>$D67,$C67-SUM($L67:AL67),$C67/$E67)) -> 0 | AN67: =IF($E67="n/a","n/a",IF(AN$3>$D67,$C67-SUM($L67:AM67),$C67/$E67)) -> 0 | AO67: =IF($E67="n/a","n/a",IF(AO$3>$D67,$C67-SUM($L67:AN67),$C67/$E67)) -> 0 | AP67: =IF($E67="n/a","n/a",IF(AP$3>$D67,$C67-SUM($L67:AO67),$C67/$E67)) -> 0 | AQ67: =IF($E67="n/a","n/a",IF(AQ$3>$D67,$C67-SUM($L67:AP67),$C67/$E67)) -> 0 | AR67: =IF($E67="n/a","n/a",IF(AR$3>$D67,$C67-SUM($L67:AQ67),$C67/$E67)) -> 0
A68: Communications | C68: 2746.215953 | D68: 10 | E68: 4.75 | F68: 1660.934502 | G68: 7276.947103 | H68: 7736.40262 | I68: 7436.524834 | J68: 7657.103061 | K68: 7941.639863 | L68: 578.150727 | M68: =IF($E68="n/a","n/a",IF(M$3>$D68,$C68-SUM(L68:$L68),$C68/$E68)) -> 578.150727 | N68: =IF($E68="n/a","n/a",IF(N$3>$D68,$C68-SUM($L68:M68),$C68/$E68)) -> 578.150727 | O68: =IF($E68="n/a","n/a",IF(O$3>$D68,$C68-SUM($L68:N68),$C68/$E68)) -> 578.150727 | P68: =IF($E68="n/a","n/a",IF(P$3>$D68,$C68-SUM($L68:O68),$C68/$E68)) -> 433.6130452 | Q68: =IF($E68="n/a","n/a",IF(Q$3>$D68,$C68-SUM($L68:P68),$C68/$E68)) -> 0 | R68: =IF($E68="n/a","n/a",IF(R$3>$D68,$C68-SUM($L68:Q68),$C68/$E68)) -> 0 | S68: =IF($E68="n/a","n/a",IF(S$3>$D68,$C68-SUM($L68:R68),$C68/$E68)) -> 0 | T68: =IF($E68="n/a","n/a",IF(T$3>$D68,$C68-SUM($L68:S68),$C68/$E68)) -> 0 | U68: =IF($E68="n/a","n/a",IF(U$3>$D68,$C68-SUM($L68:T68),$C68/$E68)) -> 0 | V68: =IF($E68="n/a","n/a",IF(V$3>$D68,$C68-SUM($L68:U68),$C68/$E68)) -> 0 | W68: =IF($E68="n/a","n/a",IF(W$3>$D68,$C68-SUM($L68:V68),$C68/$E68)) -> 0 | X68: =IF($E68="n/a","n/a",IF(X$3>$D68,$C68-SUM($L68:W68),$C68/$E68)) -> 0 | Y68: =IF($E68="n/a","n/a",IF(Y$3>$D68,$C68-SUM($L68:X68),$C68/$E68)) -> 0 | Z68: =IF($E68="n/a","n/a",IF(Z$3>$D68,$C68-SUM($L68:Y68),$C68/$E68)) -> 0 | AA68: =IF($E68="n/a","n/a",IF(AA$3>$D68,$C68-SUM($L68:Z68),$C68/$E68)) -> 0 | AB68: =IF($E68="n/a","n/a",IF(AB$3>$D68,$C68-SUM($L68:AA68),$C68/$E68)) -> 0 | AC68: =IF($E68="n/a","n/a",IF(AC$3>$D68,$C68-SUM($L68:AB68),$C68/$E68)) -> 0 | AD68: =IF($E68="n/a","n/a",IF(AD$3>$D68,$C68-SUM($L68:AC68),$C68/$E68)) -> 0 | AE68: =IF($E68="n/a","n/a",IF(AE$3>$D68,$C68-SUM($L68:AD68),$C68/$E68)) -> 0 | AF68: =IF($E68="n/a","n/a",IF(AF$3>$D68,$C68-SUM($L68:AE68),$C68/$E68)) -> 0 | AG68: =IF($E68="n/a","n/a",IF(AG$3>$D68,$C68-SUM($L68:AF68),$C68/$E68)) -> 0 | AH68: =IF($E68="n/a","n/a",IF(AH$3>$D68,$C68-SUM($L68:AG68),$C68/$E68)) -> 0 | AI68: =IF($E68="n/a","n/a",IF(AI$3>$D68,$C68-SUM($L68:AH68),$C68/$E68)) -> 0 | AJ68: =IF($E68="n/a","n/a",IF(AJ$3>$D68,$C68-SUM($L68:AI68),$C68/$E68)) -> 0 | AK68: =IF($E68="n/a","n/a",IF(AK$3>$D68,$C68-SUM($L68:AJ68),$C68/$E68)) -> 0 | AL68: =IF($E68="n/a","n/a",IF(AL$3>$D68,$C68-SUM($L68:AK68),$C68/$E68)) -> 0 | AM68: =IF($E68="n/a","n/a",IF(AM$3>$D68,$C68-SUM($L68:AL68),$C68/$E68)) -> 0 | AN68: =IF($E68="n/a","n/a",IF(AN$3>$D68,$C68-SUM($L68:AM68),$C68/$E68)) -> 0 | AO68: =IF($E68="n/a","n/a",IF(AO$3>$D68,$C68-SUM($L68:AN68),$C68/$E68)) -> 0 | AP68: =IF($E68="n/a","n/a",IF(AP$3>$D68,$C68-SUM($L68:AO68),$C68/$E68)) -> 0 | AQ68: =IF($E68="n/a","n/a",IF(AQ$3>$D68,$C68-SUM($L68:AP68),$C68/$E68)) -> 0 | AR68: =IF($E68="n/a","n/a",IF(AR$3>$D68,$C68-SUM($L68:AQ68),$C68/$E68)) -> 0
A69: Inventory | C69: 3347.121685 | D69: n/a | E69: n/a | F69: 0 | G69: 0 | H69: 0 | I69: 0 | J69: 0 | K69: 0 | L69: n/a | M69: =IF($E69="n/a","n/a",IF(M$3>$D69,$C69-SUM(L69:$L69),$C69/$E69)) -> n/a | N69: =IF($E69="n/a","n/a",IF(N$3>$D69,$C69-SUM($L69:M69),$C69/$E69)) -> n/a | O69: =IF($E69="n/a","n/a",IF(O$3>$D69,$C69-SUM($L69:N69),$C69/$E69)) -> n/a | P69: =IF($E69="n/a","n/a",IF(P$3>$D69,$C69-SUM($L69:O69),$C69/$E69)) -> n/a | Q69: =IF($E69="n/a","n/a",IF(Q$3>$D69,$C69-SUM($L69:P69),$C69/$E69)) -> n/a | R69: =IF($E69="n/a","n/a",IF(R$3>$D69,$C69-SUM($L69:Q69),$C69/$E69)) -> n/a | S69: =IF($E69="n/a","n/a",IF(S$3>$D69,$C69-SUM($L69:R69),$C69/$E69)) -> n/a | T69: =IF($E69="n/a","n/a",IF(T$3>$D69,$C69-SUM($L69:S69),$C69/$E69)) -> n/a | U69: =IF($E69="n/a","n/a",IF(U$3>$D69,$C69-SUM($L69:T69),$C69/$E69)) -> n/a | V69: =IF($E69="n/a","n/a",IF(V$3>$D69,$C69-SUM($L69:U69),$C69/$E69)) -> n/a | W69: =IF($E69="n/a","n/a",IF(W$3>$D69,$C69-SUM($L69:V69),$C69/$E69)) -> n/a | X69: =IF($E69="n/a","n/a",IF(X$3>$D69,$C69-SUM($L69:W69),$C69/$E69)) -> n/a | Y69: =IF($E69="n/a","n/a",IF(Y$3>$D69,$C69-SUM($L69:X69),$C69/$E69)) -> n/a | Z69: =IF($E69="n/a","n/a",IF(Z$3>$D69,$C69-SUM($L69:Y69),$C69/$E69)) -> n/a | AA69: =IF($E69="n/a","n/a",IF(AA$3>$D69,$C69-SUM($L69:Z69),$C69/$E69)) -> n/a | AB69: =IF($E69="n/a","n/a",IF(AB$3>$D69,$C69-SUM($L69:AA69),$C69/$E69)) -> n/a | AC69: =IF($E69="n/a","n/a",IF(AC$3>$D69,$C69-SUM($L69:AB69),$C69/$E69)) -> n/a | AD69: =IF($E69="n/a","n/a",IF(AD$3>$D69,$C69-SUM($L69:AC69),$C69/$E69)) -> n/a | AE69: =IF($E69="n/a","n/a",IF(AE$3>$D69,$C69-SUM($L69:AD69),$C69/$E69)) -> n/a | AF69: =IF($E69="n/a","n/a",IF(AF$3>$D69,$C69-SUM($L69:AE69),$C69/$E69)) -> n/a | AG69: =IF($E69="n/a","n/a",IF(AG$3>$D69,$C69-SUM($L69:AF69),$C69/$E69)) -> n/a | AH69: =IF($E69="n/a","n/a",IF(AH$3>$D69,$C69-SUM($L69:AG69),$C69/$E69)) -> n/a | AI69: =IF($E69="n/a","n/a",IF(AI$3>$D69,$C69-SUM($L69:AH69),$C69/$E69)) -> n/a | AJ69: =IF($E69="n/a","n/a",IF(AJ$3>$D69,$C69-SUM($L69:AI69),$C69/$E69)) -> n/a | AK69: =IF($E69="n/a","n/a",IF(AK$3>$D69,$C69-SUM($L69:AJ69),$C69/$E69)) -> n/a | AL69: =IF($E69="n/a","n/a",IF(AL$3>$D69,$C69-SUM($L69:AK69),$C69/$E69)) -> n/a | AM69: =IF($E69="n/a","n/a",IF(AM$3>$D69,$C69-SUM($L69:AL69),$C69/$E69)) -> n/a | AN69: =IF($E69="n/a","n/a",IF(AN$3>$D69,$C69-SUM($L69:AM69),$C69/$E69)) -> n/a | AO69: =IF($E69="n/a","n/a",IF(AO$3>$D69,$C69-SUM($L69:AN69),$C69/$E69)) -> n/a | AP69: =IF($E69="n/a","n/a",IF(AP$3>$D69,$C69-SUM($L69:AO69),$C69/$E69)) -> n/a | AQ69: =IF($E69="n/a","n/a",IF(AQ$3>$D69,$C69-SUM($L69:AP69),$C69/$E69)) -> n/a | AR69: =IF($E69="n/a","n/a",IF(AR$3>$D69,$C69-SUM($L69:AQ69),$C69/$E69)) -> n/a
A70: IT | C70: =F48-SUM(F70:K70) -> 6300.925557 | D70: 8 | E70: 2.75 | F70: 957.670144 | G70: 4229.290003 | H70: 3511.294147 | I70: 3424.151294 | J70: 1782.205026 | K70: 1278.015619 | L70: 2291.245657 | M70: =IF($E70="n/a","n/a",IF(M$3>$D70,$C70-SUM(L70:$L70),$C70/$E70)) -> 2291.245657 | N70: =IF($E70="n/a","n/a",IF(N$3>$D70,$C70-SUM($L70:M70),$C70/$E70)) -> 1718.434243 | O70: =IF($E70="n/a","n/a",IF(O$3>$D70,$C70-SUM($L70:N70),$C70/$E70)) -> 0 | P70: =IF($E70="n/a","n/a",IF(P$3>$D70,$C70-SUM($L70:O70),$C70/$E70)) -> 0 | Q70: =IF($E70="n/a","n/a",IF(Q$3>$D70,$C70-SUM($L70:P70),$C70/$E70)) -> 0 | R70: =IF($E70="n/a","n/a",IF(R$3>$D70,$C70-SUM($L70:Q70),$C70/$E70)) -> 0 | S70: =IF($E70="n/a","n/a",IF(S$3>$D70,$C70-SUM($L70:R70),$C70/$E70)) -> 0 | T70: =IF($E70="n/a","n/a",IF(T$3>$D70,$C70-SUM($L70:S70),$C70/$E70)) -> 0 | U70: =IF($E70="n/a","n/a",IF(U$3>$D70,$C70-SUM($L70:T70),$C70/$E70)) -> 0 | V70: =IF($E70="n/a","n/a",IF(V$3>$D70,$C70-SUM($L70:U70),$C70/$E70)) -> 0 | W70: =IF($E70="n/a","n/a",IF(W$3>$D70,$C70-SUM($L70:V70),$C70/$E70)) -> 0 | X70: =IF($E70="n/a","n/a",IF(X$3>$D70,$C70-SUM($L70:W70),$C70/$E70)) -> 0 | Y70: =IF($E70="n/a","n/a",IF(Y$3>$D70,$C70-SUM($L70:X70),$C70/$E70)) -> 0 | Z70: =IF($E70="n/a","n/a",IF(Z$3>$D70,$C70-SUM($L70:Y70),$C70/$E70)) -> 0 | AA70: =IF($E70="n/a","n/a",IF(AA$3>$D70,$C70-SUM($L70:Z70),$C70/$E70)) -> 0 | AB70: =IF($E70="n/a","n/a",IF(AB$3>$D70,$C70-SUM($L70:AA70),$C70/$E70)) -> 0 | AC70: =IF($E70="n/a","n/a",IF(AC$3>$D70,$C70-SUM($L70:AB70),$C70/$E70)) -> 0 | AD70: =IF($E70="n/a","n/a",IF(AD$3>$D70,$C70-SUM($L70:AC70),$C70/$E70)) -> 0 | AE70: =IF($E70="n/a","n/a",IF(AE$3>$D70,$C70-SUM($L70:AD70),$C70/$E70)) -> 0 | AF70: =IF($E70="n/a","n/a",IF(AF$3>$D70,$C70-SUM($L70:AE70),$C70/$E70)) -> 0 | AG70: =IF($E70="n/a","n/a",IF(AG$3>$D70,$C70-SUM($L70:AF70),$C70/$E70)) -> 0 | AH70: =IF($E70="n/a","n/a",IF(AH$3>$D70,$C70-SUM($L70:AG70),$C70/$E70)) -> 0 | AI70: =IF($E70="n/a","n/a",IF(AI$3>$D70,$C70-SUM($L70:AH70),$C70/$E70)) -> 0 | AJ70: =IF($E70="n/a","n/a",IF(AJ$3>$D70,$C70-SUM($L70:AI70),$C70/$E70)) -> 0 | AK70: =IF($E70="n/a","n/a",IF(AK$3>$D70,$C70-SUM($L70:AJ70),$C70/$E70)) -> 0 | AL70: =IF($E70="n/a","n/a",IF(AL$3>$D70,$C70-SUM($L70:AK70),$C70/$E70)) -> 0 | AM70: =IF($E70="n/a","n/a",IF(AM$3>$D70,$C70-SUM($L70:AL70),$C70/$E70)) -> 0 | AN70: =IF($E70="n/a","n/a",IF(AN$3>$D70,$C70-SUM($L70:AM70),$C70/$E70)) -> 0 | AO70: =IF($E70="n/a","n/a",IF(AO$3>$D70,$C70-SUM($L70:AN70),$C70/$E70)) -> 0 | AP70: =IF($E70="n/a","n/a",IF(AP$3>$D70,$C70-SUM($L70:AO70),$C70/$E70)) -> 0 | AQ70: =IF($E70="n/a","n/a",IF(AQ$3>$D70,$C70-SUM($L70:AP70),$C70/$E70)) -> 0 | AR70: =IF($E70="n/a","n/a",IF(AR$3>$D70,$C70-SUM($L70:AQ70),$C70/$E70)) -> 0
A71: Vehicles | C71: =F49-SUM(F71:K71) -> 2259.615232 | D71: 8 | E71: 2.75 | F71: 55.79029301 | G71: 238.461253 | H71: 209.8855947 | I71: 181.5535115 | J71: 134.3052451 | K71: 51.05397985 | L71: 821.6782662 | M71: =IF($E71="n/a","n/a",IF(M$3>$D71,$C71-SUM(L71:$L71),$C71/$E71)) -> 821.6782662 | N71: =IF($E71="n/a","n/a",IF(N$3>$D71,$C71-SUM($L71:M71),$C71/$E71)) -> 616.2586997 | O71: =IF($E71="n/a","n/a",IF(O$3>$D71,$C71-SUM($L71:N71),$C71/$E71)) -> 0 | P71: =IF($E71="n/a","n/a",IF(P$3>$D71,$C71-SUM($L71:O71),$C71/$E71)) -> 0 | Q71: =IF($E71="n/a","n/a",IF(Q$3>$D71,$C71-SUM($L71:P71),$C71/$E71)) -> 0 | R71: =IF($E71="n/a","n/a",IF(R$3>$D71,$C71-SUM($L71:Q71),$C71/$E71)) -> 0 | S71: =IF($E71="n/a","n/a",IF(S$3>$D71,$C71-SUM($L71:R71),$C71/$E71)) -> 0 | T71: =IF($E71="n/a","n/a",IF(T$3>$D71,$C71-SUM($L71:S71),$C71/$E71)) -> 0 | U71: =IF($E71="n/a","n/a",IF(U$3>$D71,$C71-SUM($L71:T71),$C71/$E71)) -> 0 | V71: =IF($E71="n/a","n/a",IF(V$3>$D71,$C71-SUM($L71:U71),$C71/$E71)) -> 0 | W71: =IF($E71="n/a","n/a",IF(W$3>$D71,$C71-SUM($L71:V71),$C71/$E71)) -> 0 | X71: =IF($E71="n/a","n/a",IF(X$3>$D71,$C71-SUM($L71:W71),$C71/$E71)) -> 0 | Y71: =IF($E71="n/a","n/a",IF(Y$3>$D71,$C71-SUM($L71:X71),$C71/$E71)) -> 0 | Z71: =IF($E71="n/a","n/a",IF(Z$3>$D71,$C71-SUM($L71:Y71),$C71/$E71)) -> 0 | AA71: =IF($E71="n/a","n/a",IF(AA$3>$D71,$C71-SUM($L71:Z71),$C71/$E71)) -> 0 | AB71: =IF($E71="n/a","n/a",IF(AB$3>$D71,$C71-SUM($L71:AA71),$C71/$E71)) -> 0 | AC71: =IF($E71="n/a","n/a",IF(AC$3>$D71,$C71-SUM($L71:AB71),$C71/$E71)) -> 0 | AD71: =IF($E71="n/a","n/a",IF(AD$3>$D71,$C71-SUM($L71:AC71),$C71/$E71)) -> 0 | AE71: =IF($E71="n/a","n/a",IF(AE$3>$D71,$C71-SUM($L71:AD71),$C71/$E71)) -> 0 | AF71: =IF($E71="n/a","n/a",IF(AF$3>$D71,$C71-SUM($L71:AE71),$C71/$E71)) -> 0 | AG71: =IF($E71="n/a","n/a",IF(AG$3>$D71,$C71-SUM($L71:AF71),$C71/$E71)) -> 0 | AH71: =IF($E71="n/a","n/a",IF(AH$3>$D71,$C71-SUM($L71:AG71),$C71/$E71)) -> 0 | AI71: =IF($E71="n/a","n/a",IF(AI$3>$D71,$C71-SUM($L71:AH71),$C71/$E71)) -> 0 | AJ71: =IF($E71="n/a","n/a",IF(AJ$3>$D71,$C71-SUM($L71:AI71),$C71/$E71)) -> 0 | AK71: =IF($E71="n/a","n/a",IF(AK$3>$D71,$C71-SUM($L71:AJ71),$C71/$E71)) -> 0 | AL71: =IF($E71="n/a","n/a",IF(AL$3>$D71,$C71-SUM($L71:AK71),$C71/$E71)) -> 0 | AM71: =IF($E71="n/a","n/a",IF(AM$3>$D71,$C71-SUM($L71:AL71),$C71/$E71)) -> 0 | AN71: =IF($E71="n/a","n/a",IF(AN$3>$D71,$C71-SUM($L71:AM71),$C71/$E71)) -> 0 | AO71: =IF($E71="n/a","n/a",IF(AO$3>$D71,$C71-SUM($L71:AN71),$C71/$E71)) -> 0 | AP71: =IF($E71="n/a","n/a",IF(AP$3>$D71,$C71-SUM($L71:AO71),$C71/$E71)) -> 0 | AQ71: =IF($E71="n/a","n/a",IF(AQ$3>$D71,$C71-SUM($L71:AP71),$C71/$E71)) -> 0 | AR71: =IF($E71="n/a","n/a",IF(AR$3>$D71,$C71-SUM($L71:AQ71),$C71/$E71)) -> 0
A72: Other | C72: 1779.446911 | D72: 8 | E72: 2.75 | F72: 205.3495499 | G72: 811.1828088 | H72: 819.9275697 | I72: 702.7628486 | J72: 695.2758834 | K72: 747.6362036 | L72: 647.071604 | M72: =IF($E72="n/a","n/a",IF(M$3>$D72,$C72-SUM(L72:$L72),$C72/$E72)) -> 647.071604 | N72: =IF($E72="n/a","n/a",IF(N$3>$D72,$C72-SUM($L72:M72),$C72/$E72)) -> 485.303703 | O72: =IF($E72="n/a","n/a",IF(O$3>$D72,$C72-SUM($L72:N72),$C72/$E72)) -> 0 | P72: =IF($E72="n/a","n/a",IF(P$3>$D72,$C72-SUM($L72:O72),$C72/$E72)) -> 0 | Q72: =IF($E72="n/a","n/a",IF(Q$3>$D72,$C72-SUM($L72:P72),$C72/$E72)) -> 0 | R72: =IF($E72="n/a","n/a",IF(R$3>$D72,$C72-SUM($L72:Q72),$C72/$E72)) -> 0 | S72: =IF($E72="n/a","n/a",IF(S$3>$D72,$C72-SUM($L72:R72),$C72/$E72)) -> 0 | T72: =IF($E72="n/a","n/a",IF(T$3>$D72,$C72-SUM($L72:S72),$C72/$E72)) -> 0 | U72: =IF($E72="n/a","n/a",IF(U$3>$D72,$C72-SUM($L72:T72),$C72/$E72)) -> 0 | V72: =IF($E72="n/a","n/a",IF(V$3>$D72,$C72-SUM($L72:U72),$C72/$E72)) -> 0 | W72: =IF($E72="n/a","n/a",IF(W$3>$D72,$C72-SUM($L72:V72),$C72/$E72)) -> 0 | X72: =IF($E72="n/a","n/a",IF(X$3>$D72,$C72-SUM($L72:W72),$C72/$E72)) -> 0 | Y72: =IF($E72="n/a","n/a",IF(Y$3>$D72,$C72-SUM($L72:X72),$C72/$E72)) -> 0 | Z72: =IF($E72="n/a","n/a",IF(Z$3>$D72,$C72-SUM($L72:Y72),$C72/$E72)) -> 0 | AA72: =IF($E72="n/a","n/a",IF(AA$3>$D72,$C72-SUM($L72:Z72),$C72/$E72)) -> 0 | AB72: =IF($E72="n/a","n/a",IF(AB$3>$D72,$C72-SUM($L72:AA72),$C72/$E72)) -> 0 | AC72: =IF($E72="n/a","n/a",IF(AC$3>$D72,$C72-SUM($L72:AB72),$C72/$E72)) -> 0 | AD72: =IF($E72="n/a","n/a",IF(AD$3>$D72,$C72-SUM($L72:AC72),$C72/$E72)) -> 0 | AE72: =IF($E72="n/a","n/a",IF(AE$3>$D72,$C72-SUM($L72:AD72),$C72/$E72)) -> 0 | AF72: =IF($E72="n/a","n/a",IF(AF$3>$D72,$C72-SUM($L72:AE72),$C72/$E72)) -> 0 | AG72: =IF($E72="n/a","n/a",IF(AG$3>$D72,$C72-SUM($L72:AF72),$C72/$E72)) -> 0 | AH72: =IF($E72="n/a","n/a",IF(AH$3>$D72,$C72-SUM($L72:AG72),$C72/$E72)) -> 0 | AI72: =IF($E72="n/a","n/a",IF(AI$3>$D72,$C72-SUM($L72:AH72),$C72/$E72)) -> 0 | AJ72: =IF($E72="n/a","n/a",IF(AJ$3>$D72,$C72-SUM($L72:AI72),$C72/$E72)) -> 0 | AK72: =IF($E72="n/a","n/a",IF(AK$3>$D72,$C72-SUM($L72:AJ72),$C72/$E72)) -> 0 | AL72: =IF($E72="n/a","n/a",IF(AL$3>$D72,$C72-SUM($L72:AK72),$C72/$E72)) -> 0 | AM72: =IF($E72="n/a","n/a",IF(AM$3>$D72,$C72-SUM($L72:AL72),$C72/$E72)) -> 0 | AN72: =IF($E72="n/a","n/a",IF(AN$3>$D72,$C72-SUM($L72:AM72),$C72/$E72)) -> 0 | AO72: =IF($E72="n/a","n/a",IF(AO$3>$D72,$C72-SUM($L72:AN72),$C72/$E72)) -> 0 | AP72: =IF($E72="n/a","n/a",IF(AP$3>$D72,$C72-SUM($L72:AO72),$C72/$E72)) -> 0 | AQ72: =IF($E72="n/a","n/a",IF(AQ$3>$D72,$C72-SUM($L72:AP72),$C72/$E72)) -> 0 | AR72: =IF($E72="n/a","n/a",IF(AR$3>$D72,$C72-SUM($L72:AQ72),$C72/$E72)) -> 0
A73: Premises | C73: 1446.677338 | D73: 8 | E73: 2.75 | F73: 231.5910646 | G73: 915.2405404 | H73: 901.2169184 | I73: 886.5238466 | J73: 904.9764311 | K73: 1211.625247 | L73: 526.0644866 | M73: =IF($E73="n/a","n/a",IF(M$3>$D73,$C73-SUM(L73:$L73),$C73/$E73)) -> 526.0644866 | N73: =IF($E73="n/a","n/a",IF(N$3>$D73,$C73-SUM($L73:M73),$C73/$E73)) -> 394.548365 | O73: =IF($E73="n/a","n/a",IF(O$3>$D73,$C73-SUM($L73:N73),$C73/$E73)) -> 0 | P73: =IF($E73="n/a","n/a",IF(P$3>$D73,$C73-SUM($L73:O73),$C73/$E73)) -> 0 | Q73: =IF($E73="n/a","n/a",IF(Q$3>$D73,$C73-SUM($L73:P73),$C73/$E73)) -> 0 | R73: =IF($E73="n/a","n/a",IF(R$3>$D73,$C73-SUM($L73:Q73),$C73/$E73)) -> 0 | S73: =IF($E73="n/a","n/a",IF(S$3>$D73,$C73-SUM($L73:R73),$C73/$E73)) -> 0 | T73: =IF($E73="n/a","n/a",IF(T$3>$D73,$C73-SUM($L73:S73),$C73/$E73)) -> 0 | U73: =IF($E73="n/a","n/a",IF(U$3>$D73,$C73-SUM($L73:T73),$C73/$E73)) -> 0 | V73: =IF($E73="n/a","n/a",IF(V$3>$D73,$C73-SUM($L73:U73),$C73/$E73)) -> 0 | W73: =IF($E73="n/a","n/a",IF(W$3>$D73,$C73-SUM($L73:V73),$C73/$E73)) -> 0 | X73: =IF($E73="n/a","n/a",IF(X$3>$D73,$C73-SUM($L73:W73),$C73/$E73)) -> 0 | Y73: =IF($E73="n/a","n/a",IF(Y$3>$D73,$C73-SUM($L73:X73),$C73/$E73)) -> 0 | Z73: =IF($E73="n/a","n/a",IF(Z$3>$D73,$C73-SUM($L73:Y73),$C73/$E73)) -> 0 | AA73: =IF($E73="n/a","n/a",IF(AA$3>$D73,$C73-SUM($L73:Z73),$C73/$E73)) -> 0 | AB73: =IF($E73="n/a","n/a",IF(AB$3>$D73,$C73-SUM($L73:AA73),$C73/$E73)) -> 0 | AC73: =IF($E73="n/a","n/a",IF(AC$3>$D73,$C73-SUM($L73:AB73),$C73/$E73)) -> 0 | AD73: =IF($E73="n/a","n/a",IF(AD$3>$D73,$C73-SUM($L73:AC73),$C73/$E73)) -> 0 | AE73: =IF($E73="n/a","n/a",IF(AE$3>$D73,$C73-SUM($L73:AD73),$C73/$E73)) -> 0 | AF73: =IF($E73="n/a","n/a",IF(AF$3>$D73,$C73-SUM($L73:AE73),$C73/$E73)) -> 0 | AG73: =IF($E73="n/a","n/a",IF(AG$3>$D73,$C73-SUM($L73:AF73),$C73/$E73)) -> 0 | AH73: =IF($E73="n/a","n/a",IF(AH$3>$D73,$C73-SUM($L73:AG73),$C73/$E73)) -> 0 | AI73: =IF($E73="n/a","n/a",IF(AI$3>$D73,$C73-SUM($L73:AH73),$C73/$E73)) -> 0 | AJ73: =IF($E73="n/a","n/a",IF(AJ$3>$D73,$C73-SUM($L73:AI73),$C73/$E73)) -> 0 | AK73: =IF($E73="n/a","n/a",IF(AK$3>$D73,$C73-SUM($L73:AJ73),$C73/$E73)) -> 0 | AL73: =IF($E73="n/a","n/a",IF(AL$3>$D73,$C73-SUM($L73:AK73),$C73/$E73)) -> 0 | AM73: =IF($E73="n/a","n/a",IF(AM$3>$D73,$C73-SUM($L73:AL73),$C73/$E73)) -> 0 | AN73: =IF($E73="n/a","n/a",IF(AN$3>$D73,$C73-SUM($L73:AM73),$C73/$E73)) -> 0 | AO73: =IF($E73="n/a","n/a",IF(AO$3>$D73,$C73-SUM($L73:AN73),$C73/$E73)) -> 0 | AP73: =IF($E73="n/a","n/a",IF(AP$3>$D73,$C73-SUM($L73:AO73),$C73/$E73)) -> 0 | AQ73: =IF($E73="n/a","n/a",IF(AQ$3>$D73,$C73-SUM($L73:AP73),$C73/$E73)) -> 0 | AR73: =IF($E73="n/a","n/a",IF(AR$3>$D73,$C73-SUM($L73:AQ73),$C73/$E73)) -> 0
A74: Land | C74: 117292.3082 | D74: n/a | E74: n/a | F74: 0 | G74: 0 | H74: 0 | I74: 0 | J74: 0 | K74: 0 | L74: n/a | M74: =IF($E74="n/a","n/a",IF(M$3>$D74,$C74-SUM(L74:$L74),$C74/$E74)) -> n/a | N74: =IF($E74="n/a","n/a",IF(N$3>$D74,$C74-SUM($L74:M74),$C74/$E74)) -> n/a | O74: =IF($E74="n/a","n/a",IF(O$3>$D74,$C74-SUM($L74:N74),$C74/$E74)) -> n/a | P74: =IF($E74="n/a","n/a",IF(P$3>$D74,$C74-SUM($L74:O74),$C74/$E74)) -> n/a | Q74: =IF($E74="n/a","n/a",IF(Q$3>$D74,$C74-SUM($L74:P74),$C74/$E74)) -> n/a | R74: =IF($E74="n/a","n/a",IF(R$3>$D74,$C74-SUM($L74:Q74),$C74/$E74)) -> n/a | S74: =IF($E74="n/a","n/a",IF(S$3>$D74,$C74-SUM($L74:R74),$C74/$E74)) -> n/a | T74: =IF($E74="n/a","n/a",IF(T$3>$D74,$C74-SUM($L74:S74),$C74/$E74)) -> n/a | U74: =IF($E74="n/a","n/a",IF(U$3>$D74,$C74-SUM($L74:T74),$C74/$E74)) -> n/a | V74: =IF($E74="n/a","n/a",IF(V$3>$D74,$C74-SUM($L74:U74),$C74/$E74)) -> n/a | W74: =IF($E74="n/a","n/a",IF(W$3>$D74,$C74-SUM($L74:V74),$C74/$E74)) -> n/a | X74: =IF($E74="n/a","n/a",IF(X$3>$D74,$C74-SUM($L74:W74),$C74/$E74)) -> n/a | Y74: =IF($E74="n/a","n/a",IF(Y$3>$D74,$C74-SUM($L74:X74),$C74/$E74)) -> n/a | Z74: =IF($E74="n/a","n/a",IF(Z$3>$D74,$C74-SUM($L74:Y74),$C74/$E74)) -> n/a | AA74: =IF($E74="n/a","n/a",IF(AA$3>$D74,$C74-SUM($L74:Z74),$C74/$E74)) -> n/a | AB74: =IF($E74="n/a","n/a",IF(AB$3>$D74,$C74-SUM($L74:AA74),$C74/$E74)) -> n/a | AC74: =IF($E74="n/a","n/a",IF(AC$3>$D74,$C74-SUM($L74:AB74),$C74/$E74)) -> n/a | AD74: =IF($E74="n/a","n/a",IF(AD$3>$D74,$C74-SUM($L74:AC74),$C74/$E74)) -> n/a | AE74: =IF($E74="n/a","n/a",IF(AE$3>$D74,$C74-SUM($L74:AD74),$C74/$E74)) -> n/a | AF74: =IF($E74="n/a","n/a",IF(AF$3>$D74,$C74-SUM($L74:AE74),$C74/$E74)) -> n/a | AG74: =IF($E74="n/a","n/a",IF(AG$3>$D74,$C74-SUM($L74:AF74),$C74/$E74)) -> n/a | AH74: =IF($E74="n/a","n/a",IF(AH$3>$D74,$C74-SUM($L74:AG74),$C74/$E74)) -> n/a | AI74: =IF($E74="n/a","n/a",IF(AI$3>$D74,$C74-SUM($L74:AH74),$C74/$E74)) -> n/a | AJ74: =IF($E74="n/a","n/a",IF(AJ$3>$D74,$C74-SUM($L74:AI74),$C74/$E74)) -> n/a | AK74: =IF($E74="n/a","n/a",IF(AK$3>$D74,$C74-SUM($L74:AJ74),$C74/$E74)) -> n/a | AL74: =IF($E74="n/a","n/a",IF(AL$3>$D74,$C74-SUM($L74:AK74),$C74/$E74)) -> n/a | AM74: =IF($E74="n/a","n/a",IF(AM$3>$D74,$C74-SUM($L74:AL74),$C74/$E74)) -> n/a | AN74: =IF($E74="n/a","n/a",IF(AN$3>$D74,$C74-SUM($L74:AM74),$C74/$E74)) -> n/a | AO74: =IF($E74="n/a","n/a",IF(AO$3>$D74,$C74-SUM($L74:AN74),$C74/$E74)) -> n/a | AP74: =IF($E74="n/a","n/a",IF(AP$3>$D74,$C74-SUM($L74:AO74),$C74/$E74)) -> n/a | AQ74: =IF($E74="n/a","n/a",IF(AQ$3>$D74,$C74-SUM($L74:AP74),$C74/$E74)) -> n/a | AR74: =IF($E74="n/a","n/a",IF(AR$3>$D74,$C74-SUM($L74:AQ74),$C74/$E74)) -> n/a
A75: Easements | C75: 129151.2577 | D75: n/a | E75: n/a | F75: 0 | G75: 0 | H75: 0 | I75: 0 | J75: 0 | K75: 0 | L75: n/a | M75: =IF($E75="n/a","n/a",IF(M$3>$D75,$C75-SUM(L75:$L75),$C75/$E75)) -> n/a | N75: =IF($E75="n/a","n/a",IF(N$3>$D75,$C75-SUM($L75:M75),$C75/$E75)) -> n/a | O75: =IF($E75="n/a","n/a",IF(O$3>$D75,$C75-SUM($L75:N75),$C75/$E75)) -> n/a | P75: =IF($E75="n/a","n/a",IF(P$3>$D75,$C75-SUM($L75:O75),$C75/$E75)) -> n/a | Q75: =IF($E75="n/a","n/a",IF(Q$3>$D75,$C75-SUM($L75:P75),$C75/$E75)) -> n/a | R75: =IF($E75="n/a","n/a",IF(R$3>$D75,$C75-SUM($L75:Q75),$C75/$E75)) -> n/a | S75: =IF($E75="n/a","n/a",IF(S$3>$D75,$C75-SUM($L75:R75),$C75/$E75)) -> n/a | T75: =IF($E75="n/a","n/a",IF(T$3>$D75,$C75-SUM($L75:S75),$C75/$E75)) -> n/a | U75: =IF($E75="n/a","n/a",IF(U$3>$D75,$C75-SUM($L75:T75),$C75/$E75)) -> n/a | V75: =IF($E75="n/a","n/a",IF(V$3>$D75,$C75-SUM($L75:U75),$C75/$E75)) -> n/a | W75: =IF($E75="n/a","n/a",IF(W$3>$D75,$C75-SUM($L75:V75),$C75/$E75)) -> n/a | X75: =IF($E75="n/a","n/a",IF(X$3>$D75,$C75-SUM($L75:W75),$C75/$E75)) -> n/a | Y75: =IF($E75="n/a","n/a",IF(Y$3>$D75,$C75-SUM($L75:X75),$C75/$E75)) -> n/a | Z75: =IF($E75="n/a","n/a",IF(Z$3>$D75,$C75-SUM($L75:Y75),$C75/$E75)) -> n/a | AA75: =IF($E75="n/a","n/a",IF(AA$3>$D75,$C75-SUM($L75:Z75),$C75/$E75)) -> n/a | AB75: =IF($E75="n/a","n/a",IF(AB$3>$D75,$C75-SUM($L75:AA75),$C75/$E75)) -> n/a | AC75: =IF($E75="n/a","n/a",IF(AC$3>$D75,$C75-SUM($L75:AB75),$C75/$E75)) -> n/a | AD75: =IF($E75="n/a","n/a",IF(AD$3>$D75,$C75-SUM($L75:AC75),$C75/$E75)) -> n/a | AE75: =IF($E75="n/a","n/a",IF(AE$3>$D75,$C75-SUM($L75:AD75),$C75/$E75)) -> n/a | AF75: =IF($E75="n/a","n/a",IF(AF$3>$D75,$C75-SUM($L75:AE75),$C75/$E75)) -> n/a | AG75: =IF($E75="n/a","n/a",IF(AG$3>$D75,$C75-SUM($L75:AF75),$C75/$E75)) -> n/a | AH75: =IF($E75="n/a","n/a",IF(AH$3>$D75,$C75-SUM($L75:AG75),$C75/$E75)) -> n/a | AI75: =IF($E75="n/a","n/a",IF(AI$3>$D75,$C75-SUM($L75:AH75),$C75/$E75)) -> n/a | AJ75: =IF($E75="n/a","n/a",IF(AJ$3>$D75,$C75-SUM($L75:AI75),$C75/$E75)) -> n/a | AK75: =IF($E75="n/a","n/a",IF(AK$3>$D75,$C75-SUM($L75:AJ75),$C75/$E75)) -> n/a | AL75: =IF($E75="n/a","n/a",IF(AL$3>$D75,$C75-SUM($L75:AK75),$C75/$E75)) -> n/a | AM75: =IF($E75="n/a","n/a",IF(AM$3>$D75,$C75-SUM($L75:AL75),$C75/$E75)) -> n/a | AN75: =IF($E75="n/a","n/a",IF(AN$3>$D75,$C75-SUM($L75:AM75),$C75/$E75)) -> n/a | AO75: =IF($E75="n/a","n/a",IF(AO$3>$D75,$C75-SUM($L75:AN75),$C75/$E75)) -> n/a | AP75: =IF($E75="n/a","n/a",IF(AP$3>$D75,$C75-SUM($L75:AO75),$C75/$E75)) -> n/a | AQ75: =IF($E75="n/a","n/a",IF(AQ$3>$D75,$C75-SUM($L75:AP75),$C75/$E75)) -> n/a | AR75: =IF($E75="n/a","n/a",IF(AR$3>$D75,$C75-SUM($L75:AQ75),$C75/$E75)) -> n/a
A76: Equity Raising costs (2003-08) | C76: 0 | D76: n/a | E76: n/a | F76: 0 | G76: 0 | H76: 0 | I76: 0 | J76: 0 | K76: 0 | L76: n/a | M76: =IF($E76="n/a","n/a",IF(M$3>$D76,$C76-SUM(L76:$L76),$C76/$E76)) -> n/a | N76: =IF($E76="n/a","n/a",IF(N$3>$D76,$C76-SUM($L76:M76),$C76/$E76)) -> n/a | O76: =IF($E76="n/a","n/a",IF(O$3>$D76,$C76-SUM($L76:N76),$C76/$E76)) -> n/a | P76: =IF($E76="n/a","n/a",IF(P$3>$D76,$C76-SUM($L76:O76),$C76/$E76)) -> n/a | Q76: =IF($E76="n/a","n/a",IF(Q$3>$D76,$C76-SUM($L76:P76),$C76/$E76)) -> n/a | R76: =IF($E76="n/a","n/a",IF(R$3>$D76,$C76-SUM($L76:Q76),$C76/$E76)) -> n/a | S76: =IF($E76="n/a","n/a",IF(S$3>$D76,$C76-SUM($L76:R76),$C76/$E76)) -> n/a | T76: =IF($E76="n/a","n/a",IF(T$3>$D76,$C76-SUM($L76:S76),$C76/$E76)) -> n/a | U76: =IF($E76="n/a","n/a",IF(U$3>$D76,$C76-SUM($L76:T76),$C76/$E76)) -> n/a | V76: =IF($E76="n/a","n/a",IF(V$3>$D76,$C76-SUM($L76:U76),$C76/$E76)) -> n/a | W76: =IF($E76="n/a","n/a",IF(W$3>$D76,$C76-SUM($L76:V76),$C76/$E76)) -> n/a | X76: =IF($E76="n/a","n/a",IF(X$3>$D76,$C76-SUM($L76:W76),$C76/$E76)) -> n/a | Y76: =IF($E76="n/a","n/a",IF(Y$3>$D76,$C76-SUM($L76:X76),$C76/$E76)) -> n/a | Z76: =IF($E76="n/a","n/a",IF(Z$3>$D76,$C76-SUM($L76:Y76),$C76/$E76)) -> n/a | AA76: =IF($E76="n/a","n/a",IF(AA$3>$D76,$C76-SUM($L76:Z76),$C76/$E76)) -> n/a | AB76: =IF($E76="n/a","n/a",IF(AB$3>$D76,$C76-SUM($L76:AA76),$C76/$E76)) -> n/a | AC76: =IF($E76="n/a","n/a",IF(AC$3>$D76,$C76-SUM($L76:AB76),$C76/$E76)) -> n/a | AD76: =IF($E76="n/a","n/a",IF(AD$3>$D76,$C76-SUM($L76:AC76),$C76/$E76)) -> n/a | AE76: =IF($E76="n/a","n/a",IF(AE$3>$D76,$C76-SUM($L76:AD76),$C76/$E76)) -> n/a | AF76: =IF($E76="n/a","n/a",IF(AF$3>$D76,$C76-SUM($L76:AE76),$C76/$E76)) -> n/a | AG76: =IF($E76="n/a","n/a",IF(AG$3>$D76,$C76-SUM($L76:AF76),$C76/$E76)) -> n/a | AH76: =IF($E76="n/a","n/a",IF(AH$3>$D76,$C76-SUM($L76:AG76),$C76/$E76)) -> n/a | AI76: =IF($E76="n/a","n/a",IF(AI$3>$D76,$C76-SUM($L76:AH76),$C76/$E76)) -> n/a | AJ76: =IF($E76="n/a","n/a",IF(AJ$3>$D76,$C76-SUM($L76:AI76),$C76/$E76)) -> n/a | AK76: =IF($E76="n/a","n/a",IF(AK$3>$D76,$C76-SUM($L76:AJ76),$C76/$E76)) -> n/a | AL76: =IF($E76="n/a","n/a",IF(AL$3>$D76,$C76-SUM($L76:AK76),$C76/$E76)) -> n/a | AM76: =IF($E76="n/a","n/a",IF(AM$3>$D76,$C76-SUM($L76:AL76),$C76/$E76)) -> n/a | AN76: =IF($E76="n/a","n/a",IF(AN$3>$D76,$C76-SUM($L76:AM76),$C76/$E76)) -> n/a | AO76: =IF($E76="n/a","n/a",IF(AO$3>$D76,$C76-SUM($L76:AN76),$C76/$E76)) -> n/a | AP76: =IF($E76="n/a","n/a",IF(AP$3>$D76,$C76-SUM($L76:AO76),$C76/$E76)) -> n/a | AQ76: =IF($E76="n/a","n/a",IF(AQ$3>$D76,$C76-SUM($L76:AP76),$C76/$E76)) -> n/a | AR76: =IF($E76="n/a","n/a",IF(AR$3>$D76,$C76-SUM($L76:AQ76),$C76/$E76)) -> n/a
A77: 0 | C77: 0 | D77: n/a | E77: n/a | F77: 0 | G77: 0 | H77: 0 | I77: 0 | J77: 0 | K77: 0 | L77: n/a | M77: =IF($E77="n/a","n/a",IF(M$3>$D77,$C77-SUM(L77:$L77),$C77/$E77)) -> n/a | N77: =IF($E77="n/a","n/a",IF(N$3>$D77,$C77-SUM($L77:M77),$C77/$E77)) -> n/a | O77: =IF($E77="n/a","n/a",IF(O$3>$D77,$C77-SUM($L77:N77),$C77/$E77)) -> n/a | P77: =IF($E77="n/a","n/a",IF(P$3>$D77,$C77-SUM($L77:O77),$C77/$E77)) -> n/a | Q77: =IF($E77="n/a","n/a",IF(Q$3>$D77,$C77-SUM($L77:P77),$C77/$E77)) -> n/a | R77: =IF($E77="n/a","n/a",IF(R$3>$D77,$C77-SUM($L77:Q77),$C77/$E77)) -> n/a | S77: =IF($E77="n/a","n/a",IF(S$3>$D77,$C77-SUM($L77:R77),$C77/$E77)) -> n/a | T77: =IF($E77="n/a","n/a",IF(T$3>$D77,$C77-SUM($L77:S77),$C77/$E77)) -> n/a | U77: =IF($E77="n/a","n/a",IF(U$3>$D77,$C77-SUM($L77:T77),$C77/$E77)) -> n/a | V77: =IF($E77="n/a","n/a",IF(V$3>$D77,$C77-SUM($L77:U77),$C77/$E77)) -> n/a | W77: =IF($E77="n/a","n/a",IF(W$3>$D77,$C77-SUM($L77:V77),$C77/$E77)) -> n/a | X77: =IF($E77="n/a","n/a",IF(X$3>$D77,$C77-SUM($L77:W77),$C77/$E77)) -> n/a | Y77: =IF($E77="n/a","n/a",IF(Y$3>$D77,$C77-SUM($L77:X77),$C77/$E77)) -> n/a | Z77: =IF($E77="n/a","n/a",IF(Z$3>$D77,$C77-SUM($L77:Y77),$C77/$E77)) -> n/a | AA77: =IF($E77="n/a","n/a",IF(AA$3>$D77,$C77-SUM($L77:Z77),$C77/$E77)) -> n/a | AB77: =IF($E77="n/a","n/a",IF(AB$3>$D77,$C77-SUM($L77:AA77),$C77/$E77)) -> n/a | AC77: =IF($E77="n/a","n/a",IF(AC$3>$D77,$C77-SUM($L77:AB77),$C77/$E77)) -> n/a | AD77: =IF($E77="n/a","n/a",IF(AD$3>$D77,$C77-SUM($L77:AC77),$C77/$E77)) -> n/a | AE77: =IF($E77="n/a","n/a",IF(AE$3>$D77,$C77-SUM($L77:AD77),$C77/$E77)) -> n/a | AF77: =IF($E77="n/a","n/a",IF(AF$3>$D77,$C77-SUM($L77:AE77),$C77/$E77)) -> n/a | AG77: =IF($E77="n/a","n/a",IF(AG$3>$D77,$C77-SUM($L77:AF77),$C77/$E77)) -> n/a | AH77: =IF($E77="n/a","n/a",IF(AH$3>$D77,$C77-SUM($L77:AG77),$C77/$E77)) -> n/a | AI77: =IF($E77="n/a","n/a",IF(AI$3>$D77,$C77-SUM($L77:AH77),$C77/$E77)) -> n/a | AJ77: =IF($E77="n/a","n/a",IF(AJ$3>$D77,$C77-SUM($L77:AI77),$C77/$E77)) -> n/a | AK77: =IF($E77="n/a","n/a",IF(AK$3>$D77,$C77-SUM($L77:AJ77),$C77/$E77)) -> n/a | AL77: =IF($E77="n/a","n/a",IF(AL$3>$D77,$C77-SUM($L77:AK77),$C77/$E77)) -> n/a | AM77: =IF($E77="n/a","n/a",IF(AM$3>$D77,$C77-SUM($L77:AL77),$C77/$E77)) -> n/a | AN77: =IF($E77="n/a","n/a",IF(AN$3>$D77,$C77-SUM($L77:AM77),$C77/$E77)) -> n/a | AO77: =IF($E77="n/a","n/a",IF(AO$3>$D77,$C77-SUM($L77:AN77),$C77/$E77)) -> n/a | AP77: =IF($E77="n/a","n/a",IF(AP$3>$D77,$C77-SUM($L77:AO77),$C77/$E77)) -> n/a | AQ77: =IF($E77="n/a","n/a",IF(AQ$3>$D77,$C77-SUM($L77:AP77),$C77/$E77)) -> n/a | AR77: =IF($E77="n/a","n/a",IF(AR$3>$D77,$C77-SUM($L77:AQ77),$C77/$E77)) -> n/a
A78: Sub-total | C78: =SUM(C62:C77) -> 1919705.386 | F78: =SUM(F62:F77) -> 24522.89084 | G78: =SUM(G62:G77) -> 100293.4918 | H78: 100836.0752 | I78: 100444.7664 | J78: 98972.22266 | K78: 98486.86501 | L78: 95398.40731 | M78: 95398.40731 | N78: 94326.8923 | O78: 91112.34729 | P78: 87640.60512 | Q78: 77225.37861 | R78: 77225.37861 | S78: 77225.37861 | T78: 77225.37861 | U78: 73919.49029 | V78: 64001.82535 | W78: 64001.82535 | X78: 59463.57375 | Y78: 45848.81892 | Z78: 45848.81892 | AA78: 45848.81892 | AB78: 45848.81892 | AC78: 45848.81892 | AD78: 44723.25589 | AE78: 41346.56679 | AF78: 41346.56679 | AG78: 41346.56679 | AH78: 41346.56679 | AI78: 41346.56679 | AJ78: 41346.56679 | AK78: 41346.56679 | AL78: 41346.56679 | AM78: 31009.92509 | AN78: 0 | AO78: 0 | AP78: 0 | AQ78: 0 | AR78: 0
A80: Nominal Capex as per Reg Accounts and Forecasts
B81: Nominal Capex as per Reg Accounts | F81: Nominal | L81: Nominal | R81: Nominal
C82: Standard Life 2002-2008 | D82: Proposed Standard Life from 2008 to 2014 | E82: Proposed Standard Life from 2014 to 2020 | F82: =F2 -> 2002-03 | G82: =G2 -> 2003-04 | H82: 2004-05 | I82: 2005-06 | J82: 2006-07 | K82: 2007-08 | L82: 2008-09 | M82: 2009-10 | N82: 2010-11 | O82: 2011-12 | P82: 2012-13 | Q82: 2013-14 | R82: 2014-15 | S82: 2015-16 | T82: 2016-17 | U82: 2017-18 | V82: 2018-19 | W82: 2019-20 | X82: 2020-21 | Y82: 2021-22 | Z82: 2022-23 | AA82: 2023-24 | AB82: 2024-25 | AC82: 2025-26 | AD82: 2026-27 | AE82: 2027-28 | AF82: 2028-29 | AG82: 2029-30 | AH82: 2030-31 | AI82: 2031-32 | AJ82: 2032-33 | AK82: 2033-34 | AL82: 2034-35 | AM82: 2035-36 | AN82: 2036-37 | AO82: 2037-38 | AP82: 2038-39 | AQ82: 2039-40 | AR82: 2040-41 | AS82: 2041-42 | AT82: 2042-43 | AU82: 2043-44 | AV82: 2044-45 | AW82: 2045-46 | AX82: 2046-47 | AY82: 2047-48 | AZ82: 2048-49 | BA82: 2049-50 | BB82: 2080-51 | BC82: 2051-52 | BD82: 2052-53 | BE82: 2053-54 | BF82: 2054-55 | BG82: 2055-56 | BH82: 2056-57 | BI82: 2057-58 | BJ82: 2058-59 | BK82: 2059-60 | BL82: 2060-61 | BM82: 2061-62 | BN82: 2062-63 | BO82: 2063-64 | BP82: 2064-65 | BQ82: 2065-66 | BR82: 2066-67 | BS82: =BS2 -> 2067-68 | BT82: 2068-69 | BU82: 2069-70 | BV82: 2070-71 | BW82: 2071-72 | BX82: 2072-73 | BY82: 2073-74 | BZ82: 2074-75
A83: Secondary | C83: 25 | D83: 15 | E83: 15 | F83: 1375 | G83: 9596.315 | H83: 8783.838021 | I83: 15361.60897 | J83: 18573.87337 | K83: 18732.17622 | L83: 7114.004702 | M83: 2907.537787 | N83: 10000.28289 | O83: 11822.9275 | P83: 13477.05921 | Q83: ='RFM input'!G223*1000 -> 19725.33999 | R83: ='RFM input'!H223*1000 -> 40141.45599 | S83: ='RFM input'!I223*1000 -> 29758.07913 | T83: ='RFM input'!J223*1000 -> 23139.82108 | U83: 0 | V83: 0 | W83: 0
A84: Switchgear | C84: 45 | D84: 45 | E84: 45 | F84: 1578 | G84: 1804.175 | H84: 18664.43682 | I84: 10937.27539 | J84: 46381.29783 | K84: 47671.71476 | L84: 6185.252712 | M84: 26042.09819 | N84: 48763.04994 | O84: 32798.17655 | P84: 30047.23213 | Q84: ='RFM input'!G224*1000 -> 28297.35619 | R84: ='RFM input'!H224*1000 -> 38183.23073 | S84: ='RFM input'!I224*1000 -> 43867.9016 | T84: ='RFM input'!J224*1000 -> 52487.68424 | U84: 0 | V84: 0 | W84: 0
A85: Transformers | C85: 45 | D85: 45 | E85: 45 | F85: 6280 | G85: 2229.248 | H85: 750.0130205 | I85: 12321.245 | J85: 12921.25732 | K85: 12316.65549 | L85: 4748.242028 | M85: 6058.469815 | N85: 10742.14778 | O85: 8926.122934 | P85: 31745.21644 | Q85: ='RFM input'!G225*1000 -> 37248.64264 | R85: ='RFM input'!H225*1000 -> 10513.33174 | S85: ='RFM input'!I225*1000 -> 29323.1564 | T85: ='RFM input'!J225*1000 -> 27687.50288 | U85: 0 | V85: 0 | W85: 0
A86: Reactive | C86: 40 | D86: 40 | E86: 40 | F86: 0 | G86: 754.326 | H86: 3061.457941 | I86: 2757.695961 | J86: -1734.977182 | K86: 107.4142013 | L86: 3.050634124 | M86: 977.7792319 | N86: 46.43770652 | O86: 520.7217664 | P86: 5186.423333 | Q86: ='RFM input'!G226*1000 -> 1540.672936 | R86: ='RFM input'!H226*1000 -> 4957.9992 | S86: ='RFM input'!I226*1000 -> 3159.894805 | T86: ='RFM input'!J226*1000 -> 10702.41647 | U86: 0 | V86: 0 | W86: 0
A87: Towers and Conductor | C87: 60 | D87: 60 | E87: 60 | F87: 13456 | G87: 13288.32 | H87: 14703.02081 | I87: 6171.104389 | J87: 551.3550975 | K87: 2356.239607 | L87: 5373.240423 | M87: 18850.41313 | N87: 9042.788819 | O87: 40476.02301 | P87: 37671.50167 | Q87: ='RFM input'!G227*1000 -> 27500.37786 | R87: ='RFM input'!H227*1000 -> 24261.95444 | S87: ='RFM input'!I227*1000 -> 23469.0539 | T87: ='RFM input'!J227*1000 -> 11116.29819 | U87: 0 | V87: 0 | W87: 0
A88: Establishment | C88: 45 | D88: 45 | E88: 45 | F88: 717 | G88: 8308.468 | H88: 6592.340186 | I88: 26159.26304 | J88: 19655.68808 | K88: 14142.51263 | L88: 12221.99022 | M88: 10938.15714 | N88: 6266.951058 | O88: 6292.56967 | P88: 21123.72363 | Q88: ='RFM input'!G228*1000 -> 23048.37549 | R88: ='RFM input'!H228*1000 -> 29331.77285 | S88: ='RFM input'!I228*1000 -> 6676.504407 | T88: ='RFM input'!J228*1000 -> 14717.26493 | U88: 0 | V88: 0 | W88: 0
A89: Communications | C89: 15 | D89: 15 | E89: 15 | F89: 982 | G89: 2574.48 | H89: 5848.082373 | I89: 2732.521956 | J89: 219.1946664 | K89: 1132.815452 | L89: 326.5320399 | M89: 1996.055823 | N89: 11787.99757 | O89: 6611.412728 | P89: 5827.284812 | Q89: ='RFM input'!G229*1000 -> 8634.042373 | R89: ='RFM input'!H229*1000 -> 19623.94735 | S89: ='RFM input'!I229*1000 -> 7599.078291 | T89: ='RFM input'!J229*1000 -> 15476.91872 | U89: 0 | V89: 0 | W89: 0
A90: Inventory | C90: n/a | D90: n/a | E90: n/a | F90: 34.41848 | G90: 1578.05258 | H90: 397.57901 | I90: 1653.58787 | J90: -129.32106 | K90: 0 | L90: 0 | M90: 0 | N90: 0 | O90: 0 | P90: 0 | Q90: ='RFM input'!G230*1000 -> 822.68351 | R90: ='RFM input'!H230*1000 -> 10564.47262 | S90: ='RFM input'!I230*1000 -> 0 | T90: ='RFM input'!J230*1000 -> 0 | U90: 0 | V90: 0 | W90: 0
A91: IT | C91: 10 | D91: 5 | E91: 5 | F91: 3986.84839 | G91: 6320.201848 | H91: 4441.102703 | I91: 9631.394849 | J91: 4998.462616 | K91: 9661.577724 | L91: 2777.28824 | M91: 12100.84392 | N91: 4614.285296 | O91: 8913.162463 | P91: 8364.140915 | Q91: ='RFM input'!G231*1000 -> 14719.18098 | R91: ='RFM input'!H231*1000 -> 3832.448804 | S91: ='RFM input'!I231*1000 -> 32908.70455 | T91: ='RFM input'!J231*1000 -> 19650.72778 | U91: 0 | V91: 0 | W91: 0
A92: Vehicles | C92: 10 | D92: 7 | E92: 7 | F92: 317.85223 | G92: 1323.319177 | H92: 929.97954 | I92: 1477.10646 | J92: 960.6276425 | K92: 988.9218011 | L92: 427.2983116 | M92: 523.0224037 | N92: -10.27433917 | O92: 177.2857966 | P92: 932.5986858 | Q92: ='RFM input'!G232*1000 -> 1609.678833 | R92: ='RFM input'!H232*1000 -> 672.6457539 | S92: ='RFM input'!I232*1000 -> 1374.769087 | T92: ='RFM input'!J232*1000 -> 899.2421324 | U92: 0 | V92: 0 | W92: 0
A93: Other | C93: 10 | D93: 10 | E93: 10 | F93: 575.12257 | G93: 2067.491732 | H93: 3526.22051 | I93: 2565.120411 | J93: 187.3773122 | K93: 2240.709994 | L93: 415.2109591 | M93: 1872.058783 | N93: 4436.735279 | O93: 2184.49123 | P93: 4483.092716 | Q93: ='RFM input'!G233*1000 -> 4749.410847 | R93: ='RFM input'!H233*1000 -> 3185.604783 | S93: ='RFM input'!I233*1000 -> 2024.33701 | T93: ='RFM input'!J233*1000 -> 2604.311232 | U93: 0 | V93: 0 | W93: 0
A94: Premises | C94: 10 | D94: 10 | E94: 10 | F94: 674.17681 | G94: 477.6976628 | H94: 634.10447 | I94: 5925.201461 | J94: 106.7311489 | K94: 145.4468054 | L94: -20.06418516 | M94: 350.4006243 | N94: 82.98202603 | O94: 138.552994 | P94: 63.72652479 | Q94: ='RFM input'!G234*1000 -> 244.1075825 | R94: ='RFM input'!H234*1000 -> 444.8673704 | S94: ='RFM input'!I234*1000 -> 2719.962281 | T94: ='RFM input'!J234*1000 -> 533.4664865 | U94: 0 | V94: 0 | W94: 0
A95: Land | C95: n/a | D95: n/a | E95: n/a | K95: 0 | L95: 0 | M95: 191.692 | N95: 0 | O95: 0 | P95: 0 | Q95: ='RFM input'!G235*1000 -> 0 | R95: ='RFM input'!H235*1000 -> 0 | S95: ='RFM input'!I235*1000 -> 0 | T95: ='RFM input'!J235*1000 -> 0 | U95: 0 | V95: 0 | W95: 0
A96: Easements | C96: n/a | D96: n/a | E96: n/a | F96: 0 | G96: 57 | H96: 0 | I96: 0 | K96: 0 | L96: 0 | M96: 0 | N96: 0 | O96: 0 | P96: 0 | Q96: ='RFM input'!G236*1000 -> 0 | R96: ='RFM input'!H236*1000 -> 0 | S96: ='RFM input'!I236*1000 -> 0 | T96: ='RFM input'!J236*1000 -> 0 | U96: 0 | V96: 0 | W96: 0
A97: 0 | C97: n/a | D97: n/a | E97: n/a | R97: 0 | S97: 0 | T97: 0 | U97: 0 | V97: 0 | W97: 0
A98: 0 | C98: n/a | D98: n/a | E98: n/a | R98: 0 | S98: 0 | T98: 0 | U98: 0 | V98: 0 | W98: 0
A99: Sub-total | F99: =SUM(F83:F98) -> 29976.41848 | G99: =SUM(G83:G98) -> 50379.095 | H99: 68332.17541 | I99: 97693.12576 | J99: 102691.5668 | K99: 109496.1847 | L99: 39572.04608 | M99: 82808.52885 | N99: 105773.384 | O99: 118861.4466 | P99: 158922.0001 | Q99: 168139.8692 | R99: =SUM(R83:R98) -> 185713.7316 | S99: =SUM(S83:S98) -> 182881.4415 | T99: 179015.6541 | U99: 0 | V99: 0 | W99: 0 | X99: 0 | Y99: 0 | Z99: 0
B102: Disposals as per Reg Accounts | F102: Nominal | L102: Nominal | R102: Nominal
F103: =F2 -> 2002-03 | G103: =G2 -> 2003-04 | H103: 2004-05 | I103: 2005-06 | J103: 2006-07 | K103: 2007-08 | L103: 2008-09 | M103: 2009-10 | N103: 2010-11 | O103: 2011-12 | P103: 2012-13 | Q103: 2013-14 | R103: 2014-15 | S103: 2015-16 | T103: 2016-17 | U103: 2017-18 | V103: 2018-19 | W103: 2019-20 | X103: 2020-21 | Y103: 2021-22 | Z103: 2022-23 | AA103: 2023-24 | AB103: 2024-25 | AC103: 2025-26 | AD103: 2026-27 | AE103: 2027-28 | AF103: 2028-29 | AG103: 2029-30 | AH103: 2030-31 | AI103: 2031-32 | AJ103: 2032-33 | AK103: 2033-34 | AL103: 2034-35 | AM103: 2035-36 | AN103: 2036-37 | AO103: 2037-38 | AP103: 2038-39 | AQ103: 2039-40 | AR103: 2040-41 | AS103: 2041-42 | AT103: 2042-43 | AU103: 2043-44 | AV103: 2044-45 | AW103: 2045-46 | AX103: 2046-47 | AY103: 2047-48 | AZ103: 2048-49 | BA103: 2049-50 | BB103: 2080-51 | BC103: 2051-52 | BD103: 2052-53 | BE103: 2053-54 | BF103: 2054-55 | BG103: 2055-56 | BH103: 2056-57 | BI103: 2057-58 | BJ103: 2058-59 | BK103: 2059-60 | BL103: 2060-61 | BM103: 2061-62 | BN103: 2062-63 | BO103: 2063-64 | BP103: 2064-65 | BQ103: 2065-66 | BR103: 2066-67 | BS103: =BS2 -> 2067-68 | BT103: 2068-69 | BU103: 2069-70 | BV103: 2070-71 | BW103: 2071-72 | BX103: 2072-73 | BY103: 2073-74 | BZ103: 2074-75
A104: Secondary | F104: 0 | G104: 0 | H104: 0 | I104: 0 | J104: 0 | K104: 0 | L104: 0 | M104: 0 | N104: 0 | O104: 0 | P104: 0 | Q104: ='RFM input'!G277*1000 -> 0 | R104: ='RFM input'!H277*1000 -> 0 | S104: ='RFM input'!I277*1000 -> 0 | T104: ='RFM input'!J277*1000 -> 0 | U104: 0 | V104: 0 | W104: 0
A105: Switchgear | F105: 0 | G105: 0 | H105: 0 | I105: 0 | J105: 0 | K105: 0 | L105: 0 | M105: 0 | N105: 0 | O105: 0 | P105: 0 | Q105: ='RFM input'!G278*1000 -> 0 | R105: ='RFM input'!H278*1000 -> 0 | S105: ='RFM input'!I278*1000 -> 0 | T105: ='RFM input'!J278*1000 -> 0 | U105: 0 | V105: 0 | W105: 0
A106: Transformers | F106: 0 | G106: 0 | H106: 0 | I106: 0 | J106: 0 | K106: 0 | L106: 0 | M106: 0 | N106: 0 | O106: 0 | P106: 0 | Q106: ='RFM input'!G279*1000 -> 0 | R106: ='RFM input'!H279*1000 -> 0 | S106: ='RFM input'!I279*1000 -> 0 | T106: ='RFM input'!J279*1000 -> 0 | U106: 0 | V106: 0 | W106: 0
A107: Reactive | F107: 0 | G107: 0 | H107: 0 | I107: 0 | J107: 0 | K107: 0 | L107: 0 | M107: 0 | N107: 0 | O107: 0 | P107: 0 | Q107: ='RFM input'!G280*1000 -> 0 | R107: ='RFM input'!H280*1000 -> 0 | S107: ='RFM input'!I280*1000 -> 0 | T107: ='RFM input'!J280*1000 -> 0 | U107: 0 | V107: 0 | W107: 0
A108: Towers and Conductor | F108: 0 | G108: 0 | H108: 0 | I108: 0 | J108: 0 | K108: 0 | L108: 0 | M108: 0 | N108: 0 | O108: 0 | P108: 0 | Q108: ='RFM input'!G281*1000 -> 0 | R108: ='RFM input'!H281*1000 -> 0 | S108: ='RFM input'!I281*1000 -> 0 | T108: ='RFM input'!J281*1000 -> 0 | U108: 0 | V108: 0 | W108: 0
A109: Establishment | F109: 0 | G109: 0 | H109: 0 | I109: 0 | J109: 0 | K109: 0 | L109: 0 | M109: 0 | N109: 0 | O109: 0 | P109: 0 | Q109: ='RFM input'!G282*1000 -> 0 | R109: ='RFM input'!H282*1000 -> 0 | S109: ='RFM input'!I282*1000 -> 0 | T109: ='RFM input'!J282*1000 -> 0 | U109: 0 | V109: 0 | W109: 0
A110: Communications | F110: 0 | G110: 0 | H110: 0 | I110: 0 | J110: 0 | K110: 0 | L110: 0 | M110: 0 | N110: 0 | O110: 0 | P110: 0 | Q110: ='RFM input'!G283*1000 -> 0 | R110: ='RFM input'!H283*1000 -> 0 | S110: ='RFM input'!I283*1000 -> 0 | T110: ='RFM input'!J283*1000 -> 0 | U110: 0 | V110: 0 | W110: 0
A111: Inventory | F111: 0 | G111: 0 | H111: 0 | I111: 0 | J111: 0 | K111: 0 | L111: 0 | M111: 0 | N111: 0 | O111: 0 | P111: 0 | Q111: ='RFM input'!G284*1000 -> 0 | R111: ='RFM input'!H284*1000 -> 0 | S111: ='RFM input'!I284*1000 -> 0 | T111: ='RFM input'!J284*1000 -> 0 | U111: 0 | V111: 0 | W111: 0
A112: IT | F112: 0 | G112: 0 | H112: 0 | I112: 0 | J112: 0 | K112: -51.8 | L112: -194.383 | M112: 0 | N112: -0.754 | O112: 0 | P112: 0 | Q112: ='RFM input'!G285*1000 -> 0 | R112: ='RFM input'!H285*1000 -> 0 | S112: ='RFM input'!I285*1000 -> 0 | T112: ='RFM input'!J285*1000 -> 0 | U112: 0 | V112: 0 | W112: 0
A113: Vehicles | F113: -656 | G113: -926 | H113: -542 | I113: -791 | J113: -196.64683 | K113: -2.22 | L113: -476.9528951 | M113: -31.29033188 | N113: -141.208 | O113: 0 | P113: 0 | Q113: ='RFM input'!G286*1000 -> 0 | R113: ='RFM input'!H286*1000 -> 0 | S113: ='RFM input'!I286*1000 -> 0 | T113: ='RFM input'!J286*1000 -> 0 | U113: 0 | V113: 0 | W113: 0
A114: Other | F114: 0 | G114: 0 | H114: 0 | I114: 0 | J114: 0 | K114: -17.02 | L114: -11.65523842 | M114: 0 | N114: -8.167 | O114: 0 | P114: 0 | Q114: ='RFM input'!G287*1000 -> 0 | R114: ='RFM input'!H287*1000 -> 0 | S114: ='RFM input'!I287*1000 -> 0 | T114: ='RFM input'!J287*1000 -> 0 | U114: 0 | V114: 0 | W114: 0
A115: Premises | F115: 0 | G115: 0 | H115: 0 | I115: 0 | J115: 0 | K115: -2.96 | L115: 0 | M115: 0 | N115: 0 | O115: 0 | P115: 0 | Q115: ='RFM input'!G288*1000 -> 0 | R115: ='RFM input'!H288*1000 -> 0 | S115: ='RFM input'!I288*1000 -> 0 | T115: ='RFM input'!J288*1000 -> 0 | U115: 0 | V115: 0 | W115: 0
A116: Land | F116: -61 | G116: 0 | H116: -1522 | I116: -786 | J116: 0 | K116: 0 | L116: 0 | M116: 0 | N116: -474 | O116: -968 | P116: -2110.271713 | Q116: ='RFM input'!G289*1000 -> 0 | R116: ='RFM input'!H289*1000 -> 0 | S116: ='RFM input'!I289*1000 -> 0 | T116: ='RFM input'!J289*1000 -> 0 | U116: 0 | V116: 0 | W116: 0
A117: Easements | K117: 0 | L117: 0 | M117: 0 | N117: 0 | O117: 0 | P117: 0 | Q117: ='RFM input'!G290*1000 -> 0 | R117: ='RFM input'!H290*1000 -> 0 | S117: ='RFM input'!I290*1000 -> 0 | T117: ='RFM input'!J290*1000 -> 0 | U117: 0 | V117: 0 | W117: 0
A118: 0 | U118: 0 | V118: 0 | W118: 0
A119: 0 | U119: 0 | V119: 0 | W119: 0
A120: Sub-total | F120: =SUM(F104:F119) -> -717 | G120: =SUM(G104:G119) -> -926 | H120: -2064 | I120: -1577 | J120: -196.64683 | K120: -74 | L120: -682.9911335 | M120: -31.29033188 | N120: -624.129 | O120: -968 | P120: -2110.271713 | Q120: 0 | R120: =SUM(R104:R119) -> 0 | S120: =SUM(S104:S119) -> 0 | T120: 0 | U120: 0 | V120: 0 | W120: 0 | X120: 0 | Y120: 0 | Z120: 0
B123: Real 2013-14 NET Capex including idc | R123: Real 2013-14
C124: Standard Life 2002-2008 | D124: Proposed Standard Life from 2008 to 2014 | E124: Proposed Standard Life from 2014 to 2020 | F124: =F2 -> 2002-03 | G124: =G2 -> 2003-04 | H124: 2004-05 | I124: 2005-06 | J124: 2006-07 | K124: 2007-08 | L124: 2008-09 | M124: 2009-10 | N124: 2010-11 | O124: 2011-12 | P124: 2012-13 | Q124: 2013-14 | R124: 2014-15 | S124: 2015-16 | T124: 2016-17 | U124: 2017-18 | V124: 2018-19 | W124: 2019-20 | X124: 2020-21 | Y124: 2021-22 | Z124: 2022-23 | AA124: 2023-24 | AB124: 2024-25 | AC124: 2025-26 | AD124: 2026-27 | AE124: 2027-28 | AF124: 2028-29 | AG124: 2029-30 | AH124: 2030-31 | AI124: 2031-32 | AJ124: 2032-33 | AK124: 2033-34 | AL124: 2034-35 | AM124: 2035-36 | AN124: 2036-37 | AO124: 2037-38 | AP124: 2038-39 | AQ124: 2039-40 | AR124: 2040-41 | AS124: 2041-42 | AT124: 2042-43 | AU124: 2043-44 | AV124: 2044-45 | AW124: 2045-46 | AX124: 2046-47 | AY124: 2047-48 | AZ124: 2048-49 | BA124: 2049-50 | BB124: 2080-51 | BC124: 2051-52 | BD124: 2052-53 | BE124: 2053-54 | BF124: 2054-55 | BG124: 2055-56 | BH124: 2056-57 | BI124: 2057-58 | BJ124: 2058-59 | BK124: 2059-60 | BL124: 2060-61 | BM124: 2061-62 | BN124: 2062-63 | BO124: 2063-64 | BP124: 2064-65 | BQ124: 2065-66 | BR124: 2066-67 | BS124: =BS2 -> 2067-68 | BT124: 2068-69 | BU124: 2069-70 | BV124: 2070-71 | BW124: 2071-72 | BX124: 2072-73 | BY124: 2073-74 | BZ124: 2074-75
A125: =A40 -> Secondary | C125: 25 | D125: 15 | E125: 15 | F125: =(F104+F83)*E$34*E$18 -> 1881.030245 | G125: =(G104+G83)*F$34*F$18 -> 13178.20357 | H125: 11751.95627 | I125: 20055.37771 | J125: 23612.84073 | K125: 23081.57107 | L125: 8581.281401 | M125: 3356.750302 | N125: 11337.13467 | O125: 13085.28912 | P125: 14403.84577 | Q125: 20681.59044 | R125: 40752.33257 | S125: 29550.66919 | T125: 22455.58402 | U125: 0 | V125: 0 | W125: 0
A126: =A41 -> Switchgear | C126: 45 | D126: 45 | E126: 45 | F126: =(F105+F84)*E$34*E$18 -> 2158.73871 | G126: 2477.59535 | H126: 24971.2762 | I126: 14279.18062 | J126: 58964.23309 | K126: 58740.53606 | L126: 7460.972586 | M126: 30065.58379 | N126: 55281.76256 | O126: 36300.11458 | P126: 32113.51162 | Q126: 29669.1632 | R126: 38764.30685 | S126: 43562.14804 | T126: 50935.64033 | U126: 0 | V126: 0 | W126: 0
A127: Transformers | C127: 45 | D127: 45 | E127: 45 | F127: 8591.178137 | G127: 3061.329681 | H127: 1003.447491 | I127: 16086.02476 | J127: 16426.70783 | K127: 15176.44057 | L127: 5727.575775 | M127: 6994.49908 | N127: 12178.17309 | O127: 9879.185961 | P127: 33928.26244 | Q127: 39054.39257 | R127: 10673.32465 | S127: 29118.77782 | T127: 26868.79234 | U127: 0 | V127: 0 | W127: 0
A128: Reactive | C128: 40 | D128: 40 | E128: 40 | F128: 0 | G128: 1035.88321 | H128: 4095.945276 | I128: 3600.315189 | J128: -2205.664864 | K128: 132.3545376 | L128: 3.679833085 | M128: 1128.845426 | N128: 52.64556398 | O128: 576.3204476 | P128: 5543.081814 | Q128: 1615.362102 | R128: 5033.450514 | S128: 3137.87075 | T128: 10385.94946 | U128: 0 | V128: 0 | W128: 0
A129: Towers and Conductor | C129: 60 | D129: 60 | E129: 60 | F129: 18408.10398 | G129: 18248.27405 | H129: 19671.27095 | I129: 8056.697034 | J129: 700.9340403 | K129: 2903.331217 | L129: 6481.481252 | M129: 21762.78851 | N129: 10251.64146 | O129: 44797.74267 | P129: 40262.08476 | Q129: 28833.54873 | R129: 24631.17522 | S129: 23305.47766 | T129: 10787.59284 | U129: 0 | V129: 0 | W129: 0
A130: Establishment | C130: 45 | D130: 45 | E130: 45 | F130: 980.8717714 | G130: 11409.65908 | H130: 8819.936502 | I130: 34152.27545 | J130: 24988.14453 | K130: 17426.24064 | L130: 14742.79843 | M130: 12628.09461 | N130: 7104.725828 | O130: 6964.442055 | P130: 22576.35383 | Q130: 24165.72096 | R130: 29778.14662 | S130: 6629.97004 | T130: 14282.08015 | U130: 0 | V130: 0 | W130: 0
A131: Communications | C131: 15 | D131: 15 | E131: 15 | F131: 1343.3976 | G131: 3535.421828 | H131: 7824.188942 | I131: 3567.44922 | J131: 278.6607103 | K131: 1395.84211 | L131: 393.8798803 | M131: 2304.445024 | N131: 13363.83355 | O131: 7317.328731 | P131: 6228.013872 | Q131: 9052.60585 | R131: 19922.58649 | S131: 7546.113705 | T131: 15019.27122 | U131: 0 | V131: 0 | W131: 0
A132: Inventory | C132: n/a | D132: n/a | E132: n/a | F132: 47.08523772 | G132: 2167.071228 | H132: 531.9236453 | I132: 2158.844778 | J132: -164.4049969 | K132: 0 | L132: 0 | M132: 0 | N132: 0 | O132: 0 | P132: 0 | Q132: 862.5657872 | R132: 10725.24379 | S132: 0 | T132: 0 | U132: 0 | V132: 0 | W132: 0
A133: IT | C133: 10 | D133: 5 | E133: 5 | F133: 5454.096294 | G133: 8679.259333 | H133: 5941.78133 | I133: 12574.2858 | J133: 6354.512025 | K133: 11841.05707 | L133: 3115.634248 | M133: 13970.41568 | N133: 5230.274603 | O133: 9864.84167 | P133: 8939.323773 | Q133: 15432.74148 | R133: 3890.771383 | S133: 32679.33516 | T133: 19069.66209 | U133: 0 | V133: 0 | W133: 0
A134: Vehicles | C134: 10 | D134: 7 | E134: 7 | F134: -462.5935874 | G134: 545.6212096 | H134: 519.0804495 | I134: 895.7475895 | J134: 971.2436867 | K134: 1215.802558 | L134: -59.89593366 | M134: 567.7043261 | N134: -171.7327098 | O134: 196.2150158 | P134: 996.7313663 | Q134: 1687.713286 | R134: 682.8821425 | S134: 1365.187125 | T134: 872.6518323 | U134: 0 | V134: 0 | W134: 0
A135: Other | C135: 10 | D135: 10 | E135: 10 | F135: 786.7803264 | G135: 2839.196808 | H135: 4717.754259 | I135: 3348.897815 | J135: 238.2115212 | K135: 2740.005116 | L135: 486.7898385 | M135: 2161.290529 | N135: 5020.585471 | O135: 2417.734469 | P135: 4791.384758 | Q135: 4979.65409 | R135: 3234.083627 | S135: 2010.227645 | T135: 2527.302588 | U135: 0 | V135: 0 | W135: 0
A136: Premises | C136: 10 | D136: 10 | E136: 10 | F136: 922.2887055 | G136: 656.001501 | H136: 848.3726573 | I136: 7735.658 | J136: 135.6865943 | K136: 175.5705951 | L136: -24.20246066 | M136: 404.5372708 | N136: 94.07517916 | O136: 153.3466213 | P136: 68.10885228 | Q136: 255.9414969 | R136: 451.6374054 | S136: 2701.004498 | T136: 517.6920544 | U136: 0 | V136: 0 | W136: 0
A137: Land | C137: n/a | D137: n/a | E137: n/a | F137: -83.44934178 | G137: 0 | H137: -2036.294089 | I137: -1026.16379 | J137: 0 | K137: 0 | L137: 0 | M137: 221.3082773 | N137: -537.364982 | O137: -1071.355624 | P137: -2255.390276 | Q137: 0 | R137: 0 | S137: 0 | T137: 0 | U137: 0 | V137: 0 | W137: 0
A138: Easements | C138: n/a | D138: n/a | E138: n/a | F138: 0 | G138: 78.2756301 | H138: 0 | I138: 0 | J138: 0 | K138: 0 | L138: 0 | M138: 0 | N138: 0 | O138: 0 | P138: 0 | Q138: 0 | R138: 0 | S138: 0 | T138: 0 | U138: 0 | V138: 0 | W138: 0
A139: Equity Raising costs (2003-08) | C139: 27.57070758 | D139: =C139 -> 27.57070758 | E139: n/a | F139: 0 | G139: 0 | H139: 0 | I139: 0 | J139: 0 | K139: 0 | L139: 0 | M139: 0 | N139: 0 | O139: 0 | P139: 0 | Q139: 53400 | R139: 0 | S139: 0 | T139: 0 | U139: 0 | V139: 0 | W139: 0
A140: 0 | C140: n/a | D140: n/a | E140: n/a | F140: 0 | G140: 0 | H140: 0 | I140: 0 | J140: 0 | K140: 0 | L140: 0 | M140: 0 | N140: 0 | O140: 0 | P140: 0 | Q140: =(Q119+Q98)*P$34*P$18 -> 0 | R140: 0 | S140: 0 | T140: 0 | U140: 0 | V140: 0 | W140: 0
A141: Sub-total | F141: =SUM(F125:F140) -> 40027.52808 | G141: =SUM(G125:G140) -> 67911.79248 | H141: 88660.63989 | I141: 125484.5902 | J141: 130301.1049 | K141: 134828.7515 | L141: 46909.99485 | M141: 95566.26283 | N141: 119205.7543 | O141: 130481.2057 | P141: 167595.3126 | Q141: 229691 | R141: =SUM(R125:R140) -> 188539.9413 | S141: =SUM(S125:S140) -> 181606.7816 | T141: 173722.2189 | U141: 0 | V141: 0 | W141: 0 | X141: 0 | Y141: 0 | Z141: 0
A143: Depreciation for Group 3 assets based on Opening RAB as at 1/4/08
B144: Group 3 | L144: Depreciation for Group 3 assets based on Opening RAB as at 1/4/08 | R144: Real 2013-14
C145: OAV 1/4/08 | D145: OAV 1/4/08 in 2013-14 | E145: Group 3 RL as at 01/04/2008 | F145: =F2 -> 2002-03 | G145: 2003-04 | H145: 2004-05 | I145: 2005-06 | J145: 2006-07 | K145: 2007-08 | L145: 2008-09 | M145: 2009-10 | N145: 2010-11 | O145: 2011-12 | P145: 2012-13 | Q145: 2013-14 | R145: 2014-15 | S145: 2015-16 | T145: 2016-17 | U145: 2017-18 | V145: 2018-19 | W145: 2019-20 | X145: 2020-21 | Y145: 2021-22 | Z145: 2022-23 | AA145: 2023-24 | AB145: 2024-25 | AC145: 2025-26 | AD145: 2026-27 | AE145: 2027-28 | AF145: 2028-29 | AG145: 2029-30 | AH145: 2030-31 | AI145: 2031-32 | AJ145: 2032-33 | AK145: 2033-34 | AL145: 2034-35 | AM145: 2035-36 | AN145: 2036-37 | AO145: 2037-38 | AP145: 2038-39 | AQ145: 2039-40 | AR145: 2040-41 | AS145: 2041-42 | AT145: 2042-43 | AU145: 2043-44 | AV145: 2044-45 | AW145: 2045-46 | AX145: 2046-47 | AY145: 2047-48 | AZ145: 2048-49 | BA145: 2049-50 | BB145: 2080-51 | BC145: 2051-52 | BD145: 2052-53 | BE145: 2053-54 | BF145: 2054-55 | BG145: 2055-56 | BH145: 2056-57 | BI145: 2057-58 | BJ145: 2058-59 | BK145: 2059-60 | BL145: 2060-61 | BM145: 2061-62 | BN145: 2062-63 | BO145: 2063-64 | BP145: 2064-65 | BQ145: 2065-66 | BR145: =BR2 -> 2066-67 | BS145: 2067-68 | BT145: 2068-69 | BU145: 2069-70 | BV145: 2070-71 | BW145: 2071-72 | BX145: 2072-73 | BY145: 2073-74 | BZ145: 2074-75
A146: =A40 -> Secondary | C146: 17805.84034 | D146: =C146*$J$18 -> 20995.39988 | E146: 11.51 | L146: =IF($E146="n/a","n/a",IF(L$3-6>$E146,$D146-SUM($F146:K146),$D146/$E146)) -> 1824.100772 | M146: =IF($E146="n/a","n/a",IF(M$3-6>$E146,$D146-SUM($F146:L146),$D146/$E146)) -> 1824.100772 | N146: =IF($E146="n/a","n/a",IF(N$3-6>$E146,$D146-SUM($F146:M146),$D146/$E146)) -> 1824.100772 | O146: =IF($E146="n/a","n/a",IF(O$3-6>$E146,$D146-SUM($F146:N146),$D146/$E146)) -> 1824.100772 | P146: =IF($E146="n/a","n/a",IF(P$3-6>$E146,$D146-SUM($F146:O146),$D146/$E146)) -> 1824.100772 | Q146: =IF($E146="n/a","n/a",IF(Q$3-6>$E146,$D146-SUM($F146:P146),$D146/$E146)) -> 1824.100772 | R146: =IF($E146="n/a","n/a",IF(R$3-6>$E146,$D146-SUM($F146:Q146),$D146/$E146)) -> 1824.100772 | S146: =IF($E146="n/a","n/a",IF(S$3-6>$E146,$D146-SUM($F146:R146),$D146/$E146)) -> 1824.100772 | T146: =IF($E146="n/a","n/a",IF(T$3-6>$E146,$D146-SUM($F146:S146),$D146/$E146)) -> 1824.100772 | U146: =IF($E146="n/a","n/a",IF(U$3-6>$E146,$D146-SUM($F146:T146),$D146/$E146)) -> 1824.100772 | V146: =IF($E146="n/a","n/a",IF(V$3-6>$E146,$D146-SUM($F146:U146),$D146/$E146)) -> 1824.100772 | W146: =IF($E146="n/a","n/a",IF(W$3-6>$E146,$D146-SUM($F146:V146),$D146/$E146)) -> 930.2913937 | X146: =IF($E146="n/a","n/a",IF(X$3-6>$E146,$D146-SUM($F146:W146),$D146/$E146)) -> 0 | Y146: =IF($E146="n/a","n/a",IF(Y$3-6>$E146,$D146-SUM($F146:X146),$D146/$E146)) -> 0 | Z146: =IF($E146="n/a","n/a",IF(Z$3-6>$E146,$D146-SUM($F146:Y146),$D146/$E146)) -> 0 | AA146: =IF($E146="n/a","n/a",IF(AA$3-6>$E146,$D146-SUM($F146:Z146),$D146/$E146)) -> 0 | AB146: =IF($E146="n/a","n/a",IF(AB$3-6>$E146,$D146-SUM($F146:AA146),$D146/$E146)) -> 0 | AC146: =IF($E146="n/a","n/a",IF(AC$3-6>$E146,$D146-SUM($F146:AB146),$D146/$E146)) -> 0 | AD146: =IF($E146="n/a","n/a",IF(AD$3-6>$E146,$D146-SUM($F146:AC146),$D146/$E146)) -> 0 | AE146: =IF($E146="n/a","n/a",IF(AE$3-6>$E146,$D146-SUM($F146:AD146),$D146/$E146)) -> 0 | AF146: =IF($E146="n/a","n/a",IF(AF$3-6>$E146,$D146-SUM($F146:AE146),$D146/$E146)) -> 0 | AG146: =IF($E146="n/a","n/a",IF(AG$3-6>$E146,$D146-SUM($F146:AF146),$D146/$E146)) -> 0 | AH146: =IF($E146="n/a","n/a",IF(AH$3-6>$E146,$D146-SUM($F146:AG146),$D146/$E146)) -> 0 | AI146: =IF($E146="n/a","n/a",IF(AI$3-6>$E146,$D146-SUM($F146:AH146),$D146/$E146)) -> 0 | AJ146: =IF($E146="n/a","n/a",IF(AJ$3-6>$E146,$D146-SUM($F146:AI146),$D146/$E146)) -> 0 | AK146: =IF($E146="n/a","n/a",IF(AK$3-6>$E146,$D146-SUM($F146:AJ146),$D146/$E146)) -> 0 | AL146: =IF($E146="n/a","n/a",IF(AL$3-6>$E146,$D146-SUM($F146:AK146),$D146/$E146)) -> 0 | AM146: =IF($E146="n/a","n/a",IF(AM$3-6>$E146,$D146-SUM($F146:AL146),$D146/$E146)) -> 0 | AN146: =IF($E146="n/a","n/a",IF(AN$3-6>$E146,$D146-SUM($F146:AM146),$D146/$E146)) -> 0 | AO146: =IF($E146="n/a","n/a",IF(AO$3-6>$E146,$D146-SUM($F146:AN146),$D146/$E146)) -> 0 | AP146: =IF($E146="n/a","n/a",IF(AP$3-6>$E146,$D146-SUM($F146:AO146),$D146/$E146)) -> 0 | AQ146: =IF($E146="n/a","n/a",IF(AQ$3-6>$E146,$D146-SUM($F146:AP146),$D146/$E146)) -> 0 | AR146: =IF($E146="n/a","n/a",IF(AR$3-6>$E146,$D146-SUM($F146:AQ146),$D146/$E146)) -> 0 | AS146: =IF($E146="n/a","n/a",IF(AS$3-6>$E146,$D146-SUM($F146:AR146),$D146/$E146)) -> 0 | AT146: =IF($E146="n/a","n/a",IF(AT$3-6>$E146,$D146-SUM($F146:AS146),$D146/$E146)) -> 0 | AU146: =IF($E146="n/a","n/a",IF(AU$3-6>$E146,$D146-SUM($F146:AT146),$D146/$E146)) -> 0 | AV146: =IF($E146="n/a","n/a",IF(AV$3-6>$E146,$D146-SUM($F146:AU146),$D146/$E146)) -> 0 | AW146: =IF($E146="n/a","n/a",IF(AW$3-6>$E146,$D146-SUM($F146:AV146),$D146/$E146)) -> 0 | AX146: =IF($E146="n/a","n/a",IF(AX$3-6>$E146,$D146-SUM($F146:AW146),$D146/$E146)) -> 0 | AY146: =IF($E146="n/a","n/a",IF(AY$3-6>$E146,$D146-SUM($F146:AX146),$D146/$E146)) -> 0 | AZ146: =IF($E146="n/a","n/a",IF(AZ$3-6>$E146,$D146-SUM($F146:AY146),$D146/$E146)) -> 0 | BA146: =IF($E146="n/a","n/a",IF(BA$3-6>$E146,$D146-SUM($F146:AZ146),$D146/$E146)) -> 0 | BB146: =IF($E146="n/a","n/a",IF(BB$3-6>$E146,$D146-SUM($F146:BA146),$D146/$E146)) -> 0 | BC146: =IF($E146="n/a","n/a",IF(BC$3-6>$E146,$D146-SUM($F146:BB146),$D146/$E146)) -> 0 | BD146: =IF($E146="n/a","n/a",IF(BD$3-6>$E146,$D146-SUM($F146:BC146),$D146/$E146)) -> 0 | BE146: =IF($E146="n/a","n/a",IF(BE$3-6>$E146,$D146-SUM($F146:BD146),$D146/$E146)) -> 0 | BF146: =IF($E146="n/a","n/a",IF(BF$3-6>$E146,$D146-SUM($F146:BE146),$D146/$E146)) -> 0 | BG146: =IF($E146="n/a","n/a",IF(BG$3-6>$E146,$D146-SUM($F146:BF146),$D146/$E146)) -> 0 | BH146: =IF($E146="n/a","n/a",IF(BH$3-6>$E146,$D146-SUM($F146:BG146),$D146/$E146)) -> 0 | BI146: =IF($E146="n/a","n/a",IF(BI$3-6>$E146,$D146-SUM($F146:BH146),$D146/$E146)) -> 0 | BJ146: =IF($E146="n/a","n/a",IF(BJ$3-6>$E146,$D146-SUM($F146:BI146),$D146/$E146)) -> 0 | BK146: =IF($E146="n/a","n/a",IF(BK$3-6>$E146,$D146-SUM($F146:BJ146),$D146/$E146)) -> 0 | BL146: =IF($E146="n/a","n/a",IF(BL$3-6>$E146,$D146-SUM($F146:BK146),$D146/$E146)) -> 0 | BM146: =IF($E146="n/a","n/a",IF(BM$3-6>$E146,$D146-SUM($F146:BL146),$D146/$E146)) -> 0 | BN146: =IF($E146="n/a","n/a",IF(BN$3-6>$E146,$D146-SUM($F146:BM146),$D146/$E146)) -> 0 | BO146: =IF($E146="n/a","n/a",IF(BO$3-6>$E146,$D146-SUM($F146:BN146),$D146/$E146)) -> 0 | BP146: =IF($E146="n/a","n/a",IF(BP$3-6>$E146,$D146-SUM($F146:BO146),$D146/$E146)) -> 0 | BQ146: =IF($E146="n/a","n/a",IF(BQ$3-6>$E146,$D146-SUM($F146:BP146),$D146/$E146)) -> 0 | BR146: =IF($E146="n/a","n/a",IF(BR$3-6>$E146,$D146-SUM($F146:BQ146),$D146/$E146)) -> 0 | BS146: =IF($E146="n/a","n/a",IF(BS$3-6>$E146,$D146-SUM($F146:BR146),$D146/$E146)) -> 0 | BT146: =IF($E146="n/a","n/a",IF(BT$3-6>$E146,$D146-SUM($F146:BS146),$D146/$E146)) -> 0 | BU146: =IF($E146="n/a","n/a",IF(BU$3-6>$E146,$D146-SUM($F146:BT146),$D146/$E146)) -> 0 | BV146: =IF($E146="n/a","n/a",IF(BV$3-6>$E146,$D146-SUM($F146:BU146),$D146/$E146)) -> 0 | BW146: =IF($E146="n/a","n/a",IF(BW$3-6>$E146,$D146-SUM($F146:BV146),$D146/$E146)) -> 0 | BX146: =IF($E146="n/a","n/a",IF(BX$3-6>$E146,$D146-SUM($F146:BW146),$D146/$E146)) -> 0 | BY146: =IF($E146="n/a","n/a",IF(BY$3-6>$E146,$D146-SUM($F146:BX146),$D146/$E146)) -> 0 | BZ146: =IF($E146="n/a","n/a",IF(BZ$3-6>$E146,$D146-SUM($F146:BY146),$D146/$E146)) -> 0
A147: Switchgear | C147: 59496.41665 | D147: =C147*$J$18 -> 70154.00763 | E147: 42.4 | L147: =IF($E147="n/a","n/a",IF(L$3-6>$E147,$D147-SUM($F147:K147),$D147/$E147)) -> 1654.575652 | M147: =IF($E147="n/a","n/a",IF(M$3-6>$E147,$D147-SUM($F147:L147),$D147/$E147)) -> 1654.575652 | N147: =IF($E147="n/a","n/a",IF(N$3-6>$E147,$D147-SUM($F147:M147),$D147/$E147)) -> 1654.575652 | O147: =IF($E147="n/a","n/a",IF(O$3-6>$E147,$D147-SUM($F147:N147),$D147/$E147)) -> 1654.575652 | P147: =IF($E147="n/a","n/a",IF(P$3-6>$E147,$D147-SUM($F147:O147),$D147/$E147)) -> 1654.575652 | Q147: =IF($E147="n/a","n/a",IF(Q$3-6>$E147,$D147-SUM($F147:P147),$D147/$E147)) -> 1654.575652 | R147: =IF($E147="n/a","n/a",IF(R$3-6>$E147,$D147-SUM($F147:Q147),$D147/$E147)) -> 1654.575652 | S147: =IF($E147="n/a","n/a",IF(S$3-6>$E147,$D147-SUM($F147:R147),$D147/$E147)) -> 1654.575652 | T147: =IF($E147="n/a","n/a",IF(T$3-6>$E147,$D147-SUM($F147:S147),$D147/$E147)) -> 1654.575652 | U147: =IF($E147="n/a","n/a",IF(U$3-6>$E147,$D147-SUM($F147:T147),$D147/$E147)) -> 1654.575652 | V147: =IF($E147="n/a","n/a",IF(V$3-6>$E147,$D147-SUM($F147:U147),$D147/$E147)) -> 1654.575652 | W147: =IF($E147="n/a","n/a",IF(W$3-6>$E147,$D147-SUM($F147:V147),$D147/$E147)) -> 1654.575652 | X147: =IF($E147="n/a","n/a",IF(X$3-6>$E147,$D147-SUM($F147:W147),$D147/$E147)) -> 1654.575652 | Y147: =IF($E147="n/a","n/a",IF(Y$3-6>$E147,$D147-SUM($F147:X147),$D147/$E147)) -> 1654.575652 | Z147: =IF($E147="n/a","n/a",IF(Z$3-6>$E147,$D147-SUM($F147:Y147),$D147/$E147)) -> 1654.575652 | AA147: =IF($E147="n/a","n/a",IF(AA$3-6>$E147,$D147-SUM($F147:Z147),$D147/$E147)) -> 1654.575652 | AB147: =IF($E147="n/a","n/a",IF(AB$3-6>$E147,$D147-SUM($F147:AA147),$D147/$E147)) -> 1654.575652 | AC147: =IF($E147="n/a","n/a",IF(AC$3-6>$E147,$D147-SUM($F147:AB147),$D147/$E147)) -> 1654.575652 | AD147: =IF($E147="n/a","n/a",IF(AD$3-6>$E147,$D147-SUM($F147:AC147),$D147/$E147)) -> 1654.575652 | AE147: =IF($E147="n/a","n/a",IF(AE$3-6>$E147,$D147-SUM($F147:AD147),$D147/$E147)) -> 1654.575652 | AF147: =IF($E147="n/a","n/a",IF(AF$3-6>$E147,$D147-SUM($F147:AE147),$D147/$E147)) -> 1654.575652 | AG147: =IF($E147="n/a","n/a",IF(AG$3-6>$E147,$D147-SUM($F147:AF147),$D147/$E147)) -> 1654.575652 | AH147: =IF($E147="n/a","n/a",IF(AH$3-6>$E147,$D147-SUM($F147:AG147),$D147/$E147)) -> 1654.575652 | AI147: =IF($E147="n/a","n/a",IF(AI$3-6>$E147,$D147-SUM($F147:AH147),$D147/$E147)) -> 1654.575652 | AJ147: =IF($E147="n/a","n/a",IF(AJ$3-6>$E147,$D147-SUM($F147:AI147),$D147/$E147)) -> 1654.575652 | AK147: =IF($E147="n/a","n/a",IF(AK$3-6>$E147,$D147-SUM($F147:AJ147),$D147/$E147)) -> 1654.575652 | AL147: =IF($E147="n/a","n/a",IF(AL$3-6>$E147,$D147-SUM($F147:AK147),$D147/$E147)) -> 1654.575652 | AM147: =IF($E147="n/a","n/a",IF(AM$3-6>$E147,$D147-SUM($F147:AL147),$D147/$E147)) -> 1654.575652 | AN147: =IF($E147="n/a","n/a",IF(AN$3-6>$E147,$D147-SUM($F147:AM147),$D147/$E147)) -> 1654.575652 | AO147: =IF($E147="n/a","n/a",IF(AO$3-6>$E147,$D147-SUM($F147:AN147),$D147/$E147)) -> 1654.575652 | AP147: =IF($E147="n/a","n/a",IF(AP$3-6>$E147,$D147-SUM($F147:AO147),$D147/$E147)) -> 1654.575652 | AQ147: =IF($E147="n/a","n/a",IF(AQ$3-6>$E147,$D147-SUM($F147:AP147),$D147/$E147)) -> 1654.575652 | AR147: =IF($E147="n/a","n/a",IF(AR$3-6>$E147,$D147-SUM($F147:AQ147),$D147/$E147)) -> 1654.575652 | AS147: =IF($E147="n/a","n/a",IF(AS$3-6>$E147,$D147-SUM($F147:AR147),$D147/$E147)) -> 1654.575652 | AT147: =IF($E147="n/a","n/a",IF(AT$3-6>$E147,$D147-SUM($F147:AS147),$D147/$E147)) -> 1654.575652 | AU147: =IF($E147="n/a","n/a",IF(AU$3-6>$E147,$D147-SUM($F147:AT147),$D147/$E147)) -> 1654.575652 | AV147: =IF($E147="n/a","n/a",IF(AV$3-6>$E147,$D147-SUM($F147:AU147),$D147/$E147)) -> 1654.575652 | AW147: =IF($E147="n/a","n/a",IF(AW$3-6>$E147,$D147-SUM($F147:AV147),$D147/$E147)) -> 1654.575652 | AX147: =IF($E147="n/a","n/a",IF(AX$3-6>$E147,$D147-SUM($F147:AW147),$D147/$E147)) -> 1654.575652 | AY147: =IF($E147="n/a","n/a",IF(AY$3-6>$E147,$D147-SUM($F147:AX147),$D147/$E147)) -> 1654.575652 | AZ147: =IF($E147="n/a","n/a",IF(AZ$3-6>$E147,$D147-SUM($F147:AY147),$D147/$E147)) -> 1654.575652 | BA147: =IF($E147="n/a","n/a",IF(BA$3-6>$E147,$D147-SUM($F147:AZ147),$D147/$E147)) -> 1654.575652 | BB147: =IF($E147="n/a","n/a",IF(BB$3-6>$E147,$D147-SUM($F147:BA147),$D147/$E147)) -> 661.8302607 | BC147: =IF($E147="n/a","n/a",IF(BC$3-6>$E147,$D147-SUM($F147:BB147),$D147/$E147)) -> 0 | BD147: =IF($E147="n/a","n/a",IF(BD$3-6>$E147,$D147-SUM($F147:BC147),$D147/$E147)) -> 0 | BE147: =IF($E147="n/a","n/a",IF(BE$3-6>$E147,$D147-SUM($F147:BD147),$D147/$E147)) -> 0 | BF147: =IF($E147="n/a","n/a",IF(BF$3-6>$E147,$D147-SUM($F147:BE147),$D147/$E147)) -> 0 | BG147: =IF($E147="n/a","n/a",IF(BG$3-6>$E147,$D147-SUM($F147:BF147),$D147/$E147)) -> 0 | BH147: =IF($E147="n/a","n/a",IF(BH$3-6>$E147,$D147-SUM($F147:BG147),$D147/$E147)) -> 0 | BI147: =IF($E147="n/a","n/a",IF(BI$3-6>$E147,$D147-SUM($F147:BH147),$D147/$E147)) -> 0 | BJ147: =IF($E147="n/a","n/a",IF(BJ$3-6>$E147,$D147-SUM($F147:BI147),$D147/$E147)) -> 0 | BK147: =IF($E147="n/a","n/a",IF(BK$3-6>$E147,$D147-SUM($F147:BJ147),$D147/$E147)) -> 0 | BL147: =IF($E147="n/a","n/a",IF(BL$3-6>$E147,$D147-SUM($F147:BK147),$D147/$E147)) -> 0 | BM147: =IF($E147="n/a","n/a",IF(BM$3-6>$E147,$D147-SUM($F147:BL147),$D147/$E147)) -> 0 | BN147: =IF($E147="n/a","n/a",IF(BN$3-6>$E147,$D147-SUM($F147:BM147),$D147/$E147)) -> 0 | BO147: =IF($E147="n/a","n/a",IF(BO$3-6>$E147,$D147-SUM($F147:BN147),$D147/$E147)) -> 0 | BP147: =IF($E147="n/a","n/a",IF(BP$3-6>$E147,$D147-SUM($F147:BO147),$D147/$E147)) -> 0 | BQ147: =IF($E147="n/a","n/a",IF(BQ$3-6>$E147,$D147-SUM($F147:BP147),$D147/$E147)) -> 0 | BR147: =IF($E147="n/a","n/a",IF(BR$3-6>$E147,$D147-SUM($F147:BQ147),$D147/$E147)) -> 0 | BS147: =IF($E147="n/a","n/a",IF(BS$3-6>$E147,$D147-SUM($F147:BR147),$D147/$E147)) -> 0 | BT147: =IF($E147="n/a","n/a",IF(BT$3-6>$E147,$D147-SUM($F147:BS147),$D147/$E147)) -> 0 | BU147: =IF($E147="n/a","n/a",IF(BU$3-6>$E147,$D147-SUM($F147:BT147),$D147/$E147)) -> 0 | BV147: =IF($E147="n/a","n/a",IF(BV$3-6>$E147,$D147-SUM($F147:BU147),$D147/$E147)) -> 0 | BW147: =IF($E147="n/a","n/a",IF(BW$3-6>$E147,$D147-SUM($F147:BV147),$D147/$E147)) -> 0 | BX147: =IF($E147="n/a","n/a",IF(BX$3-6>$E147,$D147-SUM($F147:BW147),$D147/$E147)) -> 0 | BY147: =IF($E147="n/a","n/a",IF(BY$3-6>$E147,$D147-SUM($F147:BX147),$D147/$E147)) -> 0 | BZ147: =IF($E147="n/a","n/a",IF(BZ$3-6>$E147,$D147-SUM($F147:BY147),$D147/$E147)) -> 0
A148: Transformers | C148: 15202.39041 | D148: 17925.59406 | E148: 41.86 | L148: =IF($E148="n/a","n/a",IF(L$3-6>$E148,$D148-SUM($F148:K148),$D148/$E148)) -> 428.2272829 | M148: =IF($E148="n/a","n/a",IF(M$3-6>$E148,$D148-SUM($F148:L148),$D148/$E148)) -> 428.2272829 | N148: =IF($E148="n/a","n/a",IF(N$3-6>$E148,$D148-SUM($F148:M148),$D148/$E148)) -> 428.2272829 | O148: =IF($E148="n/a","n/a",IF(O$3-6>$E148,$D148-SUM($F148:N148),$D148/$E148)) -> 428.2272829 | P148: =IF($E148="n/a","n/a",IF(P$3-6>$E148,$D148-SUM($F148:O148),$D148/$E148)) -> 428.2272829 | Q148: =IF($E148="n/a","n/a",IF(Q$3-6>$E148,$D148-SUM($F148:P148),$D148/$E148)) -> 428.2272829 | R148: =IF($E148="n/a","n/a",IF(R$3-6>$E148,$D148-SUM($F148:Q148),$D148/$E148)) -> 428.2272829 | S148: =IF($E148="n/a","n/a",IF(S$3-6>$E148,$D148-SUM($F148:R148),$D148/$E148)) -> 428.2272829 | T148: =IF($E148="n/a","n/a",IF(T$3-6>$E148,$D148-SUM($F148:S148),$D148/$E148)) -> 428.2272829 | U148: =IF($E148="n/a","n/a",IF(U$3-6>$E148,$D148-SUM($F148:T148),$D148/$E148)) -> 428.2272829 | V148: =IF($E148="n/a","n/a",IF(V$3-6>$E148,$D148-SUM($F148:U148),$D148/$E148)) -> 428.2272829 | W148: =IF($E148="n/a","n/a",IF(W$3-6>$E148,$D148-SUM($F148:V148),$D148/$E148)) -> 428.2272829 | X148: =IF($E148="n/a","n/a",IF(X$3-6>$E148,$D148-SUM($F148:W148),$D148/$E148)) -> 428.2272829 | Y148: =IF($E148="n/a","n/a",IF(Y$3-6>$E148,$D148-SUM($F148:X148),$D148/$E148)) -> 428.2272829 | Z148: =IF($E148="n/a","n/a",IF(Z$3-6>$E148,$D148-SUM($F148:Y148),$D148/$E148)) -> 428.2272829 | AA148: =IF($E148="n/a","n/a",IF(AA$3-6>$E148,$D148-SUM($F148:Z148),$D148/$E148)) -> 428.2272829 | AB148: =IF($E148="n/a","n/a",IF(AB$3-6>$E148,$D148-SUM($F148:AA148),$D148/$E148)) -> 428.2272829 | AC148: =IF($E148="n/a","n/a",IF(AC$3-6>$E148,$D148-SUM($F148:AB148),$D148/$E148)) -> 428.2272829 | AD148: =IF($E148="n/a","n/a",IF(AD$3-6>$E148,$D148-SUM($F148:AC148),$D148/$E148)) -> 428.2272829 | AE148: =IF($E148="n/a","n/a",IF(AE$3-6>$E148,$D148-SUM($F148:AD148),$D148/$E148)) -> 428.2272829 | AF148: =IF($E148="n/a","n/a",IF(AF$3-6>$E148,$D148-SUM($F148:AE148),$D148/$E148)) -> 428.2272829 | AG148: =IF($E148="n/a","n/a",IF(AG$3-6>$E148,$D148-SUM($F148:AF148),$D148/$E148)) -> 428.2272829 | AH148: =IF($E148="n/a","n/a",IF(AH$3-6>$E148,$D148-SUM($F148:AG148),$D148/$E148)) -> 428.2272829 | AI148: =IF($E148="n/a","n/a",IF(AI$3-6>$E148,$D148-SUM($F148:AH148),$D148/$E148)) -> 428.2272829 | AJ148: =IF($E148="n/a","n/a",IF(AJ$3-6>$E148,$D148-SUM($F148:AI148),$D148/$E148)) -> 428.2272829 | AK148: =IF($E148="n/a","n/a",IF(AK$3-6>$E148,$D148-SUM($F148:AJ148),$D148/$E148)) -> 428.2272829 | AL148: =IF($E148="n/a","n/a",IF(AL$3-6>$E148,$D148-SUM($F148:AK148),$D148/$E148)) -> 428.2272829 | AM148: =IF($E148="n/a","n/a",IF(AM$3-6>$E148,$D148-SUM($F148:AL148),$D148/$E148)) -> 428.2272829 | AN148: =IF($E148="n/a","n/a",IF(AN$3-6>$E148,$D148-SUM($F148:AM148),$D148/$E148)) -> 428.2272829 | AO148: =IF($E148="n/a","n/a",IF(AO$3-6>$E148,$D148-SUM($F148:AN148),$D148/$E148)) -> 428.2272829 | AP148: =IF($E148="n/a","n/a",IF(AP$3-6>$E148,$D148-SUM($F148:AO148),$D148/$E148)) -> 428.2272829 | AQ148: =IF($E148="n/a","n/a",IF(AQ$3-6>$E148,$D148-SUM($F148:AP148),$D148/$E148)) -> 428.2272829 | AR148: =IF($E148="n/a","n/a",IF(AR$3-6>$E148,$D148-SUM($F148:AQ148),$D148/$E148)) -> 428.2272829 | AS148: =IF($E148="n/a","n/a",IF(AS$3-6>$E148,$D148-SUM($F148:AR148),$D148/$E148)) -> 428.2272829 | AT148: =IF($E148="n/a","n/a",IF(AT$3-6>$E148,$D148-SUM($F148:AS148),$D148/$E148)) -> 428.2272829 | AU148: =IF($E148="n/a","n/a",IF(AU$3-6>$E148,$D148-SUM($F148:AT148),$D148/$E148)) -> 428.2272829 | AV148: =IF($E148="n/a","n/a",IF(AV$3-6>$E148,$D148-SUM($F148:AU148),$D148/$E148)) -> 428.2272829 | AW148: =IF($E148="n/a","n/a",IF(AW$3-6>$E148,$D148-SUM($F148:AV148),$D148/$E148)) -> 428.2272829 | AX148: =IF($E148="n/a","n/a",IF(AX$3-6>$E148,$D148-SUM($F148:AW148),$D148/$E148)) -> 428.2272829 | AY148: =IF($E148="n/a","n/a",IF(AY$3-6>$E148,$D148-SUM($F148:AX148),$D148/$E148)) -> 428.2272829 | AZ148: =IF($E148="n/a","n/a",IF(AZ$3-6>$E148,$D148-SUM($F148:AY148),$D148/$E148)) -> 428.2272829 | BA148: =IF($E148="n/a","n/a",IF(BA$3-6>$E148,$D148-SUM($F148:AZ148),$D148/$E148)) -> 368.2754633 | BB148: =IF($E148="n/a","n/a",IF(BB$3-6>$E148,$D148-SUM($F148:BA148),$D148/$E148)) -> 0 | BC148: =IF($E148="n/a","n/a",IF(BC$3-6>$E148,$D148-SUM($F148:BB148),$D148/$E148)) -> 0 | BD148: =IF($E148="n/a","n/a",IF(BD$3-6>$E148,$D148-SUM($F148:BC148),$D148/$E148)) -> 0 | BE148: =IF($E148="n/a","n/a",IF(BE$3-6>$E148,$D148-SUM($F148:BD148),$D148/$E148)) -> 0 | BF148: =IF($E148="n/a","n/a",IF(BF$3-6>$E148,$D148-SUM($F148:BE148),$D148/$E148)) -> 0 | BG148: =IF($E148="n/a","n/a",IF(BG$3-6>$E148,$D148-SUM($F148:BF148),$D148/$E148)) -> 0 | BH148: =IF($E148="n/a","n/a",IF(BH$3-6>$E148,$D148-SUM($F148:BG148),$D148/$E148)) -> 0 | BI148: =IF($E148="n/a","n/a",IF(BI$3-6>$E148,$D148-SUM($F148:BH148),$D148/$E148)) -> 0 | BJ148: =IF($E148="n/a","n/a",IF(BJ$3-6>$E148,$D148-SUM($F148:BI148),$D148/$E148)) -> 0 | BK148: =IF($E148="n/a","n/a",IF(BK$3-6>$E148,$D148-SUM($F148:BJ148),$D148/$E148)) -> 0 | BL148: =IF($E148="n/a","n/a",IF(BL$3-6>$E148,$D148-SUM($F148:BK148),$D148/$E148)) -> 0 | BM148: =IF($E148="n/a","n/a",IF(BM$3-6>$E148,$D148-SUM($F148:BL148),$D148/$E148)) -> 0 | BN148: =IF($E148="n/a","n/a",IF(BN$3-6>$E148,$D148-SUM($F148:BM148),$D148/$E148)) -> 0 | BO148: =IF($E148="n/a","n/a",IF(BO$3-6>$E148,$D148-SUM($F148:BN148),$D148/$E148)) -> 0 | BP148: =IF($E148="n/a","n/a",IF(BP$3-6>$E148,$D148-SUM($F148:BO148),$D148/$E148)) -> 0 | BQ148: =IF($E148="n/a","n/a",IF(BQ$3-6>$E148,$D148-SUM($F148:BP148),$D148/$E148)) -> 0 | BR148: =IF($E148="n/a","n/a",IF(BR$3-6>$E148,$D148-SUM($F148:BQ148),$D148/$E148)) -> 0 | BS148: =IF($E148="n/a","n/a",IF(BS$3-6>$E148,$D148-SUM($F148:BR148),$D148/$E148)) -> 0 | BT148: =IF($E148="n/a","n/a",IF(BT$3-6>$E148,$D148-SUM($F148:BS148),$D148/$E148)) -> 0 | BU148: =IF($E148="n/a","n/a",IF(BU$3-6>$E148,$D148-SUM($F148:BT148),$D148/$E148)) -> 0 | BV148: =IF($E148="n/a","n/a",IF(BV$3-6>$E148,$D148-SUM($F148:BU148),$D148/$E148)) -> 0 | BW148: =IF($E148="n/a","n/a",IF(BW$3-6>$E148,$D148-SUM($F148:BV148),$D148/$E148)) -> 0 | BX148: =IF($E148="n/a","n/a",IF(BX$3-6>$E148,$D148-SUM($F148:BW148),$D148/$E148)) -> 0 | BY148: =IF($E148="n/a","n/a",IF(BY$3-6>$E148,$D148-SUM($F148:BX148),$D148/$E148)) -> 0 | BZ148: =IF($E148="n/a","n/a",IF(BZ$3-6>$E148,$D148-SUM($F148:BY148),$D148/$E148)) -> 0
A149: Reactive | C149: 12624.61878 | D149: 14886.06628 | E149: 37.24 | L149: =IF($E149="n/a","n/a",IF(L$3-6>$E149,$D149-SUM($F149:K149),$D149/$E149)) -> 399.7332514 | M149: =IF($E149="n/a","n/a",IF(M$3-6>$E149,$D149-SUM($F149:L149),$D149/$E149)) -> 399.7332514 | N149: =IF($E149="n/a","n/a",IF(N$3-6>$E149,$D149-SUM($F149:M149),$D149/$E149)) -> 399.7332514 | O149: =IF($E149="n/a","n/a",IF(O$3-6>$E149,$D149-SUM($F149:N149),$D149/$E149)) -> 399.7332514 | P149: =IF($E149="n/a","n/a",IF(P$3-6>$E149,$D149-SUM($F149:O149),$D149/$E149)) -> 399.7332514 | Q149: =IF($E149="n/a","n/a",IF(Q$3-6>$E149,$D149-SUM($F149:P149),$D149/$E149)) -> 399.7332514 | R149: =IF($E149="n/a","n/a",IF(R$3-6>$E149,$D149-SUM($F149:Q149),$D149/$E149)) -> 399.7332514 | S149: =IF($E149="n/a","n/a",IF(S$3-6>$E149,$D149-SUM($F149:R149),$D149/$E149)) -> 399.7332514 | T149: =IF($E149="n/a","n/a",IF(T$3-6>$E149,$D149-SUM($F149:S149),$D149/$E149)) -> 399.7332514 | U149: =IF($E149="n/a","n/a",IF(U$3-6>$E149,$D149-SUM($F149:T149),$D149/$E149)) -> 399.7332514 | V149: =IF($E149="n/a","n/a",IF(V$3-6>$E149,$D149-SUM($F149:U149),$D149/$E149)) -> 399.7332514 | W149: =IF($E149="n/a","n/a",IF(W$3-6>$E149,$D149-SUM($F149:V149),$D149/$E149)) -> 399.7332514 | X149: =IF($E149="n/a","n/a",IF(X$3-6>$E149,$D149-SUM($F149:W149),$D149/$E149)) -> 399.7332514 | Y149: =IF($E149="n/a","n/a",IF(Y$3-6>$E149,$D149-SUM($F149:X149),$D149/$E149)) -> 399.7332514 | Z149: =IF($E149="n/a","n/a",IF(Z$3-6>$E149,$D149-SUM($F149:Y149),$D149/$E149)) -> 399.7332514 | AA149: =IF($E149="n/a","n/a",IF(AA$3-6>$E149,$D149-SUM($F149:Z149),$D149/$E149)) -> 399.7332514 | AB149: =IF($E149="n/a","n/a",IF(AB$3-6>$E149,$D149-SUM($F149:AA149),$D149/$E149)) -> 399.7332514 | AC149: =IF($E149="n/a","n/a",IF(AC$3-6>$E149,$D149-SUM($F149:AB149),$D149/$E149)) -> 399.7332514 | AD149: =IF($E149="n/a","n/a",IF(AD$3-6>$E149,$D149-SUM($F149:AC149),$D149/$E149)) -> 399.7332514 | AE149: =IF($E149="n/a","n/a",IF(AE$3-6>$E149,$D149-SUM($F149:AD149),$D149/$E149)) -> 399.7332514 | AF149: =IF($E149="n/a","n/a",IF(AF$3-6>$E149,$D149-SUM($F149:AE149),$D149/$E149)) -> 399.7332514 | AG149: =IF($E149="n/a","n/a",IF(AG$3-6>$E149,$D149-SUM($F149:AF149),$D149/$E149)) -> 399.7332514 | AH149: =IF($E149="n/a","n/a",IF(AH$3-6>$E149,$D149-SUM($F149:AG149),$D149/$E149)) -> 399.7332514 | AI149: =IF($E149="n/a","n/a",IF(AI$3-6>$E149,$D149-SUM($F149:AH149),$D149/$E149)) -> 399.7332514 | AJ149: =IF($E149="n/a","n/a",IF(AJ$3-6>$E149,$D149-SUM($F149:AI149),$D149/$E149)) -> 399.7332514 | AK149: =IF($E149="n/a","n/a",IF(AK$3-6>$E149,$D149-SUM($F149:AJ149),$D149/$E149)) -> 399.7332514 | AL149: =IF($E149="n/a","n/a",IF(AL$3-6>$E149,$D149-SUM($F149:AK149),$D149/$E149)) -> 399.7332514 | AM149: =IF($E149="n/a","n/a",IF(AM$3-6>$E149,$D149-SUM($F149:AL149),$D149/$E149)) -> 399.7332514 | AN149: =IF($E149="n/a","n/a",IF(AN$3-6>$E149,$D149-SUM($F149:AM149),$D149/$E149)) -> 399.7332514 | AO149: =IF($E149="n/a","n/a",IF(AO$3-6>$E149,$D149-SUM($F149:AN149),$D149/$E149)) -> 399.7332514 | AP149: =IF($E149="n/a","n/a",IF(AP$3-6>$E149,$D149-SUM($F149:AO149),$D149/$E149)) -> 399.7332514 | AQ149: =IF($E149="n/a","n/a",IF(AQ$3-6>$E149,$D149-SUM($F149:AP149),$D149/$E149)) -> 399.7332514 | AR149: =IF($E149="n/a","n/a",IF(AR$3-6>$E149,$D149-SUM($F149:AQ149),$D149/$E149)) -> 399.7332514 | AS149: =IF($E149="n/a","n/a",IF(AS$3-6>$E149,$D149-SUM($F149:AR149),$D149/$E149)) -> 399.7332514 | AT149: =IF($E149="n/a","n/a",IF(AT$3-6>$E149,$D149-SUM($F149:AS149),$D149/$E149)) -> 399.7332514 | AU149: =IF($E149="n/a","n/a",IF(AU$3-6>$E149,$D149-SUM($F149:AT149),$D149/$E149)) -> 399.7332514 | AV149: =IF($E149="n/a","n/a",IF(AV$3-6>$E149,$D149-SUM($F149:AU149),$D149/$E149)) -> 399.7332514 | AW149: =IF($E149="n/a","n/a",IF(AW$3-6>$E149,$D149-SUM($F149:AV149),$D149/$E149)) -> 95.93598034 | AX149: =IF($E149="n/a","n/a",IF(AX$3-6>$E149,$D149-SUM($F149:AW149),$D149/$E149)) -> 0 | AY149: =IF($E149="n/a","n/a",IF(AY$3-6>$E149,$D149-SUM($F149:AX149),$D149/$E149)) -> 0 | AZ149: =IF($E149="n/a","n/a",IF(AZ$3-6>$E149,$D149-SUM($F149:AY149),$D149/$E149)) -> 0 | BA149: =IF($E149="n/a","n/a",IF(BA$3-6>$E149,$D149-SUM($F149:AZ149),$D149/$E149)) -> 0 | BB149: =IF($E149="n/a","n/a",IF(BB$3-6>$E149,$D149-SUM($F149:BA149),$D149/$E149)) -> 0 | BC149: =IF($E149="n/a","n/a",IF(BC$3-6>$E149,$D149-SUM($F149:BB149),$D149/$E149)) -> 0 | BD149: =IF($E149="n/a","n/a",IF(BD$3-6>$E149,$D149-SUM($F149:BC149),$D149/$E149)) -> 0 | BE149: =IF($E149="n/a","n/a",IF(BE$3-6>$E149,$D149-SUM($F149:BD149),$D149/$E149)) -> 0 | BF149: =IF($E149="n/a","n/a",IF(BF$3-6>$E149,$D149-SUM($F149:BE149),$D149/$E149)) -> 0 | BG149: =IF($E149="n/a","n/a",IF(BG$3-6>$E149,$D149-SUM($F149:BF149),$D149/$E149)) -> 0 | BH149: =IF($E149="n/a","n/a",IF(BH$3-6>$E149,$D149-SUM($F149:BG149),$D149/$E149)) -> 0 | BI149: =IF($E149="n/a","n/a",IF(BI$3-6>$E149,$D149-SUM($F149:BH149),$D149/$E149)) -> 0 | BJ149: =IF($E149="n/a","n/a",IF(BJ$3-6>$E149,$D149-SUM($F149:BI149),$D149/$E149)) -> 0 | BK149: =IF($E149="n/a","n/a",IF(BK$3-6>$E149,$D149-SUM($F149:BJ149),$D149/$E149)) -> 0 | BL149: =IF($E149="n/a","n/a",IF(BL$3-6>$E149,$D149-SUM($F149:BK149),$D149/$E149)) -> 0 | BM149: =IF($E149="n/a","n/a",IF(BM$3-6>$E149,$D149-SUM($F149:BL149),$D149/$E149)) -> 0 | BN149: =IF($E149="n/a","n/a",IF(BN$3-6>$E149,$D149-SUM($F149:BM149),$D149/$E149)) -> 0 | BO149: =IF($E149="n/a","n/a",IF(BO$3-6>$E149,$D149-SUM($F149:BN149),$D149/$E149)) -> 0 | BP149: =IF($E149="n/a","n/a",IF(BP$3-6>$E149,$D149-SUM($F149:BO149),$D149/$E149)) -> 0 | BQ149: =IF($E149="n/a","n/a",IF(BQ$3-6>$E149,$D149-SUM($F149:BP149),$D149/$E149)) -> 0 | BR149: =IF($E149="n/a","n/a",IF(BR$3-6>$E149,$D149-SUM($F149:BQ149),$D149/$E149)) -> 0 | BS149: =IF($E149="n/a","n/a",IF(BS$3-6>$E149,$D149-SUM($F149:BR149),$D149/$E149)) -> 0 | BT149: =IF($E149="n/a","n/a",IF(BT$3-6>$E149,$D149-SUM($F149:BS149),$D149/$E149)) -> 0 | BU149: =IF($E149="n/a","n/a",IF(BU$3-6>$E149,$D149-SUM($F149:BT149),$D149/$E149)) -> 0 | BV149: =IF($E149="n/a","n/a",IF(BV$3-6>$E149,$D149-SUM($F149:BU149),$D149/$E149)) -> 0 | BW149: =IF($E149="n/a","n/a",IF(BW$3-6>$E149,$D149-SUM($F149:BV149),$D149/$E149)) -> 0 | BX149: =IF($E149="n/a","n/a",IF(BX$3-6>$E149,$D149-SUM($F149:BW149),$D149/$E149)) -> 0 | BY149: =IF($E149="n/a","n/a",IF(BY$3-6>$E149,$D149-SUM($F149:BX149),$D149/$E149)) -> 0 | BZ149: =IF($E149="n/a","n/a",IF(BZ$3-6>$E149,$D149-SUM($F149:BY149),$D149/$E149)) -> 0
A150: Towers and Conductor | C150: 5911.062235 | D150: 6969.910601 | E150: 54.7 | L150: =IF($E150="n/a","n/a",IF(L$3-6>$E150,$D150-SUM($F150:K150),$D150/$E150)) -> 127.4206691 | M150: =IF($E150="n/a","n/a",IF(M$3-6>$E150,$D150-SUM($F150:L150),$D150/$E150)) -> 127.4206691 | N150: =IF($E150="n/a","n/a",IF(N$3-6>$E150,$D150-SUM($F150:M150),$D150/$E150)) -> 127.4206691 | O150: =IF($E150="n/a","n/a",IF(O$3-6>$E150,$D150-SUM($F150:N150),$D150/$E150)) -> 127.4206691 | P150: =IF($E150="n/a","n/a",IF(P$3-6>$E150,$D150-SUM($F150:O150),$D150/$E150)) -> 127.4206691 | Q150: =IF($E150="n/a","n/a",IF(Q$3-6>$E150,$D150-SUM($F150:P150),$D150/$E150)) -> 127.4206691 | R150: =IF($E150="n/a","n/a",IF(R$3-6>$E150,$D150-SUM($F150:Q150),$D150/$E150)) -> 127.4206691 | S150: =IF($E150="n/a","n/a",IF(S$3-6>$E150,$D150-SUM($F150:R150),$D150/$E150)) -> 127.4206691 | T150: =IF($E150="n/a","n/a",IF(T$3-6>$E150,$D150-SUM($F150:S150),$D150/$E150)) -> 127.4206691 | U150: =IF($E150="n/a","n/a",IF(U$3-6>$E150,$D150-SUM($F150:T150),$D150/$E150)) -> 127.4206691 | V150: =IF($E150="n/a","n/a",IF(V$3-6>$E150,$D150-SUM($F150:U150),$D150/$E150)) -> 127.4206691 | W150: =IF($E150="n/a","n/a",IF(W$3-6>$E150,$D150-SUM($F150:V150),$D150/$E150)) -> 127.4206691 | X150: =IF($E150="n/a","n/a",IF(X$3-6>$E150,$D150-SUM($F150:W150),$D150/$E150)) -> 127.4206691 | Y150: =IF($E150="n/a","n/a",IF(Y$3-6>$E150,$D150-SUM($F150:X150),$D150/$E150)) -> 127.4206691 | Z150: =IF($E150="n/a","n/a",IF(Z$3-6>$E150,$D150-SUM($F150:Y150),$D150/$E150)) -> 127.4206691 | AA150: =IF($E150="n/a","n/a",IF(AA$3-6>$E150,$D150-SUM($F150:Z150),$D150/$E150)) -> 127.4206691 | AB150: =IF($E150="n/a","n/a",IF(AB$3-6>$E150,$D150-SUM($F150:AA150),$D150/$E150)) -> 127.4206691 | AC150: =IF($E150="n/a","n/a",IF(AC$3-6>$E150,$D150-SUM($F150:AB150),$D150/$E150)) -> 127.4206691 | AD150: =IF($E150="n/a","n/a",IF(AD$3-6>$E150,$D150-SUM($F150:AC150),$D150/$E150)) -> 127.4206691 | AE150: =IF($E150="n/a","n/a",IF(AE$3-6>$E150,$D150-SUM($F150:AD150),$D150/$E150)) -> 127.4206691 | AF150: =IF($E150="n/a","n/a",IF(AF$3-6>$E150,$D150-SUM($F150:AE150),$D150/$E150)) -> 127.4206691 | AG150: =IF($E150="n/a","n/a",IF(AG$3-6>$E150,$D150-SUM($F150:AF150),$D150/$E150)) -> 127.4206691 | AH150: =IF($E150="n/a","n/a",IF(AH$3-6>$E150,$D150-SUM($F150:AG150),$D150/$E150)) -> 127.4206691 | AI150: =IF($E150="n/a","n/a",IF(AI$3-6>$E150,$D150-SUM($F150:AH150),$D150/$E150)) -> 127.4206691 | AJ150: =IF($E150="n/a","n/a",IF(AJ$3-6>$E150,$D150-SUM($F150:AI150),$D150/$E150)) -> 127.4206691 | AK150: =IF($E150="n/a","n/a",IF(AK$3-6>$E150,$D150-SUM($F150:AJ150),$D150/$E150)) -> 127.4206691 | AL150: =IF($E150="n/a","n/a",IF(AL$3-6>$E150,$D150-SUM($F150:AK150),$D150/$E150)) -> 127.4206691 | AM150: =IF($E150="n/a","n/a",IF(AM$3-6>$E150,$D150-SUM($F150:AL150),$D150/$E150)) -> 127.4206691 | AN150: =IF($E150="n/a","n/a",IF(AN$3-6>$E150,$D150-SUM($F150:AM150),$D150/$E150)) -> 127.4206691 | AO150: =IF($E150="n/a","n/a",IF(AO$3-6>$E150,$D150-SUM($F150:AN150),$D150/$E150)) -> 127.4206691 | AP150: =IF($E150="n/a","n/a",IF(AP$3-6>$E150,$D150-SUM($F150:AO150),$D150/$E150)) -> 127.4206691 | AQ150: =IF($E150="n/a","n/a",IF(AQ$3-6>$E150,$D150-SUM($F150:AP150),$D150/$E150)) -> 127.4206691 | AR150: =IF($E150="n/a","n/a",IF(AR$3-6>$E150,$D150-SUM($F150:AQ150),$D150/$E150)) -> 127.4206691 | AS150: =IF($E150="n/a","n/a",IF(AS$3-6>$E150,$D150-SUM($F150:AR150),$D150/$E150)) -> 127.4206691 | AT150: =IF($E150="n/a","n/a",IF(AT$3-6>$E150,$D150-SUM($F150:AS150),$D150/$E150)) -> 127.4206691 | AU150: =IF($E150="n/a","n/a",IF(AU$3-6>$E150,$D150-SUM($F150:AT150),$D150/$E150)) -> 127.4206691 | AV150: =IF($E150="n/a","n/a",IF(AV$3-6>$E150,$D150-SUM($F150:AU150),$D150/$E150)) -> 127.4206691 | AW150: =IF($E150="n/a","n/a",IF(AW$3-6>$E150,$D150-SUM($F150:AV150),$D150/$E150)) -> 127.4206691 | AX150: =IF($E150="n/a","n/a",IF(AX$3-6>$E150,$D150-SUM($F150:AW150),$D150/$E150)) -> 127.4206691 | AY150: =IF($E150="n/a","n/a",IF(AY$3-6>$E150,$D150-SUM($F150:AX150),$D150/$E150)) -> 127.4206691 | AZ150: =IF($E150="n/a","n/a",IF(AZ$3-6>$E150,$D150-SUM($F150:AY150),$D150/$E150)) -> 127.4206691 | BA150: =IF($E150="n/a","n/a",IF(BA$3-6>$E150,$D150-SUM($F150:AZ150),$D150/$E150)) -> 127.4206691 | BB150: =IF($E150="n/a","n/a",IF(BB$3-6>$E150,$D150-SUM($F150:BA150),$D150/$E150)) -> 127.4206691 | BC150: =IF($E150="n/a","n/a",IF(BC$3-6>$E150,$D150-SUM($F150:BB150),$D150/$E150)) -> 127.4206691 | BD150: =IF($E150="n/a","n/a",IF(BD$3-6>$E150,$D150-SUM($F150:BC150),$D150/$E150)) -> 127.4206691 | BE150: =IF($E150="n/a","n/a",IF(BE$3-6>$E150,$D150-SUM($F150:BD150),$D150/$E150)) -> 127.4206691 | BF150: =IF($E150="n/a","n/a",IF(BF$3-6>$E150,$D150-SUM($F150:BE150),$D150/$E150)) -> 127.4206691 | BG150: =IF($E150="n/a","n/a",IF(BG$3-6>$E150,$D150-SUM($F150:BF150),$D150/$E150)) -> 127.4206691 | BH150: =IF($E150="n/a","n/a",IF(BH$3-6>$E150,$D150-SUM($F150:BG150),$D150/$E150)) -> 127.4206691 | BI150: =IF($E150="n/a","n/a",IF(BI$3-6>$E150,$D150-SUM($F150:BH150),$D150/$E150)) -> 127.4206691 | BJ150: =IF($E150="n/a","n/a",IF(BJ$3-6>$E150,$D150-SUM($F150:BI150),$D150/$E150)) -> 127.4206691 | BK150: =IF($E150="n/a","n/a",IF(BK$3-6>$E150,$D150-SUM($F150:BJ150),$D150/$E150)) -> 127.4206691 | BL150: =IF($E150="n/a","n/a",IF(BL$3-6>$E150,$D150-SUM($F150:BK150),$D150/$E150)) -> 127.4206691 | BM150: =IF($E150="n/a","n/a",IF(BM$3-6>$E150,$D150-SUM($F150:BL150),$D150/$E150)) -> 127.4206691 | BN150: =IF($E150="n/a","n/a",IF(BN$3-6>$E150,$D150-SUM($F150:BM150),$D150/$E150)) -> 89.19446838 | BO150: =IF($E150="n/a","n/a",IF(BO$3-6>$E150,$D150-SUM($F150:BN150),$D150/$E150)) -> 0 | BP150: =IF($E150="n/a","n/a",IF(BP$3-6>$E150,$D150-SUM($F150:BO150),$D150/$E150)) -> 0 | BQ150: =IF($E150="n/a","n/a",IF(BQ$3-6>$E150,$D150-SUM($F150:BP150),$D150/$E150)) -> 0 | BR150: =IF($E150="n/a","n/a",IF(BR$3-6>$E150,$D150-SUM($F150:BQ150),$D150/$E150)) -> 0 | BS150: =IF($E150="n/a","n/a",IF(BS$3-6>$E150,$D150-SUM($F150:BR150),$D150/$E150)) -> 0 | BT150: =IF($E150="n/a","n/a",IF(BT$3-6>$E150,$D150-SUM($F150:BS150),$D150/$E150)) -> 0 | BU150: =IF($E150="n/a","n/a",IF(BU$3-6>$E150,$D150-SUM($F150:BT150),$D150/$E150)) -> 0 | BV150: =IF($E150="n/a","n/a",IF(BV$3-6>$E150,$D150-SUM($F150:BU150),$D150/$E150)) -> 0 | BW150: =IF($E150="n/a","n/a",IF(BW$3-6>$E150,$D150-SUM($F150:BV150),$D150/$E150)) -> 0 | BX150: =IF($E150="n/a","n/a",IF(BX$3-6>$E150,$D150-SUM($F150:BW150),$D150/$E150)) -> 0 | BY150: =IF($E150="n/a","n/a",IF(BY$3-6>$E150,$D150-SUM($F150:BX150),$D150/$E150)) -> 0 | BZ150: =IF($E150="n/a","n/a",IF(BZ$3-6>$E150,$D150-SUM($F150:BY150),$D150/$E150)) -> 0
A151: Establishment | C151: 4107.827331 | D151: 4843.662293 | E151: 40.97 | L151: =IF($E151="n/a","n/a",IF(L$3-6>$E151,$D151-SUM($F151:K151),$D151/$E151)) -> 118.2246105 | M151: =IF($E151="n/a","n/a",IF(M$3-6>$E151,$D151-SUM($F151:L151),$D151/$E151)) -> 118.2246105 | N151: =IF($E151="n/a","n/a",IF(N$3-6>$E151,$D151-SUM($F151:M151),$D151/$E151)) -> 118.2246105 | O151: =IF($E151="n/a","n/a",IF(O$3-6>$E151,$D151-SUM($F151:N151),$D151/$E151)) -> 118.2246105 | P151: =IF($E151="n/a","n/a",IF(P$3-6>$E151,$D151-SUM($F151:O151),$D151/$E151)) -> 118.2246105 | Q151: =IF($E151="n/a","n/a",IF(Q$3-6>$E151,$D151-SUM($F151:P151),$D151/$E151)) -> 118.2246105 | R151: =IF($E151="n/a","n/a",IF(R$3-6>$E151,$D151-SUM($F151:Q151),$D151/$E151)) -> 118.2246105 | S151: =IF($E151="n/a","n/a",IF(S$3-6>$E151,$D151-SUM($F151:R151),$D151/$E151)) -> 118.2246105 | T151: =IF($E151="n/a","n/a",IF(T$3-6>$E151,$D151-SUM($F151:S151),$D151/$E151)) -> 118.2246105 | U151: =IF($E151="n/a","n/a",IF(U$3-6>$E151,$D151-SUM($F151:T151),$D151/$E151)) -> 118.2246105 | V151: =IF($E151="n/a","n/a",IF(V$3-6>$E151,$D151-SUM($F151:U151),$D151/$E151)) -> 118.2246105 | W151: =IF($E151="n/a","n/a",IF(W$3-6>$E151,$D151-SUM($F151:V151),$D151/$E151)) -> 118.2246105 | X151: =IF($E151="n/a","n/a",IF(X$3-6>$E151,$D151-SUM($F151:W151),$D151/$E151)) -> 118.2246105 | Y151: =IF($E151="n/a","n/a",IF(Y$3-6>$E151,$D151-SUM($F151:X151),$D151/$E151)) -> 118.2246105 | Z151: =IF($E151="n/a","n/a",IF(Z$3-6>$E151,$D151-SUM($F151:Y151),$D151/$E151)) -> 118.2246105 | AA151: =IF($E151="n/a","n/a",IF(AA$3-6>$E151,$D151-SUM($F151:Z151),$D151/$E151)) -> 118.2246105 | AB151: =IF($E151="n/a","n/a",IF(AB$3-6>$E151,$D151-SUM($F151:AA151),$D151/$E151)) -> 118.2246105 | AC151: =IF($E151="n/a","n/a",IF(AC$3-6>$E151,$D151-SUM($F151:AB151),$D151/$E151)) -> 118.2246105 | AD151: =IF($E151="n/a","n/a",IF(AD$3-6>$E151,$D151-SUM($F151:AC151),$D151/$E151)) -> 118.2246105 | AE151: =IF($E151="n/a","n/a",IF(AE$3-6>$E151,$D151-SUM($F151:AD151),$D151/$E151)) -> 118.2246105 | AF151: =IF($E151="n/a","n/a",IF(AF$3-6>$E151,$D151-SUM($F151:AE151),$D151/$E151)) -> 118.2246105 | AG151: =IF($E151="n/a","n/a",IF(AG$3-6>$E151,$D151-SUM($F151:AF151),$D151/$E151)) -> 118.2246105 | AH151: =IF($E151="n/a","n/a",IF(AH$3-6>$E151,$D151-SUM($F151:AG151),$D151/$E151)) -> 118.2246105 | AI151: =IF($E151="n/a","n/a",IF(AI$3-6>$E151,$D151-SUM($F151:AH151),$D151/$E151)) -> 118.2246105 | AJ151: =IF($E151="n/a","n/a",IF(AJ$3-6>$E151,$D151-SUM($F151:AI151),$D151/$E151)) -> 118.2246105 | AK151: =IF($E151="n/a","n/a",IF(AK$3-6>$E151,$D151-SUM($F151:AJ151),$D151/$E151)) -> 118.2246105 | AL151: =IF($E151="n/a","n/a",IF(AL$3-6>$E151,$D151-SUM($F151:AK151),$D151/$E151)) -> 118.2246105 | AM151: =IF($E151="n/a","n/a",IF(AM$3-6>$E151,$D151-SUM($F151:AL151),$D151/$E151)) -> 118.2246105 | AN151: =IF($E151="n/a","n/a",IF(AN$3-6>$E151,$D151-SUM($F151:AM151),$D151/$E151)) -> 118.2246105 | AO151: =IF($E151="n/a","n/a",IF(AO$3-6>$E151,$D151-SUM($F151:AN151),$D151/$E151)) -> 118.2246105 | AP151: =IF($E151="n/a","n/a",IF(AP$3-6>$E151,$D151-SUM($F151:AO151),$D151/$E151)) -> 118.2246105 | AQ151: =IF($E151="n/a","n/a",IF(AQ$3-6>$E151,$D151-SUM($F151:AP151),$D151/$E151)) -> 118.2246105 | AR151: =IF($E151="n/a","n/a",IF(AR$3-6>$E151,$D151-SUM($F151:AQ151),$D151/$E151)) -> 118.2246105 | AS151: =IF($E151="n/a","n/a",IF(AS$3-6>$E151,$D151-SUM($F151:AR151),$D151/$E151)) -> 118.2246105 | AT151: =IF($E151="n/a","n/a",IF(AT$3-6>$E151,$D151-SUM($F151:AS151),$D151/$E151)) -> 118.2246105 | AU151: =IF($E151="n/a","n/a",IF(AU$3-6>$E151,$D151-SUM($F151:AT151),$D151/$E151)) -> 118.2246105 | AV151: =IF($E151="n/a","n/a",IF(AV$3-6>$E151,$D151-SUM($F151:AU151),$D151/$E151)) -> 118.2246105 | AW151: =IF($E151="n/a","n/a",IF(AW$3-6>$E151,$D151-SUM($F151:AV151),$D151/$E151)) -> 118.2246105 | AX151: =IF($E151="n/a","n/a",IF(AX$3-6>$E151,$D151-SUM($F151:AW151),$D151/$E151)) -> 118.2246105 | AY151: =IF($E151="n/a","n/a",IF(AY$3-6>$E151,$D151-SUM($F151:AX151),$D151/$E151)) -> 118.2246105 | AZ151: =IF($E151="n/a","n/a",IF(AZ$3-6>$E151,$D151-SUM($F151:AY151),$D151/$E151)) -> 114.6778722 | BA151: =IF($E151="n/a","n/a",IF(BA$3-6>$E151,$D151-SUM($F151:AZ151),$D151/$E151)) -> 0 | BB151: =IF($E151="n/a","n/a",IF(BB$3-6>$E151,$D151-SUM($F151:BA151),$D151/$E151)) -> 0 | BC151: =IF($E151="n/a","n/a",IF(BC$3-6>$E151,$D151-SUM($F151:BB151),$D151/$E151)) -> 0 | BD151: =IF($E151="n/a","n/a",IF(BD$3-6>$E151,$D151-SUM($F151:BC151),$D151/$E151)) -> 0 | BE151: =IF($E151="n/a","n/a",IF(BE$3-6>$E151,$D151-SUM($F151:BD151),$D151/$E151)) -> 0 | BF151: =IF($E151="n/a","n/a",IF(BF$3-6>$E151,$D151-SUM($F151:BE151),$D151/$E151)) -> 0 | BG151: =IF($E151="n/a","n/a",IF(BG$3-6>$E151,$D151-SUM($F151:BF151),$D151/$E151)) -> 0 | BH151: =IF($E151="n/a","n/a",IF(BH$3-6>$E151,$D151-SUM($F151:BG151),$D151/$E151)) -> 0 | BI151: =IF($E151="n/a","n/a",IF(BI$3-6>$E151,$D151-SUM($F151:BH151),$D151/$E151)) -> 0 | BJ151: =IF($E151="n/a","n/a",IF(BJ$3-6>$E151,$D151-SUM($F151:BI151),$D151/$E151)) -> 0 | BK151: =IF($E151="n/a","n/a",IF(BK$3-6>$E151,$D151-SUM($F151:BJ151),$D151/$E151)) -> 0 | BL151: =IF($E151="n/a","n/a",IF(BL$3-6>$E151,$D151-SUM($F151:BK151),$D151/$E151)) -> 0 | BM151: =IF($E151="n/a","n/a",IF(BM$3-6>$E151,$D151-SUM($F151:BL151),$D151/$E151)) -> 0 | BN151: =IF($E151="n/a","n/a",IF(BN$3-6>$E151,$D151-SUM($F151:BM151),$D151/$E151)) -> 0 | BO151: =IF($E151="n/a","n/a",IF(BO$3-6>$E151,$D151-SUM($F151:BN151),$D151/$E151)) -> 0 | BP151: =IF($E151="n/a","n/a",IF(BP$3-6>$E151,$D151-SUM($F151:BO151),$D151/$E151)) -> 0 | BQ151: =IF($E151="n/a","n/a",IF(BQ$3-6>$E151,$D151-SUM($F151:BP151),$D151/$E151)) -> 0 | BR151: =IF($E151="n/a","n/a",IF(BR$3-6>$E151,$D151-SUM($F151:BQ151),$D151/$E151)) -> 0 | BS151: =IF($E151="n/a","n/a",IF(BS$3-6>$E151,$D151-SUM($F151:BR151),$D151/$E151)) -> 0 | BT151: =IF($E151="n/a","n/a",IF(BT$3-6>$E151,$D151-SUM($F151:BS151),$D151/$E151)) -> 0 | BU151: =IF($E151="n/a","n/a",IF(BU$3-6>$E151,$D151-SUM($F151:BT151),$D151/$E151)) -> 0 | BV151: =IF($E151="n/a","n/a",IF(BV$3-6>$E151,$D151-SUM($F151:BU151),$D151/$E151)) -> 0 | BW151: =IF($E151="n/a","n/a",IF(BW$3-6>$E151,$D151-SUM($F151:BV151),$D151/$E151)) -> 0 | BX151: =IF($E151="n/a","n/a",IF(BX$3-6>$E151,$D151-SUM($F151:BW151),$D151/$E151)) -> 0 | BY151: =IF($E151="n/a","n/a",IF(BY$3-6>$E151,$D151-SUM($F151:BX151),$D151/$E151)) -> 0 | BZ151: =IF($E151="n/a","n/a",IF(BZ$3-6>$E151,$D151-SUM($F151:BY151),$D151/$E151)) -> 0
A152: Communications | C152: 1366.586238 | D152: 1611.382782 | E152: 13.13 | L152: =IF($E152="n/a","n/a",IF(L$3-6>$E152,$D152-SUM($F152:K152),$D152/$E152)) -> 122.725269 | M152: =IF($E152="n/a","n/a",IF(M$3-6>$E152,$D152-SUM($F152:L152),$D152/$E152)) -> 122.725269 | N152: =IF($E152="n/a","n/a",IF(N$3-6>$E152,$D152-SUM($F152:M152),$D152/$E152)) -> 122.725269 | O152: =IF($E152="n/a","n/a",IF(O$3-6>$E152,$D152-SUM($F152:N152),$D152/$E152)) -> 122.725269 | P152: =IF($E152="n/a","n/a",IF(P$3-6>$E152,$D152-SUM($F152:O152),$D152/$E152)) -> 122.725269 | Q152: =IF($E152="n/a","n/a",IF(Q$3-6>$E152,$D152-SUM($F152:P152),$D152/$E152)) -> 122.725269 | R152: =IF($E152="n/a","n/a",IF(R$3-6>$E152,$D152-SUM($F152:Q152),$D152/$E152)) -> 122.725269 | S152: =IF($E152="n/a","n/a",IF(S$3-6>$E152,$D152-SUM($F152:R152),$D152/$E152)) -> 122.725269 | T152: =IF($E152="n/a","n/a",IF(T$3-6>$E152,$D152-SUM($F152:S152),$D152/$E152)) -> 122.725269 | U152: =IF($E152="n/a","n/a",IF(U$3-6>$E152,$D152-SUM($F152:T152),$D152/$E152)) -> 122.725269 | V152: =IF($E152="n/a","n/a",IF(V$3-6>$E152,$D152-SUM($F152:U152),$D152/$E152)) -> 122.725269 | W152: =IF($E152="n/a","n/a",IF(W$3-6>$E152,$D152-SUM($F152:V152),$D152/$E152)) -> 122.725269 | X152: =IF($E152="n/a","n/a",IF(X$3-6>$E152,$D152-SUM($F152:W152),$D152/$E152)) -> 122.725269 | Y152: =IF($E152="n/a","n/a",IF(Y$3-6>$E152,$D152-SUM($F152:X152),$D152/$E152)) -> 15.95428497 | Z152: =IF($E152="n/a","n/a",IF(Z$3-6>$E152,$D152-SUM($F152:Y152),$D152/$E152)) -> 0 | AA152: =IF($E152="n/a","n/a",IF(AA$3-6>$E152,$D152-SUM($F152:Z152),$D152/$E152)) -> 0 | AB152: =IF($E152="n/a","n/a",IF(AB$3-6>$E152,$D152-SUM($F152:AA152),$D152/$E152)) -> 0 | AC152: =IF($E152="n/a","n/a",IF(AC$3-6>$E152,$D152-SUM($F152:AB152),$D152/$E152)) -> 0 | AD152: =IF($E152="n/a","n/a",IF(AD$3-6>$E152,$D152-SUM($F152:AC152),$D152/$E152)) -> 0 | AE152: =IF($E152="n/a","n/a",IF(AE$3-6>$E152,$D152-SUM($F152:AD152),$D152/$E152)) -> 0 | AF152: =IF($E152="n/a","n/a",IF(AF$3-6>$E152,$D152-SUM($F152:AE152),$D152/$E152)) -> 0 | AG152: =IF($E152="n/a","n/a",IF(AG$3-6>$E152,$D152-SUM($F152:AF152),$D152/$E152)) -> 0 | AH152: =IF($E152="n/a","n/a",IF(AH$3-6>$E152,$D152-SUM($F152:AG152),$D152/$E152)) -> 0 | AI152: =IF($E152="n/a","n/a",IF(AI$3-6>$E152,$D152-SUM($F152:AH152),$D152/$E152)) -> 0 | AJ152: =IF($E152="n/a","n/a",IF(AJ$3-6>$E152,$D152-SUM($F152:AI152),$D152/$E152)) -> 0 | AK152: =IF($E152="n/a","n/a",IF(AK$3-6>$E152,$D152-SUM($F152:AJ152),$D152/$E152)) -> 0 | AL152: =IF($E152="n/a","n/a",IF(AL$3-6>$E152,$D152-SUM($F152:AK152),$D152/$E152)) -> 0 | AM152: =IF($E152="n/a","n/a",IF(AM$3-6>$E152,$D152-SUM($F152:AL152),$D152/$E152)) -> 0 | AN152: =IF($E152="n/a","n/a",IF(AN$3-6>$E152,$D152-SUM($F152:AM152),$D152/$E152)) -> 0 | AO152: =IF($E152="n/a","n/a",IF(AO$3-6>$E152,$D152-SUM($F152:AN152),$D152/$E152)) -> 0 | AP152: =IF($E152="n/a","n/a",IF(AP$3-6>$E152,$D152-SUM($F152:AO152),$D152/$E152)) -> 0 | AQ152: =IF($E152="n/a","n/a",IF(AQ$3-6>$E152,$D152-SUM($F152:AP152),$D152/$E152)) -> 0 | AR152: =IF($E152="n/a","n/a",IF(AR$3-6>$E152,$D152-SUM($F152:AQ152),$D152/$E152)) -> 0 | AS152: =IF($E152="n/a","n/a",IF(AS$3-6>$E152,$D152-SUM($F152:AR152),$D152/$E152)) -> 0 | AT152: =IF($E152="n/a","n/a",IF(AT$3-6>$E152,$D152-SUM($F152:AS152),$D152/$E152)) -> 0 | AU152: =IF($E152="n/a","n/a",IF(AU$3-6>$E152,$D152-SUM($F152:AT152),$D152/$E152)) -> 0 | AV152: =IF($E152="n/a","n/a",IF(AV$3-6>$E152,$D152-SUM($F152:AU152),$D152/$E152)) -> 0 | AW152: =IF($E152="n/a","n/a",IF(AW$3-6>$E152,$D152-SUM($F152:AV152),$D152/$E152)) -> 0 | AX152: =IF($E152="n/a","n/a",IF(AX$3-6>$E152,$D152-SUM($F152:AW152),$D152/$E152)) -> 0 | AY152: =IF($E152="n/a","n/a",IF(AY$3-6>$E152,$D152-SUM($F152:AX152),$D152/$E152)) -> 0 | AZ152: =IF($E152="n/a","n/a",IF(AZ$3-6>$E152,$D152-SUM($F152:AY152),$D152/$E152)) -> 0 | BA152: =IF($E152="n/a","n/a",IF(BA$3-6>$E152,$D152-SUM($F152:AZ152),$D152/$E152)) -> 0 | BB152: =IF($E152="n/a","n/a",IF(BB$3-6>$E152,$D152-SUM($F152:BA152),$D152/$E152)) -> 0 | BC152: =IF($E152="n/a","n/a",IF(BC$3-6>$E152,$D152-SUM($F152:BB152),$D152/$E152)) -> 0 | BD152: =IF($E152="n/a","n/a",IF(BD$3-6>$E152,$D152-SUM($F152:BC152),$D152/$E152)) -> 0 | BE152: =IF($E152="n/a","n/a",IF(BE$3-6>$E152,$D152-SUM($F152:BD152),$D152/$E152)) -> 0 | BF152: =IF($E152="n/a","n/a",IF(BF$3-6>$E152,$D152-SUM($F152:BE152),$D152/$E152)) -> 0 | BG152: =IF($E152="n/a","n/a",IF(BG$3-6>$E152,$D152-SUM($F152:BF152),$D152/$E152)) -> 0 | BH152: =IF($E152="n/a","n/a",IF(BH$3-6>$E152,$D152-SUM($F152:BG152),$D152/$E152)) -> 0 | BI152: =IF($E152="n/a","n/a",IF(BI$3-6>$E152,$D152-SUM($F152:BH152),$D152/$E152)) -> 0 | BJ152: =IF($E152="n/a","n/a",IF(BJ$3-6>$E152,$D152-SUM($F152:BI152),$D152/$E152)) -> 0 | BK152: =IF($E152="n/a","n/a",IF(BK$3-6>$E152,$D152-SUM($F152:BJ152),$D152/$E152)) -> 0 | BL152: =IF($E152="n/a","n/a",IF(BL$3-6>$E152,$D152-SUM($F152:BK152),$D152/$E152)) -> 0 | BM152: =IF($E152="n/a","n/a",IF(BM$3-6>$E152,$D152-SUM($F152:BL152),$D152/$E152)) -> 0 | BN152: =IF($E152="n/a","n/a",IF(BN$3-6>$E152,$D152-SUM($F152:BM152),$D152/$E152)) -> 0 | BO152: =IF($E152="n/a","n/a",IF(BO$3-6>$E152,$D152-SUM($F152:BN152),$D152/$E152)) -> 0 | BP152: =IF($E152="n/a","n/a",IF(BP$3-6>$E152,$D152-SUM($F152:BO152),$D152/$E152)) -> 0 | BQ152: =IF($E152="n/a","n/a",IF(BQ$3-6>$E152,$D152-SUM($F152:BP152),$D152/$E152)) -> 0 | BR152: =IF($E152="n/a","n/a",IF(BR$3-6>$E152,$D152-SUM($F152:BQ152),$D152/$E152)) -> 0 | BS152: =IF($E152="n/a","n/a",IF(BS$3-6>$E152,$D152-SUM($F152:BR152),$D152/$E152)) -> 0 | BT152: =IF($E152="n/a","n/a",IF(BT$3-6>$E152,$D152-SUM($F152:BS152),$D152/$E152)) -> 0 | BU152: =IF($E152="n/a","n/a",IF(BU$3-6>$E152,$D152-SUM($F152:BT152),$D152/$E152)) -> 0 | BV152: =IF($E152="n/a","n/a",IF(BV$3-6>$E152,$D152-SUM($F152:BU152),$D152/$E152)) -> 0 | BW152: =IF($E152="n/a","n/a",IF(BW$3-6>$E152,$D152-SUM($F152:BV152),$D152/$E152)) -> 0 | BX152: =IF($E152="n/a","n/a",IF(BX$3-6>$E152,$D152-SUM($F152:BW152),$D152/$E152)) -> 0 | BY152: =IF($E152="n/a","n/a",IF(BY$3-6>$E152,$D152-SUM($F152:BX152),$D152/$E152)) -> 0 | BZ152: =IF($E152="n/a","n/a",IF(BZ$3-6>$E152,$D152-SUM($F152:BY152),$D152/$E152)) -> 0
A153: Inventory | C153: 0 | D153: 0 | L153: =IF($E153="n/a","n/a",IF(L$3-6>$E153,$D153-SUM($F153:K153),$D153/$E153)) -> 0 | M153: =IF($E153="n/a","n/a",IF(M$3-6>$E153,$D153-SUM($F153:L153),$D153/$E153)) -> 0 | N153: =IF($E153="n/a","n/a",IF(N$3-6>$E153,$D153-SUM($F153:M153),$D153/$E153)) -> 0 | O153: =IF($E153="n/a","n/a",IF(O$3-6>$E153,$D153-SUM($F153:N153),$D153/$E153)) -> 0 | P153: =IF($E153="n/a","n/a",IF(P$3-6>$E153,$D153-SUM($F153:O153),$D153/$E153)) -> 0 | Q153: =IF($E153="n/a","n/a",IF(Q$3-6>$E153,$D153-SUM($F153:P153),$D153/$E153)) -> 0 | R153: =IF($E153="n/a","n/a",IF(R$3-6>$E153,$D153-SUM($F153:Q153),$D153/$E153)) -> 0 | S153: =IF($E153="n/a","n/a",IF(S$3-6>$E153,$D153-SUM($F153:R153),$D153/$E153)) -> 0 | T153: =IF($E153="n/a","n/a",IF(T$3-6>$E153,$D153-SUM($F153:S153),$D153/$E153)) -> 0 | U153: =IF($E153="n/a","n/a",IF(U$3-6>$E153,$D153-SUM($F153:T153),$D153/$E153)) -> 0 | V153: =IF($E153="n/a","n/a",IF(V$3-6>$E153,$D153-SUM($F153:U153),$D153/$E153)) -> 0 | W153: =IF($E153="n/a","n/a",IF(W$3-6>$E153,$D153-SUM($F153:V153),$D153/$E153)) -> 0 | X153: =IF($E153="n/a","n/a",IF(X$3-6>$E153,$D153-SUM($F153:W153),$D153/$E153)) -> 0 | Y153: =IF($E153="n/a","n/a",IF(Y$3-6>$E153,$D153-SUM($F153:X153),$D153/$E153)) -> 0 | Z153: =IF($E153="n/a","n/a",IF(Z$3-6>$E153,$D153-SUM($F153:Y153),$D153/$E153)) -> 0 | AA153: =IF($E153="n/a","n/a",IF(AA$3-6>$E153,$D153-SUM($F153:Z153),$D153/$E153)) -> 0 | AB153: =IF($E153="n/a","n/a",IF(AB$3-6>$E153,$D153-SUM($F153:AA153),$D153/$E153)) -> 0 | AC153: =IF($E153="n/a","n/a",IF(AC$3-6>$E153,$D153-SUM($F153:AB153),$D153/$E153)) -> 0 | AD153: =IF($E153="n/a","n/a",IF(AD$3-6>$E153,$D153-SUM($F153:AC153),$D153/$E153)) -> 0 | AE153: =IF($E153="n/a","n/a",IF(AE$3-6>$E153,$D153-SUM($F153:AD153),$D153/$E153)) -> 0 | AF153: =IF($E153="n/a","n/a",IF(AF$3-6>$E153,$D153-SUM($F153:AE153),$D153/$E153)) -> 0 | AG153: =IF($E153="n/a","n/a",IF(AG$3-6>$E153,$D153-SUM($F153:AF153),$D153/$E153)) -> 0 | AH153: =IF($E153="n/a","n/a",IF(AH$3-6>$E153,$D153-SUM($F153:AG153),$D153/$E153)) -> 0 | AI153: =IF($E153="n/a","n/a",IF(AI$3-6>$E153,$D153-SUM($F153:AH153),$D153/$E153)) -> 0 | AJ153: =IF($E153="n/a","n/a",IF(AJ$3-6>$E153,$D153-SUM($F153:AI153),$D153/$E153)) -> 0 | AK153: =IF($E153="n/a","n/a",IF(AK$3-6>$E153,$D153-SUM($F153:AJ153),$D153/$E153)) -> 0 | AL153: =IF($E153="n/a","n/a",IF(AL$3-6>$E153,$D153-SUM($F153:AK153),$D153/$E153)) -> 0 | AM153: =IF($E153="n/a","n/a",IF(AM$3-6>$E153,$D153-SUM($F153:AL153),$D153/$E153)) -> 0 | AN153: =IF($E153="n/a","n/a",IF(AN$3-6>$E153,$D153-SUM($F153:AM153),$D153/$E153)) -> 0 | AO153: =IF($E153="n/a","n/a",IF(AO$3-6>$E153,$D153-SUM($F153:AN153),$D153/$E153)) -> 0 | AP153: =IF($E153="n/a","n/a",IF(AP$3-6>$E153,$D153-SUM($F153:AO153),$D153/$E153)) -> 0 | AQ153: =IF($E153="n/a","n/a",IF(AQ$3-6>$E153,$D153-SUM($F153:AP153),$D153/$E153)) -> 0 | AR153: =IF($E153="n/a","n/a",IF(AR$3-6>$E153,$D153-SUM($F153:AQ153),$D153/$E153)) -> 0 | AS153: =IF($E153="n/a","n/a",IF(AS$3-6>$E153,$D153-SUM($F153:AR153),$D153/$E153)) -> 0 | AT153: =IF($E153="n/a","n/a",IF(AT$3-6>$E153,$D153-SUM($F153:AS153),$D153/$E153)) -> 0 | AU153: =IF($E153="n/a","n/a",IF(AU$3-6>$E153,$D153-SUM($F153:AT153),$D153/$E153)) -> 0 | AV153: =IF($E153="n/a","n/a",IF(AV$3-6>$E153,$D153-SUM($F153:AU153),$D153/$E153)) -> 0 | AW153: =IF($E153="n/a","n/a",IF(AW$3-6>$E153,$D153-SUM($F153:AV153),$D153/$E153)) -> 0 | AX153: =IF($E153="n/a","n/a",IF(AX$3-6>$E153,$D153-SUM($F153:AW153),$D153/$E153)) -> 0 | AY153: =IF($E153="n/a","n/a",IF(AY$3-6>$E153,$D153-SUM($F153:AX153),$D153/$E153)) -> 0 | AZ153: =IF($E153="n/a","n/a",IF(AZ$3-6>$E153,$D153-SUM($F153:AY153),$D153/$E153)) -> 0 | BA153: =IF($E153="n/a","n/a",IF(BA$3-6>$E153,$D153-SUM($F153:AZ153),$D153/$E153)) -> 0 | BB153: =IF($E153="n/a","n/a",IF(BB$3-6>$E153,$D153-SUM($F153:BA153),$D153/$E153)) -> 0 | BC153: =IF($E153="n/a","n/a",IF(BC$3-6>$E153,$D153-SUM($F153:BB153),$D153/$E153)) -> 0 | BD153: =IF($E153="n/a","n/a",IF(BD$3-6>$E153,$D153-SUM($F153:BC153),$D153/$E153)) -> 0 | BE153: =IF($E153="n/a","n/a",IF(BE$3-6>$E153,$D153-SUM($F153:BD153),$D153/$E153)) -> 0 | BF153: =IF($E153="n/a","n/a",IF(BF$3-6>$E153,$D153-SUM($F153:BE153),$D153/$E153)) -> 0 | BG153: =IF($E153="n/a","n/a",IF(BG$3-6>$E153,$D153-SUM($F153:BF153),$D153/$E153)) -> 0 | BH153: =IF($E153="n/a","n/a",IF(BH$3-6>$E153,$D153-SUM($F153:BG153),$D153/$E153)) -> 0 | BI153: =IF($E153="n/a","n/a",IF(BI$3-6>$E153,$D153-SUM($F153:BH153),$D153/$E153)) -> 0 | BJ153: =IF($E153="n/a","n/a",IF(BJ$3-6>$E153,$D153-SUM($F153:BI153),$D153/$E153)) -> 0 | BK153: =IF($E153="n/a","n/a",IF(BK$3-6>$E153,$D153-SUM($F153:BJ153),$D153/$E153)) -> 0 | BL153: =IF($E153="n/a","n/a",IF(BL$3-6>$E153,$D153-SUM($F153:BK153),$D153/$E153)) -> 0 | BM153: =IF($E153="n/a","n/a",IF(BM$3-6>$E153,$D153-SUM($F153:BL153),$D153/$E153)) -> 0 | BN153: =IF($E153="n/a","n/a",IF(BN$3-6>$E153,$D153-SUM($F153:BM153),$D153/$E153)) -> 0 | BO153: =IF($E153="n/a","n/a",IF(BO$3-6>$E153,$D153-SUM($F153:BN153),$D153/$E153)) -> 0 | BP153: =IF($E153="n/a","n/a",IF(BP$3-6>$E153,$D153-SUM($F153:BO153),$D153/$E153)) -> 0 | BQ153: =IF($E153="n/a","n/a",IF(BQ$3-6>$E153,$D153-SUM($F153:BP153),$D153/$E153)) -> 0 | BR153: =IF($E153="n/a","n/a",IF(BR$3-6>$E153,$D153-SUM($F153:BQ153),$D153/$E153)) -> 0 | BS153: =IF($E153="n/a","n/a",IF(BS$3-6>$E153,$D153-SUM($F153:BR153),$D153/$E153)) -> 0 | BT153: =IF($E153="n/a","n/a",IF(BT$3-6>$E153,$D153-SUM($F153:BS153),$D153/$E153)) -> 0 | BU153: =IF($E153="n/a","n/a",IF(BU$3-6>$E153,$D153-SUM($F153:BT153),$D153/$E153)) -> 0 | BV153: =IF($E153="n/a","n/a",IF(BV$3-6>$E153,$D153-SUM($F153:BU153),$D153/$E153)) -> 0 | BW153: =IF($E153="n/a","n/a",IF(BW$3-6>$E153,$D153-SUM($F153:BV153),$D153/$E153)) -> 0 | BX153: =IF($E153="n/a","n/a",IF(BX$3-6>$E153,$D153-SUM($F153:BW153),$D153/$E153)) -> 0 | BY153: =IF($E153="n/a","n/a",IF(BY$3-6>$E153,$D153-SUM($F153:BX153),$D153/$E153)) -> 0 | BZ153: =IF($E153="n/a","n/a",IF(BZ$3-6>$E153,$D153-SUM($F153:BY153),$D153/$E153)) -> 0
A154: IT | C154: 0 | D154: 0 | L154: =IF($E154="n/a","n/a",IF(L$3-6>$E154,$D154-SUM($F154:K154),$D154/$E154)) -> 0 | M154: =IF($E154="n/a","n/a",IF(M$3-6>$E154,$D154-SUM($F154:L154),$D154/$E154)) -> 0 | N154: =IF($E154="n/a","n/a",IF(N$3-6>$E154,$D154-SUM($F154:M154),$D154/$E154)) -> 0 | O154: =IF($E154="n/a","n/a",IF(O$3-6>$E154,$D154-SUM($F154:N154),$D154/$E154)) -> 0 | P154: =IF($E154="n/a","n/a",IF(P$3-6>$E154,$D154-SUM($F154:O154),$D154/$E154)) -> 0 | Q154: =IF($E154="n/a","n/a",IF(Q$3-6>$E154,$D154-SUM($F154:P154),$D154/$E154)) -> 0 | R154: =IF($E154="n/a","n/a",IF(R$3-6>$E154,$D154-SUM($F154:Q154),$D154/$E154)) -> 0 | S154: =IF($E154="n/a","n/a",IF(S$3-6>$E154,$D154-SUM($F154:R154),$D154/$E154)) -> 0 | T154: =IF($E154="n/a","n/a",IF(T$3-6>$E154,$D154-SUM($F154:S154),$D154/$E154)) -> 0 | U154: =IF($E154="n/a","n/a",IF(U$3-6>$E154,$D154-SUM($F154:T154),$D154/$E154)) -> 0 | V154: =IF($E154="n/a","n/a",IF(V$3-6>$E154,$D154-SUM($F154:U154),$D154/$E154)) -> 0 | W154: =IF($E154="n/a","n/a",IF(W$3-6>$E154,$D154-SUM($F154:V154),$D154/$E154)) -> 0 | X154: =IF($E154="n/a","n/a",IF(X$3-6>$E154,$D154-SUM($F154:W154),$D154/$E154)) -> 0 | Y154: =IF($E154="n/a","n/a",IF(Y$3-6>$E154,$D154-SUM($F154:X154),$D154/$E154)) -> 0 | Z154: =IF($E154="n/a","n/a",IF(Z$3-6>$E154,$D154-SUM($F154:Y154),$D154/$E154)) -> 0 | AA154: =IF($E154="n/a","n/a",IF(AA$3-6>$E154,$D154-SUM($F154:Z154),$D154/$E154)) -> 0 | AB154: =IF($E154="n/a","n/a",IF(AB$3-6>$E154,$D154-SUM($F154:AA154),$D154/$E154)) -> 0 | AC154: =IF($E154="n/a","n/a",IF(AC$3-6>$E154,$D154-SUM($F154:AB154),$D154/$E154)) -> 0 | AD154: =IF($E154="n/a","n/a",IF(AD$3-6>$E154,$D154-SUM($F154:AC154),$D154/$E154)) -> 0 | AE154: =IF($E154="n/a","n/a",IF(AE$3-6>$E154,$D154-SUM($F154:AD154),$D154/$E154)) -> 0 | AF154: =IF($E154="n/a","n/a",IF(AF$3-6>$E154,$D154-SUM($F154:AE154),$D154/$E154)) -> 0 | AG154: =IF($E154="n/a","n/a",IF(AG$3-6>$E154,$D154-SUM($F154:AF154),$D154/$E154)) -> 0 | AH154: =IF($E154="n/a","n/a",IF(AH$3-6>$E154,$D154-SUM($F154:AG154),$D154/$E154)) -> 0 | AI154: =IF($E154="n/a","n/a",IF(AI$3-6>$E154,$D154-SUM($F154:AH154),$D154/$E154)) -> 0 | AJ154: =IF($E154="n/a","n/a",IF(AJ$3-6>$E154,$D154-SUM($F154:AI154),$D154/$E154)) -> 0 | AK154: =IF($E154="n/a","n/a",IF(AK$3-6>$E154,$D154-SUM($F154:AJ154),$D154/$E154)) -> 0 | AL154: =IF($E154="n/a","n/a",IF(AL$3-6>$E154,$D154-SUM($F154:AK154),$D154/$E154)) -> 0 | AM154: =IF($E154="n/a","n/a",IF(AM$3-6>$E154,$D154-SUM($F154:AL154),$D154/$E154)) -> 0 | AN154: =IF($E154="n/a","n/a",IF(AN$3-6>$E154,$D154-SUM($F154:AM154),$D154/$E154)) -> 0 | AO154: =IF($E154="n/a","n/a",IF(AO$3-6>$E154,$D154-SUM($F154:AN154),$D154/$E154)) -> 0 | AP154: =IF($E154="n/a","n/a",IF(AP$3-6>$E154,$D154-SUM($F154:AO154),$D154/$E154)) -> 0 | AQ154: =IF($E154="n/a","n/a",IF(AQ$3-6>$E154,$D154-SUM($F154:AP154),$D154/$E154)) -> 0 | AR154: =IF($E154="n/a","n/a",IF(AR$3-6>$E154,$D154-SUM($F154:AQ154),$D154/$E154)) -> 0 | AS154: =IF($E154="n/a","n/a",IF(AS$3-6>$E154,$D154-SUM($F154:AR154),$D154/$E154)) -> 0 | AT154: =IF($E154="n/a","n/a",IF(AT$3-6>$E154,$D154-SUM($F154:AS154),$D154/$E154)) -> 0 | AU154: =IF($E154="n/a","n/a",IF(AU$3-6>$E154,$D154-SUM($F154:AT154),$D154/$E154)) -> 0 | AV154: =IF($E154="n/a","n/a",IF(AV$3-6>$E154,$D154-SUM($F154:AU154),$D154/$E154)) -> 0 | AW154: =IF($E154="n/a","n/a",IF(AW$3-6>$E154,$D154-SUM($F154:AV154),$D154/$E154)) -> 0 | AX154: =IF($E154="n/a","n/a",IF(AX$3-6>$E154,$D154-SUM($F154:AW154),$D154/$E154)) -> 0 | AY154: =IF($E154="n/a","n/a",IF(AY$3-6>$E154,$D154-SUM($F154:AX154),$D154/$E154)) -> 0 | AZ154: =IF($E154="n/a","n/a",IF(AZ$3-6>$E154,$D154-SUM($F154:AY154),$D154/$E154)) -> 0 | BA154: =IF($E154="n/a","n/a",IF(BA$3-6>$E154,$D154-SUM($F154:AZ154),$D154/$E154)) -> 0 | BB154: =IF($E154="n/a","n/a",IF(BB$3-6>$E154,$D154-SUM($F154:BA154),$D154/$E154)) -> 0 | BC154: =IF($E154="n/a","n/a",IF(BC$3-6>$E154,$D154-SUM($F154:BB154),$D154/$E154)) -> 0 | BD154: =IF($E154="n/a","n/a",IF(BD$3-6>$E154,$D154-SUM($F154:BC154),$D154/$E154)) -> 0 | BE154: =IF($E154="n/a","n/a",IF(BE$3-6>$E154,$D154-SUM($F154:BD154),$D154/$E154)) -> 0 | BF154: =IF($E154="n/a","n/a",IF(BF$3-6>$E154,$D154-SUM($F154:BE154),$D154/$E154)) -> 0 | BG154: =IF($E154="n/a","n/a",IF(BG$3-6>$E154,$D154-SUM($F154:BF154),$D154/$E154)) -> 0 | BH154: =IF($E154="n/a","n/a",IF(BH$3-6>$E154,$D154-SUM($F154:BG154),$D154/$E154)) -> 0 | BI154: =IF($E154="n/a","n/a",IF(BI$3-6>$E154,$D154-SUM($F154:BH154),$D154/$E154)) -> 0 | BJ154: =IF($E154="n/a","n/a",IF(BJ$3-6>$E154,$D154-SUM($F154:BI154),$D154/$E154)) -> 0 | BK154: =IF($E154="n/a","n/a",IF(BK$3-6>$E154,$D154-SUM($F154:BJ154),$D154/$E154)) -> 0 | BL154: =IF($E154="n/a","n/a",IF(BL$3-6>$E154,$D154-SUM($F154:BK154),$D154/$E154)) -> 0 | BM154: =IF($E154="n/a","n/a",IF(BM$3-6>$E154,$D154-SUM($F154:BL154),$D154/$E154)) -> 0 | BN154: =IF($E154="n/a","n/a",IF(BN$3-6>$E154,$D154-SUM($F154:BM154),$D154/$E154)) -> 0 | BO154: =IF($E154="n/a","n/a",IF(BO$3-6>$E154,$D154-SUM($F154:BN154),$D154/$E154)) -> 0 | BP154: =IF($E154="n/a","n/a",IF(BP$3-6>$E154,$D154-SUM($F154:BO154),$D154/$E154)) -> 0 | BQ154: =IF($E154="n/a","n/a",IF(BQ$3-6>$E154,$D154-SUM($F154:BP154),$D154/$E154)) -> 0 | BR154: =IF($E154="n/a","n/a",IF(BR$3-6>$E154,$D154-SUM($F154:BQ154),$D154/$E154)) -> 0 | BS154: =IF($E154="n/a","n/a",IF(BS$3-6>$E154,$D154-SUM($F154:BR154),$D154/$E154)) -> 0 | BT154: =IF($E154="n/a","n/a",IF(BT$3-6>$E154,$D154-SUM($F154:BS154),$D154/$E154)) -> 0 | BU154: =IF($E154="n/a","n/a",IF(BU$3-6>$E154,$D154-SUM($F154:BT154),$D154/$E154)) -> 0 | BV154: =IF($E154="n/a","n/a",IF(BV$3-6>$E154,$D154-SUM($F154:BU154),$D154/$E154)) -> 0 | BW154: =IF($E154="n/a","n/a",IF(BW$3-6>$E154,$D154-SUM($F154:BV154),$D154/$E154)) -> 0 | BX154: =IF($E154="n/a","n/a",IF(BX$3-6>$E154,$D154-SUM($F154:BW154),$D154/$E154)) -> 0 | BY154: =IF($E154="n/a","n/a",IF(BY$3-6>$E154,$D154-SUM($F154:BX154),$D154/$E154)) -> 0 | BZ154: =IF($E154="n/a","n/a",IF(BZ$3-6>$E154,$D154-SUM($F154:BY154),$D154/$E154)) -> 0
A155: Vehicles | C155: 0 | D155: 0 | L155: =IF($E155="n/a","n/a",IF(L$3-6>$E155,$D155-SUM($F155:K155),$D155/$E155)) -> 0 | M155: =IF($E155="n/a","n/a",IF(M$3-6>$E155,$D155-SUM($F155:L155),$D155/$E155)) -> 0 | N155: =IF($E155="n/a","n/a",IF(N$3-6>$E155,$D155-SUM($F155:M155),$D155/$E155)) -> 0 | O155: =IF($E155="n/a","n/a",IF(O$3-6>$E155,$D155-SUM($F155:N155),$D155/$E155)) -> 0 | P155: =IF($E155="n/a","n/a",IF(P$3-6>$E155,$D155-SUM($F155:O155),$D155/$E155)) -> 0 | Q155: =IF($E155="n/a","n/a",IF(Q$3-6>$E155,$D155-SUM($F155:P155),$D155/$E155)) -> 0 | R155: =IF($E155="n/a","n/a",IF(R$3-6>$E155,$D155-SUM($F155:Q155),$D155/$E155)) -> 0 | S155: =IF($E155="n/a","n/a",IF(S$3-6>$E155,$D155-SUM($F155:R155),$D155/$E155)) -> 0 | T155: =IF($E155="n/a","n/a",IF(T$3-6>$E155,$D155-SUM($F155:S155),$D155/$E155)) -> 0 | U155: =IF($E155="n/a","n/a",IF(U$3-6>$E155,$D155-SUM($F155:T155),$D155/$E155)) -> 0 | V155: =IF($E155="n/a","n/a",IF(V$3-6>$E155,$D155-SUM($F155:U155),$D155/$E155)) -> 0 | W155: =IF($E155="n/a","n/a",IF(W$3-6>$E155,$D155-SUM($F155:V155),$D155/$E155)) -> 0 | X155: =IF($E155="n/a","n/a",IF(X$3-6>$E155,$D155-SUM($F155:W155),$D155/$E155)) -> 0 | Y155: =IF($E155="n/a","n/a",IF(Y$3-6>$E155,$D155-SUM($F155:X155),$D155/$E155)) -> 0 | Z155: =IF($E155="n/a","n/a",IF(Z$3-6>$E155,$D155-SUM($F155:Y155),$D155/$E155)) -> 0 | AA155: =IF($E155="n/a","n/a",IF(AA$3-6>$E155,$D155-SUM($F155:Z155),$D155/$E155)) -> 0 | AB155: =IF($E155="n/a","n/a",IF(AB$3-6>$E155,$D155-SUM($F155:AA155),$D155/$E155)) -> 0 | AC155: =IF($E155="n/a","n/a",IF(AC$3-6>$E155,$D155-SUM($F155:AB155),$D155/$E155)) -> 0 | AD155: =IF($E155="n/a","n/a",IF(AD$3-6>$E155,$D155-SUM($F155:AC155),$D155/$E155)) -> 0 | AE155: =IF($E155="n/a","n/a",IF(AE$3-6>$E155,$D155-SUM($F155:AD155),$D155/$E155)) -> 0 | AF155: =IF($E155="n/a","n/a",IF(AF$3-6>$E155,$D155-SUM($F155:AE155),$D155/$E155)) -> 0 | AG155: =IF($E155="n/a","n/a",IF(AG$3-6>$E155,$D155-SUM($F155:AF155),$D155/$E155)) -> 0 | AH155: =IF($E155="n/a","n/a",IF(AH$3-6>$E155,$D155-SUM($F155:AG155),$D155/$E155)) -> 0 | AI155: =IF($E155="n/a","n/a",IF(AI$3-6>$E155,$D155-SUM($F155:AH155),$D155/$E155)) -> 0 | AJ155: =IF($E155="n/a","n/a",IF(AJ$3-6>$E155,$D155-SUM($F155:AI155),$D155/$E155)) -> 0 | AK155: =IF($E155="n/a","n/a",IF(AK$3-6>$E155,$D155-SUM($F155:AJ155),$D155/$E155)) -> 0 | AL155: =IF($E155="n/a","n/a",IF(AL$3-6>$E155,$D155-SUM($F155:AK155),$D155/$E155)) -> 0 | AM155: =IF($E155="n/a","n/a",IF(AM$3-6>$E155,$D155-SUM($F155:AL155),$D155/$E155)) -> 0 | AN155: =IF($E155="n/a","n/a",IF(AN$3-6>$E155,$D155-SUM($F155:AM155),$D155/$E155)) -> 0 | AO155: =IF($E155="n/a","n/a",IF(AO$3-6>$E155,$D155-SUM($F155:AN155),$D155/$E155)) -> 0 | AP155: =IF($E155="n/a","n/a",IF(AP$3-6>$E155,$D155-SUM($F155:AO155),$D155/$E155)) -> 0 | AQ155: =IF($E155="n/a","n/a",IF(AQ$3-6>$E155,$D155-SUM($F155:AP155),$D155/$E155)) -> 0 | AR155: =IF($E155="n/a","n/a",IF(AR$3-6>$E155,$D155-SUM($F155:AQ155),$D155/$E155)) -> 0 | AS155: =IF($E155="n/a","n/a",IF(AS$3-6>$E155,$D155-SUM($F155:AR155),$D155/$E155)) -> 0 | AT155: =IF($E155="n/a","n/a",IF(AT$3-6>$E155,$D155-SUM($F155:AS155),$D155/$E155)) -> 0 | AU155: =IF($E155="n/a","n/a",IF(AU$3-6>$E155,$D155-SUM($F155:AT155),$D155/$E155)) -> 0 | AV155: =IF($E155="n/a","n/a",IF(AV$3-6>$E155,$D155-SUM($F155:AU155),$D155/$E155)) -> 0 | AW155: =IF($E155="n/a","n/a",IF(AW$3-6>$E155,$D155-SUM($F155:AV155),$D155/$E155)) -> 0 | AX155: =IF($E155="n/a","n/a",IF(AX$3-6>$E155,$D155-SUM($F155:AW155),$D155/$E155)) -> 0 | AY155: =IF($E155="n/a","n/a",IF(AY$3-6>$E155,$D155-SUM($F155:AX155),$D155/$E155)) -> 0 | AZ155: =IF($E155="n/a","n/a",IF(AZ$3-6>$E155,$D155-SUM($F155:AY155),$D155/$E155)) -> 0 | BA155: =IF($E155="n/a","n/a",IF(BA$3-6>$E155,$D155-SUM($F155:AZ155),$D155/$E155)) -> 0 | BB155: =IF($E155="n/a","n/a",IF(BB$3-6>$E155,$D155-SUM($F155:BA155),$D155/$E155)) -> 0 | BC155: =IF($E155="n/a","n/a",IF(BC$3-6>$E155,$D155-SUM($F155:BB155),$D155/$E155)) -> 0 | BD155: =IF($E155="n/a","n/a",IF(BD$3-6>$E155,$D155-SUM($F155:BC155),$D155/$E155)) -> 0 | BE155: =IF($E155="n/a","n/a",IF(BE$3-6>$E155,$D155-SUM($F155:BD155),$D155/$E155)) -> 0 | BF155: =IF($E155="n/a","n/a",IF(BF$3-6>$E155,$D155-SUM($F155:BE155),$D155/$E155)) -> 0 | BG155: =IF($E155="n/a","n/a",IF(BG$3-6>$E155,$D155-SUM($F155:BF155),$D155/$E155)) -> 0 | BH155: =IF($E155="n/a","n/a",IF(BH$3-6>$E155,$D155-SUM($F155:BG155),$D155/$E155)) -> 0 | BI155: =IF($E155="n/a","n/a",IF(BI$3-6>$E155,$D155-SUM($F155:BH155),$D155/$E155)) -> 0 | BJ155: =IF($E155="n/a","n/a",IF(BJ$3-6>$E155,$D155-SUM($F155:BI155),$D155/$E155)) -> 0 | BK155: =IF($E155="n/a","n/a",IF(BK$3-6>$E155,$D155-SUM($F155:BJ155),$D155/$E155)) -> 0 | BL155: =IF($E155="n/a","n/a",IF(BL$3-6>$E155,$D155-SUM($F155:BK155),$D155/$E155)) -> 0 | BM155: =IF($E155="n/a","n/a",IF(BM$3-6>$E155,$D155-SUM($F155:BL155),$D155/$E155)) -> 0 | BN155: =IF($E155="n/a","n/a",IF(BN$3-6>$E155,$D155-SUM($F155:BM155),$D155/$E155)) -> 0 | BO155: =IF($E155="n/a","n/a",IF(BO$3-6>$E155,$D155-SUM($F155:BN155),$D155/$E155)) -> 0 | BP155: =IF($E155="n/a","n/a",IF(BP$3-6>$E155,$D155-SUM($F155:BO155),$D155/$E155)) -> 0 | BQ155: =IF($E155="n/a","n/a",IF(BQ$3-6>$E155,$D155-SUM($F155:BP155),$D155/$E155)) -> 0 | BR155: =IF($E155="n/a","n/a",IF(BR$3-6>$E155,$D155-SUM($F155:BQ155),$D155/$E155)) -> 0 | BS155: =IF($E155="n/a","n/a",IF(BS$3-6>$E155,$D155-SUM($F155:BR155),$D155/$E155)) -> 0 | BT155: =IF($E155="n/a","n/a",IF(BT$3-6>$E155,$D155-SUM($F155:BS155),$D155/$E155)) -> 0 | BU155: =IF($E155="n/a","n/a",IF(BU$3-6>$E155,$D155-SUM($F155:BT155),$D155/$E155)) -> 0 | BV155: =IF($E155="n/a","n/a",IF(BV$3-6>$E155,$D155-SUM($F155:BU155),$D155/$E155)) -> 0 | BW155: =IF($E155="n/a","n/a",IF(BW$3-6>$E155,$D155-SUM($F155:BV155),$D155/$E155)) -> 0 | BX155: =IF($E155="n/a","n/a",IF(BX$3-6>$E155,$D155-SUM($F155:BW155),$D155/$E155)) -> 0 | BY155: =IF($E155="n/a","n/a",IF(BY$3-6>$E155,$D155-SUM($F155:BX155),$D155/$E155)) -> 0 | BZ155: =IF($E155="n/a","n/a",IF(BZ$3-6>$E155,$D155-SUM($F155:BY155),$D155/$E155)) -> 0
A156: Other | C156: 0 | D156: 0 | L156: =IF($E156="n/a","n/a",IF(L$3-6>$E156,$D156-SUM($F156:K156),$D156/$E156)) -> 0 | M156: =IF($E156="n/a","n/a",IF(M$3-6>$E156,$D156-SUM($F156:L156),$D156/$E156)) -> 0 | N156: =IF($E156="n/a","n/a",IF(N$3-6>$E156,$D156-SUM($F156:M156),$D156/$E156)) -> 0 | O156: =IF($E156="n/a","n/a",IF(O$3-6>$E156,$D156-SUM($F156:N156),$D156/$E156)) -> 0 | P156: =IF($E156="n/a","n/a",IF(P$3-6>$E156,$D156-SUM($F156:O156),$D156/$E156)) -> 0 | Q156: =IF($E156="n/a","n/a",IF(Q$3-6>$E156,$D156-SUM($F156:P156),$D156/$E156)) -> 0 | R156: =IF($E156="n/a","n/a",IF(R$3-6>$E156,$D156-SUM($F156:Q156),$D156/$E156)) -> 0 | S156: =IF($E156="n/a","n/a",IF(S$3-6>$E156,$D156-SUM($F156:R156),$D156/$E156)) -> 0 | T156: =IF($E156="n/a","n/a",IF(T$3-6>$E156,$D156-SUM($F156:S156),$D156/$E156)) -> 0 | U156: =IF($E156="n/a","n/a",IF(U$3-6>$E156,$D156-SUM($F156:T156),$D156/$E156)) -> 0 | V156: =IF($E156="n/a","n/a",IF(V$3-6>$E156,$D156-SUM($F156:U156),$D156/$E156)) -> 0 | W156: =IF($E156="n/a","n/a",IF(W$3-6>$E156,$D156-SUM($F156:V156),$D156/$E156)) -> 0 | X156: =IF($E156="n/a","n/a",IF(X$3-6>$E156,$D156-SUM($F156:W156),$D156/$E156)) -> 0 | Y156: =IF($E156="n/a","n/a",IF(Y$3-6>$E156,$D156-SUM($F156:X156),$D156/$E156)) -> 0 | Z156: =IF($E156="n/a","n/a",IF(Z$3-6>$E156,$D156-SUM($F156:Y156),$D156/$E156)) -> 0 | AA156: =IF($E156="n/a","n/a",IF(AA$3-6>$E156,$D156-SUM($F156:Z156),$D156/$E156)) -> 0 | AB156: =IF($E156="n/a","n/a",IF(AB$3-6>$E156,$D156-SUM($F156:AA156),$D156/$E156)) -> 0 | AC156: =IF($E156="n/a","n/a",IF(AC$3-6>$E156,$D156-SUM($F156:AB156),$D156/$E156)) -> 0 | AD156: =IF($E156="n/a","n/a",IF(AD$3-6>$E156,$D156-SUM($F156:AC156),$D156/$E156)) -> 0 | AE156: =IF($E156="n/a","n/a",IF(AE$3-6>$E156,$D156-SUM($F156:AD156),$D156/$E156)) -> 0 | AF156: =IF($E156="n/a","n/a",IF(AF$3-6>$E156,$D156-SUM($F156:AE156),$D156/$E156)) -> 0 | AG156: =IF($E156="n/a","n/a",IF(AG$3-6>$E156,$D156-SUM($F156:AF156),$D156/$E156)) -> 0 | AH156: =IF($E156="n/a","n/a",IF(AH$3-6>$E156,$D156-SUM($F156:AG156),$D156/$E156)) -> 0 | AI156: =IF($E156="n/a","n/a",IF(AI$3-6>$E156,$D156-SUM($F156:AH156),$D156/$E156)) -> 0 | AJ156: =IF($E156="n/a","n/a",IF(AJ$3-6>$E156,$D156-SUM($F156:AI156),$D156/$E156)) -> 0 | AK156: =IF($E156="n/a","n/a",IF(AK$3-6>$E156,$D156-SUM($F156:AJ156),$D156/$E156)) -> 0 | AL156: =IF($E156="n/a","n/a",IF(AL$3-6>$E156,$D156-SUM($F156:AK156),$D156/$E156)) -> 0 | AM156: =IF($E156="n/a","n/a",IF(AM$3-6>$E156,$D156-SUM($F156:AL156),$D156/$E156)) -> 0 | AN156: =IF($E156="n/a","n/a",IF(AN$3-6>$E156,$D156-SUM($F156:AM156),$D156/$E156)) -> 0 | AO156: =IF($E156="n/a","n/a",IF(AO$3-6>$E156,$D156-SUM($F156:AN156),$D156/$E156)) -> 0 | AP156: =IF($E156="n/a","n/a",IF(AP$3-6>$E156,$D156-SUM($F156:AO156),$D156/$E156)) -> 0 | AQ156: =IF($E156="n/a","n/a",IF(AQ$3-6>$E156,$D156-SUM($F156:AP156),$D156/$E156)) -> 0 | AR156: =IF($E156="n/a","n/a",IF(AR$3-6>$E156,$D156-SUM($F156:AQ156),$D156/$E156)) -> 0 | AS156: =IF($E156="n/a","n/a",IF(AS$3-6>$E156,$D156-SUM($F156:AR156),$D156/$E156)) -> 0 | AT156: =IF($E156="n/a","n/a",IF(AT$3-6>$E156,$D156-SUM($F156:AS156),$D156/$E156)) -> 0 | AU156: =IF($E156="n/a","n/a",IF(AU$3-6>$E156,$D156-SUM($F156:AT156),$D156/$E156)) -> 0 | AV156: =IF($E156="n/a","n/a",IF(AV$3-6>$E156,$D156-SUM($F156:AU156),$D156/$E156)) -> 0 | AW156: =IF($E156="n/a","n/a",IF(AW$3-6>$E156,$D156-SUM($F156:AV156),$D156/$E156)) -> 0 | AX156: =IF($E156="n/a","n/a",IF(AX$3-6>$E156,$D156-SUM($F156:AW156),$D156/$E156)) -> 0 | AY156: =IF($E156="n/a","n/a",IF(AY$3-6>$E156,$D156-SUM($F156:AX156),$D156/$E156)) -> 0 | AZ156: =IF($E156="n/a","n/a",IF(AZ$3-6>$E156,$D156-SUM($F156:AY156),$D156/$E156)) -> 0 | BA156: =IF($E156="n/a","n/a",IF(BA$3-6>$E156,$D156-SUM($F156:AZ156),$D156/$E156)) -> 0 | BB156: =IF($E156="n/a","n/a",IF(BB$3-6>$E156,$D156-SUM($F156:BA156),$D156/$E156)) -> 0 | BC156: =IF($E156="n/a","n/a",IF(BC$3-6>$E156,$D156-SUM($F156:BB156),$D156/$E156)) -> 0 | BD156: =IF($E156="n/a","n/a",IF(BD$3-6>$E156,$D156-SUM($F156:BC156),$D156/$E156)) -> 0 | BE156: =IF($E156="n/a","n/a",IF(BE$3-6>$E156,$D156-SUM($F156:BD156),$D156/$E156)) -> 0 | BF156: =IF($E156="n/a","n/a",IF(BF$3-6>$E156,$D156-SUM($F156:BE156),$D156/$E156)) -> 0 | BG156: =IF($E156="n/a","n/a",IF(BG$3-6>$E156,$D156-SUM($F156:BF156),$D156/$E156)) -> 0 | BH156: =IF($E156="n/a","n/a",IF(BH$3-6>$E156,$D156-SUM($F156:BG156),$D156/$E156)) -> 0 | BI156: =IF($E156="n/a","n/a",IF(BI$3-6>$E156,$D156-SUM($F156:BH156),$D156/$E156)) -> 0 | BJ156: =IF($E156="n/a","n/a",IF(BJ$3-6>$E156,$D156-SUM($F156:BI156),$D156/$E156)) -> 0 | BK156: =IF($E156="n/a","n/a",IF(BK$3-6>$E156,$D156-SUM($F156:BJ156),$D156/$E156)) -> 0 | BL156: =IF($E156="n/a","n/a",IF(BL$3-6>$E156,$D156-SUM($F156:BK156),$D156/$E156)) -> 0 | BM156: =IF($E156="n/a","n/a",IF(BM$3-6>$E156,$D156-SUM($F156:BL156),$D156/$E156)) -> 0 | BN156: =IF($E156="n/a","n/a",IF(BN$3-6>$E156,$D156-SUM($F156:BM156),$D156/$E156)) -> 0 | BO156: =IF($E156="n/a","n/a",IF(BO$3-6>$E156,$D156-SUM($F156:BN156),$D156/$E156)) -> 0 | BP156: =IF($E156="n/a","n/a",IF(BP$3-6>$E156,$D156-SUM($F156:BO156),$D156/$E156)) -> 0 | BQ156: =IF($E156="n/a","n/a",IF(BQ$3-6>$E156,$D156-SUM($F156:BP156),$D156/$E156)) -> 0 | BR156: =IF($E156="n/a","n/a",IF(BR$3-6>$E156,$D156-SUM($F156:BQ156),$D156/$E156)) -> 0 | BS156: =IF($E156="n/a","n/a",IF(BS$3-6>$E156,$D156-SUM($F156:BR156),$D156/$E156)) -> 0 | BT156: =IF($E156="n/a","n/a",IF(BT$3-6>$E156,$D156-SUM($F156:BS156),$D156/$E156)) -> 0 | BU156: =IF($E156="n/a","n/a",IF(BU$3-6>$E156,$D156-SUM($F156:BT156),$D156/$E156)) -> 0 | BV156: =IF($E156="n/a","n/a",IF(BV$3-6>$E156,$D156-SUM($F156:BU156),$D156/$E156)) -> 0 | BW156: =IF($E156="n/a","n/a",IF(BW$3-6>$E156,$D156-SUM($F156:BV156),$D156/$E156)) -> 0 | BX156: =IF($E156="n/a","n/a",IF(BX$3-6>$E156,$D156-SUM($F156:BW156),$D156/$E156)) -> 0 | BY156: =IF($E156="n/a","n/a",IF(BY$3-6>$E156,$D156-SUM($F156:BX156),$D156/$E156)) -> 0 | BZ156: =IF($E156="n/a","n/a",IF(BZ$3-6>$E156,$D156-SUM($F156:BY156),$D156/$E156)) -> 0
A157: Premises | C157: 0 | D157: 0 | L157: =IF($E157="n/a","n/a",IF(L$3-6>$E157,$D157-SUM($F157:K157),$D157/$E157)) -> 0 | M157: =IF($E157="n/a","n/a",IF(M$3-6>$E157,$D157-SUM($F157:L157),$D157/$E157)) -> 0 | N157: =IF($E157="n/a","n/a",IF(N$3-6>$E157,$D157-SUM($F157:M157),$D157/$E157)) -> 0 | O157: =IF($E157="n/a","n/a",IF(O$3-6>$E157,$D157-SUM($F157:N157),$D157/$E157)) -> 0 | P157: =IF($E157="n/a","n/a",IF(P$3-6>$E157,$D157-SUM($F157:O157),$D157/$E157)) -> 0 | Q157: =IF($E157="n/a","n/a",IF(Q$3-6>$E157,$D157-SUM($F157:P157),$D157/$E157)) -> 0 | R157: =IF($E157="n/a","n/a",IF(R$3-6>$E157,$D157-SUM($F157:Q157),$D157/$E157)) -> 0 | S157: =IF($E157="n/a","n/a",IF(S$3-6>$E157,$D157-SUM($F157:R157),$D157/$E157)) -> 0 | T157: =IF($E157="n/a","n/a",IF(T$3-6>$E157,$D157-SUM($F157:S157),$D157/$E157)) -> 0 | U157: =IF($E157="n/a","n/a",IF(U$3-6>$E157,$D157-SUM($F157:T157),$D157/$E157)) -> 0 | V157: =IF($E157="n/a","n/a",IF(V$3-6>$E157,$D157-SUM($F157:U157),$D157/$E157)) -> 0 | W157: =IF($E157="n/a","n/a",IF(W$3-6>$E157,$D157-SUM($F157:V157),$D157/$E157)) -> 0 | X157: =IF($E157="n/a","n/a",IF(X$3-6>$E157,$D157-SUM($F157:W157),$D157/$E157)) -> 0 | Y157: =IF($E157="n/a","n/a",IF(Y$3-6>$E157,$D157-SUM($F157:X157),$D157/$E157)) -> 0 | Z157: =IF($E157="n/a","n/a",IF(Z$3-6>$E157,$D157-SUM($F157:Y157),$D157/$E157)) -> 0 | AA157: =IF($E157="n/a","n/a",IF(AA$3-6>$E157,$D157-SUM($F157:Z157),$D157/$E157)) -> 0 | AB157: =IF($E157="n/a","n/a",IF(AB$3-6>$E157,$D157-SUM($F157:AA157),$D157/$E157)) -> 0 | AC157: =IF($E157="n/a","n/a",IF(AC$3-6>$E157,$D157-SUM($F157:AB157),$D157/$E157)) -> 0 | AD157: =IF($E157="n/a","n/a",IF(AD$3-6>$E157,$D157-SUM($F157:AC157),$D157/$E157)) -> 0 | AE157: =IF($E157="n/a","n/a",IF(AE$3-6>$E157,$D157-SUM($F157:AD157),$D157/$E157)) -> 0 | AF157: =IF($E157="n/a","n/a",IF(AF$3-6>$E157,$D157-SUM($F157:AE157),$D157/$E157)) -> 0 | AG157: =IF($E157="n/a","n/a",IF(AG$3-6>$E157,$D157-SUM($F157:AF157),$D157/$E157)) -> 0 | AH157: =IF($E157="n/a","n/a",IF(AH$3-6>$E157,$D157-SUM($F157:AG157),$D157/$E157)) -> 0 | AI157: =IF($E157="n/a","n/a",IF(AI$3-6>$E157,$D157-SUM($F157:AH157),$D157/$E157)) -> 0 | AJ157: =IF($E157="n/a","n/a",IF(AJ$3-6>$E157,$D157-SUM($F157:AI157),$D157/$E157)) -> 0 | AK157: =IF($E157="n/a","n/a",IF(AK$3-6>$E157,$D157-SUM($F157:AJ157),$D157/$E157)) -> 0 | AL157: =IF($E157="n/a","n/a",IF(AL$3-6>$E157,$D157-SUM($F157:AK157),$D157/$E157)) -> 0 | AM157: =IF($E157="n/a","n/a",IF(AM$3-6>$E157,$D157-SUM($F157:AL157),$D157/$E157)) -> 0 | AN157: =IF($E157="n/a","n/a",IF(AN$3-6>$E157,$D157-SUM($F157:AM157),$D157/$E157)) -> 0 | AO157: =IF($E157="n/a","n/a",IF(AO$3-6>$E157,$D157-SUM($F157:AN157),$D157/$E157)) -> 0 | AP157: =IF($E157="n/a","n/a",IF(AP$3-6>$E157,$D157-SUM($F157:AO157),$D157/$E157)) -> 0 | AQ157: =IF($E157="n/a","n/a",IF(AQ$3-6>$E157,$D157-SUM($F157:AP157),$D157/$E157)) -> 0 | AR157: =IF($E157="n/a","n/a",IF(AR$3-6>$E157,$D157-SUM($F157:AQ157),$D157/$E157)) -> 0 | AS157: =IF($E157="n/a","n/a",IF(AS$3-6>$E157,$D157-SUM($F157:AR157),$D157/$E157)) -> 0 | AT157: =IF($E157="n/a","n/a",IF(AT$3-6>$E157,$D157-SUM($F157:AS157),$D157/$E157)) -> 0 | AU157: =IF($E157="n/a","n/a",IF(AU$3-6>$E157,$D157-SUM($F157:AT157),$D157/$E157)) -> 0 | AV157: =IF($E157="n/a","n/a",IF(AV$3-6>$E157,$D157-SUM($F157:AU157),$D157/$E157)) -> 0 | AW157: =IF($E157="n/a","n/a",IF(AW$3-6>$E157,$D157-SUM($F157:AV157),$D157/$E157)) -> 0 | AX157: =IF($E157="n/a","n/a",IF(AX$3-6>$E157,$D157-SUM($F157:AW157),$D157/$E157)) -> 0 | AY157: =IF($E157="n/a","n/a",IF(AY$3-6>$E157,$D157-SUM($F157:AX157),$D157/$E157)) -> 0 | AZ157: =IF($E157="n/a","n/a",IF(AZ$3-6>$E157,$D157-SUM($F157:AY157),$D157/$E157)) -> 0 | BA157: =IF($E157="n/a","n/a",IF(BA$3-6>$E157,$D157-SUM($F157:AZ157),$D157/$E157)) -> 0 | BB157: =IF($E157="n/a","n/a",IF(BB$3-6>$E157,$D157-SUM($F157:BA157),$D157/$E157)) -> 0 | BC157: =IF($E157="n/a","n/a",IF(BC$3-6>$E157,$D157-SUM($F157:BB157),$D157/$E157)) -> 0 | BD157: =IF($E157="n/a","n/a",IF(BD$3-6>$E157,$D157-SUM($F157:BC157),$D157/$E157)) -> 0 | BE157: =IF($E157="n/a","n/a",IF(BE$3-6>$E157,$D157-SUM($F157:BD157),$D157/$E157)) -> 0 | BF157: =IF($E157="n/a","n/a",IF(BF$3-6>$E157,$D157-SUM($F157:BE157),$D157/$E157)) -> 0 | BG157: =IF($E157="n/a","n/a",IF(BG$3-6>$E157,$D157-SUM($F157:BF157),$D157/$E157)) -> 0 | BH157: =IF($E157="n/a","n/a",IF(BH$3-6>$E157,$D157-SUM($F157:BG157),$D157/$E157)) -> 0 | BI157: =IF($E157="n/a","n/a",IF(BI$3-6>$E157,$D157-SUM($F157:BH157),$D157/$E157)) -> 0 | BJ157: =IF($E157="n/a","n/a",IF(BJ$3-6>$E157,$D157-SUM($F157:BI157),$D157/$E157)) -> 0 | BK157: =IF($E157="n/a","n/a",IF(BK$3-6>$E157,$D157-SUM($F157:BJ157),$D157/$E157)) -> 0 | BL157: =IF($E157="n/a","n/a",IF(BL$3-6>$E157,$D157-SUM($F157:BK157),$D157/$E157)) -> 0 | BM157: =IF($E157="n/a","n/a",IF(BM$3-6>$E157,$D157-SUM($F157:BL157),$D157/$E157)) -> 0 | BN157: =IF($E157="n/a","n/a",IF(BN$3-6>$E157,$D157-SUM($F157:BM157),$D157/$E157)) -> 0 | BO157: =IF($E157="n/a","n/a",IF(BO$3-6>$E157,$D157-SUM($F157:BN157),$D157/$E157)) -> 0 | BP157: =IF($E157="n/a","n/a",IF(BP$3-6>$E157,$D157-SUM($F157:BO157),$D157/$E157)) -> 0 | BQ157: =IF($E157="n/a","n/a",IF(BQ$3-6>$E157,$D157-SUM($F157:BP157),$D157/$E157)) -> 0 | BR157: =IF($E157="n/a","n/a",IF(BR$3-6>$E157,$D157-SUM($F157:BQ157),$D157/$E157)) -> 0 | BS157: =IF($E157="n/a","n/a",IF(BS$3-6>$E157,$D157-SUM($F157:BR157),$D157/$E157)) -> 0 | BT157: =IF($E157="n/a","n/a",IF(BT$3-6>$E157,$D157-SUM($F157:BS157),$D157/$E157)) -> 0 | BU157: =IF($E157="n/a","n/a",IF(BU$3-6>$E157,$D157-SUM($F157:BT157),$D157/$E157)) -> 0 | BV157: =IF($E157="n/a","n/a",IF(BV$3-6>$E157,$D157-SUM($F157:BU157),$D157/$E157)) -> 0 | BW157: =IF($E157="n/a","n/a",IF(BW$3-6>$E157,$D157-SUM($F157:BV157),$D157/$E157)) -> 0 | BX157: =IF($E157="n/a","n/a",IF(BX$3-6>$E157,$D157-SUM($F157:BW157),$D157/$E157)) -> 0 | BY157: =IF($E157="n/a","n/a",IF(BY$3-6>$E157,$D157-SUM($F157:BX157),$D157/$E157)) -> 0 | BZ157: =IF($E157="n/a","n/a",IF(BZ$3-6>$E157,$D157-SUM($F157:BY157),$D157/$E157)) -> 0
A158: Land | C158: 0 | D158: 0 | L158: =IF($E158="n/a","n/a",IF(L$3-6>$E158,$D158-SUM($F158:K158),$D158/$E158)) -> 0 | M158: =IF($E158="n/a","n/a",IF(M$3-6>$E158,$D158-SUM($F158:L158),$D158/$E158)) -> 0 | N158: =IF($E158="n/a","n/a",IF(N$3-6>$E158,$D158-SUM($F158:M158),$D158/$E158)) -> 0 | O158: =IF($E158="n/a","n/a",IF(O$3-6>$E158,$D158-SUM($F158:N158),$D158/$E158)) -> 0 | P158: =IF($E158="n/a","n/a",IF(P$3-6>$E158,$D158-SUM($F158:O158),$D158/$E158)) -> 0 | Q158: =IF($E158="n/a","n/a",IF(Q$3-6>$E158,$D158-SUM($F158:P158),$D158/$E158)) -> 0 | R158: =IF($E158="n/a","n/a",IF(R$3-6>$E158,$D158-SUM($F158:Q158),$D158/$E158)) -> 0 | S158: =IF($E158="n/a","n/a",IF(S$3-6>$E158,$D158-SUM($F158:R158),$D158/$E158)) -> 0 | T158: =IF($E158="n/a","n/a",IF(T$3-6>$E158,$D158-SUM($F158:S158),$D158/$E158)) -> 0 | U158: =IF($E158="n/a","n/a",IF(U$3-6>$E158,$D158-SUM($F158:T158),$D158/$E158)) -> 0 | V158: =IF($E158="n/a","n/a",IF(V$3-6>$E158,$D158-SUM($F158:U158),$D158/$E158)) -> 0 | W158: =IF($E158="n/a","n/a",IF(W$3-6>$E158,$D158-SUM($F158:V158),$D158/$E158)) -> 0 | X158: =IF($E158="n/a","n/a",IF(X$3-6>$E158,$D158-SUM($F158:W158),$D158/$E158)) -> 0 | Y158: =IF($E158="n/a","n/a",IF(Y$3-6>$E158,$D158-SUM($F158:X158),$D158/$E158)) -> 0 | Z158: =IF($E158="n/a","n/a",IF(Z$3-6>$E158,$D158-SUM($F158:Y158),$D158/$E158)) -> 0 | AA158: =IF($E158="n/a","n/a",IF(AA$3-6>$E158,$D158-SUM($F158:Z158),$D158/$E158)) -> 0 | AB158: =IF($E158="n/a","n/a",IF(AB$3-6>$E158,$D158-SUM($F158:AA158),$D158/$E158)) -> 0 | AC158: =IF($E158="n/a","n/a",IF(AC$3-6>$E158,$D158-SUM($F158:AB158),$D158/$E158)) -> 0 | AD158: =IF($E158="n/a","n/a",IF(AD$3-6>$E158,$D158-SUM($F158:AC158),$D158/$E158)) -> 0 | AE158: =IF($E158="n/a","n/a",IF(AE$3-6>$E158,$D158-SUM($F158:AD158),$D158/$E158)) -> 0 | AF158: =IF($E158="n/a","n/a",IF(AF$3-6>$E158,$D158-SUM($F158:AE158),$D158/$E158)) -> 0 | AG158: =IF($E158="n/a","n/a",IF(AG$3-6>$E158,$D158-SUM($F158:AF158),$D158/$E158)) -> 0 | AH158: =IF($E158="n/a","n/a",IF(AH$3-6>$E158,$D158-SUM($F158:AG158),$D158/$E158)) -> 0 | AI158: =IF($E158="n/a","n/a",IF(AI$3-6>$E158,$D158-SUM($F158:AH158),$D158/$E158)) -> 0 | AJ158: =IF($E158="n/a","n/a",IF(AJ$3-6>$E158,$D158-SUM($F158:AI158),$D158/$E158)) -> 0 | AK158: =IF($E158="n/a","n/a",IF(AK$3-6>$E158,$D158-SUM($F158:AJ158),$D158/$E158)) -> 0 | AL158: =IF($E158="n/a","n/a",IF(AL$3-6>$E158,$D158-SUM($F158:AK158),$D158/$E158)) -> 0 | AM158: =IF($E158="n/a","n/a",IF(AM$3-6>$E158,$D158-SUM($F158:AL158),$D158/$E158)) -> 0 | AN158: =IF($E158="n/a","n/a",IF(AN$3-6>$E158,$D158-SUM($F158:AM158),$D158/$E158)) -> 0 | AO158: =IF($E158="n/a","n/a",IF(AO$3-6>$E158,$D158-SUM($F158:AN158),$D158/$E158)) -> 0 | AP158: =IF($E158="n/a","n/a",IF(AP$3-6>$E158,$D158-SUM($F158:AO158),$D158/$E158)) -> 0 | AQ158: =IF($E158="n/a","n/a",IF(AQ$3-6>$E158,$D158-SUM($F158:AP158),$D158/$E158)) -> 0 | AR158: =IF($E158="n/a","n/a",IF(AR$3-6>$E158,$D158-SUM($F158:AQ158),$D158/$E158)) -> 0 | AS158: =IF($E158="n/a","n/a",IF(AS$3-6>$E158,$D158-SUM($F158:AR158),$D158/$E158)) -> 0 | AT158: =IF($E158="n/a","n/a",IF(AT$3-6>$E158,$D158-SUM($F158:AS158),$D158/$E158)) -> 0 | AU158: =IF($E158="n/a","n/a",IF(AU$3-6>$E158,$D158-SUM($F158:AT158),$D158/$E158)) -> 0 | AV158: =IF($E158="n/a","n/a",IF(AV$3-6>$E158,$D158-SUM($F158:AU158),$D158/$E158)) -> 0 | AW158: =IF($E158="n/a","n/a",IF(AW$3-6>$E158,$D158-SUM($F158:AV158),$D158/$E158)) -> 0 | AX158: =IF($E158="n/a","n/a",IF(AX$3-6>$E158,$D158-SUM($F158:AW158),$D158/$E158)) -> 0 | AY158: =IF($E158="n/a","n/a",IF(AY$3-6>$E158,$D158-SUM($F158:AX158),$D158/$E158)) -> 0 | AZ158: =IF($E158="n/a","n/a",IF(AZ$3-6>$E158,$D158-SUM($F158:AY158),$D158/$E158)) -> 0 | BA158: =IF($E158="n/a","n/a",IF(BA$3-6>$E158,$D158-SUM($F158:AZ158),$D158/$E158)) -> 0 | BB158: =IF($E158="n/a","n/a",IF(BB$3-6>$E158,$D158-SUM($F158:BA158),$D158/$E158)) -> 0 | BC158: =IF($E158="n/a","n/a",IF(BC$3-6>$E158,$D158-SUM($F158:BB158),$D158/$E158)) -> 0 | BD158: =IF($E158="n/a","n/a",IF(BD$3-6>$E158,$D158-SUM($F158:BC158),$D158/$E158)) -> 0 | BE158: =IF($E158="n/a","n/a",IF(BE$3-6>$E158,$D158-SUM($F158:BD158),$D158/$E158)) -> 0 | BF158: =IF($E158="n/a","n/a",IF(BF$3-6>$E158,$D158-SUM($F158:BE158),$D158/$E158)) -> 0 | BG158: =IF($E158="n/a","n/a",IF(BG$3-6>$E158,$D158-SUM($F158:BF158),$D158/$E158)) -> 0 | BH158: =IF($E158="n/a","n/a",IF(BH$3-6>$E158,$D158-SUM($F158:BG158),$D158/$E158)) -> 0 | BI158: =IF($E158="n/a","n/a",IF(BI$3-6>$E158,$D158-SUM($F158:BH158),$D158/$E158)) -> 0 | BJ158: =IF($E158="n/a","n/a",IF(BJ$3-6>$E158,$D158-SUM($F158:BI158),$D158/$E158)) -> 0 | BK158: =IF($E158="n/a","n/a",IF(BK$3-6>$E158,$D158-SUM($F158:BJ158),$D158/$E158)) -> 0 | BL158: =IF($E158="n/a","n/a",IF(BL$3-6>$E158,$D158-SUM($F158:BK158),$D158/$E158)) -> 0 | BM158: =IF($E158="n/a","n/a",IF(BM$3-6>$E158,$D158-SUM($F158:BL158),$D158/$E158)) -> 0 | BN158: =IF($E158="n/a","n/a",IF(BN$3-6>$E158,$D158-SUM($F158:BM158),$D158/$E158)) -> 0 | BO158: =IF($E158="n/a","n/a",IF(BO$3-6>$E158,$D158-SUM($F158:BN158),$D158/$E158)) -> 0 | BP158: =IF($E158="n/a","n/a",IF(BP$3-6>$E158,$D158-SUM($F158:BO158),$D158/$E158)) -> 0 | BQ158: =IF($E158="n/a","n/a",IF(BQ$3-6>$E158,$D158-SUM($F158:BP158),$D158/$E158)) -> 0 | BR158: =IF($E158="n/a","n/a",IF(BR$3-6>$E158,$D158-SUM($F158:BQ158),$D158/$E158)) -> 0 | BS158: =IF($E158="n/a","n/a",IF(BS$3-6>$E158,$D158-SUM($F158:BR158),$D158/$E158)) -> 0 | BT158: =IF($E158="n/a","n/a",IF(BT$3-6>$E158,$D158-SUM($F158:BS158),$D158/$E158)) -> 0 | BU158: =IF($E158="n/a","n/a",IF(BU$3-6>$E158,$D158-SUM($F158:BT158),$D158/$E158)) -> 0 | BV158: =IF($E158="n/a","n/a",IF(BV$3-6>$E158,$D158-SUM($F158:BU158),$D158/$E158)) -> 0 | BW158: =IF($E158="n/a","n/a",IF(BW$3-6>$E158,$D158-SUM($F158:BV158),$D158/$E158)) -> 0 | BX158: =IF($E158="n/a","n/a",IF(BX$3-6>$E158,$D158-SUM($F158:BW158),$D158/$E158)) -> 0 | BY158: =IF($E158="n/a","n/a",IF(BY$3-6>$E158,$D158-SUM($F158:BX158),$D158/$E158)) -> 0 | BZ158: =IF($E158="n/a","n/a",IF(BZ$3-6>$E158,$D158-SUM($F158:BY158),$D158/$E158)) -> 0
A159: Easements | C159: 0 | D159: 0 | L159: =IF($E159="n/a","n/a",IF(L$3-6>$E159,$D159-SUM($F159:K159),$D159/$E159)) -> 0 | M159: =IF($E159="n/a","n/a",IF(M$3-6>$E159,$D159-SUM($F159:L159),$D159/$E159)) -> 0 | N159: =IF($E159="n/a","n/a",IF(N$3-6>$E159,$D159-SUM($F159:M159),$D159/$E159)) -> 0 | O159: =IF($E159="n/a","n/a",IF(O$3-6>$E159,$D159-SUM($F159:N159),$D159/$E159)) -> 0 | P159: =IF($E159="n/a","n/a",IF(P$3-6>$E159,$D159-SUM($F159:O159),$D159/$E159)) -> 0 | Q159: =IF($E159="n/a","n/a",IF(Q$3-6>$E159,$D159-SUM($F159:P159),$D159/$E159)) -> 0 | R159: =IF($E159="n/a","n/a",IF(R$3-6>$E159,$D159-SUM($F159:Q159),$D159/$E159)) -> 0 | S159: =IF($E159="n/a","n/a",IF(S$3-6>$E159,$D159-SUM($F159:R159),$D159/$E159)) -> 0 | T159: =IF($E159="n/a","n/a",IF(T$3-6>$E159,$D159-SUM($F159:S159),$D159/$E159)) -> 0 | U159: =IF($E159="n/a","n/a",IF(U$3-6>$E159,$D159-SUM($F159:T159),$D159/$E159)) -> 0 | V159: =IF($E159="n/a","n/a",IF(V$3-6>$E159,$D159-SUM($F159:U159),$D159/$E159)) -> 0 | W159: =IF($E159="n/a","n/a",IF(W$3-6>$E159,$D159-SUM($F159:V159),$D159/$E159)) -> 0 | X159: =IF($E159="n/a","n/a",IF(X$3-6>$E159,$D159-SUM($F159:W159),$D159/$E159)) -> 0 | Y159: =IF($E159="n/a","n/a",IF(Y$3-6>$E159,$D159-SUM($F159:X159),$D159/$E159)) -> 0 | Z159: =IF($E159="n/a","n/a",IF(Z$3-6>$E159,$D159-SUM($F159:Y159),$D159/$E159)) -> 0 | AA159: =IF($E159="n/a","n/a",IF(AA$3-6>$E159,$D159-SUM($F159:Z159),$D159/$E159)) -> 0 | AB159: =IF($E159="n/a","n/a",IF(AB$3-6>$E159,$D159-SUM($F159:AA159),$D159/$E159)) -> 0 | AC159: =IF($E159="n/a","n/a",IF(AC$3-6>$E159,$D159-SUM($F159:AB159),$D159/$E159)) -> 0 | AD159: =IF($E159="n/a","n/a",IF(AD$3-6>$E159,$D159-SUM($F159:AC159),$D159/$E159)) -> 0 | AE159: =IF($E159="n/a","n/a",IF(AE$3-6>$E159,$D159-SUM($F159:AD159),$D159/$E159)) -> 0 | AF159: =IF($E159="n/a","n/a",IF(AF$3-6>$E159,$D159-SUM($F159:AE159),$D159/$E159)) -> 0 | AG159: =IF($E159="n/a","n/a",IF(AG$3-6>$E159,$D159-SUM($F159:AF159),$D159/$E159)) -> 0 | AH159: =IF($E159="n/a","n/a",IF(AH$3-6>$E159,$D159-SUM($F159:AG159),$D159/$E159)) -> 0 | AI159: =IF($E159="n/a","n/a",IF(AI$3-6>$E159,$D159-SUM($F159:AH159),$D159/$E159)) -> 0 | AJ159: =IF($E159="n/a","n/a",IF(AJ$3-6>$E159,$D159-SUM($F159:AI159),$D159/$E159)) -> 0 | AK159: =IF($E159="n/a","n/a",IF(AK$3-6>$E159,$D159-SUM($F159:AJ159),$D159/$E159)) -> 0 | AL159: =IF($E159="n/a","n/a",IF(AL$3-6>$E159,$D159-SUM($F159:AK159),$D159/$E159)) -> 0 | AM159: =IF($E159="n/a","n/a",IF(AM$3-6>$E159,$D159-SUM($F159:AL159),$D159/$E159)) -> 0 | AN159: =IF($E159="n/a","n/a",IF(AN$3-6>$E159,$D159-SUM($F159:AM159),$D159/$E159)) -> 0 | AO159: =IF($E159="n/a","n/a",IF(AO$3-6>$E159,$D159-SUM($F159:AN159),$D159/$E159)) -> 0 | AP159: =IF($E159="n/a","n/a",IF(AP$3-6>$E159,$D159-SUM($F159:AO159),$D159/$E159)) -> 0 | AQ159: =IF($E159="n/a","n/a",IF(AQ$3-6>$E159,$D159-SUM($F159:AP159),$D159/$E159)) -> 0 | AR159: =IF($E159="n/a","n/a",IF(AR$3-6>$E159,$D159-SUM($F159:AQ159),$D159/$E159)) -> 0 | AS159: =IF($E159="n/a","n/a",IF(AS$3-6>$E159,$D159-SUM($F159:AR159),$D159/$E159)) -> 0 | AT159: =IF($E159="n/a","n/a",IF(AT$3-6>$E159,$D159-SUM($F159:AS159),$D159/$E159)) -> 0 | AU159: =IF($E159="n/a","n/a",IF(AU$3-6>$E159,$D159-SUM($F159:AT159),$D159/$E159)) -> 0 | AV159: =IF($E159="n/a","n/a",IF(AV$3-6>$E159,$D159-SUM($F159:AU159),$D159/$E159)) -> 0 | AW159: =IF($E159="n/a","n/a",IF(AW$3-6>$E159,$D159-SUM($F159:AV159),$D159/$E159)) -> 0 | AX159: =IF($E159="n/a","n/a",IF(AX$3-6>$E159,$D159-SUM($F159:AW159),$D159/$E159)) -> 0 | AY159: =IF($E159="n/a","n/a",IF(AY$3-6>$E159,$D159-SUM($F159:AX159),$D159/$E159)) -> 0 | AZ159: =IF($E159="n/a","n/a",IF(AZ$3-6>$E159,$D159-SUM($F159:AY159),$D159/$E159)) -> 0 | BA159: =IF($E159="n/a","n/a",IF(BA$3-6>$E159,$D159-SUM($F159:AZ159),$D159/$E159)) -> 0 | BB159: =IF($E159="n/a","n/a",IF(BB$3-6>$E159,$D159-SUM($F159:BA159),$D159/$E159)) -> 0 | BC159: =IF($E159="n/a","n/a",IF(BC$3-6>$E159,$D159-SUM($F159:BB159),$D159/$E159)) -> 0 | BD159: =IF($E159="n/a","n/a",IF(BD$3-6>$E159,$D159-SUM($F159:BC159),$D159/$E159)) -> 0 | BE159: =IF($E159="n/a","n/a",IF(BE$3-6>$E159,$D159-SUM($F159:BD159),$D159/$E159)) -> 0 | BF159: =IF($E159="n/a","n/a",IF(BF$3-6>$E159,$D159-SUM($F159:BE159),$D159/$E159)) -> 0 | BG159: =IF($E159="n/a","n/a",IF(BG$3-6>$E159,$D159-SUM($F159:BF159),$D159/$E159)) -> 0 | BH159: =IF($E159="n/a","n/a",IF(BH$3-6>$E159,$D159-SUM($F159:BG159),$D159/$E159)) -> 0 | BI159: =IF($E159="n/a","n/a",IF(BI$3-6>$E159,$D159-SUM($F159:BH159),$D159/$E159)) -> 0 | BJ159: =IF($E159="n/a","n/a",IF(BJ$3-6>$E159,$D159-SUM($F159:BI159),$D159/$E159)) -> 0 | BK159: =IF($E159="n/a","n/a",IF(BK$3-6>$E159,$D159-SUM($F159:BJ159),$D159/$E159)) -> 0 | BL159: =IF($E159="n/a","n/a",IF(BL$3-6>$E159,$D159-SUM($F159:BK159),$D159/$E159)) -> 0 | BM159: =IF($E159="n/a","n/a",IF(BM$3-6>$E159,$D159-SUM($F159:BL159),$D159/$E159)) -> 0 | BN159: =IF($E159="n/a","n/a",IF(BN$3-6>$E159,$D159-SUM($F159:BM159),$D159/$E159)) -> 0 | BO159: =IF($E159="n/a","n/a",IF(BO$3-6>$E159,$D159-SUM($F159:BN159),$D159/$E159)) -> 0 | BP159: =IF($E159="n/a","n/a",IF(BP$3-6>$E159,$D159-SUM($F159:BO159),$D159/$E159)) -> 0 | BQ159: =IF($E159="n/a","n/a",IF(BQ$3-6>$E159,$D159-SUM($F159:BP159),$D159/$E159)) -> 0 | BR159: =IF($E159="n/a","n/a",IF(BR$3-6>$E159,$D159-SUM($F159:BQ159),$D159/$E159)) -> 0 | BS159: =IF($E159="n/a","n/a",IF(BS$3-6>$E159,$D159-SUM($F159:BR159),$D159/$E159)) -> 0 | BT159: =IF($E159="n/a","n/a",IF(BT$3-6>$E159,$D159-SUM($F159:BS159),$D159/$E159)) -> 0 | BU159: =IF($E159="n/a","n/a",IF(BU$3-6>$E159,$D159-SUM($F159:BT159),$D159/$E159)) -> 0 | BV159: =IF($E159="n/a","n/a",IF(BV$3-6>$E159,$D159-SUM($F159:BU159),$D159/$E159)) -> 0 | BW159: =IF($E159="n/a","n/a",IF(BW$3-6>$E159,$D159-SUM($F159:BV159),$D159/$E159)) -> 0 | BX159: =IF($E159="n/a","n/a",IF(BX$3-6>$E159,$D159-SUM($F159:BW159),$D159/$E159)) -> 0 | BY159: =IF($E159="n/a","n/a",IF(BY$3-6>$E159,$D159-SUM($F159:BX159),$D159/$E159)) -> 0 | BZ159: =IF($E159="n/a","n/a",IF(BZ$3-6>$E159,$D159-SUM($F159:BY159),$D159/$E159)) -> 0
A160: Equity Raising costs (2003-08) | C160: 0 | D160: 0 | L160: =IF($E160="n/a","n/a",IF(L$3-6>$E160,$D160-SUM($F160:K160),$D160/$E160)) -> 0 | M160: =IF($E160="n/a","n/a",IF(M$3-6>$E160,$D160-SUM($F160:L160),$D160/$E160)) -> 0 | N160: =IF($E160="n/a","n/a",IF(N$3-6>$E160,$D160-SUM($F160:M160),$D160/$E160)) -> 0 | O160: =IF($E160="n/a","n/a",IF(O$3-6>$E160,$D160-SUM($F160:N160),$D160/$E160)) -> 0 | P160: =IF($E160="n/a","n/a",IF(P$3-6>$E160,$D160-SUM($F160:O160),$D160/$E160)) -> 0 | Q160: =IF($E160="n/a","n/a",IF(Q$3-6>$E160,$D160-SUM($F160:P160),$D160/$E160)) -> 0 | R160: =IF($E160="n/a","n/a",IF(R$3-6>$E160,$D160-SUM($F160:Q160),$D160/$E160)) -> 0 | S160: =IF($E160="n/a","n/a",IF(S$3-6>$E160,$D160-SUM($F160:R160),$D160/$E160)) -> 0 | T160: =IF($E160="n/a","n/a",IF(T$3-6>$E160,$D160-SUM($F160:S160),$D160/$E160)) -> 0 | U160: =IF($E160="n/a","n/a",IF(U$3-6>$E160,$D160-SUM($F160:T160),$D160/$E160)) -> 0 | V160: =IF($E160="n/a","n/a",IF(V$3-6>$E160,$D160-SUM($F160:U160),$D160/$E160)) -> 0 | W160: =IF($E160="n/a","n/a",IF(W$3-6>$E160,$D160-SUM($F160:V160),$D160/$E160)) -> 0 | X160: =IF($E160="n/a","n/a",IF(X$3-6>$E160,$D160-SUM($F160:W160),$D160/$E160)) -> 0 | Y160: =IF($E160="n/a","n/a",IF(Y$3-6>$E160,$D160-SUM($F160:X160),$D160/$E160)) -> 0 | Z160: =IF($E160="n/a","n/a",IF(Z$3-6>$E160,$D160-SUM($F160:Y160),$D160/$E160)) -> 0 | AA160: =IF($E160="n/a","n/a",IF(AA$3-6>$E160,$D160-SUM($F160:Z160),$D160/$E160)) -> 0 | AB160: =IF($E160="n/a","n/a",IF(AB$3-6>$E160,$D160-SUM($F160:AA160),$D160/$E160)) -> 0 | AC160: =IF($E160="n/a","n/a",IF(AC$3-6>$E160,$D160-SUM($F160:AB160),$D160/$E160)) -> 0 | AD160: =IF($E160="n/a","n/a",IF(AD$3-6>$E160,$D160-SUM($F160:AC160),$D160/$E160)) -> 0 | AE160: =IF($E160="n/a","n/a",IF(AE$3-6>$E160,$D160-SUM($F160:AD160),$D160/$E160)) -> 0 | AF160: =IF($E160="n/a","n/a",IF(AF$3-6>$E160,$D160-SUM($F160:AE160),$D160/$E160)) -> 0 | AG160: =IF($E160="n/a","n/a",IF(AG$3-6>$E160,$D160-SUM($F160:AF160),$D160/$E160)) -> 0 | AH160: =IF($E160="n/a","n/a",IF(AH$3-6>$E160,$D160-SUM($F160:AG160),$D160/$E160)) -> 0 | AI160: =IF($E160="n/a","n/a",IF(AI$3-6>$E160,$D160-SUM($F160:AH160),$D160/$E160)) -> 0 | AJ160: =IF($E160="n/a","n/a",IF(AJ$3-6>$E160,$D160-SUM($F160:AI160),$D160/$E160)) -> 0 | AK160: =IF($E160="n/a","n/a",IF(AK$3-6>$E160,$D160-SUM($F160:AJ160),$D160/$E160)) -> 0 | AL160: =IF($E160="n/a","n/a",IF(AL$3-6>$E160,$D160-SUM($F160:AK160),$D160/$E160)) -> 0 | AM160: =IF($E160="n/a","n/a",IF(AM$3-6>$E160,$D160-SUM($F160:AL160),$D160/$E160)) -> 0 | AN160: =IF($E160="n/a","n/a",IF(AN$3-6>$E160,$D160-SUM($F160:AM160),$D160/$E160)) -> 0 | AO160: =IF($E160="n/a","n/a",IF(AO$3-6>$E160,$D160-SUM($F160:AN160),$D160/$E160)) -> 0 | AP160: =IF($E160="n/a","n/a",IF(AP$3-6>$E160,$D160-SUM($F160:AO160),$D160/$E160)) -> 0 | AQ160: =IF($E160="n/a","n/a",IF(AQ$3-6>$E160,$D160-SUM($F160:AP160),$D160/$E160)) -> 0 | AR160: =IF($E160="n/a","n/a",IF(AR$3-6>$E160,$D160-SUM($F160:AQ160),$D160/$E160)) -> 0 | AS160: =IF($E160="n/a","n/a",IF(AS$3-6>$E160,$D160-SUM($F160:AR160),$D160/$E160)) -> 0 | AT160: =IF($E160="n/a","n/a",IF(AT$3-6>$E160,$D160-SUM($F160:AS160),$D160/$E160)) -> 0 | AU160: =IF($E160="n/a","n/a",IF(AU$3-6>$E160,$D160-SUM($F160:AT160),$D160/$E160)) -> 0 | AV160: =IF($E160="n/a","n/a",IF(AV$3-6>$E160,$D160-SUM($F160:AU160),$D160/$E160)) -> 0 | AW160: =IF($E160="n/a","n/a",IF(AW$3-6>$E160,$D160-SUM($F160:AV160),$D160/$E160)) -> 0 | AX160: =IF($E160="n/a","n/a",IF(AX$3-6>$E160,$D160-SUM($F160:AW160),$D160/$E160)) -> 0 | AY160: =IF($E160="n/a","n/a",IF(AY$3-6>$E160,$D160-SUM($F160:AX160),$D160/$E160)) -> 0 | AZ160: =IF($E160="n/a","n/a",IF(AZ$3-6>$E160,$D160-SUM($F160:AY160),$D160/$E160)) -> 0 | BA160: =IF($E160="n/a","n/a",IF(BA$3-6>$E160,$D160-SUM($F160:AZ160),$D160/$E160)) -> 0 | BB160: =IF($E160="n/a","n/a",IF(BB$3-6>$E160,$D160-SUM($F160:BA160),$D160/$E160)) -> 0 | BC160: =IF($E160="n/a","n/a",IF(BC$3-6>$E160,$D160-SUM($F160:BB160),$D160/$E160)) -> 0 | BD160: =IF($E160="n/a","n/a",IF(BD$3-6>$E160,$D160-SUM($F160:BC160),$D160/$E160)) -> 0 | BE160: =IF($E160="n/a","n/a",IF(BE$3-6>$E160,$D160-SUM($F160:BD160),$D160/$E160)) -> 0 | BF160: =IF($E160="n/a","n/a",IF(BF$3-6>$E160,$D160-SUM($F160:BE160),$D160/$E160)) -> 0 | BG160: =IF($E160="n/a","n/a",IF(BG$3-6>$E160,$D160-SUM($F160:BF160),$D160/$E160)) -> 0 | BH160: =IF($E160="n/a","n/a",IF(BH$3-6>$E160,$D160-SUM($F160:BG160),$D160/$E160)) -> 0 | BI160: =IF($E160="n/a","n/a",IF(BI$3-6>$E160,$D160-SUM($F160:BH160),$D160/$E160)) -> 0 | BJ160: =IF($E160="n/a","n/a",IF(BJ$3-6>$E160,$D160-SUM($F160:BI160),$D160/$E160)) -> 0 | BK160: =IF($E160="n/a","n/a",IF(BK$3-6>$E160,$D160-SUM($F160:BJ160),$D160/$E160)) -> 0 | BL160: =IF($E160="n/a","n/a",IF(BL$3-6>$E160,$D160-SUM($F160:BK160),$D160/$E160)) -> 0 | BM160: =IF($E160="n/a","n/a",IF(BM$3-6>$E160,$D160-SUM($F160:BL160),$D160/$E160)) -> 0 | BN160: =IF($E160="n/a","n/a",IF(BN$3-6>$E160,$D160-SUM($F160:BM160),$D160/$E160)) -> 0 | BO160: =IF($E160="n/a","n/a",IF(BO$3-6>$E160,$D160-SUM($F160:BN160),$D160/$E160)) -> 0 | BP160: =IF($E160="n/a","n/a",IF(BP$3-6>$E160,$D160-SUM($F160:BO160),$D160/$E160)) -> 0 | BQ160: =IF($E160="n/a","n/a",IF(BQ$3-6>$E160,$D160-SUM($F160:BP160),$D160/$E160)) -> 0 | BR160: =IF($E160="n/a","n/a",IF(BR$3-6>$E160,$D160-SUM($F160:BQ160),$D160/$E160)) -> 0 | BS160: =IF($E160="n/a","n/a",IF(BS$3-6>$E160,$D160-SUM($F160:BR160),$D160/$E160)) -> 0 | BT160: =IF($E160="n/a","n/a",IF(BT$3-6>$E160,$D160-SUM($F160:BS160),$D160/$E160)) -> 0 | BU160: =IF($E160="n/a","n/a",IF(BU$3-6>$E160,$D160-SUM($F160:BT160),$D160/$E160)) -> 0 | BV160: =IF($E160="n/a","n/a",IF(BV$3-6>$E160,$D160-SUM($F160:BU160),$D160/$E160)) -> 0 | BW160: =IF($E160="n/a","n/a",IF(BW$3-6>$E160,$D160-SUM($F160:BV160),$D160/$E160)) -> 0 | BX160: =IF($E160="n/a","n/a",IF(BX$3-6>$E160,$D160-SUM($F160:BW160),$D160/$E160)) -> 0 | BY160: =IF($E160="n/a","n/a",IF(BY$3-6>$E160,$D160-SUM($F160:BX160),$D160/$E160)) -> 0 | BZ160: =IF($E160="n/a","n/a",IF(BZ$3-6>$E160,$D160-SUM($F160:BY160),$D160/$E160)) -> 0
A161: 0 | C161: 0 | D161: 0 | L161: =IF($E161="n/a","n/a",IF(L$3-6>$E161,$D161-SUM($F161:K161),$D161/$E161)) -> 0 | M161: =IF($E161="n/a","n/a",IF(M$3-6>$E161,$D161-SUM($F161:L161),$D161/$E161)) -> 0 | N161: =IF($E161="n/a","n/a",IF(N$3-6>$E161,$D161-SUM($F161:M161),$D161/$E161)) -> 0 | O161: =IF($E161="n/a","n/a",IF(O$3-6>$E161,$D161-SUM($F161:N161),$D161/$E161)) -> 0 | P161: =IF($E161="n/a","n/a",IF(P$3-6>$E161,$D161-SUM($F161:O161),$D161/$E161)) -> 0 | Q161: =IF($E161="n/a","n/a",IF(Q$3-6>$E161,$D161-SUM($F161:P161),$D161/$E161)) -> 0 | R161: =IF($E161="n/a","n/a",IF(R$3-6>$E161,$D161-SUM($F161:Q161),$D161/$E161)) -> 0 | S161: =IF($E161="n/a","n/a",IF(S$3-6>$E161,$D161-SUM($F161:R161),$D161/$E161)) -> 0 | T161: =IF($E161="n/a","n/a",IF(T$3-6>$E161,$D161-SUM($F161:S161),$D161/$E161)) -> 0 | U161: =IF($E161="n/a","n/a",IF(U$3-6>$E161,$D161-SUM($F161:T161),$D161/$E161)) -> 0 | V161: =IF($E161="n/a","n/a",IF(V$3-6>$E161,$D161-SUM($F161:U161),$D161/$E161)) -> 0 | W161: =IF($E161="n/a","n/a",IF(W$3-6>$E161,$D161-SUM($F161:V161),$D161/$E161)) -> 0 | X161: =IF($E161="n/a","n/a",IF(X$3-6>$E161,$D161-SUM($F161:W161),$D161/$E161)) -> 0 | Y161: =IF($E161="n/a","n/a",IF(Y$3-6>$E161,$D161-SUM($F161:X161),$D161/$E161)) -> 0 | Z161: =IF($E161="n/a","n/a",IF(Z$3-6>$E161,$D161-SUM($F161:Y161),$D161/$E161)) -> 0 | AA161: =IF($E161="n/a","n/a",IF(AA$3-6>$E161,$D161-SUM($F161:Z161),$D161/$E161)) -> 0 | AB161: =IF($E161="n/a","n/a",IF(AB$3-6>$E161,$D161-SUM($F161:AA161),$D161/$E161)) -> 0 | AC161: =IF($E161="n/a","n/a",IF(AC$3-6>$E161,$D161-SUM($F161:AB161),$D161/$E161)) -> 0 | AD161: =IF($E161="n/a","n/a",IF(AD$3-6>$E161,$D161-SUM($F161:AC161),$D161/$E161)) -> 0 | AE161: =IF($E161="n/a","n/a",IF(AE$3-6>$E161,$D161-SUM($F161:AD161),$D161/$E161)) -> 0 | AF161: =IF($E161="n/a","n/a",IF(AF$3-6>$E161,$D161-SUM($F161:AE161),$D161/$E161)) -> 0 | AG161: =IF($E161="n/a","n/a",IF(AG$3-6>$E161,$D161-SUM($F161:AF161),$D161/$E161)) -> 0 | AH161: =IF($E161="n/a","n/a",IF(AH$3-6>$E161,$D161-SUM($F161:AG161),$D161/$E161)) -> 0 | AI161: =IF($E161="n/a","n/a",IF(AI$3-6>$E161,$D161-SUM($F161:AH161),$D161/$E161)) -> 0 | AJ161: =IF($E161="n/a","n/a",IF(AJ$3-6>$E161,$D161-SUM($F161:AI161),$D161/$E161)) -> 0 | AK161: =IF($E161="n/a","n/a",IF(AK$3-6>$E161,$D161-SUM($F161:AJ161),$D161/$E161)) -> 0 | AL161: =IF($E161="n/a","n/a",IF(AL$3-6>$E161,$D161-SUM($F161:AK161),$D161/$E161)) -> 0 | AM161: =IF($E161="n/a","n/a",IF(AM$3-6>$E161,$D161-SUM($F161:AL161),$D161/$E161)) -> 0 | AN161: =IF($E161="n/a","n/a",IF(AN$3-6>$E161,$D161-SUM($F161:AM161),$D161/$E161)) -> 0 | AO161: =IF($E161="n/a","n/a",IF(AO$3-6>$E161,$D161-SUM($F161:AN161),$D161/$E161)) -> 0 | AP161: =IF($E161="n/a","n/a",IF(AP$3-6>$E161,$D161-SUM($F161:AO161),$D161/$E161)) -> 0 | AQ161: =IF($E161="n/a","n/a",IF(AQ$3-6>$E161,$D161-SUM($F161:AP161),$D161/$E161)) -> 0 | AR161: =IF($E161="n/a","n/a",IF(AR$3-6>$E161,$D161-SUM($F161:AQ161),$D161/$E161)) -> 0 | AS161: =IF($E161="n/a","n/a",IF(AS$3-6>$E161,$D161-SUM($F161:AR161),$D161/$E161)) -> 0 | AT161: =IF($E161="n/a","n/a",IF(AT$3-6>$E161,$D161-SUM($F161:AS161),$D161/$E161)) -> 0 | AU161: =IF($E161="n/a","n/a",IF(AU$3-6>$E161,$D161-SUM($F161:AT161),$D161/$E161)) -> 0 | AV161: =IF($E161="n/a","n/a",IF(AV$3-6>$E161,$D161-SUM($F161:AU161),$D161/$E161)) -> 0 | AW161: =IF($E161="n/a","n/a",IF(AW$3-6>$E161,$D161-SUM($F161:AV161),$D161/$E161)) -> 0 | AX161: =IF($E161="n/a","n/a",IF(AX$3-6>$E161,$D161-SUM($F161:AW161),$D161/$E161)) -> 0 | AY161: =IF($E161="n/a","n/a",IF(AY$3-6>$E161,$D161-SUM($F161:AX161),$D161/$E161)) -> 0 | AZ161: =IF($E161="n/a","n/a",IF(AZ$3-6>$E161,$D161-SUM($F161:AY161),$D161/$E161)) -> 0 | BA161: =IF($E161="n/a","n/a",IF(BA$3-6>$E161,$D161-SUM($F161:AZ161),$D161/$E161)) -> 0 | BB161: =IF($E161="n/a","n/a",IF(BB$3-6>$E161,$D161-SUM($F161:BA161),$D161/$E161)) -> 0 | BC161: =IF($E161="n/a","n/a",IF(BC$3-6>$E161,$D161-SUM($F161:BB161),$D161/$E161)) -> 0 | BD161: =IF($E161="n/a","n/a",IF(BD$3-6>$E161,$D161-SUM($F161:BC161),$D161/$E161)) -> 0 | BE161: =IF($E161="n/a","n/a",IF(BE$3-6>$E161,$D161-SUM($F161:BD161),$D161/$E161)) -> 0 | BF161: =IF($E161="n/a","n/a",IF(BF$3-6>$E161,$D161-SUM($F161:BE161),$D161/$E161)) -> 0 | BG161: =IF($E161="n/a","n/a",IF(BG$3-6>$E161,$D161-SUM($F161:BF161),$D161/$E161)) -> 0 | BH161: =IF($E161="n/a","n/a",IF(BH$3-6>$E161,$D161-SUM($F161:BG161),$D161/$E161)) -> 0 | BI161: =IF($E161="n/a","n/a",IF(BI$3-6>$E161,$D161-SUM($F161:BH161),$D161/$E161)) -> 0 | BJ161: =IF($E161="n/a","n/a",IF(BJ$3-6>$E161,$D161-SUM($F161:BI161),$D161/$E161)) -> 0 | BK161: =IF($E161="n/a","n/a",IF(BK$3-6>$E161,$D161-SUM($F161:BJ161),$D161/$E161)) -> 0 | BL161: =IF($E161="n/a","n/a",IF(BL$3-6>$E161,$D161-SUM($F161:BK161),$D161/$E161)) -> 0 | BM161: =IF($E161="n/a","n/a",IF(BM$3-6>$E161,$D161-SUM($F161:BL161),$D161/$E161)) -> 0 | BN161: =IF($E161="n/a","n/a",IF(BN$3-6>$E161,$D161-SUM($F161:BM161),$D161/$E161)) -> 0 | BO161: =IF($E161="n/a","n/a",IF(BO$3-6>$E161,$D161-SUM($F161:BN161),$D161/$E161)) -> 0 | BP161: =IF($E161="n/a","n/a",IF(BP$3-6>$E161,$D161-SUM($F161:BO161),$D161/$E161)) -> 0 | BQ161: =IF($E161="n/a","n/a",IF(BQ$3-6>$E161,$D161-SUM($F161:BP161),$D161/$E161)) -> 0 | BR161: =IF($E161="n/a","n/a",IF(BR$3-6>$E161,$D161-SUM($F161:BQ161),$D161/$E161)) -> 0 | BS161: =IF($E161="n/a","n/a",IF(BS$3-6>$E161,$D161-SUM($F161:BR161),$D161/$E161)) -> 0 | BT161: =IF($E161="n/a","n/a",IF(BT$3-6>$E161,$D161-SUM($F161:BS161),$D161/$E161)) -> 0 | BU161: =IF($E161="n/a","n/a",IF(BU$3-6>$E161,$D161-SUM($F161:BT161),$D161/$E161)) -> 0 | BV161: =IF($E161="n/a","n/a",IF(BV$3-6>$E161,$D161-SUM($F161:BU161),$D161/$E161)) -> 0 | BW161: =IF($E161="n/a","n/a",IF(BW$3-6>$E161,$D161-SUM($F161:BV161),$D161/$E161)) -> 0 | BX161: =IF($E161="n/a","n/a",IF(BX$3-6>$E161,$D161-SUM($F161:BW161),$D161/$E161)) -> 0 | BY161: =IF($E161="n/a","n/a",IF(BY$3-6>$E161,$D161-SUM($F161:BX161),$D161/$E161)) -> 0 | BZ161: =IF($E161="n/a","n/a",IF(BZ$3-6>$E161,$D161-SUM($F161:BY161),$D161/$E161)) -> 0
A162: Sub-total | C162: =SUM(C146:C161) -> 116514.742 | D162: =SUM(D146:D161) -> 137386.0235 | F162: =SUM(F146:F161) -> 0 | G162: =SUM(G146:G161) -> 0 | H162: 0 | I162: 0 | J162: 0 | K162: 0 | L162: 4675.007507 | M162: 4675.007507 | N162: 4675.007507 | O162: 4675.007507 | P162: 4675.007507 | Q162: 4675.007507 | R162: =SUM(R146:R161) -> 4675.007507 | S162: =SUM(S146:S161) -> 4675.007507 | T162: 4675.007507 | U162: 4675.007507 | V162: 4675.007507 | W162: 3781.198128 | X162: 2850.906735 | Y162: 2744.135751 | Z162: 2728.181466 | AA162: 2728.181466 | AB162: 2728.181466 | AC162: 2728.181466 | AD162: 2728.181466 | AE162: 2728.181466 | AF162: 2728.181466 | AG162: 2728.181466 | AH162: 2728.181466 | AI162: 2728.181466 | AJ162: 2728.181466 | AK162: 2728.181466 | AL162: 2728.181466 | AM162: 2728.181466 | AN162: 2728.181466 | AO162: 2728.181466 | AP162: 2728.181466 | AQ162: 2728.181466 | AR162: 2728.181466 | AS162: 2728.181466 | AT162: 2728.181466 | AU162: 2728.181466 | AV162: 2728.181466 | AW162: 2424.384195 | AX162: 2328.448214 | AY162: 2328.448214 | AZ162: 2324.901476 | BA162: 2150.271784 | BB162: 789.2509298 | BC162: 127.4206691 | BD162: 127.4206691 | BE162: 127.4206691 | BF162: 127.4206691 | BG162: 127.4206691 | BH162: 127.4206691 | BI162: 127.4206691 | BJ162: 127.4206691 | BK162: 127.4206691 | BL162: 127.4206691 | BM162: 127.4206691 | BN162: 89.19446838 | BO162: 0 | BP162: 0 | BQ162: 0 | BR162: 0 | BS162: 0 | BT162: 0 | BU162: 0 | BV162: 0 | BW162: 0 | BX162: 0 | BY162: 0 | BZ162: 0
A166: Depreciation for Group 3 assets based on Opening RAB as at 1/4/14
B167: Group 3 | L167: Depreciation for Group 3 assets based on Opening RAB as at 1/4/08 | R167: Real 2013-14
D168: OAV 1/4/14 in 2013-14 | E168: Group 3 RL as at 01/04/2014 | F168: =F2 -> 2002-03 | G168: =G2 -> 2003-04 | H168: =H2 -> 2004-05 | I168: 2005-06 | J168: 2006-07 | K168: 2007-08 | L168: 2008-09 | M168: 2009-10 | N168: 2010-11 | O168: 2011-12 | P168: 2012-13 | Q168: 2013-14 | R168: 2014-15 | S168: 2015-16 | T168: 2016-17 | U168: 2017-18 | V168: 2018-19 | W168: 2019-20 | X168: 2020-21 | Y168: 2021-22 | Z168: 2022-23 | AA168: 2023-24 | AB168: 2024-25 | AC168: 2025-26 | AD168: 2026-27 | AE168: 2027-28 | AF168: 2028-29 | AG168: 2029-30 | AH168: 2030-31 | AI168: 2031-32 | AJ168: 2032-33 | AK168: 2033-34 | AL168: 2034-35 | AM168: 2035-36 | AN168: 2036-37 | AO168: 2037-38 | AP168: 2038-39 | AQ168: 2039-40 | AR168: 2040-41 | AS168: 2041-42 | AT168: 2042-43 | AU168: 2043-44 | AV168: 2044-45 | AW168: 2045-46 | AX168: 2046-47 | AY168: 2047-48 | AZ168: 2048-49 | BA168: 2049-50 | BB168: 2080-51 | BC168: 2051-52 | BD168: 2052-53 | BE168: 2053-54 | BF168: 2054-55 | BG168: 2055-56 | BH168: 2056-57 | BI168: 2057-58 | BJ168: 2058-59 | BK168: 2059-60 | BL168: 2060-61 | BM168: 2061-62 | BN168: 2062-63 | BO168: 2063-64 | BP168: 2064-65 | BQ168: 2065-66 | BR168: 2066-67 | BS168: 2067-68 | BT168: =BT2 -> 2068-69 | BU168: 2069-70 | BV168: 2070-71 | BW168: 2071-72 | BX168: 2072-73 | BY168: 2073-74 | BZ168: 2074-75
A169: =A40 -> Secondary | D169: 25801.91793 | E169: 9.780534696 | R169: =IF($E169="n/a","n/a",IF(R$3-12>$E169,$D169-SUM($F169:Q169),$D169/$E169)) -> 2638.088687 | S169: =IF($E169="n/a","n/a",IF(S$3-12>$E169,$D169-SUM($F169:R169),$D169/$E169)) -> 2638.088687 | T169: =IF($E169="n/a","n/a",IF(T$3-12>$E169,$D169-SUM($F169:S169),$D169/$E169)) -> 2638.088687 | U169: =IF($E169="n/a","n/a",IF(U$3-12>$E169,$D169-SUM($F169:T169),$D169/$E169)) -> 2638.088687 | V169: =IF($E169="n/a","n/a",IF(V$3-12>$E169,$D169-SUM($F169:U169),$D169/$E169)) -> 2638.088687 | W169: =IF($E169="n/a","n/a",IF(W$3-12>$E169,$D169-SUM($F169:V169),$D169/$E169)) -> 2638.088687 | X169: =IF($E169="n/a","n/a",IF(X$3-12>$E169,$D169-SUM($F169:W169),$D169/$E169)) -> 2638.088687 | Y169: =IF($E169="n/a","n/a",IF(Y$3-12>$E169,$D169-SUM($F169:X169),$D169/$E169)) -> 2638.088687 | Z169: =IF($E169="n/a","n/a",IF(Z$3-12>$E169,$D169-SUM($F169:Y169),$D169/$E169)) -> 2638.088687 | AA169: =IF($E169="n/a","n/a",IF(AA$3-12>$E169,$D169-SUM($F169:Z169),$D169/$E169)) -> 2059.119751 | AB169: =IF($E169="n/a","n/a",IF(AB$3-12>$E169,$D169-SUM($F169:AA169),$D169/$E169)) -> 0 | AC169: =IF($E169="n/a","n/a",IF(AC$3-12>$E169,$D169-SUM($F169:AB169),$D169/$E169)) -> 0 | AD169: =IF($E169="n/a","n/a",IF(AD$3-12>$E169,$D169-SUM($F169:AC169),$D169/$E169)) -> 0 | AE169: =IF($E169="n/a","n/a",IF(AE$3-12>$E169,$D169-SUM($F169:AD169),$D169/$E169)) -> 0 | AF169: =IF($E169="n/a","n/a",IF(AF$3-12>$E169,$D169-SUM($F169:AE169),$D169/$E169)) -> 0 | AG169: =IF($E169="n/a","n/a",IF(AG$3-12>$E169,$D169-SUM($F169:AF169),$D169/$E169)) -> 0 | AH169: =IF($E169="n/a","n/a",IF(AH$3-12>$E169,$D169-SUM($F169:AG169),$D169/$E169)) -> 0 | AI169: =IF($E169="n/a","n/a",IF(AI$3-12>$E169,$D169-SUM($F169:AH169),$D169/$E169)) -> 0 | AJ169: =IF($E169="n/a","n/a",IF(AJ$3-12>$E169,$D169-SUM($F169:AI169),$D169/$E169)) -> 0 | AK169: =IF($E169="n/a","n/a",IF(AK$3-12>$E169,$D169-SUM($F169:AJ169),$D169/$E169)) -> 0 | AL169: =IF($E169="n/a","n/a",IF(AL$3-12>$E169,$D169-SUM($F169:AK169),$D169/$E169)) -> 0 | AM169: =IF($E169="n/a","n/a",IF(AM$3-12>$E169,$D169-SUM($F169:AL169),$D169/$E169)) -> 0 | AN169: =IF($E169="n/a","n/a",IF(AN$3-12>$E169,$D169-SUM($F169:AM169),$D169/$E169)) -> 0 | AO169: =IF($E169="n/a","n/a",IF(AO$3-12>$E169,$D169-SUM($F169:AN169),$D169/$E169)) -> 0 | AP169: =IF($E169="n/a","n/a",IF(AP$3-12>$E169,$D169-SUM($F169:AO169),$D169/$E169)) -> 0 | AQ169: =IF($E169="n/a","n/a",IF(AQ$3-12>$E169,$D169-SUM($F169:AP169),$D169/$E169)) -> 0 | AR169: =IF($E169="n/a","n/a",IF(AR$3-12>$E169,$D169-SUM($F169:AQ169),$D169/$E169)) -> 0 | AS169: =IF($E169="n/a","n/a",IF(AS$3-12>$E169,$D169-SUM($F169:AR169),$D169/$E169)) -> 0 | AT169: =IF($E169="n/a","n/a",IF(AT$3-12>$E169,$D169-SUM($F169:AS169),$D169/$E169)) -> 0 | AU169: =IF($E169="n/a","n/a",IF(AU$3-12>$E169,$D169-SUM($F169:AT169),$D169/$E169)) -> 0 | AV169: =IF($E169="n/a","n/a",IF(AV$3-12>$E169,$D169-SUM($F169:AU169),$D169/$E169)) -> 0 | AW169: =IF($E169="n/a","n/a",IF(AW$3-12>$E169,$D169-SUM($F169:AV169),$D169/$E169)) -> 0 | AX169: =IF($E169="n/a","n/a",IF(AX$3-12>$E169,$D169-SUM($F169:AW169),$D169/$E169)) -> 0 | AY169: =IF($E169="n/a","n/a",IF(AY$3-12>$E169,$D169-SUM($F169:AX169),$D169/$E169)) -> 0 | AZ169: =IF($E169="n/a","n/a",IF(AZ$3-12>$E169,$D169-SUM($F169:AY169),$D169/$E169)) -> 0 | BA169: =IF($E169="n/a","n/a",IF(BA$3-12>$E169,$D169-SUM($F169:AZ169),$D169/$E169)) -> 0 | BB169: =IF($E169="n/a","n/a",IF(BB$3-12>$E169,$D169-SUM($F169:BA169),$D169/$E169)) -> 0 | BC169: =IF($E169="n/a","n/a",IF(BC$3-12>$E169,$D169-SUM($F169:BB169),$D169/$E169)) -> 0 | BD169: =IF($E169="n/a","n/a",IF(BD$3-12>$E169,$D169-SUM($F169:BC169),$D169/$E169)) -> 0 | BE169: =IF($E169="n/a","n/a",IF(BE$3-12>$E169,$D169-SUM($F169:BD169),$D169/$E169)) -> 0 | BF169: =IF($E169="n/a","n/a",IF(BF$3-12>$E169,$D169-SUM($F169:BE169),$D169/$E169)) -> 0 | BG169: =IF($E169="n/a","n/a",IF(BG$3-12>$E169,$D169-SUM($F169:BF169),$D169/$E169)) -> 0 | BH169: =IF($E169="n/a","n/a",IF(BH$3-12>$E169,$D169-SUM($F169:BG169),$D169/$E169)) -> 0 | BI169: =IF($E169="n/a","n/a",IF(BI$3-12>$E169,$D169-SUM($F169:BH169),$D169/$E169)) -> 0 | BJ169: =IF($E169="n/a","n/a",IF(BJ$3-12>$E169,$D169-SUM($F169:BI169),$D169/$E169)) -> 0 | BK169: =IF($E169="n/a","n/a",IF(BK$3-12>$E169,$D169-SUM($F169:BJ169),$D169/$E169)) -> 0 | BL169: =IF($E169="n/a","n/a",IF(BL$3-12>$E169,$D169-SUM($F169:BK169),$D169/$E169)) -> 0 | BM169: =IF($E169="n/a","n/a",IF(BM$3-12>$E169,$D169-SUM($F169:BL169),$D169/$E169)) -> 0 | BN169: =IF($E169="n/a","n/a",IF(BN$3-12>$E169,$D169-SUM($F169:BM169),$D169/$E169)) -> 0 | BO169: =IF($E169="n/a","n/a",IF(BO$3-12>$E169,$D169-SUM($F169:BN169),$D169/$E169)) -> 0 | BP169: =IF($E169="n/a","n/a",IF(BP$3-12>$E169,$D169-SUM($F169:BO169),$D169/$E169)) -> 0 | BQ169: =IF($E169="n/a","n/a",IF(BQ$3-12>$E169,$D169-SUM($F169:BP169),$D169/$E169)) -> 0 | BR169: =IF($E169="n/a","n/a",IF(BR$3-12>$E169,$D169-SUM($F169:BQ169),$D169/$E169)) -> 0 | BS169: =IF($E169="n/a","n/a",IF(BS$3-12>$E169,$D169-SUM($F169:BR169),$D169/$E169)) -> 0 | BT169: =IF($E169="n/a","n/a",IF(BT$3-12>$E169,$D169-SUM($F169:BS169),$D169/$E169)) -> 0 | BU169: =IF($E169="n/a","n/a",IF(BU$3-12>$E169,$D169-SUM($F169:BT169),$D169/$E169)) -> 0 | BV169: =IF($E169="n/a","n/a",IF(BV$3-12>$E169,$D169-SUM($F169:BU169),$D169/$E169)) -> 0 | BW169: =IF($E169="n/a","n/a",IF(BW$3-12>$E169,$D169-SUM($F169:BV169),$D169/$E169)) -> 0 | BX169: =IF($E169="n/a","n/a",IF(BX$3-12>$E169,$D169-SUM($F169:BW169),$D169/$E169)) -> 0 | BY169: =IF($E169="n/a","n/a",IF(BY$3-12>$E169,$D169-SUM($F169:BX169),$D169/$E169)) -> 0 | BZ169: =IF($E169="n/a","n/a",IF(BZ$3-12>$E169,$D169-SUM($F169:BY169),$D169/$E169)) -> 0
A170: =A41 -> Switchgear | D170: 64455.03504 | E170: 39.54815198 | R170: =IF($E170="n/a","n/a",IF(R$3-12>$E170,$D170-SUM($F170:Q170),$D170/$E170)) -> 1629.786269 | S170: =IF($E170="n/a","n/a",IF(S$3-12>$E170,$D170-SUM($F170:R170),$D170/$E170)) -> 1629.786269 | T170: =IF($E170="n/a","n/a",IF(T$3-12>$E170,$D170-SUM($F170:S170),$D170/$E170)) -> 1629.786269 | U170: =IF($E170="n/a","n/a",IF(U$3-12>$E170,$D170-SUM($F170:T170),$D170/$E170)) -> 1629.786269 | V170: =IF($E170="n/a","n/a",IF(V$3-12>$E170,$D170-SUM($F170:U170),$D170/$E170)) -> 1629.786269 | W170: =IF($E170="n/a","n/a",IF(W$3-12>$E170,$D170-SUM($F170:V170),$D170/$E170)) -> 1629.786269 | X170: =IF($E170="n/a","n/a",IF(X$3-12>$E170,$D170-SUM($F170:W170),$D170/$E170)) -> 1629.786269 | Y170: =IF($E170="n/a","n/a",IF(Y$3-12>$E170,$D170-SUM($F170:X170),$D170/$E170)) -> 1629.786269 | Z170: =IF($E170="n/a","n/a",IF(Z$3-12>$E170,$D170-SUM($F170:Y170),$D170/$E170)) -> 1629.786269 | AA170: =IF($E170="n/a","n/a",IF(AA$3-12>$E170,$D170-SUM($F170:Z170),$D170/$E170)) -> 1629.786269 | AB170: =IF($E170="n/a","n/a",IF(AB$3-12>$E170,$D170-SUM($F170:AA170),$D170/$E170)) -> 1629.786269 | AC170: =IF($E170="n/a","n/a",IF(AC$3-12>$E170,$D170-SUM($F170:AB170),$D170/$E170)) -> 1629.786269 | AD170: =IF($E170="n/a","n/a",IF(AD$3-12>$E170,$D170-SUM($F170:AC170),$D170/$E170)) -> 1629.786269 | AE170: =IF($E170="n/a","n/a",IF(AE$3-12>$E170,$D170-SUM($F170:AD170),$D170/$E170)) -> 1629.786269 | AF170: =IF($E170="n/a","n/a",IF(AF$3-12>$E170,$D170-SUM($F170:AE170),$D170/$E170)) -> 1629.786269 | AG170: =IF($E170="n/a","n/a",IF(AG$3-12>$E170,$D170-SUM($F170:AF170),$D170/$E170)) -> 1629.786269 | AH170: =IF($E170="n/a","n/a",IF(AH$3-12>$E170,$D170-SUM($F170:AG170),$D170/$E170)) -> 1629.786269 | AI170: =IF($E170="n/a","n/a",IF(AI$3-12>$E170,$D170-SUM($F170:AH170),$D170/$E170)) -> 1629.786269 | AJ170: =IF($E170="n/a","n/a",IF(AJ$3-12>$E170,$D170-SUM($F170:AI170),$D170/$E170)) -> 1629.786269 | AK170: =IF($E170="n/a","n/a",IF(AK$3-12>$E170,$D170-SUM($F170:AJ170),$D170/$E170)) -> 1629.786269 | AL170: =IF($E170="n/a","n/a",IF(AL$3-12>$E170,$D170-SUM($F170:AK170),$D170/$E170)) -> 1629.786269 | AM170: =IF($E170="n/a","n/a",IF(AM$3-12>$E170,$D170-SUM($F170:AL170),$D170/$E170)) -> 1629.786269 | AN170: =IF($E170="n/a","n/a",IF(AN$3-12>$E170,$D170-SUM($F170:AM170),$D170/$E170)) -> 1629.786269 | AO170: =IF($E170="n/a","n/a",IF(AO$3-12>$E170,$D170-SUM($F170:AN170),$D170/$E170)) -> 1629.786269 | AP170: =IF($E170="n/a","n/a",IF(AP$3-12>$E170,$D170-SUM($F170:AO170),$D170/$E170)) -> 1629.786269 | AQ170: =IF($E170="n/a","n/a",IF(AQ$3-12>$E170,$D170-SUM($F170:AP170),$D170/$E170)) -> 1629.786269 | AR170: =IF($E170="n/a","n/a",IF(AR$3-12>$E170,$D170-SUM($F170:AQ170),$D170/$E170)) -> 1629.786269 | AS170: =IF($E170="n/a","n/a",IF(AS$3-12>$E170,$D170-SUM($F170:AR170),$D170/$E170)) -> 1629.786269 | AT170: =IF($E170="n/a","n/a",IF(AT$3-12>$E170,$D170-SUM($F170:AS170),$D170/$E170)) -> 1629.786269 | AU170: =IF($E170="n/a","n/a",IF(AU$3-12>$E170,$D170-SUM($F170:AT170),$D170/$E170)) -> 1629.786269 | AV170: =IF($E170="n/a","n/a",IF(AV$3-12>$E170,$D170-SUM($F170:AU170),$D170/$E170)) -> 1629.786269 | AW170: =IF($E170="n/a","n/a",IF(AW$3-12>$E170,$D170-SUM($F170:AV170),$D170/$E170)) -> 1629.786269 | AX170: =IF($E170="n/a","n/a",IF(AX$3-12>$E170,$D170-SUM($F170:AW170),$D170/$E170)) -> 1629.786269 | AY170: =IF($E170="n/a","n/a",IF(AY$3-12>$E170,$D170-SUM($F170:AX170),$D170/$E170)) -> 1629.786269 | AZ170: =IF($E170="n/a","n/a",IF(AZ$3-12>$E170,$D170-SUM($F170:AY170),$D170/$E170)) -> 1629.786269 | BA170: =IF($E170="n/a","n/a",IF(BA$3-12>$E170,$D170-SUM($F170:AZ170),$D170/$E170)) -> 1629.786269 | BB170: =IF($E170="n/a","n/a",IF(BB$3-12>$E170,$D170-SUM($F170:BA170),$D170/$E170)) -> 1629.786269 | BC170: =IF($E170="n/a","n/a",IF(BC$3-12>$E170,$D170-SUM($F170:BB170),$D170/$E170)) -> 1629.786269 | BD170: =IF($E170="n/a","n/a",IF(BD$3-12>$E170,$D170-SUM($F170:BC170),$D170/$E170)) -> 1629.786269 | BE170: =IF($E170="n/a","n/a",IF(BE$3-12>$E170,$D170-SUM($F170:BD170),$D170/$E170)) -> 893.3705689 | BF170: =IF($E170="n/a","n/a",IF(BF$3-12>$E170,$D170-SUM($F170:BE170),$D170/$E170)) -> 0 | BG170: =IF($E170="n/a","n/a",IF(BG$3-12>$E170,$D170-SUM($F170:BF170),$D170/$E170)) -> 0 | BH170: =IF($E170="n/a","n/a",IF(BH$3-12>$E170,$D170-SUM($F170:BG170),$D170/$E170)) -> 0 | BI170: =IF($E170="n/a","n/a",IF(BI$3-12>$E170,$D170-SUM($F170:BH170),$D170/$E170)) -> 0 | BJ170: =IF($E170="n/a","n/a",IF(BJ$3-12>$E170,$D170-SUM($F170:BI170),$D170/$E170)) -> 0 | BK170: =IF($E170="n/a","n/a",IF(BK$3-12>$E170,$D170-SUM($F170:BJ170),$D170/$E170)) -> 0 | BL170: =IF($E170="n/a","n/a",IF(BL$3-12>$E170,$D170-SUM($F170:BK170),$D170/$E170)) -> 0 | BM170: =IF($E170="n/a","n/a",IF(BM$3-12>$E170,$D170-SUM($F170:BL170),$D170/$E170)) -> 0 | BN170: =IF($E170="n/a","n/a",IF(BN$3-12>$E170,$D170-SUM($F170:BM170),$D170/$E170)) -> 0 | BO170: =IF($E170="n/a","n/a",IF(BO$3-12>$E170,$D170-SUM($F170:BN170),$D170/$E170)) -> 0 | BP170: =IF($E170="n/a","n/a",IF(BP$3-12>$E170,$D170-SUM($F170:BO170),$D170/$E170)) -> 0 | BQ170: =IF($E170="n/a","n/a",IF(BQ$3-12>$E170,$D170-SUM($F170:BP170),$D170/$E170)) -> 0 | BR170: =IF($E170="n/a","n/a",IF(BR$3-12>$E170,$D170-SUM($F170:BQ170),$D170/$E170)) -> 0 | BS170: =IF($E170="n/a","n/a",IF(BS$3-12>$E170,$D170-SUM($F170:BR170),$D170/$E170)) -> 0 | BT170: =IF($E170="n/a","n/a",IF(BT$3-12>$E170,$D170-SUM($F170:BS170),$D170/$E170)) -> 0 | BU170: =IF($E170="n/a","n/a",IF(BU$3-12>$E170,$D170-SUM($F170:BT170),$D170/$E170)) -> 0 | BV170: =IF($E170="n/a","n/a",IF(BV$3-12>$E170,$D170-SUM($F170:BU170),$D170/$E170)) -> 0 | BW170: =IF($E170="n/a","n/a",IF(BW$3-12>$E170,$D170-SUM($F170:BV170),$D170/$E170)) -> 0 | BX170: =IF($E170="n/a","n/a",IF(BX$3-12>$E170,$D170-SUM($F170:BW170),$D170/$E170)) -> 0 | BY170: =IF($E170="n/a","n/a",IF(BY$3-12>$E170,$D170-SUM($F170:BX170),$D170/$E170)) -> 0 | BZ170: =IF($E170="n/a","n/a",IF(BZ$3-12>$E170,$D170-SUM($F170:BY170),$D170/$E170)) -> 0
A171: Transformers | D171: 45354.41782 | E171: 39.29936125 | R171: =IF($E171="n/a","n/a",IF(R$3-12>$E171,$D171-SUM($F171:Q171),$D171/$E171)) -> 1154.075191 | S171: =IF($E171="n/a","n/a",IF(S$3-12>$E171,$D171-SUM($F171:R171),$D171/$E171)) -> 1154.075191 | T171: =IF($E171="n/a","n/a",IF(T$3-12>$E171,$D171-SUM($F171:S171),$D171/$E171)) -> 1154.075191 | U171: =IF($E171="n/a","n/a",IF(U$3-12>$E171,$D171-SUM($F171:T171),$D171/$E171)) -> 1154.075191 | V171: =IF($E171="n/a","n/a",IF(V$3-12>$E171,$D171-SUM($F171:U171),$D171/$E171)) -> 1154.075191 | W171: =IF($E171="n/a","n/a",IF(W$3-12>$E171,$D171-SUM($F171:V171),$D171/$E171)) -> 1154.075191 | X171: =IF($E171="n/a","n/a",IF(X$3-12>$E171,$D171-SUM($F171:W171),$D171/$E171)) -> 1154.075191 | Y171: =IF($E171="n/a","n/a",IF(Y$3-12>$E171,$D171-SUM($F171:X171),$D171/$E171)) -> 1154.075191 | Z171: =IF($E171="n/a","n/a",IF(Z$3-12>$E171,$D171-SUM($F171:Y171),$D171/$E171)) -> 1154.075191 | AA171: =IF($E171="n/a","n/a",IF(AA$3-12>$E171,$D171-SUM($F171:Z171),$D171/$E171)) -> 1154.075191 | AB171: =IF($E171="n/a","n/a",IF(AB$3-12>$E171,$D171-SUM($F171:AA171),$D171/$E171)) -> 1154.075191 | AC171: =IF($E171="n/a","n/a",IF(AC$3-12>$E171,$D171-SUM($F171:AB171),$D171/$E171)) -> 1154.075191 | AD171: =IF($E171="n/a","n/a",IF(AD$3-12>$E171,$D171-SUM($F171:AC171),$D171/$E171)) -> 1154.075191 | AE171: =IF($E171="n/a","n/a",IF(AE$3-12>$E171,$D171-SUM($F171:AD171),$D171/$E171)) -> 1154.075191 | AF171: =IF($E171="n/a","n/a",IF(AF$3-12>$E171,$D171-SUM($F171:AE171),$D171/$E171)) -> 1154.075191 | AG171: =IF($E171="n/a","n/a",IF(AG$3-12>$E171,$D171-SUM($F171:AF171),$D171/$E171)) -> 1154.075191 | AH171: =IF($E171="n/a","n/a",IF(AH$3-12>$E171,$D171-SUM($F171:AG171),$D171/$E171)) -> 1154.075191 | AI171: =IF($E171="n/a","n/a",IF(AI$3-12>$E171,$D171-SUM($F171:AH171),$D171/$E171)) -> 1154.075191 | AJ171: =IF($E171="n/a","n/a",IF(AJ$3-12>$E171,$D171-SUM($F171:AI171),$D171/$E171)) -> 1154.075191 | AK171: =IF($E171="n/a","n/a",IF(AK$3-12>$E171,$D171-SUM($F171:AJ171),$D171/$E171)) -> 1154.075191 | AL171: =IF($E171="n/a","n/a",IF(AL$3-12>$E171,$D171-SUM($F171:AK171),$D171/$E171)) -> 1154.075191 | AM171: =IF($E171="n/a","n/a",IF(AM$3-12>$E171,$D171-SUM($F171:AL171),$D171/$E171)) -> 1154.075191 | AN171: =IF($E171="n/a","n/a",IF(AN$3-12>$E171,$D171-SUM($F171:AM171),$D171/$E171)) -> 1154.075191 | AO171: =IF($E171="n/a","n/a",IF(AO$3-12>$E171,$D171-SUM($F171:AN171),$D171/$E171)) -> 1154.075191 | AP171: =IF($E171="n/a","n/a",IF(AP$3-12>$E171,$D171-SUM($F171:AO171),$D171/$E171)) -> 1154.075191 | AQ171: =IF($E171="n/a","n/a",IF(AQ$3-12>$E171,$D171-SUM($F171:AP171),$D171/$E171)) -> 1154.075191 | AR171: =IF($E171="n/a","n/a",IF(AR$3-12>$E171,$D171-SUM($F171:AQ171),$D171/$E171)) -> 1154.075191 | AS171: =IF($E171="n/a","n/a",IF(AS$3-12>$E171,$D171-SUM($F171:AR171),$D171/$E171)) -> 1154.075191 | AT171: =IF($E171="n/a","n/a",IF(AT$3-12>$E171,$D171-SUM($F171:AS171),$D171/$E171)) -> 1154.075191 | AU171: =IF($E171="n/a","n/a",IF(AU$3-12>$E171,$D171-SUM($F171:AT171),$D171/$E171)) -> 1154.075191 | AV171: =IF($E171="n/a","n/a",IF(AV$3-12>$E171,$D171-SUM($F171:AU171),$D171/$E171)) -> 1154.075191 | AW171: =IF($E171="n/a","n/a",IF(AW$3-12>$E171,$D171-SUM($F171:AV171),$D171/$E171)) -> 1154.075191 | AX171: =IF($E171="n/a","n/a",IF(AX$3-12>$E171,$D171-SUM($F171:AW171),$D171/$E171)) -> 1154.075191 | AY171: =IF($E171="n/a","n/a",IF(AY$3-12>$E171,$D171-SUM($F171:AX171),$D171/$E171)) -> 1154.075191 | AZ171: =IF($E171="n/a","n/a",IF(AZ$3-12>$E171,$D171-SUM($F171:AY171),$D171/$E171)) -> 1154.075191 | BA171: =IF($E171="n/a","n/a",IF(BA$3-12>$E171,$D171-SUM($F171:AZ171),$D171/$E171)) -> 1154.075191 | BB171: =IF($E171="n/a","n/a",IF(BB$3-12>$E171,$D171-SUM($F171:BA171),$D171/$E171)) -> 1154.075191 | BC171: =IF($E171="n/a","n/a",IF(BC$3-12>$E171,$D171-SUM($F171:BB171),$D171/$E171)) -> 1154.075191 | BD171: =IF($E171="n/a","n/a",IF(BD$3-12>$E171,$D171-SUM($F171:BC171),$D171/$E171)) -> 1154.075191 | BE171: =IF($E171="n/a","n/a",IF(BE$3-12>$E171,$D171-SUM($F171:BD171),$D171/$E171)) -> 345.4853894 | BF171: =IF($E171="n/a","n/a",IF(BF$3-12>$E171,$D171-SUM($F171:BE171),$D171/$E171)) -> 0 | BG171: =IF($E171="n/a","n/a",IF(BG$3-12>$E171,$D171-SUM($F171:BF171),$D171/$E171)) -> 0 | BH171: =IF($E171="n/a","n/a",IF(BH$3-12>$E171,$D171-SUM($F171:BG171),$D171/$E171)) -> 0 | BI171: =IF($E171="n/a","n/a",IF(BI$3-12>$E171,$D171-SUM($F171:BH171),$D171/$E171)) -> 0 | BJ171: =IF($E171="n/a","n/a",IF(BJ$3-12>$E171,$D171-SUM($F171:BI171),$D171/$E171)) -> 0 | BK171: =IF($E171="n/a","n/a",IF(BK$3-12>$E171,$D171-SUM($F171:BJ171),$D171/$E171)) -> 0 | BL171: =IF($E171="n/a","n/a",IF(BL$3-12>$E171,$D171-SUM($F171:BK171),$D171/$E171)) -> 0 | BM171: =IF($E171="n/a","n/a",IF(BM$3-12>$E171,$D171-SUM($F171:BL171),$D171/$E171)) -> 0 | BN171: =IF($E171="n/a","n/a",IF(BN$3-12>$E171,$D171-SUM($F171:BM171),$D171/$E171)) -> 0 | BO171: =IF($E171="n/a","n/a",IF(BO$3-12>$E171,$D171-SUM($F171:BN171),$D171/$E171)) -> 0 | BP171: =IF($E171="n/a","n/a",IF(BP$3-12>$E171,$D171-SUM($F171:BO171),$D171/$E171)) -> 0 | BQ171: =IF($E171="n/a","n/a",IF(BQ$3-12>$E171,$D171-SUM($F171:BP171),$D171/$E171)) -> 0 | BR171: =IF($E171="n/a","n/a",IF(BR$3-12>$E171,$D171-SUM($F171:BQ171),$D171/$E171)) -> 0 | BS171: =IF($E171="n/a","n/a",IF(BS$3-12>$E171,$D171-SUM($F171:BR171),$D171/$E171)) -> 0 | BT171: =IF($E171="n/a","n/a",IF(BT$3-12>$E171,$D171-SUM($F171:BS171),$D171/$E171)) -> 0 | BU171: =IF($E171="n/a","n/a",IF(BU$3-12>$E171,$D171-SUM($F171:BT171),$D171/$E171)) -> 0 | BV171: =IF($E171="n/a","n/a",IF(BV$3-12>$E171,$D171-SUM($F171:BU171),$D171/$E171)) -> 0 | BW171: =IF($E171="n/a","n/a",IF(BW$3-12>$E171,$D171-SUM($F171:BV171),$D171/$E171)) -> 0 | BX171: =IF($E171="n/a","n/a",IF(BX$3-12>$E171,$D171-SUM($F171:BW171),$D171/$E171)) -> 0 | BY171: =IF($E171="n/a","n/a",IF(BY$3-12>$E171,$D171-SUM($F171:BX171),$D171/$E171)) -> 0 | BZ171: =IF($E171="n/a","n/a",IF(BZ$3-12>$E171,$D171-SUM($F171:BY171),$D171/$E171)) -> 0
A172: Reactive | D172: 100.8253487 | E172: 35.82739726 | R172: =IF($E172="n/a","n/a",IF(R$3-12>$E172,$D172-SUM($F172:Q172),$D172/$E172)) -> 2.814196855 | S172: =IF($E172="n/a","n/a",IF(S$3-12>$E172,$D172-SUM($F172:R172),$D172/$E172)) -> 2.814196855 | T172: =IF($E172="n/a","n/a",IF(T$3-12>$E172,$D172-SUM($F172:S172),$D172/$E172)) -> 2.814196855 | U172: =IF($E172="n/a","n/a",IF(U$3-12>$E172,$D172-SUM($F172:T172),$D172/$E172)) -> 2.814196855 | V172: =IF($E172="n/a","n/a",IF(V$3-12>$E172,$D172-SUM($F172:U172),$D172/$E172)) -> 2.814196855 | W172: =IF($E172="n/a","n/a",IF(W$3-12>$E172,$D172-SUM($F172:V172),$D172/$E172)) -> 2.814196855 | X172: =IF($E172="n/a","n/a",IF(X$3-12>$E172,$D172-SUM($F172:W172),$D172/$E172)) -> 2.814196855 | Y172: =IF($E172="n/a","n/a",IF(Y$3-12>$E172,$D172-SUM($F172:X172),$D172/$E172)) -> 2.814196855 | Z172: =IF($E172="n/a","n/a",IF(Z$3-12>$E172,$D172-SUM($F172:Y172),$D172/$E172)) -> 2.814196855 | AA172: =IF($E172="n/a","n/a",IF(AA$3-12>$E172,$D172-SUM($F172:Z172),$D172/$E172)) -> 2.814196855 | AB172: =IF($E172="n/a","n/a",IF(AB$3-12>$E172,$D172-SUM($F172:AA172),$D172/$E172)) -> 2.814196855 | AC172: =IF($E172="n/a","n/a",IF(AC$3-12>$E172,$D172-SUM($F172:AB172),$D172/$E172)) -> 2.814196855 | AD172: =IF($E172="n/a","n/a",IF(AD$3-12>$E172,$D172-SUM($F172:AC172),$D172/$E172)) -> 2.814196855 | AE172: =IF($E172="n/a","n/a",IF(AE$3-12>$E172,$D172-SUM($F172:AD172),$D172/$E172)) -> 2.814196855 | AF172: =IF($E172="n/a","n/a",IF(AF$3-12>$E172,$D172-SUM($F172:AE172),$D172/$E172)) -> 2.814196855 | AG172: =IF($E172="n/a","n/a",IF(AG$3-12>$E172,$D172-SUM($F172:AF172),$D172/$E172)) -> 2.814196855 | AH172: =IF($E172="n/a","n/a",IF(AH$3-12>$E172,$D172-SUM($F172:AG172),$D172/$E172)) -> 2.814196855 | AI172: =IF($E172="n/a","n/a",IF(AI$3-12>$E172,$D172-SUM($F172:AH172),$D172/$E172)) -> 2.814196855 | AJ172: =IF($E172="n/a","n/a",IF(AJ$3-12>$E172,$D172-SUM($F172:AI172),$D172/$E172)) -> 2.814196855 | AK172: =IF($E172="n/a","n/a",IF(AK$3-12>$E172,$D172-SUM($F172:AJ172),$D172/$E172)) -> 2.814196855 | AL172: =IF($E172="n/a","n/a",IF(AL$3-12>$E172,$D172-SUM($F172:AK172),$D172/$E172)) -> 2.814196855 | AM172: =IF($E172="n/a","n/a",IF(AM$3-12>$E172,$D172-SUM($F172:AL172),$D172/$E172)) -> 2.814196855 | AN172: =IF($E172="n/a","n/a",IF(AN$3-12>$E172,$D172-SUM($F172:AM172),$D172/$E172)) -> 2.814196855 | AO172: =IF($E172="n/a","n/a",IF(AO$3-12>$E172,$D172-SUM($F172:AN172),$D172/$E172)) -> 2.814196855 | AP172: =IF($E172="n/a","n/a",IF(AP$3-12>$E172,$D172-SUM($F172:AO172),$D172/$E172)) -> 2.814196855 | AQ172: =IF($E172="n/a","n/a",IF(AQ$3-12>$E172,$D172-SUM($F172:AP172),$D172/$E172)) -> 2.814196855 | AR172: =IF($E172="n/a","n/a",IF(AR$3-12>$E172,$D172-SUM($F172:AQ172),$D172/$E172)) -> 2.814196855 | AS172: =IF($E172="n/a","n/a",IF(AS$3-12>$E172,$D172-SUM($F172:AR172),$D172/$E172)) -> 2.814196855 | AT172: =IF($E172="n/a","n/a",IF(AT$3-12>$E172,$D172-SUM($F172:AS172),$D172/$E172)) -> 2.814196855 | AU172: =IF($E172="n/a","n/a",IF(AU$3-12>$E172,$D172-SUM($F172:AT172),$D172/$E172)) -> 2.814196855 | AV172: =IF($E172="n/a","n/a",IF(AV$3-12>$E172,$D172-SUM($F172:AU172),$D172/$E172)) -> 2.814196855 | AW172: =IF($E172="n/a","n/a",IF(AW$3-12>$E172,$D172-SUM($F172:AV172),$D172/$E172)) -> 2.814196855 | AX172: =IF($E172="n/a","n/a",IF(AX$3-12>$E172,$D172-SUM($F172:AW172),$D172/$E172)) -> 2.814196855 | AY172: =IF($E172="n/a","n/a",IF(AY$3-12>$E172,$D172-SUM($F172:AX172),$D172/$E172)) -> 2.814196855 | AZ172: =IF($E172="n/a","n/a",IF(AZ$3-12>$E172,$D172-SUM($F172:AY172),$D172/$E172)) -> 2.814196855 | BA172: =IF($E172="n/a","n/a",IF(BA$3-12>$E172,$D172-SUM($F172:AZ172),$D172/$E172)) -> 2.328458768 | BB172: =IF($E172="n/a","n/a",IF(BB$3-12>$E172,$D172-SUM($F172:BA172),$D172/$E172)) -> 0 | BC172: =IF($E172="n/a","n/a",IF(BC$3-12>$E172,$D172-SUM($F172:BB172),$D172/$E172)) -> 0 | BD172: =IF($E172="n/a","n/a",IF(BD$3-12>$E172,$D172-SUM($F172:BC172),$D172/$E172)) -> 0 | BE172: =IF($E172="n/a","n/a",IF(BE$3-12>$E172,$D172-SUM($F172:BD172),$D172/$E172)) -> 0 | BF172: =IF($E172="n/a","n/a",IF(BF$3-12>$E172,$D172-SUM($F172:BE172),$D172/$E172)) -> 0 | BG172: =IF($E172="n/a","n/a",IF(BG$3-12>$E172,$D172-SUM($F172:BF172),$D172/$E172)) -> 0 | BH172: =IF($E172="n/a","n/a",IF(BH$3-12>$E172,$D172-SUM($F172:BG172),$D172/$E172)) -> 0 | BI172: =IF($E172="n/a","n/a",IF(BI$3-12>$E172,$D172-SUM($F172:BH172),$D172/$E172)) -> 0 | BJ172: =IF($E172="n/a","n/a",IF(BJ$3-12>$E172,$D172-SUM($F172:BI172),$D172/$E172)) -> 0 | BK172: =IF($E172="n/a","n/a",IF(BK$3-12>$E172,$D172-SUM($F172:BJ172),$D172/$E172)) -> 0 | BL172: =IF($E172="n/a","n/a",IF(BL$3-12>$E172,$D172-SUM($F172:BK172),$D172/$E172)) -> 0 | BM172: =IF($E172="n/a","n/a",IF(BM$3-12>$E172,$D172-SUM($F172:BL172),$D172/$E172)) -> 0 | BN172: =IF($E172="n/a","n/a",IF(BN$3-12>$E172,$D172-SUM($F172:BM172),$D172/$E172)) -> 0 | BO172: =IF($E172="n/a","n/a",IF(BO$3-12>$E172,$D172-SUM($F172:BN172),$D172/$E172)) -> 0 | BP172: =IF($E172="n/a","n/a",IF(BP$3-12>$E172,$D172-SUM($F172:BO172),$D172/$E172)) -> 0 | BQ172: =IF($E172="n/a","n/a",IF(BQ$3-12>$E172,$D172-SUM($F172:BP172),$D172/$E172)) -> 0 | BR172: =IF($E172="n/a","n/a",IF(BR$3-12>$E172,$D172-SUM($F172:BQ172),$D172/$E172)) -> 0 | BS172: =IF($E172="n/a","n/a",IF(BS$3-12>$E172,$D172-SUM($F172:BR172),$D172/$E172)) -> 0 | BT172: =IF($E172="n/a","n/a",IF(BT$3-12>$E172,$D172-SUM($F172:BS172),$D172/$E172)) -> 0 | BU172: =IF($E172="n/a","n/a",IF(BU$3-12>$E172,$D172-SUM($F172:BT172),$D172/$E172)) -> 0 | BV172: =IF($E172="n/a","n/a",IF(BV$3-12>$E172,$D172-SUM($F172:BU172),$D172/$E172)) -> 0 | BW172: =IF($E172="n/a","n/a",IF(BW$3-12>$E172,$D172-SUM($F172:BV172),$D172/$E172)) -> 0 | BX172: =IF($E172="n/a","n/a",IF(BX$3-12>$E172,$D172-SUM($F172:BW172),$D172/$E172)) -> 0 | BY172: =IF($E172="n/a","n/a",IF(BY$3-12>$E172,$D172-SUM($F172:BX172),$D172/$E172)) -> 0 | BZ172: =IF($E172="n/a","n/a",IF(BZ$3-12>$E172,$D172-SUM($F172:BY172),$D172/$E172)) -> 0
